Workbook

Sheet Cover
B3: Capex Model - Power and Water Corporation (PWC)
C11: Model Developer: | F11: PWC
C13: Purpose of the Model:
C14: The purpose of this model is to provide capex outputs which are required as part of the Power and Water Corporation - Determination 2019-24.
C16: Model Legend:
D19: Assumptions | F19: Cells containing assumptions intended to be manipulated by model users
D20: Drop Down | F20: Cells containing a drop down list for users to select inputs
D21: Input | F21: Cells containing input texts/numbers NOT intended to be changed by model users
D22: Output | F22: Cells containing formulae NOT intended to be changed by model users
D23: Heading 1 | F23: Level 1 heading NOT intended to be changed by model users
D24: Heading 2 | F24: Level 2 heading NOT intended to be changed by model users
F25: Cells where inputs or outputs are not applicable
D26: Hyperlink | F26: Cells containing a hyperlink to another part of the workbook
D27: Error | F27: Cells representing there is an error in the nominated area of the workbook
D28: Ok | F28: Cells representing there are no errors in the nominated area of the workbook
F29: Cells containing a link from external workbooks
C32: Disclaimer:
C33: This model is confidential information of, and is owned by, Power and Water Corporation ABN 15 947 352 360 (PWC). It may not be disclosed to, or used or relied on by, any person without the consent of PWC. PWC has not verified the inputs or the outputs of this model and makes no representation or warranty as to the completeness, accuracy, reliability or appropriateness of the model, its inputs and outputs (including any forward looking statements) or how it functions. To the extent permitted by law, any person using or relying on this model or its outputs does so at their own risk and agrees that PWC will not be liable to any person for any loss or damage of any kind arising out of or in any way connected with the use of this model (including negligence). The references to PWC in this disclaimer includes their respective directors, officers, employees, contractors, advisers or agents.

Sheet TOC
B1: Table of Contents
B2: =Checks!B2 -> No Errors Found
B4: =B1 -> Table of Contents
C6: Model Outputs
D8: ='Project List'!B1 -> Capital Expenditure Forecast By Project
D9: ='Total by category'!$B$1 -> Consolidated Capital Expenditure Forecast
C11: SCS Outputs
D13: ='SCS total'!$B$1 -> Consolidated Capital Expenditure Forecast - SCS
D14: =Augex!B1 -> Augmentation Expenditure
D15: =Repex!B1 -> Replacement Expenditure
D16: =Connections!B1 -> Connection Capital Expenditure
D17: =IT!B1 -> Information Technology Capital Expenditure
D18: =Escalation!B1 -> Escalation on Direct Capex Forecasts - SCS
D19: ='Capitalised OH'!B1 -> Capitalised Overheads Forecast - SCS
C21: ACS Metering Outputs
D23: ='Metering total'!B1 -> Consolidated Capital Expenditure Forecast - Metering
D24: =Metering!B1 -> Metering Capital Expenditure
D25: ='Metering | Escalation'!B1 -> Escalation on Direct Capex Forecasts - Metering
D26: ='Metering | Capitalised OH'!B1 -> Capitalised Overheads Forecast - Metering
C28: Detailed Project Forecasts
D30: ='Repex -->'!B8&" Section Cover" -> Repex Section Cover
D31: ='Augex -->'!B8&" Section Cover" -> Augex Section Cover
B33: End

Sheet Project List
A1: =IF(SUM($A2:$A83)>0,1,0) -> 0 | B1: Capital Expenditure Forecast By Project | G1: COMMERCIAL IN CONFIDENCE
B3: Capex Forecasts
C5: Capex forecasts by project (excluding connection capex and capitalised overheads)
D6: Project_Name | E6: Expenditure_cateogry | F6: E9 | N6: I34 | O6: J34 | P6: K34 | Q6: L34 | R6: M34 | S6: N34 | V6: P34 | AH6: =1/(1+'Total by category'!I22)^0.5 -> 0.990147543 | AI6: =AH6*(1+'Total by category'!I22)^0.5*(1+'Total by category'!J22)^0.5 -> 1.012051751 | AJ6: =AI6*(1+'Total by category'!J22)^0.5*(1+'Total by category'!K22)^0.5 -> 1.036592737 | AK6: =AJ6*(1+'Total by category'!K22)^0.5*(1+'Total by category'!L22)^0.5 -> 1.061728812 | AL6: =AK6*(1+'Total by category'!L22)^0.5*(1+'Total by category'!M22)^0.5 -> 1.087474405 | AM6: =AL6*(1+'Total by category'!M22)^0.5*(1+'Total by category'!N22)^0.5 -> 1.113844296 | AO6: <-- Inflation index from Real$2019 (End of Year) to $Nominal (Mid Year)
N8: Expenditure (Real $2018, No Input Cost Escalation, End_Year) | X8: Expenditure (Real $2019, Escalated, End_Year) | AH8: Expenditure ($Nominal, Escalated, End_Year)
C9: Sheet | D9: Project | E9: Capex Purpose | F9: Project / Program number | G9: Expenditure category | H9: Sub-category1 | I9: Sub-category2 | J9: Unit | K9: Basis | L9: Timing | N9: RY19 | O9: RY20 | P9: RY21 | Q9: RY22 | R9: RY23 | S9: RY24 | U9: Total FY20 to FY24 | V9: Check | X9: RY19 | Y9: RY20 | Z9: RY21 | AA9: RY22 | AB9: RY23 | AC9: RY24 | AE9: Total FY20 to FY24 | AF9: Check | AH9: RY19 | AI9: RY20 | AJ9: RY21 | AK9: RY22 | AL9: RY23 | AM9: RY24 | AO9: Total FY20 to FY24 | AP9: Check
C10: BNI 1 | D10: =INDIRECT("'"&$C10&"'!"&D$6) -> Alice Springs Corroded Poles | E10: =INDIRECT("'"&$C10&"'!"&E$6) -> Distribution Lines | F10: PRA34420 | G10: Repex | H10: Condition and risk | I10: Alice Springs Corroded Poles | J10: Dollars | K10: Real $2018 | L10: End_Year | N10: c-i-c | O10: c-i-c | P10: c-i-c | Q10: c-i-c | R10: c-i-c | S10: c-i-c | U10: c-i-c | V10: 0 | X10: c-i-c | Y10: c-i-c | Z10: c-i-c | AA10: c-i-c | AB10: c-i-c | AC10: c-i-c | AE10: c-i-c | AF10: 0 | AH10: c-i-c | AI10: c-i-c | AJ10: c-i-c | AK10: c-i-c | AL10: c-i-c | AM10: c-i-c | AO10: c-i-c | AP10: 0
C11: BNI 2 | D11: =INDIRECT("'"&$C11&"'!"&D$6) -> Darwin - Replace Berrimah ZSS | E11: Substations | F11: PRD30402 | G11: Repex | H11: Condition and risk | I11: Replace Berrimah ZSS | J11: Dollars | K11: Real $2018 | L11: End_Year | N11: c-i-c | O11: c-i-c | P11: c-i-c | Q11: c-i-c | R11: c-i-c | S11: c-i-c | U11: c-i-c | V11: 0 | X11: c-i-c | Y11: c-i-c | Z11: c-i-c | AA11: c-i-c | AB11: c-i-c | AC11: c-i-c | AE11: c-i-c | AF11: 0 | AH11: c-i-c | AI11: c-i-c | AJ11: c-i-c | AK11: c-i-c | AL11: c-i-c | AM11: c-i-c | AO11: c-i-c | AP11: 0
C12: BNI 3 | D12: Darwin - Upgrade DKTL Secondary Systems | E12: Protection and SCADA | F12: PRD32117 | G12: Repex | H12: Condition and risk | I12: Various protection & control replacement | J12: Dollars | K12: Real $2018 | L12: End_Year | N12: c-i-c | O12: c-i-c | P12: c-i-c | Q12: c-i-c | R12: c-i-c | S12: c-i-c | U12: c-i-c | V12: 0 | X12: c-i-c | Y12: c-i-c | Z12: c-i-c | AA12: c-i-c | AB12: c-i-c | AC12: c-i-c | AE12: c-i-c | AF12: 0 | AH12: c-i-c | AI12: c-i-c | AJ12: c-i-c | AK12: c-i-c | AL12: c-i-c | AM12: c-i-c | AO12: c-i-c | AP12: 0
C13: BNI 4 | D13: Darwin - Replace Cosmo Howley Transformers | E13: Substations | F13: PRD33003 | G13: Repex | H13: Condition and risk | I13: Various power transformer replacements | J13: Dollars | K13: Real $2018 | L13: End_Year | N13: c-i-c | O13: c-i-c | P13: c-i-c | Q13: c-i-c | R13: c-i-c | S13: c-i-c | U13: c-i-c | V13: 0 | X13: c-i-c | Y13: c-i-c | Z13: c-i-c | AA13: c-i-c | AB13: c-i-c | AC13: c-i-c | AE13: c-i-c | AF13: 0 | AH13: c-i-c | AI13: c-i-c | AJ13: c-i-c | AK13: c-i-c | AL13: c-i-c | AM13: c-i-c | AO13: c-i-c | AP13: 0
C14: BNI 5 | D14: Darwin - Replace Port Feeder | E14: Distribution Lines | F14: PRD33006 | G14: Repex | H14: Condition and risk | I14: Various cable replacements | J14: Dollars | K14: Real $2018 | L14: End_Year | N14: c-i-c | O14: c-i-c | P14: c-i-c | Q14: c-i-c | R14: c-i-c | S14: c-i-c | U14: c-i-c | V14: 0 | X14: c-i-c | Y14: c-i-c | Z14: c-i-c | AA14: c-i-c | AB14: c-i-c | AC14: c-i-c | AE14: c-i-c | AF14: 0 | AH14: c-i-c | AI14: c-i-c | AJ14: c-i-c | AK14: c-i-c | AL14: c-i-c | AM14: c-i-c | AO14: c-i-c | AP14: 0
C15: BNI 6 | D15: [deleted] | E15: 0 | F15: 0 | G15: Repex | J15: Dollars | K15: Real $2018 | L15: End_Year | N15: c-i-c | O15: c-i-c | P15: c-i-c | Q15: c-i-c | R15: c-i-c | S15: c-i-c | U15: c-i-c | V15: 0 | X15: c-i-c | Y15: c-i-c | Z15: c-i-c | AA15: c-i-c | AB15: c-i-c | AC15: c-i-c | AE15: c-i-c | AF15: 0 | AH15: c-i-c | AI15: c-i-c | AJ15: c-i-c | AK15: c-i-c | AL15: c-i-c | AM15: c-i-c | AO15: c-i-c | AP15: 0
C16: BNI 7 | D16: Darwin Replace 66/11kV Centreyard ZSS | E16: Substations | F16: PRD33125 | G16: Repex | H16: Condition and risk | I16: Various power transformer replacements | J16: Dollars | K16: Real $2018 | L16: End_Year | N16: c-i-c | O16: c-i-c | P16: c-i-c | Q16: c-i-c | R16: c-i-c | S16: c-i-c | U16: c-i-c | V16: 0 | X16: c-i-c | Y16: c-i-c | Z16: c-i-c | AA16: c-i-c | AB16: c-i-c | AC16: c-i-c | AE16: c-i-c | AF16: 0 | AH16: c-i-c | AI16: c-i-c | AJ16: c-i-c | AK16: c-i-c | AL16: c-i-c | AM16: c-i-c | AO16: c-i-c | AP16: 0
C17: BNI 8 | D17: [deleted] | E17: 0 | F17: 0 | G17: Repex | J17: Dollars | K17: Real $2018 | L17: End_Year | N17: c-i-c | O17: c-i-c | P17: c-i-c | Q17: c-i-c | R17: c-i-c | S17: c-i-c | U17: c-i-c | V17: 0 | X17: c-i-c | Y17: c-i-c | Z17: c-i-c | AA17: c-i-c | AB17: c-i-c | AC17: c-i-c | AE17: c-i-c | AF17: 0 | AH17: c-i-c | AI17: c-i-c | AJ17: c-i-c | AK17: c-i-c | AL17: c-i-c | AM17: c-i-c | AO17: c-i-c | AP17: 0
C18: BNI 9 | D18: [deleted] | E18: 0 | F18: 0 | G18: Repex | J18: Dollars | K18: Real $2018 | L18: End_Year | N18: c-i-c | O18: c-i-c | P18: c-i-c | Q18: c-i-c | R18: c-i-c | S18: c-i-c | U18: c-i-c | V18: 0 | X18: c-i-c | Y18: c-i-c | Z18: c-i-c | AA18: c-i-c | AB18: c-i-c | AC18: c-i-c | AE18: c-i-c | AF18: 0 | AH18: c-i-c | AI18: c-i-c | AJ18: c-i-c | AK18: c-i-c | AL18: c-i-c | AM18: c-i-c | AO18: c-i-c | AP18: 0
C19: BNI 10 | D19: Darwin - Replace Humpty Doo ZSS | E19: Substations | F19: PRD30401 | G19: Repex | H19: Condition and risk | I19: Various power transformer replacements | J19: Dollars | K19: Real $2018 | L19: End_Year | N19: c-i-c | O19: c-i-c | P19: c-i-c | Q19: c-i-c | R19: c-i-c | S19: c-i-c | U19: c-i-c | V19: 0 | X19: c-i-c | Y19: c-i-c | Z19: c-i-c | AA19: c-i-c | AB19: c-i-c | AC19: c-i-c | AE19: c-i-c | AF19: 0 | AH19: c-i-c | AI19: c-i-c | AJ19: c-i-c | AK19: c-i-c | AL19: c-i-c | AM19: c-i-c | AO19: c-i-c | AP19: 0
C20: BNI 11 | D20: [deleted] | E20: 0 | F20: 0 | G20: Repex | J20: Dollars | K20: Real $2018 | L20: End_Year | N20: c-i-c | O20: c-i-c | P20: c-i-c | Q20: c-i-c | R20: c-i-c | S20: c-i-c | U20: c-i-c | V20: 0 | X20: c-i-c | Y20: c-i-c | Z20: c-i-c | AA20: c-i-c | AB20: c-i-c | AC20: c-i-c | AE20: c-i-c | AF20: 0 | AH20: c-i-c | AI20: c-i-c | AJ20: c-i-c | AK20: c-i-c | AL20: c-i-c | AM20: c-i-c | AO20: c-i-c | AP20: 0
C21: BNI 12 | D21: Darwin - Energy Management System Upgrade | E21: IT and Communications | F21: PRD33134 | G21: Repex | H21: Condition and risk | I21: Various SCADA and Communications’ replacement | J21: Dollars | K21: Real $2018 | L21: End_Year | N21: c-i-c | O21: c-i-c | P21: c-i-c | Q21: c-i-c | R21: c-i-c | S21: c-i-c | U21: c-i-c | V21: 0 | X21: c-i-c | Y21: c-i-c | Z21: c-i-c | AA21: c-i-c | AB21: c-i-c | AC21: c-i-c | AE21: c-i-c | AF21: 0 | AH21: c-i-c | AI21: c-i-c | AJ21: c-i-c | AK21: c-i-c | AL21: c-i-c | AM21: c-i-c | AO21: c-i-c | AP21: 0
C22: BNI 13 | D22: [deleted] | E22: 0 | F22: 0 | G22: Repex | J22: Dollars | K22: Real $2018 | L22: End_Year | N22: c-i-c | O22: c-i-c | P22: c-i-c | Q22: c-i-c | R22: c-i-c | S22: c-i-c | U22: c-i-c | V22: 0 | X22: c-i-c | Y22: c-i-c | Z22: c-i-c | AA22: c-i-c | AB22: c-i-c | AC22: c-i-c | AE22: c-i-c | AF22: 0 | AH22: c-i-c | AI22: c-i-c | AJ22: c-i-c | AK22: c-i-c | AL22: c-i-c | AM22: c-i-c | AO22: c-i-c | AP22: 0
C23: BNI 14 | D23: Darwin Northern Suburbs High Voltage Cable Replacement Program | E23: Substations | F23: NMP3 | G23: Repex | H23: Condition and risk | I23: Other minor projects | J23: Dollars | K23: Real $2018 | L23: End_Year | N23: c-i-c | O23: c-i-c | P23: c-i-c | Q23: c-i-c | R23: c-i-c | S23: c-i-c | U23: c-i-c | V23: 0 | X23: c-i-c | Y23: c-i-c | Z23: c-i-c | AA23: c-i-c | AB23: c-i-c | AC23: c-i-c | AE23: c-i-c | AF23: 0 | AH23: c-i-c | AI23: c-i-c | AJ23: c-i-c | AK23: c-i-c | AL23: c-i-c | AM23: c-i-c | AO23: c-i-c | AP23: 0
C24: BNI 15 | D24: Substation Fire Protection Equipment Replacement Program | E24: Property | F24: NMP14 | G24: Repex | H24: Condition and risk | I24: Other minor projects | J24: Dollars | K24: Real $2018 | L24: End_Year | N24: c-i-c | O24: c-i-c | P24: c-i-c | Q24: c-i-c | R24: c-i-c | S24: c-i-c | U24: c-i-c | V24: 0 | X24: c-i-c | Y24: c-i-c | Z24: c-i-c | AA24: c-i-c | AB24: c-i-c | AC24: c-i-c | AE24: c-i-c | AF24: 0 | AH24: c-i-c | AI24: c-i-c | AJ24: c-i-c | AK24: c-i-c | AL24: c-i-c | AM24: c-i-c | AO24: c-i-c | AP24: 0
C25: BNI 16 | D25: Darwin Northern Suburbs High Voltage Cable Replacement Program | E25: SCADA and Communications | F25: NMSC1 | G25: Repex | H25: Condition and risk | I25: Various SCADA and Communications’ replacement | J25: Dollars | K25: Real $2018 | L25: End_Year | N25: c-i-c | O25: c-i-c | P25: c-i-c | Q25: c-i-c | R25: c-i-c | S25: c-i-c | U25: c-i-c | V25: 0 | X25: c-i-c | Y25: c-i-c | Z25: c-i-c | AA25: c-i-c | AB25: c-i-c | AC25: c-i-c | AE25: c-i-c | AF25: 0 | AH25: c-i-c | AI25: c-i-c | AJ25: c-i-c | AK25: c-i-c | AL25: c-i-c | AM25: c-i-c | AO25: c-i-c | AP25: 0
C26: BNI 17 | D26: SCADA and Communications Battery Replacement Program | E26: Communications | F26: NMSC2 | G26: Repex | H26: Condition and risk | I26: Various SCADA and Communications’ replacement | J26: Dollars | K26: Real $2018 | L26: End_Year | N26: c-i-c | O26: c-i-c | P26: c-i-c | Q26: c-i-c | R26: c-i-c | S26: c-i-c | U26: c-i-c | V26: 0 | X26: c-i-c | Y26: c-i-c | Z26: c-i-c | AA26: c-i-c | AB26: c-i-c | AC26: c-i-c | AE26: c-i-c | AF26: 0 | AH26: c-i-c | AI26: c-i-c | AJ26: c-i-c | AK26: c-i-c | AL26: c-i-c | AM26: c-i-c | AO26: c-i-c | AP26: 0
C27: BNI 18 | D27: =INDIRECT("'"&$C27&"'!"&D$6) -> SCADA and Communications Compliance and Safety Program | E27: Communications | F27: NMSC4 | G27: Repex | H27: Compliance | I27: SCADA and Comms | J27: Dollars | K27: Real $2018 | L27: End_Year | N27: c-i-c | O27: c-i-c | P27: c-i-c | Q27: c-i-c | R27: c-i-c | S27: c-i-c | U27: c-i-c | V27: 0 | X27: c-i-c | Y27: c-i-c | Z27: c-i-c | AA27: c-i-c | AB27: c-i-c | AC27: c-i-c | AE27: c-i-c | AF27: 0 | AH27: c-i-c | AI27: c-i-c | AJ27: c-i-c | AK27: c-i-c | AL27: c-i-c | AM27: c-i-c | AO27: c-i-c | AP27: 0
C28: BNI 19 | D28: Protection Relay Replacement Program | E28: Protection | F28: NPR | G28: Repex | H28: Condition and risk | I28: Various protection & control replacement | J28: Dollars | K28: Real $2018 | L28: End_Year | N28: c-i-c | O28: c-i-c | P28: c-i-c | Q28: c-i-c | R28: c-i-c | S28: c-i-c | U28: c-i-c | V28: 0 | X28: c-i-c | Y28: c-i-c | Z28: c-i-c | AA28: c-i-c | AB28: c-i-c | AC28: c-i-c | AE28: c-i-c | AF28: 0 | AH28: c-i-c | AI28: c-i-c | AJ28: c-i-c | AK28: c-i-c | AL28: c-i-c | AM28: c-i-c | AO28: c-i-c | AP28: 0
C29: BNI 20 | D29: Darwin Northern Suburbs High Voltage Cable Replacement Program | E29: Distribution Lines | F29: NMP1 | G29: Repex | H29: Condition and risk | I29: Various cable replacements | J29: Dollars | K29: Real $2018 | L29: End_Year | N29: c-i-c | O29: c-i-c | P29: c-i-c | Q29: c-i-c | R29: c-i-c | S29: c-i-c | U29: c-i-c | V29: 0 | X29: c-i-c | Y29: c-i-c | Z29: c-i-c | AA29: c-i-c | AB29: c-i-c | AC29: c-i-c | AE29: c-i-c | AF29: 0 | AH29: c-i-c | AI29: c-i-c | AJ29: c-i-c | AK29: c-i-c | AL29: c-i-c | AM29: c-i-c | AO29: c-i-c | AP29: 0
C30: BNI 21 | D30: Darwin Cullen Bay and Bayview Low Voltage Cable Replacement Program | E30: Distribution Lines | F30: NMP2 | G30: Repex | H30: Condition and risk | I30: Various cable replacements | J30: Dollars | K30: Real $2018 | L30: End_Year | N30: c-i-c | O30: c-i-c | P30: c-i-c | Q30: c-i-c | R30: c-i-c | S30: c-i-c | U30: c-i-c | V30: 0 | X30: c-i-c | Y30: c-i-c | Z30: c-i-c | AA30: c-i-c | AB30: c-i-c | AC30: c-i-c | AE30: c-i-c | AF30: 0 | AH30: c-i-c | AI30: c-i-c | AJ30: c-i-c | AK30: c-i-c | AL30: c-i-c | AM30: c-i-c | AO30: c-i-c | AP30: 0
C31: BNI 22 | D31: Darwin Lake Bennett Conductor Clearance Rectification Program | E31: Distribution Lines | F31: NMP5 | G31: Repex | H31: Compliance | I31: Conductor clearance | J31: Dollars | K31: Real $2018 | L31: End_Year | N31: c-i-c | O31: c-i-c | P31: c-i-c | Q31: c-i-c | R31: c-i-c | S31: c-i-c | U31: c-i-c | V31: 0 | X31: c-i-c | Y31: c-i-c | Z31: c-i-c | AA31: c-i-c | AB31: c-i-c | AC31: c-i-c | AE31: c-i-c | AF31: 0 | AH31: c-i-c | AI31: c-i-c | AJ31: c-i-c | AK31: c-i-c | AL31: c-i-c | AM31: c-i-c | AO31: c-i-c | AP31: 0
C32: BNI 23 | D32: [deleted] | E32: 0 | F32: 0 | G32: Repex | J32: Dollars | K32: Real $2018 | L32: End_Year | N32: c-i-c | O32: c-i-c | P32: c-i-c | Q32: c-i-c | R32: c-i-c | S32: c-i-c | U32: c-i-c | V32: 0 | X32: c-i-c | Y32: c-i-c | Z32: c-i-c | AA32: c-i-c | AB32: c-i-c | AC32: c-i-c | AE32: c-i-c | AF32: 0 | AH32: c-i-c | AI32: c-i-c | AJ32: c-i-c | AK32: c-i-c | AL32: c-i-c | AM32: c-i-c | AO32: c-i-c | AP32: 0
C33: BNI 24 | D33: Single Phase Substation Refurbishment Program | E33: Distribution Substations | F33: NMP17 | G33: Repex | H33: Condition and risk | I33: Other minor projects | J33: Dollars | K33: Real $2018 | L33: End_Year | N33: c-i-c | O33: c-i-c | P33: c-i-c | Q33: c-i-c | R33: c-i-c | S33: c-i-c | U33: c-i-c | V33: 0 | X33: c-i-c | Y33: c-i-c | Z33: c-i-c | AA33: c-i-c | AB33: c-i-c | AC33: c-i-c | AE33: c-i-c | AF33: 0 | AH33: c-i-c | AI33: c-i-c | AJ33: c-i-c | AK33: c-i-c | AL33: c-i-c | AM33: c-i-c | AO33: c-i-c | AP33: 0
C34: BNI 25 | D34: All Regions Condition and Failure Based Replacement Pooled Forecast | E34: Distribution assets | F34: NMCFR / PRD33437 | G34: Repex | H34: Condition and risk | I34: Condition and Failure Based Replacement Pooled Forecast | J34: Dollars | K34: Real $2018 | L34: End_Year | N34: c-i-c | O34: c-i-c | P34: c-i-c | Q34: c-i-c | R34: c-i-c | S34: c-i-c | U34: c-i-c | V34: 0 | X34: c-i-c | Y34: c-i-c | Z34: c-i-c | AA34: c-i-c | AB34: c-i-c | AC34: c-i-c | AE34: c-i-c | AF34: 0 | AH34: c-i-c | AI34: c-i-c | AJ34: c-i-c | AK34: c-i-c | AL34: c-i-c | AM34: c-i-c | AO34: c-i-c | AP34: 0
C35: BNI 26 | D35: Darwin Northern Suburbs High Voltage Cable Replacement Program | E35: Distribution Lines | F35: NMP18 | G35: Repex | H35: Condition and risk | I35: Various pole and tower refurbishment | J35: Dollars | K35: Real $2018 | L35: End_Year | N35: c-i-c | O35: c-i-c | P35: c-i-c | Q35: c-i-c | R35: c-i-c | S35: c-i-c | U35: c-i-c | V35: 0 | X35: c-i-c | Y35: c-i-c | Z35: c-i-c | AA35: c-i-c | AB35: c-i-c | AC35: c-i-c | AE35: c-i-c | AF35: 0 | AH35: c-i-c | AI35: c-i-c | AJ35: c-i-c | AK35: c-i-c | AL35: c-i-c | AM35: c-i-c | AO35: c-i-c | AP35: 0
C36: BNI 27 | D36: Substation DC System Replacement Program | E36: Substations | F36: NMP16 | G36: Repex | H36: Condition and risk | I36: Other minor projects | J36: Dollars | K36: Real $2018 | L36: End_Year | N36: c-i-c | O36: c-i-c | P36: c-i-c | Q36: c-i-c | R36: c-i-c | S36: c-i-c | U36: c-i-c | V36: 0 | X36: c-i-c | Y36: c-i-c | Z36: c-i-c | AA36: c-i-c | AB36: c-i-c | AC36: c-i-c | AE36: c-i-c | AF36: 0 | AH36: c-i-c | AI36: c-i-c | AJ36: c-i-c | AK36: c-i-c | AL36: c-i-c | AM36: c-i-c | AO36: c-i-c | AP36: 0
C37: BNI 28 | D37: All Regions Poorly Performing Feeder Improvement Program (REPEX Component) | E37: Distribution Lines | F37: NMF | G37: Repex | H37: Reliability and Quality of Supply | I37: Reliability and Quality of Supply | J37: Dollars | K37: Real $2018 | L37: End_Year | N37: c-i-c | O37: c-i-c | P37: c-i-c | Q37: c-i-c | R37: c-i-c | S37: c-i-c | U37: c-i-c | V37: 0 | X37: c-i-c | Y37: c-i-c | Z37: c-i-c | AA37: c-i-c | AB37: c-i-c | AC37: c-i-c | AE37: c-i-c | AF37: 0 | AH37: c-i-c | AI37: c-i-c | AJ37: c-i-c | AK37: c-i-c | AL37: c-i-c | AM37: c-i-c | AO37: c-i-c | AP37: 0
C38: BNI 29 | D38: [deleted] | E38: 0 | F38: 0 | G38: Repex | J38: Dollars | K38: Real $2018 | L38: End_Year | N38: c-i-c | O38: c-i-c | P38: c-i-c | Q38: c-i-c | R38: c-i-c | S38: c-i-c | U38: c-i-c | V38: 0 | X38: c-i-c | Y38: c-i-c | Z38: c-i-c | AA38: c-i-c | AB38: c-i-c | AC38: c-i-c | AE38: c-i-c | AF38: 0 | AH38: c-i-c | AI38: c-i-c | AJ38: c-i-c | AK38: c-i-c | AL38: c-i-c | AM38: c-i-c | AO38: c-i-c | AP38: 0
C39: BNI 30 | D39: FY18 budget and FY19 budget for Repex | E39: All | F39: Budget/SCI | G39: Repex | J39: Dollars | K39: Real $2018 | L39: End_Year | N39: c-i-c | O39: c-i-c | P39: c-i-c | Q39: c-i-c | R39: c-i-c | S39: c-i-c | U39: c-i-c | V39: 0 | X39: c-i-c | Y39: c-i-c | Z39: c-i-c | AA39: c-i-c | AB39: c-i-c | AC39: c-i-c | AE39: c-i-c | AF39: 0 | AH39: c-i-c | AI39: c-i-c | AJ39: c-i-c | AK39: c-i-c | AL39: c-i-c | AM39: c-i-c | AO39: c-i-c | AP39: 0
C40: BNI 31 | D40: Transmission Line Pole Top Corrosion Replacement Program | E40: Transmission Lines | F40: NMP20 | G40: Repex | H40: Condition and risk | I40: Various pole and tower refurbishment | J40: Dollars | K40: Real $2018 | L40: End_Year | N40: c-i-c | O40: c-i-c | P40: c-i-c | Q40: c-i-c | R40: c-i-c | S40: c-i-c | U40: c-i-c | V40: 0 | X40: c-i-c | Y40: c-i-c | Z40: c-i-c | AA40: c-i-c | AB40: c-i-c | AC40: c-i-c | AE40: c-i-c | AF40: 0 | AH40: c-i-c | AI40: c-i-c | AJ40: c-i-c | AK40: c-i-c | AL40: c-i-c | AM40: c-i-c | AO40: c-i-c | AP40: 0
C41: BNI 32 | D41: Transmission Tower Earthing System Refurbishment Program | E41: Transmission Lines | F41: NMP11 | G41: Repex | H41: Condition and risk | I41: Various pole and tower refurbishment | J41: Dollars | K41: Real $2018 | L41: End_Year | N41: c-i-c | O41: c-i-c | P41: c-i-c | Q41: c-i-c | R41: c-i-c | S41: c-i-c | U41: c-i-c | V41: 0 | X41: c-i-c | Y41: c-i-c | Z41: c-i-c | AA41: c-i-c | AB41: c-i-c | AC41: c-i-c | AE41: c-i-c | AF41: 0 | AH41: c-i-c | AI41: c-i-c | AJ41: c-i-c | AK41: c-i-c | AL41: c-i-c | AM41: c-i-c | AO41: c-i-c | AP41: 0
C42: BNI 33 | D42: Pine Creek 132kV Transformer Replacement | E42: Substations | F42: PRK31580 | G42: Repex | H42: Condition and risk | I42: Various power transformer replacements | J42: Dollars | K42: Real $2018 | L42: End_Year | N42: c-i-c | O42: c-i-c | P42: c-i-c | Q42: c-i-c | R42: c-i-c | S42: c-i-c | U42: c-i-c | V42: 0 | X42: c-i-c | Y42: c-i-c | Z42: c-i-c | AA42: c-i-c | AB42: c-i-c | AC42: c-i-c | AE42: c-i-c | AF42: 0 | AH42: c-i-c | AI42: c-i-c | AJ42: c-i-c | AK42: c-i-c | AL42: c-i-c | AM42: c-i-c | AO42: c-i-c | AP42: 0
C43: BNI 34 | D43: [deleted] | E43: 0 | F43: 0 | G43: Repex | J43: Dollars | K43: Real $2018 | L43: End_Year | N43: c-i-c | O43: c-i-c | P43: c-i-c | Q43: c-i-c | R43: c-i-c | S43: c-i-c | U43: c-i-c | V43: 0 | X43: c-i-c | Y43: c-i-c | Z43: c-i-c | AA43: c-i-c | AB43: c-i-c | AC43: c-i-c | AE43: c-i-c | AF43: 0 | AH43: c-i-c | AI43: c-i-c | AJ43: c-i-c | AK43: c-i-c | AL43: c-i-c | AM43: c-i-c | AO43: c-i-c | AP43: 0
C44: BNI 35 | D44: Transmission Tower Corrosion Protection Life Extension Program | E44: Transmission Lines | F44: NMP9 | G44: Repex | H44: Condition and risk | I44: Various pole and tower refurbishment | J44: Dollars | K44: Real $2018 | L44: End_Year | N44: c-i-c | O44: c-i-c | P44: c-i-c | Q44: c-i-c | R44: c-i-c | S44: c-i-c | U44: c-i-c | V44: 0 | X44: c-i-c | Y44: c-i-c | Z44: c-i-c | AA44: c-i-c | AB44: c-i-c | AC44: c-i-c | AE44: c-i-c | AF44: 0 | AH44: c-i-c | AI44: c-i-c | AJ44: c-i-c | AK44: c-i-c | AL44: c-i-c | AM44: c-i-c | AO44: c-i-c | AP44: 0
C45: A-BNI 1 | D45: Darwin - Construct Wishart Zone Substation | E45: Substations | F45: PRD33001 | G45: Augex | H45: Demand driven | J45: Dollars | K45: Real $2018 | L45: End_Year | N45: c-i-c | O45: c-i-c | P45: c-i-c | Q45: c-i-c | R45: c-i-c | S45: c-i-c | U45: c-i-c | V45: 0 | X45: c-i-c | Y45: c-i-c | Z45: c-i-c | AA45: c-i-c | AB45: c-i-c | AC45: c-i-c | AE45: c-i-c | AF45: 0 | AH45: c-i-c | AI45: c-i-c | AJ45: c-i-c | AK45: c-i-c | AL45: c-i-c | AM45: c-i-c | AO45: c-i-c | AP45: 0
C46: A-BNI 2 | D46: Darwin - Archer ZSS Augmentation | E46: Substations | F46: PRD33002 | G46: Augex | H46: Demand driven | J46: Dollars | K46: Real $2018 | L46: End_Year | N46: c-i-c | O46: c-i-c | P46: c-i-c | Q46: c-i-c | R46: c-i-c | S46: c-i-c | U46: c-i-c | V46: 0 | X46: c-i-c | Y46: c-i-c | Z46: c-i-c | AA46: c-i-c | AB46: c-i-c | AC46: c-i-c | AE46: c-i-c | AF46: 0 | AH46: c-i-c | AI46: c-i-c | AJ46: c-i-c | AK46: c-i-c | AL46: c-i-c | AM46: c-i-c | AO46: c-i-c | AP46: 0
C47: A-BNI 3 | D47: Katherine Voltage Rectification | E47: Substations | F47: PRK31430 | G47: Augex | H47: Reliability and Quality of Supply | J47: Dollars | K47: Real $2018 | L47: End_Year | N47: c-i-c | O47: c-i-c | P47: c-i-c | Q47: c-i-c | R47: c-i-c | S47: c-i-c | U47: c-i-c | V47: 0 | X47: c-i-c | Y47: c-i-c | Z47: c-i-c | AA47: c-i-c | AB47: c-i-c | AC47: c-i-c | AE47: c-i-c | AF47: 0 | AH47: c-i-c | AI47: c-i-c | AJ47: c-i-c | AK47: c-i-c | AL47: c-i-c | AM47: c-i-c | AO47: c-i-c | AP47: 0
C48: A-BNI 4 | D48: Darwin - Transmission Line Uprating | E48: Transmission Lines | F48: PRD33005 | G48: Augex | H48: Compliance | J48: Dollars | K48: Real $2018 | L48: End_Year | N48: c-i-c | O48: c-i-c | P48: c-i-c | Q48: c-i-c | R48: c-i-c | S48: c-i-c | U48: c-i-c | V48: 0 | X48: c-i-c | Y48: c-i-c | Z48: c-i-c | AA48: c-i-c | AB48: c-i-c | AC48: c-i-c | AE48: c-i-c | AF48: 0 | AH48: c-i-c | AI48: c-i-c | AJ48: c-i-c | AK48: c-i-c | AL48: c-i-c | AM48: c-i-c | AO48: c-i-c | AP48: 0
C49: A-BNI 5 | D49: Power quality compliance program | E49: Substations | F49: NPQ | G49: Augex | H49: Reliability and Quality of Supply | J49: Dollars | K49: Real $2018 | L49: End_Year | N49: c-i-c | O49: c-i-c | P49: c-i-c | Q49: c-i-c | R49: c-i-c | S49: c-i-c | U49: c-i-c | V49: 0 | X49: c-i-c | Y49: c-i-c | Z49: c-i-c | AA49: c-i-c | AB49: c-i-c | AC49: c-i-c | AE49: c-i-c | AF49: 0 | AH49: c-i-c | AI49: c-i-c | AJ49: c-i-c | AK49: c-i-c | AL49: c-i-c | AM49: c-i-c | AO49: c-i-c | AP49: 0
C50: A-BNI 6 | D50: [deleted] | E50: 0 | F50: 0 | G50: Augex | J50: Dollars | K50: Real $2018 | L50: End_Year | N50: c-i-c | O50: c-i-c | P50: c-i-c | Q50: c-i-c | R50: c-i-c | S50: c-i-c | U50: c-i-c | V50: 0 | X50: c-i-c | Y50: c-i-c | Z50: c-i-c | AA50: c-i-c | AB50: c-i-c | AC50: c-i-c | AE50: c-i-c | AF50: 0 | AH50: c-i-c | AI50: c-i-c | AJ50: c-i-c | AK50: c-i-c | AL50: c-i-c | AM50: c-i-c | AO50: c-i-c | AP50: 0
C51: A-BNI 7 | D51: Darwin - Hudson Creek Spare 132kV Transformer | E51: Substations | F51: PRD33230 | G51: Augex | H51: Compliance | J51: Dollars | K51: Real $2018 | L51: End_Year | N51: c-i-c | O51: c-i-c | P51: c-i-c | Q51: c-i-c | R51: c-i-c | S51: c-i-c | U51: c-i-c | V51: 0 | X51: c-i-c | Y51: c-i-c | Z51: c-i-c | AA51: c-i-c | AB51: c-i-c | AC51: c-i-c | AE51: c-i-c | AF51: 0 | AH51: c-i-c | AI51: c-i-c | AJ51: c-i-c | AK51: c-i-c | AL51: c-i-c | AM51: c-i-c | AO51: c-i-c | AP51: 0
C52: A-BNI 8 | D52: Overloaded Feeders / Distribution Augmentation Program | E52: Distribution Lines | F52: NFO | G52: Augex | H52: Demand driven | J52: Dollars | K52: Real $2018 | L52: End_Year | N52: c-i-c | O52: c-i-c | P52: c-i-c | Q52: c-i-c | R52: c-i-c | S52: c-i-c | U52: c-i-c | V52: 0 | X52: c-i-c | Y52: c-i-c | Z52: c-i-c | AA52: c-i-c | AB52: c-i-c | AC52: c-i-c | AE52: c-i-c | AF52: 0 | AH52: c-i-c | AI52: c-i-c | AJ52: c-i-c | AK52: c-i-c | AL52: c-i-c | AM52: c-i-c | AO52: c-i-c | AP52: 0
C53: A-BNI 9 | D53: Darwin Distribution Substation Fault Level Replacement Program | E53: Distribution Switchgear | F53: NMP7 | G53: Augex | H53: Compliance | J53: Dollars | K53: Real $2018 | L53: End_Year | N53: c-i-c | O53: c-i-c | P53: c-i-c | Q53: c-i-c | R53: c-i-c | S53: c-i-c | U53: c-i-c | V53: 0 | X53: c-i-c | Y53: c-i-c | Z53: c-i-c | AA53: c-i-c | AB53: c-i-c | AC53: c-i-c | AE53: c-i-c | AF53: 0 | AH53: c-i-c | AI53: c-i-c | AJ53: c-i-c | AK53: c-i-c | AL53: c-i-c | AM53: c-i-c | AO53: c-i-c | AP53: 0
C54: A-BNI 10 | D54: [deleted] | E54: 0 | F54: 0 | G54: Augex | J54: Dollars | K54: Real $2018 | L54: End_Year | N54: c-i-c | O54: c-i-c | P54: c-i-c | Q54: c-i-c | R54: c-i-c | S54: c-i-c | U54: c-i-c | V54: 0 | X54: c-i-c | Y54: c-i-c | Z54: c-i-c | AA54: c-i-c | AB54: c-i-c | AC54: c-i-c | AE54: c-i-c | AF54: 0 | AH54: c-i-c | AI54: c-i-c | AJ54: c-i-c | AK54: c-i-c | AL54: c-i-c | AM54: c-i-c | AO54: c-i-c | AP54: 0
C55: A-BNI 11 | D55: Tennant Creek - Upgrade Tennant Creek 22/11kV Transformers | E55: Substations | F55: TBA | G55: Augex | H55: Demand driven | J55: Dollars | K55: Real $2018 | L55: End_Year | N55: c-i-c | O55: c-i-c | P55: c-i-c | Q55: c-i-c | R55: c-i-c | S55: c-i-c | U55: c-i-c | V55: 0 | X55: c-i-c | Y55: c-i-c | Z55: c-i-c | AA55: c-i-c | AB55: c-i-c | AC55: c-i-c | AE55: c-i-c | AF55: 0 | AH55: c-i-c | AI55: c-i-c | AJ55: c-i-c | AK55: c-i-c | AL55: c-i-c | AM55: c-i-c | AO55: c-i-c | AP55: 0
C56: A-BNI 12 | D56: SCADA and Communications Optus Cable Extension Program | E56: Communications | F56: NMSC3 | G56: Augex | H56: Compliance | J56: Dollars | K56: Real $2018 | L56: End_Year | N56: c-i-c | O56: c-i-c | P56: c-i-c | Q56: c-i-c | R56: c-i-c | S56: c-i-c | U56: c-i-c | V56: 0 | X56: c-i-c | Y56: c-i-c | Z56: c-i-c | AA56: c-i-c | AB56: c-i-c | AC56: c-i-c | AE56: c-i-c | AF56: 0 | AH56: c-i-c | AI56: c-i-c | AJ56: c-i-c | AK56: c-i-c | AL56: c-i-c | AM56: c-i-c | AO56: c-i-c | AP56: 0
C57: A-BNI 13 | D57: All Regions Poorly Performing Feeder Improvement Program AUGEX Component) | E57: Distribution Switchgear | F57: NMF | G57: Augex | H57: Reliability and Quality of Supply | J57: Dollars | K57: Real $2018 | L57: End_Year | N57: c-i-c | O57: c-i-c | P57: c-i-c | Q57: c-i-c | R57: c-i-c | S57: c-i-c | U57: c-i-c | V57: 0 | X57: c-i-c | Y57: c-i-c | Z57: c-i-c | AA57: c-i-c | AB57: c-i-c | AC57: c-i-c | AE57: c-i-c | AF57: 0 | AH57: c-i-c | AI57: c-i-c | AJ57: c-i-c | AK57: c-i-c | AL57: c-i-c | AM57: c-i-c | AO57: c-i-c | AP57: 0
C58: A-BNI 14 | D58: FY18 budget and FY19 budget for Augex | E58: All | F58: Budget/SCI | G58: Augex | J58: Dollars | K58: Real $2018 | L58: End_Year | N58: c-i-c | O58: c-i-c | P58: c-i-c | Q58: c-i-c | R58: c-i-c | S58: c-i-c | U58: c-i-c | V58: 0 | X58: c-i-c | Y58: c-i-c | Z58: c-i-c | AA58: c-i-c | AB58: c-i-c | AC58: c-i-c | AE58: c-i-c | AF58: 0 | AH58: c-i-c | AI58: c-i-c | AJ58: c-i-c | AK58: c-i-c | AL58: c-i-c | AM58: c-i-c | AO58: c-i-c | AP58: 0
C59: A-BNI 15 | D59: Power Transformer Online Moisture Treatment | E59: Substation | F59: NMP12 | G59: Augex | H59: Compliance | J59: Dollars | K59: Real $2018 | L59: End_Year | N59: c-i-c | O59: c-i-c | P59: c-i-c | Q59: c-i-c | R59: c-i-c | S59: c-i-c | U59: c-i-c | V59: 0 | X59: c-i-c | Y59: c-i-c | Z59: c-i-c | AA59: c-i-c | AB59: c-i-c | AC59: c-i-c | AE59: c-i-c | AF59: 0 | AH59: c-i-c | AI59: c-i-c | AJ59: c-i-c | AK59: c-i-c | AL59: c-i-c | AM59: c-i-c | AO59: c-i-c | AP59: 0
C60: I-BNI 1 | D60: ICT capital expenditure plan (KPMG) | E60: IT and Communications | F60: 0 | G60: IT | J60: Dollars | K60: Real $2018 | L60: End_Year | N60: c-i-c | O60: c-i-c | P60: c-i-c | Q60: c-i-c | R60: c-i-c | S60: c-i-c | U60: c-i-c | V60: 0 | X60: c-i-c | Y60: c-i-c | Z60: c-i-c | AA60: c-i-c | AB60: c-i-c | AC60: c-i-c | AE60: c-i-c | AF60: 0 | AH60: c-i-c | AI60: c-i-c | AJ60: c-i-c | AK60: c-i-c | AL60: c-i-c | AM60: c-i-c | AO60: c-i-c | AP60: 0
C61: N-BNI 6 | D61: Minor Capex | E61: IT and Communications | F61: PRD33454 | G61: Non-Network | J61: Dollars | K61: Real $2018 | L61: End_Year | N61: c-i-c | O61: c-i-c | P61: c-i-c | Q61: c-i-c | R61: c-i-c | S61: c-i-c | U61: c-i-c | V61: 0 | X61: c-i-c | Y61: c-i-c | Z61: c-i-c | AA61: c-i-c | AB61: c-i-c | AC61: c-i-c | AE61: c-i-c | AF61: 0 | AH61: c-i-c | AI61: c-i-c | AJ61: c-i-c | AK61: c-i-c | AL61: c-i-c | AM61: c-i-c | AO61: c-i-c | AP61: 0
C62: N-BNI 1 | D62: Vehicle Fleet Program | E62: Motor Vehicles | F62: PRD33455 | G62: Non-Network | J62: Dollars | K62: Real $2018 | L62: End_Year | N62: c-i-c | O62: c-i-c | P62: c-i-c | Q62: c-i-c | R62: c-i-c | S62: c-i-c | U62: c-i-c | V62: 0 | X62: c-i-c | Y62: c-i-c | Z62: c-i-c | AA62: c-i-c | AB62: c-i-c | AC62: c-i-c | AE62: c-i-c | AF62: 0 | AH62: c-i-c | AI62: c-i-c | AJ62: c-i-c | AK62: c-i-c | AL62: c-i-c | AM62: c-i-c | AO62: c-i-c | AP62: 0
C63: N-BNI 2 | D63: Property Program | E63: Property | F63: PRD33456 | G63: Non-Network | J63: Dollars | K63: Real $2018 | L63: End_Year | N63: c-i-c | O63: c-i-c | P63: c-i-c | Q63: c-i-c | R63: c-i-c | S63: c-i-c | U63: c-i-c | V63: 0 | X63: c-i-c | Y63: c-i-c | Z63: c-i-c | AA63: c-i-c | AB63: c-i-c | AC63: c-i-c | AE63: c-i-c | AF63: 0 | AH63: c-i-c | AI63: c-i-c | AJ63: c-i-c | AK63: c-i-c | AL63: c-i-c | AM63: c-i-c | AO63: c-i-c | AP63: 0
C64: N-BNI 3 | D64: Capex – Tools and Equipment | E64: Plant and Equipment | F64: PRD33407 | G64: Non-Network | J64: Dollars | K64: Real $2018 | L64: End_Year | N64: c-i-c | O64: c-i-c | P64: c-i-c | Q64: c-i-c | R64: c-i-c | S64: c-i-c | U64: c-i-c | V64: 0 | X64: c-i-c | Y64: c-i-c | Z64: c-i-c | AA64: c-i-c | AB64: c-i-c | AC64: c-i-c | AE64: c-i-c | AF64: 0 | AH64: c-i-c | AI64: c-i-c | AJ64: c-i-c | AK64: c-i-c | AL64: c-i-c | AM64: c-i-c | AO64: c-i-c | AP64: 0
C65: N-BNI 4 | D65: Upgrade 19 Mile Depot | E65: Property | F65: 0 | G65: Non-Network | J65: Dollars | K65: Real $2018 | L65: End_Year | N65: c-i-c | O65: c-i-c | P65: c-i-c | Q65: c-i-c | R65: c-i-c | S65: c-i-c | U65: c-i-c | V65: 0 | X65: c-i-c | Y65: c-i-c | Z65: c-i-c | AA65: c-i-c | AB65: c-i-c | AC65: c-i-c | AE65: c-i-c | AF65: 0 | AH65: c-i-c | AI65: c-i-c | AJ65: c-i-c | AK65: c-i-c | AL65: c-i-c | AM65: c-i-c | AO65: c-i-c | AP65: 0
C66: N-BNI 5 | D66: Property leases | E66: Property | F66: PRD33462 | G66: Non-Network | J66: Dollars | K66: Real $2018 | L66: End_Year | N66: c-i-c | O66: c-i-c | P66: c-i-c | Q66: c-i-c | R66: c-i-c | S66: c-i-c | U66: c-i-c | V66: 0 | X66: c-i-c | Y66: c-i-c | Z66: c-i-c | AA66: c-i-c | AB66: c-i-c | AC66: c-i-c | AE66: c-i-c | AF66: 0 | AH66: c-i-c | AI66: c-i-c | AJ66: c-i-c | AK66: c-i-c | AL66: c-i-c | AM66: c-i-c | AO66: c-i-c | AP66: 0
A68: =IF(SUM($V68,AF68)>0,1,0) -> 0 | D68: Total | J68: =J10 -> Dollars | K68: Real $2018 | L68: End_Year | N68: 39.29601773 | O68: 71.15071208 | P68: 52.85362815 | Q68: 61.45294217 | R68: 37.63678118 | S68: 34.52174201 | U68: 257.6158056 | V68: =IF(SUM(V10:V66)=0,0,1) -> 0 | X68: 40.11080969 | Y68: 72.72259912 | Z68: 54.16172391 | AA68: 63.28006445 | AB68: 38.99168657 | AC68: 35.97781105 | AE68: 265.1338851 | AF68: =IF(SUM(AF10:AF66)=0,0,1) -> 0 | AH68: 39.71561966 | AI68: 73.59903377 | AJ68: 56.14364965 | AK68: 67.18626765 | AL68: 42.40246115 | AM68: 40.07367962 | AO68: 279.4050918 | AP68: =IF(SUM(AP10:AP66)=0,0,1) -> 0
C70: Capex forecasts by project (excluding connection capex and capitalised overheads)
N72: Expenditure (Real $2018, No Input Cost Escalation, End_Year) | X72: Expenditure (Real $2019, Escalated, End_Year)
C73: Ref. | D73: Capex Purpose | J73: Unit | K73: Basis | L73: Timing | N73: RY19 | O73: RY20 | P73: RY21 | Q73: RY22 | R73: RY23 | S73: RY24 | U73: Total FY20 to FY24 | V73: Check | X73: RY19 | Y73: RY20 | Z73: RY21 | AA73: RY22 | AB73: RY23 | AC73: RY24 | AE73: Total FY20 to FY24 | AF73: Check
C74: =N(C73)+1 -> 1 | D74: Augex | J74: Dollars | K74: Real $2018 | L74: End_Year | N74: 3.917967 | O74: 11.16527142 | P74: 5.310862375 | Q74: 5.56263569 | R74: 6.473971843 | S74: 6.285706384 | U74: 34.79844771 | V74: 0 | X74: 3.999204952 | Y74: 11.4119386 | Z74: 5.44230305 | AA74: 5.728024283 | AB74: 6.707031607 | AC74: 6.550826911 | AE74: =SUM(Y74:AC74) -> 35.84012445 | AF74: =IF(ROUND(AE74-'Total by category'!AA25,4)=0,0,1) -> 0
C75: =N(C74)+1 -> 2 | D75: Repex | J75: Dollars | K75: Real $2018 | L75: End_Year | N75: 30.15795649 | O75: 33.16143002 | P75: 36.20205713 | Q75: 30.51982269 | R75: 19.77724944 | S75: 17.40409357 | U75: 137.0646528 | V75: 0 | X75: 30.7832733 | Y75: 33.89404422 | Z75: 37.09803645 | AA75: 31.42723975 | AB75: 20.48922057 | AC75: 18.13816897 | AE75: =SUM(Y75:AC75) -> 141.04671 | AF75: =IF(ROUND(AE75-'Total by category'!AA26,4)=0,0,1) -> 0
C76: 3 | D76: Non-Network | J76: Dollars | K76: Real $2018 | L76: End_Year | N76: 0.544 | O76: 20.35404064 | P76: 5.046488641 | Q76: 19.36503779 | R76: 5.001217901 | S76: 4.847204059 | U76: 54.61398903 | V76: 0 | X76: 0.5552796882 | Y76: 20.8037094 | Z76: 5.171386225 | AA76: 19.94080017 | AB76: 5.181259256 | AC76: 5.051650977 | AE76: 56.14880603 | AF76: =IF(ROUND(AE76-'Total by category'!AA28,4)=0,0,1) -> 0
C77: 4 | D77: IT | J77: Dollars | K77: Real $2018 | L77: End_Year | N77: 4.676094245 | O77: 6.46997 | P77: 6.29422 | Q77: 6.005446 | R77: 6.384342 | S77: 5.984738 | U77: 31.138716 | V77: 0 | X77: 4.773051755 | Y77: 6.612906896 | Z77: 6.44999819 | AA77: 6.184000253 | AB77: 6.614175134 | AC77: 6.237164187 | AE77: 32.09824466 | AF77: =IF(ROUND(AE77-'Total by category'!AA29,4)=0,0,1) -> 0
D79: Total | J79: =J74 -> Dollars | K79: Real $2018 | L79: End_Year | N79: =SUM(N74:N77) -> 39.29601773 | O79: 71.15071208 | P79: 52.85362815 | Q79: 61.45294217 | R79: 37.63678118 | S79: 34.52174201 | U79: =SUM(O79:S79) -> 257.6158056 | V79: =IF(ROUND(U79-U68,4)=0,0,1) -> 0 | X79: =SUM(X74:X77) -> 40.11080969 | Y79: 72.72259912 | Z79: 54.16172391 | AA79: 63.28006445 | AB79: 38.99168657 | AC79: 35.97781105 | AE79: =SUM(Y79:AC79) -> 265.1338851 | AF79: =IF(ROUND(AE79-SUMPRODUCT(O79:S79,Escalation!$J$56:$N$56)*(1+'SCS total'!$I$7),4)=0,0,1) -> 0
A81: =IF(SUM($M81:$AE81)>0,1,0) -> 0 | D81: Check - Flag | N81: =IF(ROUND(N79-N68,4)=0,0,1) -> 0 | O81: =IF(ROUND(O79-O68,4)=0,0,1) -> 0 | P81: 0 | Q81: 0 | R81: 0 | S81: 0 | U81: =IF(ROUND(U79-U68,4)=0,0,1) -> 0 | X81: =IF(ROUND(X79-X68,4)=0,0,1) -> 0 | Y81: 0 | Z81: 0 | AA81: 0 | AB81: 0 | AC81: 0 | AE81: =IF(ROUND(AE79-AE68,4)=0,0,1) -> 0
B83: End

Sheet Total by category
A1: =IF(SUM($A2:$A39)>0,1,0) -> 0 | B1: Consolidated Capital Expenditure Forecast
B3: Capex Forecasts
C5: Direct Costs by category - unescalated
C7: Ref. | D7: Capex Purpose | E7: Unit | F7: Basis | G7: Timing | I7: RY19 | J7: RY20 | K7: RY21 | L7: RY22 | M7: RY23 | N7: RY24 | P7: Total FY20 to FY24 | Q7: Check
C8: =N(C7)+1 -> 1 | D8: Augex | E8: Dollars | F8: Real $2018 | G8: End_Year | I8: =Augex!I27 -> 3.917967 | J8: =Augex!J27 -> 11.16527142 | K8: =Augex!K27 -> 5.310862375 | L8: =Augex!L27 -> 5.56263569 | M8: =Augex!M27 -> 6.473971843 | N8: =Augex!N27 -> 6.285706384 | P8: =SUM(J8:N8) -> 34.79844771 | Q8: =IF(ROUND(P8-Augex!$P$27,4)=0,0,1) -> 0
C9: =N(C8)+1 -> 2 | D9: Repex | E9: Dollars | F9: Real $2018 | G9: End_Year | I9: =Repex!I27 -> 30.15795649 | J9: =Repex!J27 -> 33.16143002 | K9: =Repex!K27 -> 36.20205713 | L9: =Repex!L27 -> 30.51982269 | M9: =Repex!M27 -> 19.77724944 | N9: =Repex!N27 -> 17.40409357 | P9: =SUM(J9:N9) -> 137.0646528 | Q9: =IF(ROUND(P9-Repex!$P$27,4)=0,0,1) -> 0
C10: 3 | D10: Connections | E10: Dollars | F10: Real $2018 | G10: End_Year | I10: =Connections!I27 -> 11.39102464 | J10: =Connections!J27 -> 10.47217082 | K10: =Connections!K27 -> 10.77010221 | L10: =Connections!L27 -> 11.59985505 | M10: =Connections!M27 -> 10.50279928 | N10: =Connections!N27 -> 10.52229012 | P10: 53.86721748 | Q10: =IF(ROUND(P10-Connections!$P$27,4)=0,0,1) -> 0
C11: 4 | D11: Non-Network | E11: Dollars | F11: Real $2018 | G11: End_Year | I11: ='Non-Network'!I27 -> 0.544 | J11: ='Non-Network'!J27 -> 20.35404064 | K11: ='Non-Network'!K27 -> 5.046488641 | L11: ='Non-Network'!L27 -> 19.36503779 | M11: ='Non-Network'!M27 -> 5.001217901 | N11: ='Non-Network'!N27 -> 4.847204059 | P11: 54.61398903 | Q11: =IF(ROUND(P11-'Non-Network'!$P$27,4)=0,0,1) -> 0
C12: 5 | D12: IT | E12: Dollars | F12: Real $2018 | G12: End_Year | I12: =IT!I27 -> 4.676094245 | J12: =IT!J27 -> 6.46997 | K12: =IT!K27 -> 6.29422 | L12: =IT!L27 -> 6.005446 | M12: =IT!M27 -> 6.384342 | N12: =IT!N27 -> 5.984738 | P12: 31.138716 | Q12: =IF(ROUND(P12-IT!$P$27,4)=0,0,1) -> 0
C13: 6 | D13: Escalation | E13: Dollars | F13: Real $2018 | G13: End_Year | I13: =Escalation!I27 -> 0.03651061786 | J13: =Escalation!J27 -> 0.167435614 | K13: =Escalation!K27 -> 0.2962497656 | L13: =Escalation!L27 -> 0.6970135985 | M13: =Escalation!M27 -> 0.7551071807 | N13: =Escalation!N27 -> 0.9794126464 | P13: 2.895218805 | Q13: =IF(ROUND(P13-Escalation!$P$27,4)=0,0,1) -> 0
C14: 7 | D14: Capitalised OH | E14: Dollars | F14: Real $2018 | G14: End_Year | I14: ='Capitalised OH'!I27 -> 0 | J14: ='Capitalised OH'!J27 -> 12.48538197 | K14: ='Capitalised OH'!K27 -> 12.59820095 | L14: ='Capitalised OH'!L27 -> 12.76773453 | M14: ='Capitalised OH'!M27 -> 12.91815041 | N14: ='Capitalised OH'!N27 -> 13.06894761 | P14: 63.83841546 | Q14: =IF(ROUND(P14-'Capitalised OH'!$P$27,4)=0,0,1) -> 0
C15: 8 | D15: Metering | E15: Dollars | F15: Real $2018 | G15: End_Year | I15: ='Metering total'!I18/(1+$I$22) -> 4.564388123 | J15: ='Metering total'!J18/(1+$I$22) -> 6.475055315 | K15: ='Metering total'!K18/(1+$I$22) -> 3.579256473 | L15: ='Metering total'!L18/(1+$I$22) -> 3.796698912 | M15: ='Metering total'!M18/(1+$I$22) -> 7.602809031 | N15: ='Metering total'!N18/(1+$I$22) -> 3.703532991 | P15: 25.15735272 | Q15: =IF(ROUND(P15-'Metering total'!$P$18/(1+$I$22),4)=0,0,1) -> 0
A17: =IF(SUM($Q17)>0,1,0) -> 0 | D17: Total | E17: =E8 -> Dollars | F17: Real $2018 | G17: End_Year | I17: =SUM(I8:I15) -> 55.28794111 | J17: 100.7507558 | K17: 80.09743754 | L17: 90.31424426 | M17: 69.41564708 | N17: 62.79592537 | P17: 403.3740101 | Q17: =IF(SUM(Q8:Q15)=0,0,1) -> 0
C20: Direct Costs by category - escalated
G21: RY17 | H21: RY18 | I21: =I24 -> RY19 | J21: RY20 | K21: RY21 | L21: RY22 | M21: RY23 | N21: RY24
D22: Forecast inflation (End Year) | E22: Per cent | F22: Nominal | G22: =[1]Input_Data!L$18 -> 0.01933701657 | H22: =[1]Input_Data!M$18 -> 0.02077687444 | I22: =[1]Input_Data!$N$19 -> 0.02 | J22: =[1]Output_PTRM!$O$18 -> 0.02424874658 | K22: =$J$22 -> 0.02424874658 | L22: =$J$22 -> 0.02424874658 | M22: 0.02424874658 | N22: 0.02424874658
C24: Ref. | D24: Capex Purpose | E24: Unit | F24: Basis | G24: Timing | I24: RY19 | J24: RY20 | K24: RY21 | L24: RY22 | M24: RY23 | N24: RY24 | P24: Total FY20 to FY24 | T24: RY19 | U24: RY20 | V24: RY21 | W24: RY22 | X24: RY23 | Y24: RY24 | AA24: Total FY20 to FY24
C25: =N(C24)+1 -> 1 | D25: Augex | E25: Dollars | F25: Real $2019 | G25: End_Year | I25: =I8*(1+$I$22) -> 3.99632634 | J25: 11.38857685 | K25: 5.417079622 | L25: 5.673888404 | M25: 6.60345128 | N25: 6.411420512 | P25: =SUM(J25:N25) -> 35.49441667 | T25: =I25+(I25/SUM(I$25:I$29))*I$30 -> 3.999204952 | U25: =J25+(J25/SUM(J$25:J$29))*J$30 -> 11.4119386 | V25: 5.44230305 | W25: 5.728024283 | X25: 6.707031607 | Y25: 6.550826911 | AA25: =SUM(U25:Y25) -> 35.84012445
C26: =N(C25)+1 -> 2 | D26: Repex | E26: Dollars | F26: Real $2019 | G26: End_Year | I26: 30.76111562 | J26: 33.82465862 | K26: 36.92609828 | L26: 31.13021914 | M26: 20.17279443 | N26: 17.75217544 | P26: =SUM(J26:N26) -> 139.8059459 | T26: 30.7832733 | U26: 33.89404422 | V26: 37.09803645 | W26: 31.42723975 | X26: 20.48922057 | Y26: 18.13816897 | AA26: =SUM(U26:Y26) -> 141.04671
C27: 3 | D27: Connections | E27: Dollars | F27: Real $2019 | G27: End_Year | I27: 11.61884513 | J27: 10.68161423 | K27: 10.98550425 | L27: 11.83185215 | M27: 10.71285526 | N27: 10.73273592 | P27: 54.94456182 | T27: 11.62721436 | U27: 10.70352577 | V27: 11.03665581 | W27: 11.94474259 | X27: 10.88089482 | Y27: 10.96610262 | AA27: 55.53192162
C28: 4 | D28: Non-Network | E28: Dollars | F28: Real $2019 | G28: End_Year | I28: 0.55488 | J28: 20.76112146 | K28: 5.147418414 | L28: 19.75233855 | M28: 5.101242259 | N28: 4.94414814 | P28: 55.70626881 | T28: 0.5552796882 | U28: 20.8037094 | V28: 5.171386225 | W28: 19.94080017 | X28: 5.181259256 | Y28: 5.051650977 | AA28: 56.14880603
C29: 5 | D29: IT | E29: Dollars | F29: Real $2019 | G29: End_Year | I29: 4.76961613 | J29: 6.5993694 | K29: 6.4201044 | L29: 6.12555492 | M29: 6.51202884 | N29: 6.10443276 | P29: 31.76149032 | T29: 4.773051755 | U29: 6.612906896 | V29: 6.44999819 | W29: 6.184000253 | X29: 6.614175134 | Y29: 6.237164187 | AA29: 32.09824466
C30: 6 | D30: Escalation | E30: Dollars | F30: Real $2019 | G30: End_Year | I30: 0.03724083022 | J30: 0.1707843263 | K30: 0.3021747609 | L30: 0.7109538705 | M30: 0.7702093244 | N30: 0.9990008993 | P30: 2.953123181 | T30: 0 | U30: 0 | V30: 0 | W30: 0 | X30: 0 | Y30: 0 | AA30: 0
C31: 7 | D31: Capitalised OH | E31: Dollars | F31: Real $2019 | G31: End_Year | I31: 0 | J31: 12.73508961 | K31: 12.85016497 | L31: 13.02308922 | M31: 13.17651341 | N31: 13.33032656 | P31: 65.11518377 | T31: =I31 -> 0 | U31: 12.73508961 | V31: 12.85016497 | W31: 13.02308922 | X31: 13.17651341 | Y31: 13.33032656 | AA31: 65.11518377
C32: 8 | D32: Metering | E32: Dollars | F32: Real $2019 | G32: End_Year | I32: 4.655675886 | J32: 6.604556421 | K32: 3.650841602 | L32: 3.87263289 | M32: 7.754865212 | N32: 3.777603651 | P32: 25.66049978 | T32: 4.655675886 | U32: 6.604556421 | V32: 3.650841602 | W32: 3.87263289 | X32: 7.754865212 | Y32: 3.777603651 | AA32: 25.66049978
D34: Total | E34: =E25 -> Dollars | F34: Real $2019 | G34: End_Year | I34: =SUM(I25:I32) -> 56.39369993 | J34: 102.7657709 | K34: 81.6993863 | L34: 92.12052915 | M34: 70.80396002 | N34: 64.05184388 | P34: =SUM(J34:N34) -> 411.4414903 | T34: =SUM(T25:T32) -> 56.39369993 | U34: 102.7657709 | V34: 81.6993863 | W34: 92.12052915 | X34: 70.80396002 | Y34: 64.05184388 | AA34: =SUM(U34:Y34) -> 411.4414903
D36: Check - Value | E36: Dollars | F36: Real $2019 | G36: End_Year | I36: ='SCS total'!I29+'Metering total'!I18 -> 56.39369993 | J36: ='SCS total'!J29+'Metering total'!J18 -> 102.7657709 | K36: ='SCS total'!K29+'Metering total'!K18 -> 81.6993863 | L36: ='SCS total'!L29+'Metering total'!L18 -> 92.12052915 | M36: ='SCS total'!M29+'Metering total'!M18 -> 70.80396002 | N36: ='SCS total'!N29+'Metering total'!N18 -> 64.05184388 | P36: =SUM(J36:N36) -> 411.4414903 | T36: =I34 -> 56.39369993 | U36: 102.7657709 | V36: 81.6993863 | W36: 92.12052915 | X36: 70.80396002 | Y36: 64.05184388 | AA36: 411.4414903
A37: =IF(SUM($H37:$AA37)>0,1,0) -> 0 | D37: Check - Flag | I37: =IF(ROUND(I34-I36,4)=0,0,1) -> 0 | J37: 0 | K37: 0 | L37: 0 | M37: 0 | N37: 0 | P37: 0 | T37: =IF(ROUND(T34-T36,4)=0,0,1) -> 0 | U37: 0 | V37: 0 | W37: 0 | X37: 0 | Y37: 0 | AA37: 0
B39: End

Sheet SCS -->
B8: SCS

Sheet SCS total
A1: =IF(SUM($A2:$A34)>0,1,0) -> 0 | B1: Consolidated Capital Expenditure Forecast - SCS
B3: Capex Forecasts - SCS
C5: Direct Costs including Cost Escalation and Capitalised Overheads
D7: Forecast inflation | E7: Per cent | F7: Nominal | G7: End_Year | I7: ='Total by category'!$I$22 -> 0.02
C9: Ref. | D9: Regulatory Asset Class | E9: Unit | F9: Basis | G9: Timing | I9: RY19 | J9: RY20 | K9: RY21 | L9: RY22 | M9: RY23 | N9: RY24 | P9: Total FY20 to FY24
C10: =N(C9)+1 -> 1 | D10: Substations | E10: Dollars | F10: Real $2019 | G10: End_Year | I10: =(Augex!I8+Repex!I8+Connections!I8+'Non-Network'!I8+IT!I8+Escalation!I8+'Capitalised OH'!I8)*(1+$I$7) -> 13.12875735 | J10: =(Augex!J8+Repex!J8+Connections!J8+'Non-Network'!J8+IT!J8+Escalation!J8+'Capitalised OH'!J8)*(1+$I$7) -> 12.04623487 | K10: =(Augex!K8+Repex!K8+Connections!K8+'Non-Network'!K8+IT!K8+Escalation!K8+'Capitalised OH'!K8)*(1+$I$7) -> 10.68841714 | L10: =(Augex!L8+Repex!L8+Connections!L8+'Non-Network'!L8+IT!L8+Escalation!L8+'Capitalised OH'!L8)*(1+$I$7) -> 6.317848392 | M10: =(Augex!M8+Repex!M8+Connections!M8+'Non-Network'!M8+IT!M8+Escalation!M8+'Capitalised OH'!M8)*(1+$I$7) -> 4.86820789 | N10: =(Augex!N8+Repex!N8+Connections!N8+'Non-Network'!N8+IT!N8+Escalation!N8+'Capitalised OH'!N8)*(1+$I$7) -> 0.2007177335 | P10: =SUM(J10:N10) -> 34.12142602
C11: =N(C10)+1 -> 2 | D11: Distribution Lines | E11: Dollars | F11: Real $2019 | G11: End_Year | I11: =(Augex!I9+Repex!I9+Connections!I9+'Non-Network'!I9+IT!I9+Escalation!I9+'Capitalised OH'!I9)*(1+$I$7) -> 16.7008981 | J11: =(Augex!J9+Repex!J9+Connections!J9+'Non-Network'!J9+IT!J9+Escalation!J9+'Capitalised OH'!J9)*(1+$I$7) -> 24.53654756 | K11: =(Augex!K9+Repex!K9+Connections!K9+'Non-Network'!K9+IT!K9+Escalation!K9+'Capitalised OH'!K9)*(1+$I$7) -> 27.86762362 | L11: =(Augex!L9+Repex!L9+Connections!L9+'Non-Network'!L9+IT!L9+Escalation!L9+'Capitalised OH'!L9)*(1+$I$7) -> 22.95191194 | M11: =(Augex!M9+Repex!M9+Connections!M9+'Non-Network'!M9+IT!M9+Escalation!M9+'Capitalised OH'!M9)*(1+$I$7) -> 20.6187123 | N11: =(Augex!N9+Repex!N9+Connections!N9+'Non-Network'!N9+IT!N9+Escalation!N9+'Capitalised OH'!N9)*(1+$I$7) -> 22.21898935 | P11: =SUM(J11:N11) -> 118.1937848
C12: 3 | D12: Transmission Lines | E12: Dollars | F12: Real $2019 | G12: End_Year | I12: =(Augex!I10+Repex!I10+Connections!I10+'Non-Network'!I10+IT!I10+Escalation!I10+'Capitalised OH'!I10)*(1+$I$7) -> 0.2347689858 | J12: =(Augex!J10+Repex!J10+Connections!J10+'Non-Network'!J10+IT!J10+Escalation!J10+'Capitalised OH'!J10)*(1+$I$7) -> 2.886383905 | K12: =(Augex!K10+Repex!K10+Connections!K10+'Non-Network'!K10+IT!K10+Escalation!K10+'Capitalised OH'!K10)*(1+$I$7) -> 2.782202464 | L12: =(Augex!L10+Repex!L10+Connections!L10+'Non-Network'!L10+IT!L10+Escalation!L10+'Capitalised OH'!L10)*(1+$I$7) -> 2.739747639 | M12: =(Augex!M10+Repex!M10+Connections!M10+'Non-Network'!M10+IT!M10+Escalation!M10+'Capitalised OH'!M10)*(1+$I$7) -> 2.970431933 | N12: =(Augex!N10+Repex!N10+Connections!N10+'Non-Network'!N10+IT!N10+Escalation!N10+'Capitalised OH'!N10)*(1+$I$7) -> 2.996046701 | P12: 14.37481264
C13: 4 | D13: LV Services | E13: Dollars | F13: Real $2019 | G13: End_Year | I13: =(Augex!I11+Repex!I11+Connections!I11+'Non-Network'!I11+IT!I11+Escalation!I11+'Capitalised OH'!I11)*(1+$I$7) -> 0.6049046385 | J13: =(Augex!J11+Repex!J11+Connections!J11+'Non-Network'!J11+IT!J11+Escalation!J11+'Capitalised OH'!J11)*(1+$I$7) -> 0.5106942827 | K13: =(Augex!K11+Repex!K11+Connections!K11+'Non-Network'!K11+IT!K11+Escalation!K11+'Capitalised OH'!K11)*(1+$I$7) -> 0.6019027189 | L13: =(Augex!L11+Repex!L11+Connections!L11+'Non-Network'!L11+IT!L11+Escalation!L11+'Capitalised OH'!L11)*(1+$I$7) -> 0.7850777575 | M13: =(Augex!M11+Repex!M11+Connections!M11+'Non-Network'!M11+IT!M11+Escalation!M11+'Capitalised OH'!M11)*(1+$I$7) -> 0.5754384469 | N13: =(Augex!N11+Repex!N11+Connections!N11+'Non-Network'!N11+IT!N11+Escalation!N11+'Capitalised OH'!N11)*(1+$I$7) -> 0.5929232828 | P13: 3.066036489
C14: 5 | D14: Distribution Substations | E14: Dollars | F14: Real $2019 | G14: End_Year | I14: =(Augex!I12+Repex!I12+Connections!I12+'Non-Network'!I12+IT!I12+Escalation!I12+'Capitalised OH'!I12)*(1+$I$7) -> 6.275747987 | J14: =(Augex!J12+Repex!J12+Connections!J12+'Non-Network'!J12+IT!J12+Escalation!J12+'Capitalised OH'!J12)*(1+$I$7) -> 6.776188562 | K14: =(Augex!K12+Repex!K12+Connections!K12+'Non-Network'!K12+IT!K12+Escalation!K12+'Capitalised OH'!K12)*(1+$I$7) -> 7.353842618 | L14: =(Augex!L12+Repex!L12+Connections!L12+'Non-Network'!L12+IT!L12+Escalation!L12+'Capitalised OH'!L12)*(1+$I$7) -> 7.517051534 | M14: =(Augex!M12+Repex!M12+Connections!M12+'Non-Network'!M12+IT!M12+Escalation!M12+'Capitalised OH'!M12)*(1+$I$7) -> 8.38049024 | N14: =(Augex!N12+Repex!N12+Connections!N12+'Non-Network'!N12+IT!N12+Escalation!N12+'Capitalised OH'!N12)*(1+$I$7) -> 8.663936158 | P14: 38.69150911
C15: 6 | D15: Distribution Switchgear | E15: Dollars | F15: Real $2019 | G15: End_Year | I15: =(Augex!I13+Repex!I13+Connections!I13+'Non-Network'!I13+IT!I13+Escalation!I13+'Capitalised OH'!I13)*(1+$I$7) -> 3.960644492 | J15: =(Augex!J13+Repex!J13+Connections!J13+'Non-Network'!J13+IT!J13+Escalation!J13+'Capitalised OH'!J13)*(1+$I$7) -> 5.193409105 | K15: =(Augex!K13+Repex!K13+Connections!K13+'Non-Network'!K13+IT!K13+Escalation!K13+'Capitalised OH'!K13)*(1+$I$7) -> 5.468504555 | L15: =(Augex!L13+Repex!L13+Connections!L13+'Non-Network'!L13+IT!L13+Escalation!L13+'Capitalised OH'!L13)*(1+$I$7) -> 5.288144327 | M15: =(Augex!M13+Repex!M13+Connections!M13+'Non-Network'!M13+IT!M13+Escalation!M13+'Capitalised OH'!M13)*(1+$I$7) -> 5.774442742 | N15: =(Augex!N13+Repex!N13+Connections!N13+'Non-Network'!N13+IT!N13+Escalation!N13+'Capitalised OH'!N13)*(1+$I$7) -> 5.960872159 | P15: 27.68537289
C16: 7 | D16: Protection | E16: Dollars | F16: Real $2019 | G16: End_Year | I16: =(Augex!I14+Repex!I14+Connections!I14+'Non-Network'!I14+IT!I14+Escalation!I14+'Capitalised OH'!I14)*(1+$I$7) -> 2.500204978 | J16: =(Augex!J14+Repex!J14+Connections!J14+'Non-Network'!J14+IT!J14+Escalation!J14+'Capitalised OH'!J14)*(1+$I$7) -> 3.765258352 | K16: =(Augex!K14+Repex!K14+Connections!K14+'Non-Network'!K14+IT!K14+Escalation!K14+'Capitalised OH'!K14)*(1+$I$7) -> 4.149996003 | L16: =(Augex!L14+Repex!L14+Connections!L14+'Non-Network'!L14+IT!L14+Escalation!L14+'Capitalised OH'!L14)*(1+$I$7) -> 1.534162038 | M16: =(Augex!M14+Repex!M14+Connections!M14+'Non-Network'!M14+IT!M14+Escalation!M14+'Capitalised OH'!M14)*(1+$I$7) -> 1.413181682 | N16: =(Augex!N14+Repex!N14+Connections!N14+'Non-Network'!N14+IT!N14+Escalation!N14+'Capitalised OH'!N14)*(1+$I$7) -> 1.01696985 | P16: 11.87956792
C17: 8 | D17: SCADA | E17: Dollars | F17: Real $2019 | G17: End_Year | I17: =(Augex!I15+Repex!I15+Connections!I15+'Non-Network'!I15+IT!I15+Escalation!I15+'Capitalised OH'!I15)*(1+$I$7) -> 1.18104315 | J17: =(Augex!J15+Repex!J15+Connections!J15+'Non-Network'!J15+IT!J15+Escalation!J15+'Capitalised OH'!J15)*(1+$I$7) -> 1.03792009 | K17: =(Augex!K15+Repex!K15+Connections!K15+'Non-Network'!K15+IT!K15+Escalation!K15+'Capitalised OH'!K15)*(1+$I$7) -> 1.291736858 | L17: =(Augex!L15+Repex!L15+Connections!L15+'Non-Network'!L15+IT!L15+Escalation!L15+'Capitalised OH'!L15)*(1+$I$7) -> 0.7272169659 | M17: =(Augex!M15+Repex!M15+Connections!M15+'Non-Network'!M15+IT!M15+Escalation!M15+'Capitalised OH'!M15)*(1+$I$7) -> 0.3811268485 | N17: =(Augex!N15+Repex!N15+Connections!N15+'Non-Network'!N15+IT!N15+Escalation!N15+'Capitalised OH'!N15)*(1+$I$7) -> 0.2314944526 | P17: 3.669495215
C18: 9 | D18: Communications | E18: Dollars | F18: Real $2019 | G18: End_Year | I18: =(Augex!I16+Repex!I16+Connections!I16+'Non-Network'!I16+IT!I16+Escalation!I16+'Capitalised OH'!I16)*(1+$I$7) -> 1.822722929 | J18: =(Augex!J16+Repex!J16+Connections!J16+'Non-Network'!J16+IT!J16+Escalation!J16+'Capitalised OH'!J16)*(1+$I$7) -> 2.781531592 | K18: =(Augex!K16+Repex!K16+Connections!K16+'Non-Network'!K16+IT!K16+Escalation!K16+'Capitalised OH'!K16)*(1+$I$7) -> 3.030000038 | L18: =(Augex!L16+Repex!L16+Connections!L16+'Non-Network'!L16+IT!L16+Escalation!L16+'Capitalised OH'!L16)*(1+$I$7) -> 2.413587206 | M18: =(Augex!M16+Repex!M16+Connections!M16+'Non-Network'!M16+IT!M16+Escalation!M16+'Capitalised OH'!M16)*(1+$I$7) -> 2.052322239 | N18: =(Augex!N16+Repex!N16+Connections!N16+'Non-Network'!N16+IT!N16+Escalation!N16+'Capitalised OH'!N16)*(1+$I$7) -> 1.607079986 | P18: 11.88452106
C19: 10 | D19: Land and Easements | E19: Dollars | F19: Real $2019 | G19: End_Year | I19: =(Augex!I17+Repex!I17+Connections!I17+'Non-Network'!I17+IT!I17+Escalation!I17+'Capitalised OH'!I17)*(1+$I$7) -> 0 | J19: =(Augex!J17+Repex!J17+Connections!J17+'Non-Network'!J17+IT!J17+Escalation!J17+'Capitalised OH'!J17)*(1+$I$7) -> 0 | K19: =(Augex!K17+Repex!K17+Connections!K17+'Non-Network'!K17+IT!K17+Escalation!K17+'Capitalised OH'!K17)*(1+$I$7) -> 0 | L19: =(Augex!L17+Repex!L17+Connections!L17+'Non-Network'!L17+IT!L17+Escalation!L17+'Capitalised OH'!L17)*(1+$I$7) -> 0 | M19: =(Augex!M17+Repex!M17+Connections!M17+'Non-Network'!M17+IT!M17+Escalation!M17+'Capitalised OH'!M17)*(1+$I$7) -> 0 | N19: =(Augex!N17+Repex!N17+Connections!N17+'Non-Network'!N17+IT!N17+Escalation!N17+'Capitalised OH'!N17)*(1+$I$7) -> 0 | P19: 0
C20: 11 | D20: Property | E20: Dollars | F20: Real $2019 | G20: End_Year | I20: =(Augex!I18+Repex!I18+Connections!I18+'Non-Network'!I18+IT!I18+Escalation!I18+'Capitalised OH'!I18)*(1+$I$7) -> 0 | J20: =(Augex!J18+Repex!J18+Connections!J18+'Non-Network'!J18+IT!J18+Escalation!J18+'Capitalised OH'!J18)*(1+$I$7) -> 1.998496873 | K20: =(Augex!K18+Repex!K18+Connections!K18+'Non-Network'!K18+IT!K18+Escalation!K18+'Capitalised OH'!K18)*(1+$I$7) -> 0.8668621566 | L20: =(Augex!L18+Repex!L18+Connections!L18+'Non-Network'!L18+IT!L18+Escalation!L18+'Capitalised OH'!L18)*(1+$I$7) -> 0.8881227796 | M20: =(Augex!M18+Repex!M18+Connections!M18+'Non-Network'!M18+IT!M18+Escalation!M18+'Capitalised OH'!M18)*(1+$I$7) -> 0.8029858104 | N20: =(Augex!N18+Repex!N18+Connections!N18+'Non-Network'!N18+IT!N18+Escalation!N18+'Capitalised OH'!N18)*(1+$I$7) -> 0.7987896733 | P20: 5.355257292
C21: 12 | D21: IT and Communications | E21: Dollars | F21: Real $2019 | G21: End_Year | I21: =(Augex!I19+Repex!I19+Connections!I19+'Non-Network'!I19+IT!I19+Escalation!I19+'Capitalised OH'!I19)*(1+$I$7) -> 4.773051755 | J21: =(Augex!J19+Repex!J19+Connections!J19+'Non-Network'!J19+IT!J19+Escalation!J19+'Capitalised OH'!J19)*(1+$I$7) -> 7.374086477 | K21: =(Augex!K19+Repex!K19+Connections!K19+'Non-Network'!K19+IT!K19+Escalation!K19+'Capitalised OH'!K19)*(1+$I$7) -> 7.563108264 | L21: =(Augex!L19+Repex!L19+Connections!L19+'Non-Network'!L19+IT!L19+Escalation!L19+'Capitalised OH'!L19)*(1+$I$7) -> 14.09326669 | M21: =(Augex!M19+Repex!M19+Connections!M19+'Non-Network'!M19+IT!M19+Escalation!M19+'Capitalised OH'!M19)*(1+$I$7) -> 8.239100673 | N21: =(Augex!N19+Repex!N19+Connections!N19+'Non-Network'!N19+IT!N19+Escalation!N19+'Capitalised OH'!N19)*(1+$I$7) -> 7.277321165 | P21: 44.54688327
C22: 13 | D22: Motor Vehicles | E22: Dollars | F22: Real $2019 | G22: End_Year | I22: =(Augex!I20+Repex!I20+Connections!I20+'Non-Network'!I20+IT!I20+Escalation!I20+'Capitalised OH'!I20)*(1+$I$7) -> 0 | J22: =(Augex!J20+Repex!J20+Connections!J20+'Non-Network'!J20+IT!J20+Escalation!J20+'Capitalised OH'!J20)*(1+$I$7) -> 0 | K22: =(Augex!K20+Repex!K20+Connections!K20+'Non-Network'!K20+IT!K20+Escalation!K20+'Capitalised OH'!K20)*(1+$I$7) -> 0 | L22: =(Augex!L20+Repex!L20+Connections!L20+'Non-Network'!L20+IT!L20+Escalation!L20+'Capitalised OH'!L20)*(1+$I$7) -> 0 | M22: =(Augex!M20+Repex!M20+Connections!M20+'Non-Network'!M20+IT!M20+Escalation!M20+'Capitalised OH'!M20)*(1+$I$7) -> 0 | N22: =(Augex!N20+Repex!N20+Connections!N20+'Non-Network'!N20+IT!N20+Escalation!N20+'Capitalised OH'!N20)*(1+$I$7) -> 0 | P22: 0
C23: 14 | D23: Plant and Equipment | E23: Dollars | F23: Real $2019 | G23: End_Year | I23: =(Augex!I21+Repex!I21+Connections!I21+'Non-Network'!I21+IT!I21+Escalation!I21+'Capitalised OH'!I21)*(1+$I$7) -> 0.5552796882 | J23: =(Augex!J21+Repex!J21+Connections!J21+'Non-Network'!J21+IT!J21+Escalation!J21+'Capitalised OH'!J21)*(1+$I$7) -> 6.196889527 | K23: =(Augex!K21+Repex!K21+Connections!K21+'Non-Network'!K21+IT!K21+Escalation!K21+'Capitalised OH'!K21)*(1+$I$7) -> 1.250028356 | L23: =(Augex!L21+Repex!L21+Connections!L21+'Non-Network'!L21+IT!L21+Escalation!L21+'Capitalised OH'!L21)*(1+$I$7) -> 1.230953635 | M23: =(Augex!M21+Repex!M21+Connections!M21+'Non-Network'!M21+IT!M21+Escalation!M21+'Capitalised OH'!M21)*(1+$I$7) -> 1.334598827 | N23: =(Augex!N21+Repex!N21+Connections!N21+'Non-Network'!N21+IT!N21+Escalation!N21+'Capitalised OH'!N21)*(1+$I$7) -> 3.619609793 | P23: 13.63208014
C24: 15 | D24: Property Leases | E24: Dollars | F24: Real $2019 | G24: End_Year | I24: =(Augex!I22+Repex!I22+Connections!I22+'Non-Network'!I22+IT!I22+Escalation!I22+'Capitalised OH'!I22)*(1+$I$7) -> 0 | J24: =(Augex!J22+Repex!J22+Connections!J22+'Non-Network'!J22+IT!J22+Escalation!J22+'Capitalised OH'!J22)*(1+$I$7) -> 5.054244133 | K24: =(Augex!K22+Repex!K22+Connections!K22+'Non-Network'!K22+IT!K22+Escalation!K22+'Capitalised OH'!K22)*(1+$I$7) -> 0.06665828546 | L24: =(Augex!L22+Repex!L22+Connections!L22+'Non-Network'!L22+IT!L22+Escalation!L22+'Capitalised OH'!L22)*(1+$I$7) -> 17.85008784 | M24: =(Augex!M22+Repex!M22+Connections!M22+'Non-Network'!M22+IT!M22+Escalation!M22+'Capitalised OH'!M22)*(1+$I$7) -> 0.07116804125 | N24: =(Augex!N22+Repex!N22+Connections!N22+'Non-Network'!N22+IT!N22+Escalation!N22+'Capitalised OH'!N22)*(1+$I$7) -> 0.6726196467 | P24: =SUM(J24:N24) -> 23.71477794
C25: 16 | D25: Fleet Leases | E25: Dollars | F25: Real $2019 | G25: End_Year | I25: =(Augex!I23+Repex!I23+Connections!I23+'Non-Network'!I23+IT!I23+Escalation!I23+'Capitalised OH'!I23)*(1+$I$7) -> 0 | J25: =(Augex!J23+Repex!J23+Connections!J23+'Non-Network'!J23+IT!J23+Escalation!J23+'Capitalised OH'!J23)*(1+$I$7) -> 15.27201374 | K25: =(Augex!K23+Repex!K23+Connections!K23+'Non-Network'!K23+IT!K23+Escalation!K23+'Capitalised OH'!K23)*(1+$I$7) -> 4.03854848 | L25: =(Augex!L23+Repex!L23+Connections!L23+'Non-Network'!L23+IT!L23+Escalation!L23+'Capitalised OH'!L23)*(1+$I$7) -> 3.489306159 | M25: =(Augex!M23+Repex!M23+Connections!M23+'Non-Network'!M23+IT!M23+Escalation!M23+'Capitalised OH'!M23)*(1+$I$7) -> 4.252484106 | N25: =(Augex!N23+Repex!N23+Connections!N23+'Non-Network'!N23+IT!N23+Escalation!N23+'Capitalised OH'!N23)*(1+$I$7) -> 3.538711457 | P25: 30.59106394
C26: 17 | D26: Buildings | E26: Dollars | F26: Real $2019 | G26: End_Year | I26: =(Augex!I24+Repex!I24+Connections!I24+'Non-Network'!I24+IT!I24+Escalation!I24+'Capitalised OH'!I24)*(1+$I$7) -> 0 | J26: =(Augex!J24+Repex!J24+Connections!J24+'Non-Network'!J24+IT!J24+Escalation!J24+'Capitalised OH'!J24)*(1+$I$7) -> 0.4830275107 | K26: =(Augex!K24+Repex!K24+Connections!K24+'Non-Network'!K24+IT!K24+Escalation!K24+'Capitalised OH'!K24)*(1+$I$7) -> 0.1349392729 | L26: =(Augex!L24+Repex!L24+Connections!L24+'Non-Network'!L24+IT!L24+Escalation!L24+'Capitalised OH'!L24)*(1+$I$7) -> 0.1328801765 | M26: =(Augex!M24+Repex!M24+Connections!M24+'Non-Network'!M24+IT!M24+Escalation!M24+'Capitalised OH'!M24)*(1+$I$7) -> 0.1440685682 | N26: =(Augex!N24+Repex!N24+Connections!N24+'Non-Network'!N24+IT!N24+Escalation!N24+'Capitalised OH'!N24)*(1+$I$7) -> 0.1471930045 | P26: =SUM(J26:N26) -> 1.042108533
C27: 18 | D27: In-house Software | E27: Dollars | F27: Real $2019 | G27: End_Year | I27: =(Augex!I25+Repex!I25+Connections!I25+'Non-Network'!I25+IT!I25+Escalation!I25+'Capitalised OH'!I25)*(1+$I$7) -> 0 | J27: =(Augex!J25+Repex!J25+Connections!J25+'Non-Network'!J25+IT!J25+Escalation!J25+'Capitalised OH'!J25)*(1+$I$7) -> 0.2482879217 | K27: =(Augex!K25+Repex!K25+Connections!K25+'Non-Network'!K25+IT!K25+Escalation!K25+'Capitalised OH'!K25)*(1+$I$7) -> 0.8941738654 | L27: =(Augex!L25+Repex!L25+Connections!L25+'Non-Network'!L25+IT!L25+Escalation!L25+'Capitalised OH'!L25)*(1+$I$7) -> 0.2885311832 | M27: =(Augex!M25+Repex!M25+Connections!M25+'Non-Network'!M25+IT!M25+Escalation!M25+'Capitalised OH'!M25)*(1+$I$7) -> 1.170334465 | N27: =(Augex!N25+Repex!N25+Connections!N25+'Non-Network'!N25+IT!N25+Escalation!N25+'Capitalised OH'!N25)*(1+$I$7) -> 0.730965813 | P27: 3.332293248
D29: Total | E29: =E10 -> Dollars | F29: Real $2019 | G29: End_Year | I29: =SUM(I10:I27) -> 51.73802405 | J29: =SUM(J10:J27) -> 96.1612145 | K29: 78.04854469 | L29: 88.24789626 | M29: 63.04909481 | N29: 60.27424023 | P29: 385.7809905
D31: Check - Value | E31: Dollars | F31: Real $2019 | G31: End_Year | I31: =SUM('Augex:Capitalised OH'!I27)*(1+$I$7) -> 51.73802405 | J31: =SUM('Augex:Capitalised OH'!J27)*(1+$I$7) -> 96.1612145 | K31: =SUM('Augex:Capitalised OH'!K27)*(1+$I$7) -> 78.04854469 | L31: =SUM('Augex:Capitalised OH'!L27)*(1+$I$7) -> 88.24789626 | M31: =SUM('Augex:Capitalised OH'!M27)*(1+$I$7) -> 63.04909481 | N31: =SUM('Augex:Capitalised OH'!N27)*(1+$I$7) -> 60.27424023 | P31: =SUM(J31:N31) -> 385.7809905
A32: =IF(SUM($H32:$P32)>0,1,0) -> 0 | D32: Check - Flag | I32: =IF(ROUND(I29-I31,4)=0,0,1) -> 0 | J32: 0 | K32: 0 | L32: 0 | M32: 0 | N32: 0 | P32: 0
B34: End

Sheet SCS Immediately Expensed
A1: =IF(SUM($A2:$A42)>0,1,0) -> 0 | B1: Capital Expenditure Immediately Expensed for Tax Purposes - SCS
B3: Capex Forecasts - SCS
C5: Capitalised Overheads
D7: Category | E7: Unit | F7: Basis | G7: Timing | I7: RY18
D8: Capitalised Overheads | E8: Dollars | F8: Nominal | G8: Mid_Year | I8: ='Capitalised OH'!H32/(1+'Total by category'!$H$22)^0.5 -> 12.16936955
D9: Share Expensed for Tax Purposes | E9: Dollars | F9: Nominal | G9: Mid_Year | I9: =[2]Analysis!$B$52/10^6 -> 8.128625858
D11: Expensed Rate | E11: Per cent | F11: Nominal | G11: End_Year | I11: =I9/I8 -> 0.6679578448
C13: Capitalised Overheads Immediately Expensed for Tax Purposes
D15: Forecast inflation | E15: Per cent | F15: Nominal | G15: End_Year | I15: ='Total by category'!$I$22 -> 0.02
C17: Ref. | D17: Regulatory Asset Class | E17: Unit | F17: Basis | G17: Timing | I17: RY19 | J17: RY20 | K17: RY21 | L17: RY22 | M17: RY23 | N17: RY24 | P17: Total FY20 to FY24
C18: =N(C17)+1 -> 1 | D18: Substations | E18: Dollars | F18: Real $2019 | G18: End_Year | I18: ='Capitalised OH'!I8*(1+$I$15)*$I$11 -> 0 | J18: ='Capitalised OH'!J8*(1+$I$15)*$I$11 -> 1.065620206 | K18: ='Capitalised OH'!K8*(1+$I$15)*$I$11 -> 1.175455907 | L18: ='Capitalised OH'!L8*(1+$I$15)*$I$11 -> 0.6227703241 | M18: ='Capitalised OH'!M8*(1+$I$15)*$I$11 -> 0.6795788016 | N18: ='Capitalised OH'!N8*(1+$I$15)*$I$11 -> 0.02965130711 | P18: =SUM(J18:N18) -> 3.573076546
C19: =N(C18)+1 -> 2 | D19: Distribution Lines | E19: Dollars | F19: Real $2019 | G19: End_Year | I19: ='Capitalised OH'!I9*(1+$I$15)*$I$11 -> 0 | J19: ='Capitalised OH'!J9*(1+$I$15)*$I$11 -> 2.170523914 | K19: ='Capitalised OH'!K9*(1+$I$15)*$I$11 -> 3.064734693 | L19: ='Capitalised OH'!L9*(1+$I$15)*$I$11 -> 2.262442647 | M19: ='Capitalised OH'!M9*(1+$I$15)*$I$11 -> 2.878274739 | N19: ='Capitalised OH'!N9*(1+$I$15)*$I$11 -> 3.28233119 | P19: =SUM(J19:N19) -> 13.65830718
C20: 3 | D20: Transmission Lines | E20: Dollars | F20: Real $2019 | G20: End_Year | I20: ='Capitalised OH'!I10*(1+$I$15)*$I$11 -> 0 | J20: ='Capitalised OH'!J10*(1+$I$15)*$I$11 -> 0.2553319809 | K20: ='Capitalised OH'!K10*(1+$I$15)*$I$11 -> 0.3059719956 | L20: ='Capitalised OH'!L10*(1+$I$15)*$I$11 -> 0.2700656014 | M20: ='Capitalised OH'!M10*(1+$I$15)*$I$11 -> 0.4146582518 | N20: ='Capitalised OH'!N10*(1+$I$15)*$I$11 -> 0.4425951774 | P20: 1.688623007
C21: 4 | D21: LV Services | E21: Dollars | F21: Real $2019 | G21: End_Year | I21: ='Capitalised OH'!I11*(1+$I$15)*$I$11 -> 0 | J21: ='Capitalised OH'!J11*(1+$I$15)*$I$11 -> 0.04517645161 | K21: ='Capitalised OH'!K11*(1+$I$15)*$I$11 -> 0.06619409567 | L21: ='Capitalised OH'!L11*(1+$I$15)*$I$11 -> 0.07738760084 | M21: ='Capitalised OH'!M11*(1+$I$15)*$I$11 -> 0.08032848618 | N21: ='Capitalised OH'!N11*(1+$I$15)*$I$11 -> 0.08759041887 | P21: 0.3566770532
C22: 5 | D22: Distribution Substations | E22: Dollars | F22: Real $2019 | G22: End_Year | I22: ='Capitalised OH'!I12*(1+$I$15)*$I$11 -> 0 | J22: ='Capitalised OH'!J12*(1+$I$15)*$I$11 -> 0.5994274168 | K22: ='Capitalised OH'!K12*(1+$I$15)*$I$11 -> 0.808736938 | L22: ='Capitalised OH'!L12*(1+$I$15)*$I$11 -> 0.7409795757 | M22: ='Capitalised OH'!M12*(1+$I$15)*$I$11 -> 1.16987681 | N22: ='Capitalised OH'!N12*(1+$I$15)*$I$11 -> 1.279892052 | P22: 4.598912792
C23: 6 | D23: Distribution Switchgear | E23: Dollars | F23: Real $2019 | G23: End_Year | I23: ='Capitalised OH'!I13*(1+$I$15)*$I$11 -> 0 | J23: ='Capitalised OH'!J13*(1+$I$15)*$I$11 -> 0.4594133967 | K23: ='Capitalised OH'!K13*(1+$I$15)*$I$11 -> 0.6013973726 | L23: ='Capitalised OH'!L13*(1+$I$15)*$I$11 -> 0.5212691335 | M23: ='Capitalised OH'!M13*(1+$I$15)*$I$11 -> 0.8060849018 | N23: ='Capitalised OH'!N13*(1+$I$15)*$I$11 -> 0.8805781531 | P23: 3.268742958
C24: 7 | D24: Protection | E24: Dollars | F24: Real $2019 | G24: End_Year | I24: ='Capitalised OH'!I14*(1+$I$15)*$I$11 -> 0 | J24: ='Capitalised OH'!J14*(1+$I$15)*$I$11 -> 0.3330779636 | K24: ='Capitalised OH'!K14*(1+$I$15)*$I$11 -> 0.456394736 | L24: ='Capitalised OH'!L14*(1+$I$15)*$I$11 -> 0.1512272106 | M24: ='Capitalised OH'!M14*(1+$I$15)*$I$11 -> 0.1972734805 | N24: ='Capitalised OH'!N14*(1+$I$15)*$I$11 -> 0.1502332893 | P24: 1.28820668
C25: 8 | D25: SCADA | E25: Dollars | F25: Real $2019 | G25: End_Year | I25: ='Capitalised OH'!I15*(1+$I$15)*$I$11 -> 0 | J25: ='Capitalised OH'!J15*(1+$I$15)*$I$11 -> 0.09181529597 | K25: ='Capitalised OH'!K15*(1+$I$15)*$I$11 -> 0.1420584265 | L25: ='Capitalised OH'!L15*(1+$I$15)*$I$11 -> 0.07168407937 | M25: ='Capitalised OH'!M15*(1+$I$15)*$I$11 -> 0.05320350586 | N25: ='Capitalised OH'!N15*(1+$I$15)*$I$11 -> 0.03419784086 | P25: 0.3929591486
C26: 9 | D26: Communications | E26: Dollars | F26: Real $2019 | G26: End_Year | I26: ='Capitalised OH'!I16*(1+$I$15)*$I$11 -> 0 | J26: ='Capitalised OH'!J16*(1+$I$15)*$I$11 -> 0.2460566558 | K26: ='Capitalised OH'!K16*(1+$I$15)*$I$11 -> 0.3332234697 | L26: ='Capitalised OH'!L16*(1+$I$15)*$I$11 -> 0.2379149345 | M26: ='Capitalised OH'!M16*(1+$I$15)*$I$11 -> 0.28649448 | N26: ='Capitalised OH'!N16*(1+$I$15)*$I$11 -> 0.2374081322 | P26: 1.341097672
C27: 10 | D27: Land and Easements | E27: Dollars | F27: Real $2019 | G27: End_Year | I27: ='Capitalised OH'!I17*(1+$I$15)*$I$11 -> 0 | J27: ='Capitalised OH'!J17*(1+$I$15)*$I$11 -> 0 | K27: ='Capitalised OH'!K17*(1+$I$15)*$I$11 -> 0 | L27: ='Capitalised OH'!L17*(1+$I$15)*$I$11 -> 0 | M27: ='Capitalised OH'!M17*(1+$I$15)*$I$11 -> 0 | N27: ='Capitalised OH'!N17*(1+$I$15)*$I$11 -> 0 | P27: 0
C28: 11 | D28: Property | E28: Dollars | F28: Real $2019 | G28: End_Year | I28: ='Capitalised OH'!I18*(1+$I$15)*$I$11 -> 0 | J28: ='Capitalised OH'!J18*(1+$I$15)*$I$11 -> 0.176788737 | K28: ='Capitalised OH'!K18*(1+$I$15)*$I$11 -> 0.09533294123 | L28: ='Capitalised OH'!L18*(1+$I$15)*$I$11 -> 0.08754507501 | M28: ='Capitalised OH'!M18*(1+$I$15)*$I$11 -> 0.1120930221 | N28: ='Capitalised OH'!N18*(1+$I$15)*$I$11 -> 0.1180023185 | P28: 0.5897620939
C29: 12 | D29: IT and Communications | E29: Dollars | F29: Real $2019 | G29: End_Year | I29: ='Capitalised OH'!I19*(1+$I$15)*$I$11 -> 0 | J29: ='Capitalised OH'!J19*(1+$I$15)*$I$11 -> 0.652317976 | K29: ='Capitalised OH'!K19*(1+$I$15)*$I$11 -> 0.8317508732 | L29: ='Capitalised OH'!L19*(1+$I$15)*$I$11 -> 1.38921793 | M29: ='Capitalised OH'!M19*(1+$I$15)*$I$11 -> 1.150139495 | N29: ='Capitalised OH'!N19*(1+$I$15)*$I$11 -> 1.075052418 | P29: 5.098478692
C30: 13 | D30: Motor Vehicles | E30: Dollars | F30: Real $2019 | G30: End_Year | I30: ='Capitalised OH'!I20*(1+$I$15)*$I$11 -> 0 | J30: ='Capitalised OH'!J20*(1+$I$15)*$I$11 -> 0 | K30: ='Capitalised OH'!K20*(1+$I$15)*$I$11 -> 0 | L30: ='Capitalised OH'!L20*(1+$I$15)*$I$11 -> 0 | M30: ='Capitalised OH'!M20*(1+$I$15)*$I$11 -> 0 | N30: ='Capitalised OH'!N20*(1+$I$15)*$I$11 -> 0 | P30: 0
C31: 14 | D31: Plant and Equipment | E31: Dollars | F31: Real $2019 | G31: End_Year | I31: ='Capitalised OH'!I21*(1+$I$15)*$I$11 -> 0 | J31: ='Capitalised OH'!J21*(1+$I$15)*$I$11 -> 0.5481821303 | K31: ='Capitalised OH'!K21*(1+$I$15)*$I$11 -> 0.1374715448 | L31: ='Capitalised OH'!L21*(1+$I$15)*$I$11 -> 0.1213389981 | M31: ='Capitalised OH'!M21*(1+$I$15)*$I$11 -> 0.1863036855 | N31: ='Capitalised OH'!N21*(1+$I$15)*$I$11 -> 0.5347119048 | P31: 1.528008264
C32: 15 | D32: Property Leases | E32: Dollars | F32: Real $2019 | G32: End_Year | I32: ='Capitalised OH'!I22*(1+$I$15)*$I$11 -> 0 | J32: ='Capitalised OH'!J22*(1+$I$15)*$I$11 -> 0.4471027447 | K32: ='Capitalised OH'!K22*(1+$I$15)*$I$11 -> 0.007330727686 | L32: ='Capitalised OH'!L22*(1+$I$15)*$I$11 -> 1.759539688 | M32: ='Capitalised OH'!M22*(1+$I$15)*$I$11 -> 0.009934722034 | N32: ='Capitalised OH'!N22*(1+$I$15)*$I$11 -> 0.09936367538 | P32: 2.323271558
C33: 16 | D33: Fleet Leases | E33: Dollars | F33: Real $2019 | G33: End_Year | I33: ='Capitalised OH'!I23*(1+$I$15)*$I$11 -> 0 | J33: ='Capitalised OH'!J23*(1+$I$15)*$I$11 -> 1.350975354 | K33: ='Capitalised OH'!K23*(1+$I$15)*$I$11 -> 0.4441383235 | L33: ='Capitalised OH'!L23*(1+$I$15)*$I$11 -> 0.3439519584 | M33: ='Capitalised OH'!M23*(1+$I$15)*$I$11 -> 0.593626673 | N33: ='Capitalised OH'!N23*(1+$I$15)*$I$11 -> 0.5227610852 | P33: 3.255453395
C34: 17 | D34: Buildings | E34: Dollars | F34: Real $2019 | G34: End_Year | I34: ='Capitalised OH'!I24*(1+$I$15)*$I$11 -> 0 | J34: ='Capitalised OH'!J24*(1+$I$15)*$I$11 -> 0.04272902537 | K34: ='Capitalised OH'!K24*(1+$I$15)*$I$11 -> 0.0148399116 | L34: ='Capitalised OH'!L24*(1+$I$15)*$I$11 -> 0.01309841982 | M34: ='Capitalised OH'!M24*(1+$I$15)*$I$11 -> 0.02011129087 | N34: ='Capitalised OH'!N24*(1+$I$15)*$I$11 -> 0.02174429188 | P34: 0.1125229395
C35: 18 | D35: In-house Software | E35: Dollars | F35: Real $2019 | G35: End_Year | I35: ='Capitalised OH'!I25*(1+$I$15)*$I$11 -> 0 | J35: ='Capitalised OH'!J25*(1+$I$15)*$I$11 -> 0.02196376121 | K35: ='Capitalised OH'!K25*(1+$I$15)*$I$11 -> 0.09833653934 | L35: ='Capitalised OH'!L25*(1+$I$15)*$I$11 -> 0.02844143249 | M35: ='Capitalised OH'!M25*(1+$I$15)*$I$11 -> 0.1633731573 | N35: ='Capitalised OH'!N25*(1+$I$15)*$I$11 -> 0.1079829442 | P35: 0.4200978345
D37: Total | E37: =E18 -> Dollars | F37: Real $2019 | G37: End_Year | I37: =SUM(I18:I35) -> 0 | J37: =SUM(J18:J35) -> 8.50650301 | K37: 8.583368496 | L37: 8.698874609 | M37: 8.801355502 | N37: 8.9040962 | P37: 43.49419782
D39: Check - Value | E39: Dollars | F39: Real $2019 | G39: End_Year | I39: ='Capitalised OH'!I27*(1+$I$15)*$I$11 -> 0 | J39: ='Capitalised OH'!J27*(1+$I$15)*$I$11 -> 8.50650301 | K39: ='Capitalised OH'!K27*(1+$I$15)*$I$11 -> 8.583368496 | L39: ='Capitalised OH'!L27*(1+$I$15)*$I$11 -> 8.698874609 | M39: ='Capitalised OH'!M27*(1+$I$15)*$I$11 -> 8.801355502 | N39: ='Capitalised OH'!N27*(1+$I$15)*$I$11 -> 8.9040962 | P39: =SUM(J39:N39) -> 43.49419782
A40: =IF(SUM($H40:$P40)>0,1,0) -> 0 | D40: Check - Flag | I40: =IF(ROUND(I37-I39,4)=0,0,1) -> 0 | J40: 0 | K40: 0 | L40: 0 | M40: 0 | N40: 0 | P40: 0
B42: End

Sheet SCS CapCon
A1: =IF(SUM($A2:$A34)>0,1,0) -> 0 | B1: Consolidated Capital Expenditure Forecast - SCS
B3: Capital Contribution Forecasts - SCS
C5: Direct Costs including Cost Escalation
D7: Forecast inflation | E7: Per cent | F7: Nominal | G7: End_Year | I7: ='Total by category'!$I$22 -> 0.02
C9: Ref. | D9: Regulatory Asset Class | E9: Unit | F9: Basis | G9: Timing | I9: RY19 | J9: RY20 | K9: RY21 | L9: RY22 | M9: RY23 | N9: RY24 | P9: Total FY20 to FY24
C10: =N(C9)+1 -> 1 | D10: Substations | E10: Dollars | F10: Real $2019 | G10: End_Year | I10: ='Capital Contributions'!I8*Escalation!I$56*(1+$I$7) -> 0 | J10: ='Capital Contributions'!J8*Escalation!J$56*(1+$I$7) -> 0 | K10: ='Capital Contributions'!K8*Escalation!K$56*(1+$I$7) -> 0 | L10: ='Capital Contributions'!L8*Escalation!L$56*(1+$I$7) -> 0 | M10: ='Capital Contributions'!M8*Escalation!M$56*(1+$I$7) -> 0 | N10: ='Capital Contributions'!N8*Escalation!N$56*(1+$I$7) -> 0 | P10: =SUM(J10:N10) -> 0
C11: =N(C10)+1 -> 2 | D11: Distribution Lines | E11: Dollars | F11: Real $2019 | G11: End_Year | I11: ='Capital Contributions'!I9*Escalation!I$56*(1+$I$7) -> 6.100202177 | J11: ='Capital Contributions'!J9*Escalation!J$56*(1+$I$7) -> 5.956531725 | K11: ='Capital Contributions'!K9*Escalation!K$56*(1+$I$7) -> 6.021359183 | L11: ='Capital Contributions'!L9*Escalation!L$56*(1+$I$7) -> 6.188727045 | M11: ='Capital Contributions'!M9*Escalation!M$56*(1+$I$7) -> 6.042707843 | N11: ='Capital Contributions'!N9*Escalation!N$56*(1+$I$7) -> 6.08203016 | P11: =SUM(J11:N11) -> 30.29135596
C12: 3 | D12: Transmission Lines | E12: Dollars | F12: Real $2019 | G12: End_Year | I12: ='Capital Contributions'!I10*Escalation!I$56*(1+$I$7) -> 0 | J12: ='Capital Contributions'!J10*Escalation!J$56*(1+$I$7) -> 0 | K12: ='Capital Contributions'!K10*Escalation!K$56*(1+$I$7) -> 0 | L12: ='Capital Contributions'!L10*Escalation!L$56*(1+$I$7) -> 0 | M12: ='Capital Contributions'!M10*Escalation!M$56*(1+$I$7) -> 0 | N12: ='Capital Contributions'!N10*Escalation!N$56*(1+$I$7) -> 0 | P12: 0
C13: 4 | D13: LV Services | E13: Dollars | F13: Real $2019 | G13: End_Year | I13: ='Capital Contributions'!I11*Escalation!I$56*(1+$I$7) -> 0.1089779812 | J13: ='Capital Contributions'!J11*Escalation!J$56*(1+$I$7) -> 0.07307631535 | K13: ='Capital Contributions'!K11*Escalation!K$56*(1+$I$7) -> 0.08498451056 | L13: ='Capital Contributions'!L11*Escalation!L$56*(1+$I$7) -> 0.1181922216 | M13: ='Capital Contributions'!M11*Escalation!M$56*(1+$I$7) -> 0.07528853415 | N13: ='Capital Contributions'!N11*Escalation!N$56*(1+$I$7) -> 0.07651721475 | P13: 0.4280587964
C14: 5 | D14: Distribution Substations | E14: Dollars | F14: Real $2019 | G14: End_Year | I14: ='Capital Contributions'!I12*Escalation!I$56*(1+$I$7) -> 2.583190216 | J14: ='Capital Contributions'!J12*Escalation!J$56*(1+$I$7) -> 2.586626011 | K14: ='Capital Contributions'!K12*Escalation!K$56*(1+$I$7) -> 2.593350239 | L14: ='Capital Contributions'!L12*Escalation!L$56*(1+$I$7) -> 2.605959919 | M14: ='Capital Contributions'!M12*Escalation!M$56*(1+$I$7) -> 2.62182105 | N14: ='Capital Contributions'!N12*Escalation!N$56*(1+$I$7) -> 2.637457883 | P14: 13.0452151
C15: 6 | D15: Distribution Switchgear | E15: Dollars | F15: Real $2019 | G15: End_Year | I15: ='Capital Contributions'!I13*Escalation!I$56*(1+$I$7) -> 0.5634061809 | J15: ='Capital Contributions'!J13*Escalation!J$56*(1+$I$7) -> 0.5641555444 | K15: ='Capital Contributions'!K13*Escalation!K$56*(1+$I$7) -> 0.5656221307 | L15: ='Capital Contributions'!L13*Escalation!L$56*(1+$I$7) -> 0.5683723624 | M15: ='Capital Contributions'!M13*Escalation!M$56*(1+$I$7) -> 0.5718317512 | N15: ='Capital Contributions'!N13*Escalation!N$56*(1+$I$7) -> 0.5752422195 | P15: 2.845224008
C16: 7 | D16: Protection | E16: Dollars | F16: Real $2019 | G16: End_Year | I16: ='Capital Contributions'!I14*Escalation!I$56*(1+$I$7) -> 0 | J16: ='Capital Contributions'!J14*Escalation!J$56*(1+$I$7) -> 0 | K16: ='Capital Contributions'!K14*Escalation!K$56*(1+$I$7) -> 0 | L16: ='Capital Contributions'!L14*Escalation!L$56*(1+$I$7) -> 0 | M16: ='Capital Contributions'!M14*Escalation!M$56*(1+$I$7) -> 0 | N16: ='Capital Contributions'!N14*Escalation!N$56*(1+$I$7) -> 0 | P16: 0
C17: 8 | D17: SCADA | E17: Dollars | F17: Real $2019 | G17: End_Year | I17: ='Capital Contributions'!I15*Escalation!I$56*(1+$I$7) -> 0 | J17: ='Capital Contributions'!J15*Escalation!J$56*(1+$I$7) -> 0 | K17: ='Capital Contributions'!K15*Escalation!K$56*(1+$I$7) -> 0 | L17: ='Capital Contributions'!L15*Escalation!L$56*(1+$I$7) -> 0 | M17: ='Capital Contributions'!M15*Escalation!M$56*(1+$I$7) -> 0 | N17: ='Capital Contributions'!N15*Escalation!N$56*(1+$I$7) -> 0 | P17: 0
C18: 9 | D18: Communications | E18: Dollars | F18: Real $2019 | G18: End_Year | I18: ='Capital Contributions'!I16*Escalation!I$56*(1+$I$7) -> 0 | J18: ='Capital Contributions'!J16*Escalation!J$56*(1+$I$7) -> 0 | K18: ='Capital Contributions'!K16*Escalation!K$56*(1+$I$7) -> 0 | L18: ='Capital Contributions'!L16*Escalation!L$56*(1+$I$7) -> 0 | M18: ='Capital Contributions'!M16*Escalation!M$56*(1+$I$7) -> 0 | N18: ='Capital Contributions'!N16*Escalation!N$56*(1+$I$7) -> 0 | P18: 0
C19: 10 | D19: Land and Easements | E19: Dollars | F19: Real $2019 | G19: End_Year | I19: ='Capital Contributions'!I17*Escalation!I$56*(1+$I$7) -> 0 | J19: ='Capital Contributions'!J17*Escalation!J$56*(1+$I$7) -> 0 | K19: ='Capital Contributions'!K17*Escalation!K$56*(1+$I$7) -> 0 | L19: ='Capital Contributions'!L17*Escalation!L$56*(1+$I$7) -> 0 | M19: ='Capital Contributions'!M17*Escalation!M$56*(1+$I$7) -> 0 | N19: ='Capital Contributions'!N17*Escalation!N$56*(1+$I$7) -> 0 | P19: 0
C20: 11 | D20: Property | E20: Dollars | F20: Real $2019 | G20: End_Year | I20: ='Capital Contributions'!I18*Escalation!I$56*(1+$I$7) -> 0 | J20: ='Capital Contributions'!J18*Escalation!J$56*(1+$I$7) -> 0 | K20: ='Capital Contributions'!K18*Escalation!K$56*(1+$I$7) -> 0 | L20: ='Capital Contributions'!L18*Escalation!L$56*(1+$I$7) -> 0 | M20: ='Capital Contributions'!M18*Escalation!M$56*(1+$I$7) -> 0 | N20: ='Capital Contributions'!N18*Escalation!N$56*(1+$I$7) -> 0 | P20: 0
C21: 12 | D21: IT and Communications | E21: Dollars | F21: Real $2019 | G21: End_Year | I21: ='Capital Contributions'!I19*Escalation!I$56*(1+$I$7) -> 0 | J21: ='Capital Contributions'!J19*Escalation!J$56*(1+$I$7) -> 0 | K21: ='Capital Contributions'!K19*Escalation!K$56*(1+$I$7) -> 0 | L21: ='Capital Contributions'!L19*Escalation!L$56*(1+$I$7) -> 0 | M21: ='Capital Contributions'!M19*Escalation!M$56*(1+$I$7) -> 0 | N21: ='Capital Contributions'!N19*Escalation!N$56*(1+$I$7) -> 0 | P21: 0
C22: 13 | D22: Motor Vehicles | E22: Dollars | F22: Real $2019 | G22: End_Year | I22: ='Capital Contributions'!I20*Escalation!I$56*(1+$I$7) -> 0 | J22: ='Capital Contributions'!J20*Escalation!J$56*(1+$I$7) -> 0 | K22: ='Capital Contributions'!K20*Escalation!K$56*(1+$I$7) -> 0 | L22: ='Capital Contributions'!L20*Escalation!L$56*(1+$I$7) -> 0 | M22: ='Capital Contributions'!M20*Escalation!M$56*(1+$I$7) -> 0 | N22: ='Capital Contributions'!N20*Escalation!N$56*(1+$I$7) -> 0 | P22: 0
C23: 14 | D23: Plant and Equipment | E23: Dollars | F23: Real $2019 | G23: End_Year | I23: ='Capital Contributions'!I21*Escalation!I$56*(1+$I$7) -> 0 | J23: ='Capital Contributions'!J21*Escalation!J$56*(1+$I$7) -> 0 | K23: ='Capital Contributions'!K21*Escalation!K$56*(1+$I$7) -> 0 | L23: ='Capital Contributions'!L21*Escalation!L$56*(1+$I$7) -> 0 | M23: ='Capital Contributions'!M21*Escalation!M$56*(1+$I$7) -> 0 | N23: ='Capital Contributions'!N21*Escalation!N$56*(1+$I$7) -> 0 | P23: 0
C24: 15 | D24: Property Leases | E24: Dollars | F24: Real $2019 | G24: End_Year | I24: ='Capital Contributions'!I22*Escalation!I$56*(1+$I$7) -> 0 | J24: ='Capital Contributions'!J22*Escalation!J$56*(1+$I$7) -> 0 | K24: ='Capital Contributions'!K22*Escalation!K$56*(1+$I$7) -> 0 | L24: ='Capital Contributions'!L22*Escalation!L$56*(1+$I$7) -> 0 | M24: ='Capital Contributions'!M22*Escalation!M$56*(1+$I$7) -> 0 | N24: ='Capital Contributions'!N22*Escalation!N$56*(1+$I$7) -> 0 | P24: =SUM(J24:N24) -> 0
C25: 16 | D25: Fleet Leases | E25: Dollars | F25: Real $2019 | G25: End_Year | I25: ='Capital Contributions'!I23*Escalation!I$56*(1+$I$7) -> 0 | J25: ='Capital Contributions'!J23*Escalation!J$56*(1+$I$7) -> 0 | K25: ='Capital Contributions'!K23*Escalation!K$56*(1+$I$7) -> 0 | L25: ='Capital Contributions'!L23*Escalation!L$56*(1+$I$7) -> 0 | M25: ='Capital Contributions'!M23*Escalation!M$56*(1+$I$7) -> 0 | N25: ='Capital Contributions'!N23*Escalation!N$56*(1+$I$7) -> 0 | P25: 0
C26: 17 | D26: Buildings | E26: Dollars | F26: Real $2019 | G26: End_Year | I26: ='Capital Contributions'!I24*Escalation!I$56*(1+$I$7) -> 0 | J26: ='Capital Contributions'!J24*Escalation!J$56*(1+$I$7) -> 0 | K26: ='Capital Contributions'!K24*Escalation!K$56*(1+$I$7) -> 0 | L26: ='Capital Contributions'!L24*Escalation!L$56*(1+$I$7) -> 0 | M26: ='Capital Contributions'!M24*Escalation!M$56*(1+$I$7) -> 0 | N26: ='Capital Contributions'!N24*Escalation!N$56*(1+$I$7) -> 0 | P26: =SUM(J26:N26) -> 0
C27: 18 | D27: In-house Software | E27: Dollars | F27: Real $2019 | G27: End_Year | I27: ='Capital Contributions'!I25*Escalation!I$56*(1+$I$7) -> 0 | J27: ='Capital Contributions'!J25*Escalation!J$56*(1+$I$7) -> 0 | K27: ='Capital Contributions'!K25*Escalation!K$56*(1+$I$7) -> 0 | L27: ='Capital Contributions'!L25*Escalation!L$56*(1+$I$7) -> 0 | M27: ='Capital Contributions'!M25*Escalation!M$56*(1+$I$7) -> 0 | N27: ='Capital Contributions'!N25*Escalation!N$56*(1+$I$7) -> 0 | P27: 0
D29: Total | E29: =E10 -> Dollars | F29: Real $2019 | G29: End_Year | I29: =SUM(I10:I27) -> 9.355776555 | J29: =SUM(J10:J27) -> 9.180389596 | K29: 9.265316063 | L29: 9.481251547 | M29: 9.311649178 | N29: 9.371247477 | P29: 46.60985386
D31: Check - Value | E31: Dollars | F31: Real $2019 | G31: End_Year | I31: ='Capital Contributions'!I27*Escalation!I$56*(1+$I$7) -> 9.355776555 | J31: ='Capital Contributions'!J27*Escalation!J$56*(1+$I$7) -> 9.180389596 | K31: ='Capital Contributions'!K27*Escalation!K$56*(1+$I$7) -> 9.265316063 | L31: ='Capital Contributions'!L27*Escalation!L$56*(1+$I$7) -> 9.481251547 | M31: ='Capital Contributions'!M27*Escalation!M$56*(1+$I$7) -> 9.311649178 | N31: ='Capital Contributions'!N27*Escalation!N$56*(1+$I$7) -> 9.371247477 | P31: =SUM(J31:N31) -> 46.60985386
A32: =IF(SUM($H32:$P32)>0,1,0) -> 0 | D32: Check - Flag | I32: =IF(ROUND(I29-I31,4)=0,0,1) -> 0 | J32: 0 | K32: 0 | L32: 0 | M32: 0 | N32: 0 | P32: 0
B34: End

Sheet Augex
A1: =IF(SUM($A2:$A34)>0,1,0) -> 0 | B1: Augmentation Expenditure
B3: Direct Capex Forecasts
C5: Direct Costs (Excluding Capitalised Overheads and Cost Escalation)
C7: Ref. | D7: Regulatory Asset Class | E7: Unit | F7: Basis | G7: Timing | I7: RY19 | J7: RY20 | K7: RY21 | L7: RY22 | M7: RY23 | N7: RY24 | P7: Total FY20 to FY24
C8: =N(C7)+1 -> 1 | D8: ='SCS total'!$D$10 -> Substations | E8: Dollars | F8: Real $2018 | G8: End_Year | I8: 1.999999 | J8: 2.1 | K8: 0.5 | L8: 0.7 | M8: 1.85 | N8: 0 | P8: =SUM(J8:N8) -> 5.15
C9: =N(C8)+1 -> 2 | D9: ='SCS total'!$D$11 -> Distribution Lines | E9: Dollars | F9: Real $2018 | G9: End_Year | I9: 0.92003 | J9: 1.5 | K9: 1.5 | L9: 1.5 | M9: 1.5 | N9: 1.5 | P9: 7.5
C10: 3 | D10: ='SCS total'!$D$12 -> Transmission Lines | E10: Dollars | F10: Real $2018 | G10: End_Year | I10: 0 | J10: 0.8 | K10: 0.8 | L10: 0.8 | M10: 0.8 | N10: 0.8 | P10: 4
C11: 4 | D11: ='SCS total'!$D$13 -> LV Services | E11: Dollars | F11: Real $2018 | G11: End_Year | I11: 0 | J11: 0 | K11: 0 | L11: 0 | M11: 0 | N11: 0 | P11: 0
C12: 5 | D12: ='SCS total'!$D$14 -> Distribution Substations | E12: Dollars | F12: Real $2018 | G12: End_Year | I12: 0 | J12: 0.3 | K12: 0.3 | L12: 0.3 | M12: 0.3 | N12: 0.3 | P12: 1.5
C13: 6 | D13: ='SCS total'!$D$15 -> Distribution Switchgear | E13: Dollars | F13: Real $2018 | G13: End_Year | I13: 0.44897 | J13: 1.69427142 | K13: 1.680862375 | L13: 1.53263569 | M13: 1.493971843 | N13: 1.469706384 | P13: 7.871447712
C14: 7 | D14: ='SCS total'!$D$16 -> Protection | E14: Dollars | F14: Real $2018 | G14: End_Year | I14: 0 | J14: 0 | K14: 0 | L14: 0.1 | M14: 0 | N14: 0 | P14: 0.1
C15: 8 | D15: ='SCS total'!$D$17 -> SCADA | E15: Dollars | F15: Real $2018 | G15: End_Year | I15: 0 | J15: 0 | K15: 0 | L15: 0.05 | M15: 0 | N15: 0 | P15: 0.05
C16: 9 | D16: ='SCS total'!$D$18 -> Communications | E16: Dollars | F16: Real $2018 | G16: End_Year | I16: 0.548968 | J16: 0.53 | K16: 0.53 | L16: 0.58 | M16: 0.53 | N16: 0.53 | P16: 2.7
C17: 10 | D17: ='SCS total'!$D$19 -> Land and Easements | E17: Dollars | F17: Real $2018 | G17: End_Year | I17: 0 | J17: 0 | K17: 0 | L17: 0 | M17: 0 | N17: 0 | P17: 0
C18: 11 | D18: ='SCS total'!$D$20 -> Property | E18: Dollars | F18: Real $2018 | G18: End_Year | I18: 0 | J18: 0 | K18: 0 | L18: 0 | M18: 0 | N18: 0 | P18: 0
C19: 12 | D19: ='SCS total'!$D$21 -> IT and Communications | E19: Dollars | F19: Real $2018 | G19: End_Year | I19: 0 | J19: 0 | K19: 0 | L19: 0 | M19: 0 | N19: 0 | P19: 0
C20: 13 | D20: ='SCS total'!$D$22 -> Motor Vehicles | E20: Dollars | F20: Real $2018 | G20: End_Year | I20: 0 | J20: 0 | K20: 0 | L20: 0 | M20: 0 | N20: 0 | P20: 0
C21: 14 | D21: ='SCS total'!$D$23 -> Plant and Equipment | E21: Dollars | F21: Real $2018 | G21: End_Year | I21: 0 | J21: 4.241 | K21: 0 | L21: 0 | M21: 0 | N21: 1.686 | P21: 5.927
C22: 15 | D22: ='SCS total'!$D$24 -> Property Leases | E22: Dollars | F22: Real $2018 | G22: End_Year | I22: 0 | J22: 0 | K22: 0 | L22: 0 | M22: 0 | N22: 0 | P22: =SUM(J22:N22) -> 0
C23: 16 | D23: ='SCS total'!$D$25 -> Fleet Leases | E23: Dollars | F23: Real $2018 | G23: End_Year | I23: 0 | J23: 0 | K23: 0 | L23: 0 | M23: 0 | N23: 0 | P23: 0
C24: 17 | D24: ='SCS total'!$D$26 -> Buildings | E24: Dollars | F24: Real $2018 | G24: End_Year | I24: 0 | J24: 0 | K24: 0 | L24: 0 | M24: 0 | N24: 0 | P24: 0
C25: 18 | D25: ='SCS total'!$D$27 -> In-house Software | E25: Dollars | F25: Real $2018 | G25: End_Year | I25: 0 | J25: 0 | K25: 0 | L25: 0 | M25: 0 | N25: 0 | P25: 0
D27: Total | E27: =E8 -> Dollars | F27: Real $2018 | G27: End_Year | I27: =SUM(I8:I25) -> 3.917967 | J27: =SUM(J8:J25) -> 11.16527142 | K27: 5.310862375 | L27: 5.56263569 | M27: 6.473971843 | N27: 6.285706384 | P27: 34.79844771
D29: Check - Value | E29: Dollars | F29: Real $2018 | G29: End_Year | I29: 3.917967 | J29: 11.16527142 | K29: 5.310862375 | L29: 5.56263569 | M29: 6.473971843 | N29: 6.285706384 | P29: =SUM(J29:N29) -> 34.79844771
A30: =IF(SUM($H30:$P30)>0,1,0) -> 0 | D30: Check - Flag | I30: =IF(ROUND(I27-I29,4)=0,0,1) -> 0 | J30: 0 | K30: 0 | L30: 0 | M30: 0 | N30: 0 | P30: 0
B32: End

Sheet Repex
A1: =IF(SUM($A2:$A34)>0,1,0) -> 0 | B1: Replacement Expenditure
B3: Direct Capex Forecasts
C5: Direct Costs (Excluding Capitalised Overheads and Cost Escalation)
C7: Ref. | D7: Regulatory Asset Class | E7: Unit | F7: Basis | G7: Timing | I7: RY19 | J7: RY20 | K7: RY21 | L7: RY22 | M7: RY23 | N7: RY24 | P7: Total FY20 to FY24
C8: =N(C7)+1 -> 1 | D8: ='SCS total'!$D$10 -> Substations | E8: Dollars | F8: Real $2018 | G8: End_Year | I8: 10.862067 | J8: 8.125 | K8: 8.213 | L8: 4.53 | M8: 1.867 | N8: 0.15 | P8: =SUM(J8:N8) -> 22.885
C9: =N(C8)+1 -> 2 | D9: ='SCS total'!$D$11 -> Distribution Lines | E9: Dollars | F9: Real $2018 | G9: End_Year | I9: 7.667088535 | J9: 12.29493002 | K9: 13.94440713 | L9: 9.556622688 | M9: 7.18614944 | N9: 8.032143566 | P9: =SUM(J9:N9) -> 51.01425285
C10: 3 | D10: ='SCS total'!$D$12 -> Transmission Lines | E10: Dollars | F10: Real $2018 | G10: End_Year | I10: 0.23 | J10: 1.65 | K10: 1.468 | L10: 1.468 | M10: 1.468 | N10: 1.439 | P10: 7.493
C11: 4 | D11: ='SCS total'!$D$13 -> LV Services | E11: Dollars | F11: Real $2018 | G11: End_Year | I11: 0.05879562188 | J11: 0.076 | K11: 0.076 | L11: 0.076 | M11: 0.076 | N11: 0.076 | P11: 0.38
C12: 5 | D12: ='SCS total'!$D$14 -> Distribution Substations | E12: Dollars | F12: Real $2018 | G12: End_Year | I12: 3.617548905 | J12: 2.921 | K12: 3.164 | L12: 3.392 | M12: 3.568 | N12: 3.644 | P12: 16.689
C13: 6 | D13: ='SCS total'!$D$15 -> Distribution Switchgear | E13: Dollars | F13: Real $2018 | G13: End_Year | I13: 2.879258424 | J13: 2.162 | K13: 2.225 | L13: 2.293 | M13: 2.363 | N13: 2.433 | P13: 11.476
C14: 7 | D14: ='SCS total'!$D$16 -> Protection | E14: Dollars | F14: Real $2018 | G14: End_Year | I14: 2.449417 | J14: 3.196 | K14: 3.383 | L14: 1.17 | M14: 1.079 | N14: 0.76 | P14: 9.588
C15: 8 | D15: ='SCS total'!$D$17 -> SCADA | E15: Dollars | F15: Real $2018 | G15: End_Year | I15: 1.157052 | J15: 0.881 | K15: 1.053 | L15: 0.552 | M15: 0.291 | N15: 0.173 | P15: 2.95
C16: 9 | D16: ='SCS total'!$D$18 -> Communications | E16: Dollars | F16: Real $2018 | G16: End_Year | I16: 1.236729 | J16: 1.831 | K16: 1.94 | L16: 1.418 | M16: 1.037 | N16: 0.671 | P16: 6.897
C17: 10 | D17: ='SCS total'!$D$19 -> Land and Easements | E17: Dollars | F17: Real $2018 | G17: End_Year | I17: 0 | J17: 0 | K17: 0 | L17: 0 | M17: 0 | N17: 0 | P17: 0
C18: 11 | D18: ='SCS total'!$D$20 -> Property | E18: Dollars | F18: Real $2018 | G18: End_Year | I18: 0 | J18: 0.0245 | K18: 0.13565 | L18: 0.1642 | M18: 0.0421 | N18: 0.02595 | P18: 0.3924
C19: 12 | D19: ='SCS total'!$D$21 -> IT and Communications | E19: Dollars | F19: Real $2018 | G19: End_Year | I19: 0 | J19: 0 | K19: 0.6 | L19: 5.9 | M19: 0.8 | N19: 0 | P19: 7.3
C20: 13 | D20: ='SCS total'!$D$22 -> Motor Vehicles | E20: Dollars | F20: Real $2018 | G20: End_Year | I20: 0 | J20: 0 | K20: 0 | L20: 0 | M20: 0 | N20: 0 | P20: 0
C21: 14 | D21: ='SCS total'!$D$23 -> Plant and Equipment | E21: Dollars | F21: Real $2018 | G21: End_Year | I21: 0 | J21: 0 | K21: 0 | L21: 0 | M21: 0 | N21: 0 | P21: 0
C22: 15 | D22: ='SCS total'!$D$24 -> Property Leases | E22: Dollars | F22: Real $2018 | G22: End_Year | I22: 0 | J22: 0 | K22: 0 | L22: 0 | M22: 0 | N22: 0 | P22: =SUM(J22:N22) -> 0
C23: 16 | D23: ='SCS total'!$D$25 -> Fleet Leases | E23: Dollars | F23: Real $2018 | G23: End_Year | I23: 0 | J23: 0 | K23: 0 | L23: 0 | M23: 0 | N23: 0 | P23: 0
C24: 17 | D24: ='SCS total'!$D$26 -> Buildings | E24: Dollars | F24: Real $2018 | G24: End_Year | I24: 0 | J24: 0 | K24: 0 | L24: 0 | M24: 0 | N24: 0 | P24: 0
C25: 18 | D25: ='SCS total'!$D$27 -> In-house Software | E25: Dollars | F25: Real $2018 | G25: End_Year | I25: 0 | J25: 0 | K25: 0 | L25: 0 | M25: 0 | N25: 0 | P25: 0
D27: Total | E27: =E8 -> Dollars | F27: Real $2018 | G27: End_Year | I27: =SUM(I8:I25) -> 30.15795649 | J27: =SUM(J8:J25) -> 33.16143002 | K27: 36.20205713 | L27: 30.51982269 | M27: 19.77724944 | N27: 17.40409357 | P27: 137.0646528
D29: Check - Value | E29: Dollars | F29: Real $2018 | G29: End_Year | I29: 30.15795649 | J29: 33.16143002 | K29: 36.20205713 | L29: 30.51982269 | M29: 19.77724944 | N29: 17.40409357 | P29: =SUM(J29:N29) -> 137.0646528
A30: =IF(SUM($H30:$P30)>0,1,0) -> 0 | D30: Check - Flag | I30: =IF(ROUND(I27-I29,4)=0,0,1) -> 0 | J30: =IF(ROUND(J27-J29,4)=0,0,1) -> 0 | K30: 0 | L30: 0 | M30: 0 | N30: 0 | P30: 0
B32: End

Sheet Connections
B1: Connection Capital Expenditure
B3: Direct Capex Forecasts
C5: Direct Costs (Excluding Capitalised Overheads and Cost Escalation)
C7: Ref. | D7: Regulatory Asset Class | E7: Unit | F7: Basis | G7: Timing | I7: RY19 | J7: RY20 | K7: RY21 | L7: RY22 | M7: RY23 | N7: RY24 | P7: Total FY20 to FY24
C8: =N(C7)+1 -> 1 | D8: ='SCS total'!$D$10 -> Substations | E8: Dollars | F8: Real $2018 | G8: End_Year | I8: ='[3]Gross connection capex'!J8 -> 0 | J8: ='[3]Gross connection capex'!K8 -> 0 | K8: ='[3]Gross connection capex'!L8 -> 0 | L8: ='[3]Gross connection capex'!M8 -> 0 | M8: ='[3]Gross connection capex'!N8 -> 0 | N8: ='[3]Gross connection capex'!O8 -> 0 | P8: =SUM(J8:N8) -> 0
C9: =N(C8)+1 -> 2 | D9: ='SCS total'!$D$11 -> Distribution Lines | E9: Dollars | F9: Real $2018 | G9: End_Year | I9: ='[3]Gross connection capex'!J9 -> 7.774525439 | J9: ='[3]Gross connection capex'!K9 -> 7.032008974 | K9: ='[3]Gross connection capex'!L9 -> 7.272764313 | L9: ='[3]Gross connection capex'!M9 -> 7.943279181 | M9: ='[3]Gross connection capex'!N9 -> 7.056759523 | N9: ='[3]Gross connection capex'!O9 -> 7.072509872 | P9: 36.37732186
C10: 3 | D10: ='SCS total'!$D$12 -> Transmission Lines | E10: Dollars | F10: Real $2018 | G10: End_Year | I10: ='[3]Gross connection capex'!J10 -> 0 | J10: ='[3]Gross connection capex'!K10 -> 0 | K10: ='[3]Gross connection capex'!L10 -> 0 | L10: ='[3]Gross connection capex'!M10 -> 0 | M10: ='[3]Gross connection capex'!N10 -> 0 | N10: ='[3]Gross connection capex'!O10 -> 0 | P10: 0
C11: 4 | D11: ='SCS total'!$D$13 -> LV Services | E11: Dollars | F11: Real $2018 | G11: End_Year | I11: ='[3]Gross connection capex'!J11 -> 0.5338212707 | J11: ='[3]Gross connection capex'!K11 -> 0.357483914 | K11: ='[3]Gross connection capex'!L11 -> 0.414659966 | L11: ='[3]Gross connection capex'!M11 -> 0.5738979427 | M11: ='[3]Gross connection capex'!N11 -> 0.3633618259 | N11: ='[3]Gross connection capex'!O11 -> 0.3671023153 | P11: 2.076505964
C12: 5 | D12: ='SCS total'!$D$14 -> Distribution Substations | E12: Dollars | F12: Real $2018 | G12: End_Year | I12: ='[3]Gross connection capex'!J12 -> 2.530716515 | J12: ='[3]Gross connection capex'!K12 -> 2.530716515 | K12: ='[3]Gross connection capex'!L12 -> 2.530716515 | L12: ='[3]Gross connection capex'!M12 -> 2.530716515 | M12: ='[3]Gross connection capex'!N12 -> 2.530716515 | N12: ='[3]Gross connection capex'!O12 -> 2.530716515 | P12: 12.65358257
C13: 6 | D13: ='SCS total'!$D$15 -> Distribution Switchgear | E13: Dollars | F13: Real $2018 | G13: End_Year | I13: ='[3]Gross connection capex'!J13 -> 0.551961415 | J13: ='[3]Gross connection capex'!K13 -> 0.551961415 | K13: ='[3]Gross connection capex'!L13 -> 0.551961415 | L13: ='[3]Gross connection capex'!M13 -> 0.551961415 | M13: ='[3]Gross connection capex'!N13 -> 0.551961415 | N13: ='[3]Gross connection capex'!O13 -> 0.551961415 | P13: 2.759807075
C14: 7 | D14: ='SCS total'!$D$16 -> Protection | E14: Dollars | F14: Real $2018 | G14: End_Year | I14: ='[3]Gross connection capex'!J14 -> 0 | J14: ='[3]Gross connection capex'!K14 -> 0 | K14: ='[3]Gross connection capex'!L14 -> 0 | L14: ='[3]Gross connection capex'!M14 -> 0 | M14: ='[3]Gross connection capex'!N14 -> 0 | N14: ='[3]Gross connection capex'!O14 -> 0 | P14: 0
C15: 8 | D15: ='SCS total'!$D$17 -> SCADA | E15: Dollars | F15: Real $2018 | G15: End_Year | I15: ='[3]Gross connection capex'!J15 -> 0 | J15: ='[3]Gross connection capex'!K15 -> 0 | K15: ='[3]Gross connection capex'!L15 -> 0 | L15: ='[3]Gross connection capex'!M15 -> 0 | M15: ='[3]Gross connection capex'!N15 -> 0 | N15: ='[3]Gross connection capex'!O15 -> 0 | P15: 0
C16: 9 | D16: ='SCS total'!$D$18 -> Communications | E16: Dollars | F16: Real $2018 | G16: End_Year | I16: ='[3]Gross connection capex'!J16 -> 0 | J16: ='[3]Gross connection capex'!K16 -> 0 | K16: ='[3]Gross connection capex'!L16 -> 0 | L16: ='[3]Gross connection capex'!M16 -> 0 | M16: ='[3]Gross connection capex'!N16 -> 0 | N16: ='[3]Gross connection capex'!O16 -> 0 | P16: 0
C17: 10 | D17: ='SCS total'!$D$19 -> Land and Easements | E17: Dollars | F17: Real $2018 | G17: End_Year | I17: ='[3]Gross connection capex'!J17 -> 0 | J17: ='[3]Gross connection capex'!K17 -> 0 | K17: ='[3]Gross connection capex'!L17 -> 0 | L17: ='[3]Gross connection capex'!M17 -> 0 | M17: ='[3]Gross connection capex'!N17 -> 0 | N17: ='[3]Gross connection capex'!O17 -> 0 | P17: 0
C18: 11 | D18: ='SCS total'!$D$20 -> Property | E18: Dollars | F18: Real $2018 | G18: End_Year | I18: ='[3]Gross connection capex'!J18 -> 0 | J18: ='[3]Gross connection capex'!K18 -> 0 | K18: ='[3]Gross connection capex'!L18 -> 0 | L18: ='[3]Gross connection capex'!M18 -> 0 | M18: ='[3]Gross connection capex'!N18 -> 0 | N18: ='[3]Gross connection capex'!O18 -> 0 | P18: 0
C19: 12 | D19: ='SCS total'!$D$21 -> IT and Communications | E19: Dollars | F19: Real $2018 | G19: End_Year | I19: ='[3]Gross connection capex'!J19 -> 0 | J19: ='[3]Gross connection capex'!K19 -> 0 | K19: ='[3]Gross connection capex'!L19 -> 0 | L19: ='[3]Gross connection capex'!M19 -> 0 | M19: ='[3]Gross connection capex'!N19 -> 0 | N19: ='[3]Gross connection capex'!O19 -> 0 | P19: 0
C20: 13 | D20: ='SCS total'!$D$22 -> Motor Vehicles | E20: Dollars | F20: Real $2018 | G20: End_Year | I20: ='[3]Gross connection capex'!J20 -> 0 | J20: ='[3]Gross connection capex'!K20 -> 0 | K20: ='[3]Gross connection capex'!L20 -> 0 | L20: ='[3]Gross connection capex'!M20 -> 0 | M20: ='[3]Gross connection capex'!N20 -> 0 | N20: ='[3]Gross connection capex'!O20 -> 0 | P20: 0
C21: 14 | D21: ='SCS total'!$D$23 -> Plant and Equipment | E21: Dollars | F21: Real $2018 | G21: End_Year | I21: ='[3]Gross connection capex'!J21 -> 0 | J21: ='[3]Gross connection capex'!K21 -> 0 | K21: ='[3]Gross connection capex'!L21 -> 0 | L21: ='[3]Gross connection capex'!M21 -> 0 | M21: ='[3]Gross connection capex'!N21 -> 0 | N21: ='[3]Gross connection capex'!O21 -> 0 | P21: 0
C22: 15 | D22: ='SCS total'!$D$24 -> Property Leases | E22: Dollars | F22: Real $2018 | G22: End_Year | I22: 0 | J22: 0 | K22: 0 | L22: 0 | M22: 0 | N22: 0 | P22: 0
C23: 16 | D23: ='SCS total'!$D$25 -> Fleet Leases | E23: Dollars | F23: Real $2018 | G23: End_Year | I23: 0 | J23: 0 | K23: 0 | L23: 0 | M23: 0 | N23: 0 | P23: 0
C24: 17 | D24: ='SCS total'!$D$26 -> Buildings | E24: Dollars | F24: Real $2018 | G24: End_Year | I24: 0 | J24: 0 | K24: 0 | L24: 0 | M24: 0 | N24: 0 | P24: 0
C25: 18 | D25: ='SCS total'!$D$27 -> In-house Software | E25: Dollars | F25: Real $2018 | G25: End_Year | I25: 0 | J25: 0 | K25: 0 | L25: 0 | M25: 0 | N25: 0 | P25: 0
D27: Total | E27: =E8 -> Dollars | F27: Real $2018 | G27: End_Year | I27: =SUM(I8:I25) -> 11.39102464 | J27: =SUM(J8:J25) -> 10.47217082 | K27: 10.77010221 | L27: 11.59985505 | M27: 10.50279928 | N27: 10.52229012 | P27: 53.86721748
B29: End

Sheet Non-Network
A1: =IF(SUM($A2:$A37)>0,1,0) -> 0 | B1: Non-Network Capital Expenditure
B3: Direct Capex Forecasts
C5: Direct Costs (Excluding Capitalised Overheads and Cost Escalation)
C7: Ref. | D7: Regulatory Asset Class | E7: Unit | F7: Basis | G7: Timing | I7: RY19 | J7: RY20 | K7: RY21 | L7: RY22 | M7: RY23 | N7: RY24 | P7: Total FY20 to FY24
C8: =N(C7)+1 -> 1 | D8: ='SCS total'!$D$10 -> Substations | E8: Dollars | F8: Real $2018 | G8: End_Year | I8: 0 | J8: 0 | K8: 0 | L8: 0 | M8: 0 | N8: 0 | P8: =SUM(J8:N8) -> 0
C9: =N(C8)+1 -> 2 | D9: ='SCS total'!$D$11 -> Distribution Lines | E9: Dollars | F9: Real $2018 | G9: End_Year | I9: 0 | J9: 0 | K9: 0 | L9: 0 | M9: 0 | N9: 0 | P9: 0
C10: 3 | D10: ='SCS total'!$D$12 -> Transmission Lines | E10: Dollars | F10: Real $2018 | G10: End_Year | I10: 0 | J10: 0 | K10: 0 | L10: 0 | M10: 0 | N10: 0 | P10: 0
C11: 4 | D11: ='SCS total'!$D$13 -> LV Services | E11: Dollars | F11: Real $2018 | G11: End_Year | I11: 0 | J11: 0 | K11: 0 | L11: 0 | M11: 0 | N11: 0 | P11: 0
C12: 5 | D12: ='SCS total'!$D$14 -> Distribution Substations | E12: Dollars | F12: Real $2018 | G12: End_Year | I12: 0 | J12: 0 | K12: 0 | L12: 0 | M12: 0 | N12: 0 | P12: 0
C13: 6 | D13: ='SCS total'!$D$15 -> Distribution Switchgear | E13: Dollars | F13: Real $2018 | G13: End_Year | I13: 0 | J13: 0 | K13: 0 | L13: 0 | M13: 0 | N13: 0 | P13: 0
C14: 7 | D14: ='SCS total'!$D$16 -> Protection | E14: Dollars | F14: Real $2018 | G14: End_Year | I14: 0 | J14: 0 | K14: 0 | L14: 0 | M14: 0 | N14: 0 | P14: 0
C15: 8 | D15: ='SCS total'!$D$17 -> SCADA | E15: Dollars | F15: Real $2018 | G15: End_Year | I15: 0 | J15: 0 | K15: 0 | L15: 0 | M15: 0 | N15: 0 | P15: 0
C16: 9 | D16: ='SCS total'!$D$18 -> Communications | E16: Dollars | F16: Real $2018 | G16: End_Year | I16: 0 | J16: 0 | K16: 0 | L16: 0 | M16: 0 | N16: 0 | P16: 0
C17: 10 | D17: ='SCS total'!$D$19 -> Land and Easements | E17: Dollars | F17: Real $2018 | G17: End_Year | I17: 0 | J17: 0 | K17: 0 | L17: 0 | M17: 0 | N17: 0 | P17: 0
C18: 11 | D18: ='SCS total'!$D$20 -> Property | E18: Dollars | F18: Real $2018 | G18: End_Year | I18: 0 | J18: 1.67185 | K18: 0.571 | L18: 0.571 | M18: 0.571 | N18: 0.571 | P18: 3.95585
C19: 12 | D19: ='SCS total'!$D$21 -> IT and Communications | E19: Dollars | F19: Real $2018 | G19: End_Year | I19: 0 | J19: 0 | K19: 0 | L19: 0 | M19: 0 | N19: 0 | P19: 0
C20: 13 | D20: ='SCS total'!$D$22 -> Motor Vehicles | E20: Dollars | F20: Real $2018 | G20: End_Year | I20: 0 | J20: 0 | K20: 0 | L20: 0 | M20: 0 | N20: 0 | P20: 0
C21: 14 | D21: ='SCS total'!$D$23 -> Plant and Equipment | E21: Dollars | F21: Real $2018 | G21: End_Year | I21: 0.544 | J21: 1.019 | K21: 1.019 | L21: 1.019 | M21: 1.019 | N21: 1.019 | P21: 5.095
C22: 15 | D22: ='SCS total'!$D$24 -> Property Leases | E22: Dollars | F22: Real $2018 | G22: End_Year | I22: 0 | J22: 4.290107807 | K22: 0.05433860166 | L22: 14.77654315 | M22: 0.05433860166 | N22: 0.5026608524 | P22: =SUM(J22:N22) -> 19.67798901
C23: 16 | D23: ='SCS total'!$D$25 -> Fleet Leases | E23: Dollars | F23: Real $2018 | G23: End_Year | I23: 0 | J23: 12.96308284 | K23: 3.29215004 | L23: 2.888494639 | M23: 3.2468793 | N23: 2.644543207 | P23: 25.03515002
C24: 17 | D24: ='SCS total'!$D$26 -> Buildings | E24: Dollars | F24: Real $2018 | G24: End_Year | I24: 0 | J24: 0.41 | K24: 0.11 | L24: 0.11 | M24: 0.11 | N24: 0.11 | P24: 0.85
C25: 18 | D25: ='SCS total'!$D$27 -> In-house Software | E25: Dollars | F25: Real $2018 | G25: End_Year | I25: 0 | J25: 0 | K25: 0 | L25: 0 | M25: 0 | N25: 0 | P25: 0
D27: Total | E27: =E8 -> Dollars | F27: Real $2018 | G27: End_Year | I27: =SUM(I8:I25) -> 0.544 | J27: =SUM(J8:J25) -> 20.35404064 | K27: 5.046488641 | L27: 19.36503779 | M27: 5.001217901 | N27: 4.847204059 | P27: 54.61398903
D29: Check - Value | E29: Dollars | F29: Real $2018 | G29: End_Year | I29: 0.544 | J29: 20.35404064 | K29: 5.046488641 | L29: 19.36503779 | M29: 5.001217901 | N29: 4.847204059 | P29: =SUM(J29:N29) -> 54.61398903
A30: =IF(SUM($H30:$P30)>0,1,0) -> 0 | D30: Check - Flag | I30: =IF(ROUND(I27-I29,4)=0,0,1) -> 0 | J30: 0 | K30: 0 | L30: 0 | M30: 0 | N30: 0 | P30: 0
B32: End

Sheet IT
A1: =IF(SUM($A2:$A34)>0,1,0) -> 0 | B1: Information Technology Capital Expenditure
B3: Direct Capex Forecasts
C5: Direct Costs (Excluding Capitalised Overheads and Cost Escalation)
C7: Ref. | D7: Regulatory Asset Class | E7: Unit | F7: Basis | G7: Timing | I7: RY19 | J7: RY20 | K7: RY21 | L7: RY22 | M7: RY23 | N7: RY24 | P7: Total FY20 to FY24
C8: =N(C7)+1 -> 1 | D8: ='SCS total'!$D$10 -> Substations | E8: Dollars | F8: Real $2018 | G8: End_Year | I8: 0 | J8: 0 | K8: 0 | L8: 0 | M8: 0 | N8: 0 | P8: =SUM(J8:N8) -> 0
C9: =N(C8)+1 -> 2 | D9: ='SCS total'!$D$11 -> Distribution Lines | E9: Dollars | F9: Real $2018 | G9: End_Year | I9: 0 | J9: 0 | K9: 0 | L9: 0 | M9: 0 | N9: 0 | P9: 0
C10: 3 | D10: ='SCS total'!$D$12 -> Transmission Lines | E10: Dollars | F10: Real $2018 | G10: End_Year | I10: 0 | J10: 0 | K10: 0 | L10: 0 | M10: 0 | N10: 0 | P10: 0
C11: 4 | D11: ='SCS total'!$D$13 -> LV Services | E11: Dollars | F11: Real $2018 | G11: End_Year | I11: 0 | J11: 0 | K11: 0 | L11: 0 | M11: 0 | N11: 0 | P11: 0
C12: 5 | D12: ='SCS total'!$D$14 -> Distribution Substations | E12: Dollars | F12: Real $2018 | G12: End_Year | I12: 0 | J12: 0 | K12: 0 | L12: 0 | M12: 0 | N12: 0 | P12: 0
C13: 6 | D13: ='SCS total'!$D$15 -> Distribution Switchgear | E13: Dollars | F13: Real $2018 | G13: End_Year | I13: 0 | J13: 0 | K13: 0 | L13: 0 | M13: 0 | N13: 0 | P13: 0
C14: 7 | D14: ='SCS total'!$D$16 -> Protection | E14: Dollars | F14: Real $2018 | G14: End_Year | I14: 0 | J14: 0 | K14: 0 | L14: 0 | M14: 0 | N14: 0 | P14: 0
C15: 8 | D15: ='SCS total'!$D$17 -> SCADA | E15: Dollars | F15: Real $2018 | G15: End_Year | I15: 0 | J15: 0 | K15: 0 | L15: 0 | M15: 0 | N15: 0 | P15: 0
C16: 9 | D16: ='SCS total'!$D$18 -> Communications | E16: Dollars | F16: Real $2018 | G16: End_Year | I16: 0 | J16: 0 | K16: 0 | L16: 0 | M16: 0 | N16: 0 | P16: 0
C17: 10 | D17: ='SCS total'!$D$19 -> Land and Easements | E17: Dollars | F17: Real $2018 | G17: End_Year | I17: 0 | J17: 0 | K17: 0 | L17: 0 | M17: 0 | N17: 0 | P17: 0
C18: 11 | D18: ='SCS total'!$D$20 -> Property | E18: Dollars | F18: Real $2018 | G18: End_Year | I18: 0 | J18: 0 | K18: 0 | L18: 0 | M18: 0 | N18: 0 | P18: 0
C19: 12 | D19: ='SCS total'!$D$21 -> IT and Communications | E19: Dollars | F19: Real $2018 | G19: End_Year | I19: 4.676094245 | J19: 6.25922 | K19: 5.565306 | L19: 5.766596 | M19: 5.490762 | N19: 5.438474 | P19: 28.520358
C20: 13 | D20: ='SCS total'!$D$22 -> Motor Vehicles | E20: Dollars | F20: Real $2018 | G20: End_Year | I20: 0 | J20: 0 | K20: 0 | L20: 0 | M20: 0 | N20: 0 | P20: 0
C21: 14 | D21: ='SCS total'!$D$23 -> Plant and Equipment | E21: Dollars | F21: Real $2018 | G21: End_Year | I21: 0 | J21: 0 | K21: 0 | L21: 0 | M21: 0 | N21: 0 | P21: 0
C22: 15 | D22: ='SCS total'!$D$24 -> Property Leases | E22: Dollars | F22: Real $2018 | G22: End_Year | I22: 0 | J22: 0 | K22: 0 | L22: 0 | M22: 0 | N22: 0 | P22: =SUM(J22:N22) -> 0
C23: 16 | D23: ='SCS total'!$D$25 -> Fleet Leases | E23: Dollars | F23: Real $2018 | G23: End_Year | I23: 0 | J23: 0 | K23: 0 | L23: 0 | M23: 0 | N23: 0 | P23: 0
C24: 17 | D24: ='SCS total'!$D$26 -> Buildings | E24: Dollars | F24: Real $2018 | G24: End_Year | I24: 0 | J24: 0 | K24: 0 | L24: 0 | M24: 0 | N24: 0 | P24: 0
C25: 18 | D25: ='SCS total'!$D$27 -> In-house Software | E25: Dollars | F25: Real $2018 | G25: End_Year | I25: 0 | J25: 0.21075 | K25: 0.728914 | L25: 0.23885 | M25: 0.89358 | N25: 0.546264 | P25: 2.618358
D27: Total | E27: =E8 -> Dollars | F27: Real $2018 | G27: End_Year | I27: =SUM(I8:I25) -> 4.676094245 | J27: =SUM(J8:J25) -> 6.46997 | K27: 6.29422 | L27: 6.005446 | M27: 6.384342 | N27: 5.984738 | P27: 31.138716
D29: Check - Value | E29: Dollars | F29: Real $2018 | G29: End_Year | I29: 4.676094245 | J29: 6.46997 | K29: 6.29422 | L29: 6.005446 | M29: 6.384342 | N29: 5.984738 | P29: =SUM(J29:N29) -> 31.138716
A30: =IF(SUM($H30:$P30)>0,1,0) -> 0 | D30: Check - Flag | I30: =IF(ROUND(I27-I29,4)=0,0,1) -> 0 | J30: 0 | K30: 0 | L30: 0 | M30: 0 | N30: 0 | P30: 0
B32: End

Sheet Escalation
B1: Escalation on Direct Capex Forecasts - SCS
B3: Escalation Forecasts
C5: Cost Escalation on Direct Costs
C7: Ref. | D7: Regulatory Asset Class | E7: Unit | F7: Basis | G7: Timing | I7: RY19 | J7: RY20 | K7: RY21 | L7: RY22 | M7: RY23 | N7: RY24 | P7: Total FY20 to FY24
C8: =N(C7)+1 -> 1 | D8: ='SCS total'!$D$10 -> Substations | E8: Dollars | F8: Real $2018 | G8: End_Year | I8: =I32*I$56-I32 -> 0.009264734233 | J8: 0.02097486749 | K8: 0.0405701488 | L8: 0.04990063706 | M8: 0.05830406837 | N8: 0.003261517454 | P8: =SUM(J8:N8) -> 0.1730112392
C9: 2 | D9: ='SCS total'!$D$11 -> Distribution Lines | E9: Dollars | F9: Real $2018 | G9: End_Year | I9: =I33*I$56-I33 -> 0.01178553142 | J9: 0.04272296192 | K9: 0.1057774619 | L9: 0.1812824488 | M9: 0.2469399087 | N9: 0.3610424467 | P9: 0.937765228
C10: 3 | D10: ='SCS total'!$D$12 -> Transmission Lines | E10: Dollars | F10: Real $2018 | G10: End_Year | I10: =I34*I$56-I34 -> 0.0001656723635 | J10: 0.00502576287 | K10: 0.01056043814 | L10: 0.02163951144 | M10: 0.03557536375 | N10: 0.04868358386 | P10: 0.1214846601
C11: 4 | D11: ='SCS total'!$D$13 -> LV Services | E11: Dollars | F11: Real $2018 | G11: End_Year | I11: =I35*I$56-I35 -> 0.0004268706141 | J11: 0.0008892193306 | K11: 0.002284649126 | L11: 0.006200826264 | M11: 0.006891735792 | N11: 0.0096345729 | P11: 0.02590100341
C12: 5 | D12: ='SCS total'!$D$14 -> Distribution Substations | E12: Dollars | F12: Real $2018 | G12: End_Year | I12: =I36*I$56-I36 -> 0.004428685493 | J12: 0.0117986789 | K12: 0.02791306565 | L12: 0.05937237444 | M12: 0.100368901 | N12: 0.1407826728 | P12: 0.3402356928
C13: 6 | D13: ='SCS total'!$D$15 -> Distribution Switchgear | E13: Dollars | F13: Real $2018 | G13: End_Year | I13: =I37*I$56-I37 -> 0.002794957484 | J13: 0.009042748125 | K13: 0.02075686612 | L13: 0.04176766431 | M13: 0.06915758573 | N13: 0.09685984517 | P13: 0.2375847095
C14: 7 | D14: ='SCS total'!$D$16 -> Protection | E14: Dollars | F14: Real $2018 | G14: End_Year | I14: =I38*I$56-I38 -> 0.001764350885 | J14: 0.006556056381 | K14: 0.01575218793 | L14: 0.01211736311 | M14: 0.01692496362 | N14: 0.01652502176 | P14: 0.0678755928
C15: 8 | D15: ='SCS total'!$D$17 -> SCADA | E15: Dollars | F15: Real $2018 | G15: End_Year | I15: =I39*I$56-I39 -> 0.0008334414762 | J15: 0.001807223301 | K15: 0.004903060563 | L15: 0.005743820939 | M15: 0.004564563868 | N15: 0.003761616796 | P15: 0.02078028547
C16: 9 | D16: ='SCS total'!$D$18 -> Communications | E16: Dollars | F16: Real $2018 | G16: End_Year | I16: =I40*I$56-I40 -> 0.001286263663 | J16: 0.004843194341 | K16: 0.01150100626 | L16: 0.01906337913 | M16: 0.02457962743 | N16: 0.02611388308 | P16: 0.08610109023
C17: 10 | D17: ='SCS total'!$D$19 -> Land and Easements | E17: Dollars | F17: Real $2018 | G17: End_Year | I17: =I41*I$56-I41 -> 0 | J17: 0 | K17: 0 | L17: 0 | M17: 0 | N17: 0 | P17: 0
C18: 11 | D18: ='SCS total'!$D$20 -> Property | E18: Dollars | F18: Real $2018 | G18: End_Year | I18: =I42*I$56-I42 -> 0 | J18: 0.003479776671 | K18: 0.003290358734 | L18: 0.007014712881 | M18: 0.009616955696 | N18: 0.01297975229 | P18: 0.03638155627
C19: 12 | D19: ='SCS total'!$D$21 -> IT and Communications | E19: Dollars | F19: Real $2018 | G19: End_Year | I19: =I43*I$56-I43 -> 0.003368259068 | J19: 0.01283973693 | K19: 0.02870737769 | L19: 0.111313685 | M19: 0.09867554958 | N19: 0.1182511858 | P19: 0.369787535
C20: 13 | D20: ='SCS total'!$D$22 -> Motor Vehicles | E20: Dollars | F20: Real $2018 | G20: End_Year | I20: =I44*I$56-I44 -> 0 | J20: 0 | K20: 0 | L20: 0 | M20: 0 | N20: 0 | P20: 0
C21: 14 | D21: ='SCS total'!$D$23 -> Plant and Equipment | E21: Dollars | F21: Real $2018 | G21: End_Year | I21: =I45*I$56-I45 -> 0.0003918511554 | J21: 0.01079000518 | K21: 0.004744747117 | L21: 0.00972251418 | M21: 0.01598381643 | N21: 0.05881603141 | P21: 0.1000571143
C22: 15 | D22: ='SCS total'!$D$24 -> Property Leases | E22: Dollars | F22: Real $2018 | G22: End_Year | I22: =I46*I$56-I46 -> 0 | J22: 0.0088004345 | K22: 0.0002530156267 | L22: 0.1409864086 | M22: 0.0008523437037 | N22: 0.01092958096 | P22: =SUM(J22:N22) -> 0.1618217833
C23: 16 | D23: ='SCS total'!$D$25 -> Fleet Leases | E23: Dollars | F23: Real $2018 | G23: End_Year | I23: =I47*I$56-I47 -> 0 | J23: 0.02659158384 | K23: 0.01532916527 | L23: 0.027559794 | M23: 0.05092985545 | N23: 0.05750149217 | P23: 0.1779118907
C24: 17 | D24: ='SCS total'!$D$26 -> Buildings | E24: Dollars | F24: Real $2018 | G24: End_Year | I24: =I48*I$56-I48 -> 0 | J24: 0.0008410460313 | K24: 0.0005121905622 | L24: 0.001049535387 | M24: 0.001725436514 | N24: 0.002391779466 | P24: =SUM(J24:N24) -> 0.006519987961
C25: 18 | D25: ='SCS total'!$D$27 -> In-house Software | E25: Dollars | F25: Real $2018 | G25: End_Year | I25: =I49*I$56-I49 -> 0 | J25: 0.0004323181734 | K25: 0.003394026104 | L25: 0.002278922975 | M25: 0.01401650509 | N25: 0.0118776638 | P25: 0.03199943614
D27: Total | E27: =E8 -> Dollars | F27: Real $2018 | G27: End_Year | I27: =SUM(I8:I25) -> 0.03651061786 | J27: =SUM(J8:J25) -> 0.167435614 | K27: 0.2962497656 | L27: 0.6970135985 | M27: 0.7551071807 | N27: 0.9794126464 | P27: 2.895218805
B29: Workings - Total Direct Costs Requiring Escalation
C31: Ref. | D31: Regulatory Asset Class | E31: Unit | F31: Basis | G31: Timing | I31: RY19 | J31: RY20 | K31: RY21 | L31: RY22 | M31: RY23 | N31: RY24
C32: =N(C31)+1 -> 1 | D32: ='SCS total'!$D$10 -> Substations | E32: Dollars | F32: Real $2018 | G32: End_Year | I32: =Augex!I8+Repex!I8+Connections!I8+'Non-Network'!I8+IT!I8 -> 12.862066 | J32: =Augex!J8+Repex!J8+Connections!J8+'Non-Network'!J8+IT!J8 -> 10.225 | K32: =Augex!K8+Repex!K8+Connections!K8+'Non-Network'!K8+IT!K8 -> 8.713 | L32: =Augex!L8+Repex!L8+Connections!L8+'Non-Network'!L8+IT!L8 -> 5.23 | M32: =Augex!M8+Repex!M8+Connections!M8+'Non-Network'!M8+IT!M8 -> 3.717 | N32: =Augex!N8+Repex!N8+Connections!N8+'Non-Network'!N8+IT!N8 -> 0.15
C33: 2 | D33: ='SCS total'!$D$11 -> Distribution Lines | E33: Dollars | F33: Real $2018 | G33: End_Year | I33: =Augex!I9+Repex!I9+Connections!I9+'Non-Network'!I9+IT!I9 -> 16.36164397 | J33: =Augex!J9+Repex!J9+Connections!J9+'Non-Network'!J9+IT!J9 -> 20.826939 | K33: =Augex!K9+Repex!K9+Connections!K9+'Non-Network'!K9+IT!K9 -> 22.71717145 | L33: =Augex!L9+Repex!L9+Connections!L9+'Non-Network'!L9+IT!L9 -> 18.99990187 | M33: =Augex!M9+Repex!M9+Connections!M9+'Non-Network'!M9+IT!M9 -> 15.74290896 | N33: =Augex!N9+Repex!N9+Connections!N9+'Non-Network'!N9+IT!N9 -> 16.60465344
C34: 3 | D34: ='SCS total'!$D$12 -> Transmission Lines | E34: Dollars | F34: Real $2018 | G34: End_Year | I34: =Augex!I10+Repex!I10+Connections!I10+'Non-Network'!I10+IT!I10 -> 0.23 | J34: =Augex!J10+Repex!J10+Connections!J10+'Non-Network'!J10+IT!J10 -> 2.45 | K34: =Augex!K10+Repex!K10+Connections!K10+'Non-Network'!K10+IT!K10 -> 2.268 | L34: =Augex!L10+Repex!L10+Connections!L10+'Non-Network'!L10+IT!L10 -> 2.268 | M34: =Augex!M10+Repex!M10+Connections!M10+'Non-Network'!M10+IT!M10 -> 2.268 | N34: =Augex!N10+Repex!N10+Connections!N10+'Non-Network'!N10+IT!N10 -> 2.239
C35: 4 | D35: ='SCS total'!$D$13 -> LV Services | E35: Dollars | F35: Real $2018 | G35: End_Year | I35: =Augex!I11+Repex!I11+Connections!I11+'Non-Network'!I11+IT!I11 -> 0.5926168926 | J35: =Augex!J11+Repex!J11+Connections!J11+'Non-Network'!J11+IT!J11 -> 0.433483914 | K35: =Augex!K11+Repex!K11+Connections!K11+'Non-Network'!K11+IT!K11 -> 0.490659966 | L35: =Augex!L11+Repex!L11+Connections!L11+'Non-Network'!L11+IT!L11 -> 0.6498979427 | M35: =Augex!M11+Repex!M11+Connections!M11+'Non-Network'!M11+IT!M11 -> 0.4393618259 | N35: =Augex!N11+Repex!N11+Connections!N11+'Non-Network'!N11+IT!N11 -> 0.4431023153
C36: 5 | D36: ='SCS total'!$D$14 -> Distribution Substations | E36: Dollars | F36: Real $2018 | G36: End_Year | I36: =Augex!I12+Repex!I12+Connections!I12+'Non-Network'!I12+IT!I12 -> 6.14826542 | J36: =Augex!J12+Repex!J12+Connections!J12+'Non-Network'!J12+IT!J12 -> 5.751716515 | K36: =Augex!K12+Repex!K12+Connections!K12+'Non-Network'!K12+IT!K12 -> 5.994716515 | L36: =Augex!L12+Repex!L12+Connections!L12+'Non-Network'!L12+IT!L12 -> 6.222716515 | M36: =Augex!M12+Repex!M12+Connections!M12+'Non-Network'!M12+IT!M12 -> 6.398716515 | N36: =Augex!N12+Repex!N12+Connections!N12+'Non-Network'!N12+IT!N12 -> 6.474716515
C37: 6 | D37: ='SCS total'!$D$15 -> Distribution Switchgear | E37: Dollars | F37: Real $2018 | G37: End_Year | I37: =Augex!I13+Repex!I13+Connections!I13+'Non-Network'!I13+IT!I13 -> 3.880189839 | J37: =Augex!J13+Repex!J13+Connections!J13+'Non-Network'!J13+IT!J13 -> 4.408232835 | K37: =Augex!K13+Repex!K13+Connections!K13+'Non-Network'!K13+IT!K13 -> 4.45782379 | L37: =Augex!L13+Repex!L13+Connections!L13+'Non-Network'!L13+IT!L13 -> 4.377597105 | M37: =Augex!M13+Repex!M13+Connections!M13+'Non-Network'!M13+IT!M13 -> 4.408933258 | N37: =Augex!N13+Repex!N13+Connections!N13+'Non-Network'!N13+IT!N13 -> 4.454667799
C38: 7 | D38: ='SCS total'!$D$16 -> Protection | E38: Dollars | F38: Real $2018 | G38: End_Year | I38: =Augex!I14+Repex!I14+Connections!I14+'Non-Network'!I14+IT!I14 -> 2.449417 | J38: =Augex!J14+Repex!J14+Connections!J14+'Non-Network'!J14+IT!J14 -> 3.196 | K38: =Augex!K14+Repex!K14+Connections!K14+'Non-Network'!K14+IT!K14 -> 3.383 | L38: =Augex!L14+Repex!L14+Connections!L14+'Non-Network'!L14+IT!L14 -> 1.27 | M38: =Augex!M14+Repex!M14+Connections!M14+'Non-Network'!M14+IT!M14 -> 1.079 | N38: =Augex!N14+Repex!N14+Connections!N14+'Non-Network'!N14+IT!N14 -> 0.76
C39: 8 | D39: ='SCS total'!$D$17 -> SCADA | E39: Dollars | F39: Real $2018 | G39: End_Year | I39: =Augex!I15+Repex!I15+Connections!I15+'Non-Network'!I15+IT!I15 -> 1.157052 | J39: =Augex!J15+Repex!J15+Connections!J15+'Non-Network'!J15+IT!J15 -> 0.881 | K39: =Augex!K15+Repex!K15+Connections!K15+'Non-Network'!K15+IT!K15 -> 1.053 | L39: =Augex!L15+Repex!L15+Connections!L15+'Non-Network'!L15+IT!L15 -> 0.602 | M39: =Augex!M15+Repex!M15+Connections!M15+'Non-Network'!M15+IT!M15 -> 0.291 | N39: =Augex!N15+Repex!N15+Connections!N15+'Non-Network'!N15+IT!N15 -> 0.173
C40: 9 | D40: ='SCS total'!$D$18 -> Communications | E40: Dollars | F40: Real $2018 | G40: End_Year | I40: =Augex!I16+Repex!I16+Connections!I16+'Non-Network'!I16+IT!I16 -> 1.785697 | J40: =Augex!J16+Repex!J16+Connections!J16+'Non-Network'!J16+IT!J16 -> 2.361 | K40: =Augex!K16+Repex!K16+Connections!K16+'Non-Network'!K16+IT!K16 -> 2.47 | L40: =Augex!L16+Repex!L16+Connections!L16+'Non-Network'!L16+IT!L16 -> 1.998 | M40: =Augex!M16+Repex!M16+Connections!M16+'Non-Network'!M16+IT!M16 -> 1.567 | N40: =Augex!N16+Repex!N16+Connections!N16+'Non-Network'!N16+IT!N16 -> 1.201
C41: 10 | D41: ='SCS total'!$D$19 -> Land and Easements | E41: Dollars | F41: Real $2018 | G41: End_Year | I41: =Augex!I17+Repex!I17+Connections!I17+'Non-Network'!I17+IT!I17 -> 0 | J41: =Augex!J17+Repex!J17+Connections!J17+'Non-Network'!J17+IT!J17 -> 0 | K41: =Augex!K17+Repex!K17+Connections!K17+'Non-Network'!K17+IT!K17 -> 0 | L41: =Augex!L17+Repex!L17+Connections!L17+'Non-Network'!L17+IT!L17 -> 0 | M41: =Augex!M17+Repex!M17+Connections!M17+'Non-Network'!M17+IT!M17 -> 0 | N41: =Augex!N17+Repex!N17+Connections!N17+'Non-Network'!N17+IT!N17 -> 0
C42: 11 | D42: ='SCS total'!$D$20 -> Property | E42: Dollars | F42: Real $2018 | G42: End_Year | I42: =Augex!I18+Repex!I18+Connections!I18+'Non-Network'!I18+IT!I18 -> 0 | J42: =Augex!J18+Repex!J18+Connections!J18+'Non-Network'!J18+IT!J18 -> 1.69635 | K42: =Augex!K18+Repex!K18+Connections!K18+'Non-Network'!K18+IT!K18 -> 0.70665 | L42: =Augex!L18+Repex!L18+Connections!L18+'Non-Network'!L18+IT!L18 -> 0.7352 | M42: =Augex!M18+Repex!M18+Connections!M18+'Non-Network'!M18+IT!M18 -> 0.6131 | N42: =Augex!N18+Repex!N18+Connections!N18+'Non-Network'!N18+IT!N18 -> 0.59695
C43: 12 | D43: ='SCS total'!$D$21 -> IT and Communications | E43: Dollars | F43: Real $2018 | G43: End_Year | I43: =Augex!I19+Repex!I19+Connections!I19+'Non-Network'!I19+IT!I19 -> 4.676094245 | J43: =Augex!J19+Repex!J19+Connections!J19+'Non-Network'!J19+IT!J19 -> 6.25922 | K43: =Augex!K19+Repex!K19+Connections!K19+'Non-Network'!K19+IT!K19 -> 6.165306 | L43: =Augex!L19+Repex!L19+Connections!L19+'Non-Network'!L19+IT!L19 -> 11.666596 | M43: =Augex!M19+Repex!M19+Connections!M19+'Non-Network'!M19+IT!M19 -> 6.290762 | N43: =Augex!N19+Repex!N19+Connections!N19+'Non-Network'!N19+IT!N19 -> 5.438474
C44: 13 | D44: ='SCS total'!$D$22 -> Motor Vehicles | E44: Dollars | F44: Real $2018 | G44: End_Year | I44: =Augex!I20+Repex!I20+Connections!I20+'Non-Network'!I20+IT!I20 -> 0 | J44: =Augex!J20+Repex!J20+Connections!J20+'Non-Network'!J20+IT!J20 -> 0 | K44: =Augex!K20+Repex!K20+Connections!K20+'Non-Network'!K20+IT!K20 -> 0 | L44: =Augex!L20+Repex!L20+Connections!L20+'Non-Network'!L20+IT!L20 -> 0 | M44: =Augex!M20+Repex!M20+Connections!M20+'Non-Network'!M20+IT!M20 -> 0 | N44: =Augex!N20+Repex!N20+Connections!N20+'Non-Network'!N20+IT!N20 -> 0
C45: 14 | D45: ='SCS total'!$D$23 -> Plant and Equipment | E45: Dollars | F45: Real $2018 | G45: End_Year | I45: =Augex!I21+Repex!I21+Connections!I21+'Non-Network'!I21+IT!I21 -> 0.544 | J45: =Augex!J21+Repex!J21+Connections!J21+'Non-Network'!J21+IT!J21 -> 5.26 | K45: =Augex!K21+Repex!K21+Connections!K21+'Non-Network'!K21+IT!K21 -> 1.019 | L45: =Augex!L21+Repex!L21+Connections!L21+'Non-Network'!L21+IT!L21 -> 1.019 | M45: =Augex!M21+Repex!M21+Connections!M21+'Non-Network'!M21+IT!M21 -> 1.019 | N45: =Augex!N21+Repex!N21+Connections!N21+'Non-Network'!N21+IT!N21 -> 2.705
C46: 15 | D46: ='SCS total'!$D$24 -> Property Leases | E46: Dollars | F46: Real $2018 | G46: End_Year | I46: =Augex!I22+Repex!I22+Connections!I22+'Non-Network'!I22+IT!I22 -> 0 | J46: =Augex!J22+Repex!J22+Connections!J22+'Non-Network'!J22+IT!J22 -> 4.290107807 | K46: =Augex!K22+Repex!K22+Connections!K22+'Non-Network'!K22+IT!K22 -> 0.05433860166 | L46: =Augex!L22+Repex!L22+Connections!L22+'Non-Network'!L22+IT!L22 -> 14.77654315 | M46: =Augex!M22+Repex!M22+Connections!M22+'Non-Network'!M22+IT!M22 -> 0.05433860166 | N46: =Augex!N22+Repex!N22+Connections!N22+'Non-Network'!N22+IT!N22 -> 0.5026608524
C47: 16 | D47: ='SCS total'!$D$25 -> Fleet Leases | E47: Dollars | F47: Real $2018 | G47: End_Year | I47: =Augex!I23+Repex!I23+Connections!I23+'Non-Network'!I23+IT!I23 -> 0 | J47: =Augex!J23+Repex!J23+Connections!J23+'Non-Network'!J23+IT!J23 -> 12.96308284 | K47: =Augex!K23+Repex!K23+Connections!K23+'Non-Network'!K23+IT!K23 -> 3.29215004 | L47: =Augex!L23+Repex!L23+Connections!L23+'Non-Network'!L23+IT!L23 -> 2.888494639 | M47: =Augex!M23+Repex!M23+Connections!M23+'Non-Network'!M23+IT!M23 -> 3.2468793 | N47: =Augex!N23+Repex!N23+Connections!N23+'Non-Network'!N23+IT!N23 -> 2.644543207
C48: 17 | D48: ='SCS total'!$D$26 -> Buildings | E48: Dollars | F48: Real $2018 | G48: End_Year | I48: =Augex!I24+Repex!I24+Connections!I24+'Non-Network'!I24+IT!I24 -> 0 | J48: =Augex!J24+Repex!J24+Connections!J24+'Non-Network'!J24+IT!J24 -> 0.41 | K48: =Augex!K24+Repex!K24+Connections!K24+'Non-Network'!K24+IT!K24 -> 0.11 | L48: =Augex!L24+Repex!L24+Connections!L24+'Non-Network'!L24+IT!L24 -> 0.11 | M48: =Augex!M24+Repex!M24+Connections!M24+'Non-Network'!M24+IT!M24 -> 0.11 | N48: =Augex!N24+Repex!N24+Connections!N24+'Non-Network'!N24+IT!N24 -> 0.11
C49: 18 | D49: ='SCS total'!$D$27 -> In-house Software | E49: Dollars | F49: Real $2018 | G49: End_Year | I49: =Augex!I25+Repex!I25+Connections!I25+'Non-Network'!I25+IT!I25 -> 0 | J49: =Augex!J25+Repex!J25+Connections!J25+'Non-Network'!J25+IT!J25 -> 0.21075 | K49: =Augex!K25+Repex!K25+Connections!K25+'Non-Network'!K25+IT!K25 -> 0.728914 | L49: =Augex!L25+Repex!L25+Connections!L25+'Non-Network'!L25+IT!L25 -> 0.23885 | M49: =Augex!M25+Repex!M25+Connections!M25+'Non-Network'!M25+IT!M25 -> 0.89358 | N49: =Augex!N25+Repex!N25+Connections!N25+'Non-Network'!N25+IT!N25 -> 0.546264
D51: Total | E51: Dollars | F51: Real $2018 | G51: End_Year | I51: =SUM(I32:I49) -> 50.68704237 | J51: =SUM(J32:J49) -> 81.6228829 | K51: 63.62373036 | L51: 73.05279722 | M51: 48.13958046 | N51: 45.04403213
D53: Labour weight | H53: ='[4]Input|Rate of change'!$O$51 -> 0.597 | R53: Note: Sourced from SCS Opex Model
D54: CPI weight | H54: =1-H53 -> 0.403
D55: Real labour escalation rate | H55: 0 | I55: ='[4]Input|Rate of change'!O38 -> 0.001206557159 | J55: ='[4]Input|Rate of change'!P38 -> 0.002226822692 | K55: ='[4]Input|Rate of change'!Q38 -> 0.004348452154 | L55: ='[4]Input|Rate of change'!R38 -> 0.008119175578 | M55: ='[4]Input|Rate of change'!S38 -> 0.01013048311 | N55: ='[4]Input|Rate of change'!T38 -> 0.00988706338 | R55: Note: Sourced from SCS Opex Model
D56: Applied Escalation Profile | E56: Factor | F56: N/A | G56: N/A | H56: =1+$H$53*H57 -> 1 | I56: =1+$H$53*I57 -> 1.000720315 | J56: 1.002051332 | K56: 1.004656278 | L56: 1.009541231 | M56: 1.015685786 | N56: 1.02174345
D57: Compound Real labour escalation rate | H57: =H55 -> 0 | I57: =(1+H57)*(1+I55)-1 -> 0.001206557159 | J57: =(1+I57)*(1+J55)-1 -> 0.003436066639 | K57: 0.007799460365 | L57: 0.01598196113 | M57: 0.02627434923 | N57: 0.03642118876
B59: End

Sheet Capitalised OH
B1: Capitalised Overheads Forecast - SCS
B3: =B1 -> Capitalised Overheads Forecast - SCS
C5: Escalated Capitalised Overheads
C7: Ref. | D7: Regulatory Asset Class | E7: Unit | F7: Basis | G7: Timing | I7: RY19 | J7: RY20 | K7: RY21 | L7: RY22 | M7: RY23 | N7: RY24 | P7: Total FY20 to FY24
C8: =N(C7)+1 -> 1 | D8: ='SCS total'!$D$10 -> Substations | E8: Dollars | F8: Real $2018 | G8: End_Year | I8: 0 | J8: =IF(OR($P39="No",SUMIF($P$39:$P$56,"Yes",J$39:J$56)=0),0,J39/SUMIF($P$39:$P$56,"Yes",J$39:J$56))*J$34 -> 1.564059319 | K8: =IF(OR($P39="No",SUMIF($P$39:$P$56,"Yes",K$39:K$56)=0),0,K39/SUMIF($P$39:$P$56,"Yes",K$39:K$56))*K$34 -> 1.725270182 | L8: 0.9140683743 | M8: 0.9974487646 | N8: 0.04352057417 | P8: =SUM(J8:N8) -> 5.244367214
C9: =N(C8)+1 -> 2 | D9: ='SCS total'!$D$11 -> Distribution Lines | E9: Dollars | F9: Real $2018 | G9: End_Year | I9: 0 | J9: =IF(OR($P40="No",SUMIF($P$39:$P$56,"Yes",J$39:J$56)=0),0,J40/SUMIF($P$39:$P$56,"Yes",J$39:J$56))*J$34 -> 3.185776824 | K9: 4.498250719 | L9: 3.320690136 | M9: 4.224574952 | N9: 4.817627011 | P9: 20.04691964
C10: 3 | D10: ='SCS total'!$D$12 -> Transmission Lines | E10: Dollars | F10: Real $2018 | G10: End_Year | I10: 0 | J10: =IF(OR($P41="No",SUMIF($P$39:$P$56,"Yes",J$39:J$56)=0),0,J41/SUMIF($P$39:$P$56,"Yes",J$39:J$56))*J$34 -> 0.3747623797 | K10: 0.4490890362 | L10: 0.3963875857 | M10: 0.6086128055 | N10: 0.6496171038 | P10: 2.478468911
C11: 4 | D11: ='SCS total'!$D$13 -> LV Services | E11: Dollars | F11: Real $2018 | G11: End_Year | I11: 0 | J11: =IF(OR($P42="No",SUMIF($P$39:$P$56,"Yes",J$39:J$56)=0),0,J42/SUMIF($P$39:$P$56,"Yes",J$39:J$56))*J$34 -> 0.06630753598 | K11: 0.09715608962 | L11: 0.1135853071 | M11: 0.1179017784 | N11: 0.1285604479 | P11: 0.523511159
C12: 5 | D12: ='SCS total'!$D$14 -> Distribution Substations | E12: Dollars | F12: Real $2018 | G12: End_Year | I12: 0 | J12: =IF(OR($P43="No",SUMIF($P$39:$P$56,"Yes",J$39:J$56)=0),0,J43/SUMIF($P$39:$P$56,"Yes",J$39:J$56))*J$34 -> 0.8798069258 | K12: 1.187020045 | L12: 1.087569478 | M12: 1.717081486 | N12: 1.878555869 | P12: 6.750033803
C13: 6 | D13: ='SCS total'!$D$15 -> Distribution Switchgear | E13: Dollars | F13: Real $2018 | G13: End_Year | I13: 0 | J13: =IF(OR($P44="No",SUMIF($P$39:$P$56,"Yes",J$39:J$56)=0),0,J44/SUMIF($P$39:$P$56,"Yes",J$39:J$56))*J$34 -> 0.6743019704 | K13: 0.8826983198 | L13: 0.7650904531 | M13: 1.183127531 | N13: 1.292464669 | P13: 4.797682943
C14: 7 | D14: ='SCS total'!$D$16 -> Protection | E14: Dollars | F14: Real $2018 | G14: End_Year | I14: 0 | J14: =IF(OR($P45="No",SUMIF($P$39:$P$56,"Yes",J$39:J$56)=0),0,J45/SUMIF($P$39:$P$56,"Yes",J$39:J$56))*J$34 -> 0.4888737002 | K14: 0.6698713446 | L14: 0.221963066 | M14: 0.2895472739 | N14: 0.2205042425 | P14: 1.890759627
C15: 8 | D15: ='SCS total'!$D$17 -> SCADA | E15: Dollars | F15: Real $2018 | G15: End_Year | I15: 0 | J15: =IF(OR($P46="No",SUMIF($P$39:$P$56,"Yes",J$39:J$56)=0),0,J46/SUMIF($P$39:$P$56,"Yes",J$39:J$56))*J$34 -> 0.1347614924 | K15: 0.208505624 | L15: 0.1052139888 | M15: 0.07808920917 | N15: 0.05019372888 | P15: 0.5767640432
C16: 9 | D16: ='SCS total'!$D$18 -> Communications | E16: Dollars | F16: Real $2018 | G16: End_Year | I16: 0 | J16: =IF(OR($P47="No",SUMIF($P$39:$P$56,"Yes",J$39:J$56)=0),0,J47/SUMIF($P$39:$P$56,"Yes",J$39:J$56))*J$34 -> 0.3611485626 | K16: 0.4890872661 | L16: 0.3491985874 | M16: 0.4205009992 | N16: 0.3484547306 | P16: 1.968390146
C17: 10 | D17: ='SCS total'!$D$19 -> Land and Easements | E17: Dollars | F17: Real $2018 | G17: End_Year | I17: 0 | J17: =IF(OR($P48="No",SUMIF($P$39:$P$56,"Yes",J$39:J$56)=0),0,J48/SUMIF($P$39:$P$56,"Yes",J$39:J$56))*J$34 -> 0 | K17: 0 | L17: 0 | M17: 0 | N17: 0 | P17: 0
C18: 11 | D18: ='SCS total'!$D$20 -> Property | E18: Dollars | F18: Real $2018 | G18: End_Year | I18: 0 | J18: =IF(OR($P49="No",SUMIF($P$39:$P$56,"Yes",J$39:J$56)=0),0,J49/SUMIF($P$39:$P$56,"Yes",J$39:J$56))*J$34 -> 0.2594808828 | K18: 0.1399245006 | L18: 0.1284938946 | M18: 0.1645240349 | N18: 0.1731973784 | P18: 0.8656206912
C19: 12 | D19: ='SCS total'!$D$21 -> IT and Communications | E19: Dollars | F19: Real $2018 | G19: End_Year | I19: 0 | J19: =IF(OR($P50="No",SUMIF($P$39:$P$56,"Yes",J$39:J$56)=0),0,J50/SUMIF($P$39:$P$56,"Yes",J$39:J$56))*J$34 -> 0.957436809 | K19: 1.220798646 | L19: 2.03901844 | M19: 1.688112129 | N19: 1.577903407 | P19: 7.483269432
C20: 13 | D20: ='SCS total'!$D$22 -> Motor Vehicles | E20: Dollars | F20: Real $2018 | G20: End_Year | I20: 0 | J20: =IF(OR($P51="No",SUMIF($P$39:$P$56,"Yes",J$39:J$56)=0),0,J51/SUMIF($P$39:$P$56,"Yes",J$39:J$56))*J$34 -> 0 | K20: 0 | L20: 0 | M20: 0 | N20: 0 | P20: 0
C21: 14 | D21: ='SCS total'!$D$23 -> Plant and Equipment | E21: Dollars | F21: Real $2018 | G21: End_Year | I21: 0 | J21: =IF(OR($P52="No",SUMIF($P$39:$P$56,"Yes",J$39:J$56)=0),0,J52/SUMIF($P$39:$P$56,"Yes",J$39:J$56))*J$34 -> 0.8045918845 | K21: 0.2017732486 | L21: 0.178094775 | M21: 0.273446406 | N21: 0.7848210209 | P21: 2.242727335
C22: 15 | D22: ='SCS total'!$D$24 -> Property Leases | E22: Dollars | F22: Real $2018 | G22: End_Year | I22: 0 | J22: =IF(OR($P53="No",SUMIF($P$39:$P$56,"Yes",J$39:J$56)=0),0,J53/SUMIF($P$39:$P$56,"Yes",J$39:J$56))*J$34 -> 0.6562330656 | K22: 0.01075964297 | L22: 2.582556554 | M22: 0.01458164409 | N22: 0.1458405928 | P22: 3.409971499
C23: 16 | D23: ='SCS total'!$D$25 -> Fleet Leases | E23: Dollars | F23: Real $2018 | G23: End_Year | I23: 0 | J23: =IF(OR($P54="No",SUMIF($P$39:$P$56,"Yes",J$39:J$56)=0),0,J54/SUMIF($P$39:$P$56,"Yes",J$39:J$56))*J$34 -> 1.98288807 | K23: 0.6518820496 | L23: 0.5048339577 | M23: 0.87129291 | N23: 0.7672802586 | P23: 4.778177246
C24: 17 | D24: ='SCS total'!$D$26 -> Buildings | E24: Dollars | F24: Real $2018 | G24: End_Year | I24: 0 | J24: =IF(OR($P55="No",SUMIF($P$39:$P$56,"Yes",J$39:J$56)=0),0,J55/SUMIF($P$39:$P$56,"Yes",J$39:J$56))*J$34 -> 0.06271533701 | K24: 0.02178121428 | L24: 0.01922514745 | M24: 0.02951825776 | N24: 0.03191508773 | P24: 0.1651550442
C25: 18 | D25: ='SCS total'!$D$27 -> In-house Software | E25: Dollars | F25: Real $2018 | G25: End_Year | I25: 0 | J25: =IF(OR($P56="No",SUMIF($P$39:$P$56,"Yes",J$39:J$56)=0),0,J56/SUMIF($P$39:$P$56,"Yes",J$39:J$56))*J$34 -> 0.03223721286 | K25: 0.1443330184 | L25: 0.04174478608 | M25: 0.2397902252 | N25: 0.1584914862 | P25: 0.6165967287
D27: Total | E27: =E8 -> Dollars | F27: Real $2018 | G27: End_Year | I27: =SUM(I8:I25) -> 0 | J27: =SUM(J8:J25) -> 12.48538197 | K27: 12.59820095 | L27: 12.76773453 | M27: 12.91815041 | N27: 13.06894761 | P27: 63.83841546
B29: Capitalised Overheads to be allocated
C31: Ref. | D31: Regulatory Asset Class | E31: Unit | F31: Basis | G31: Timing | H31: RY18 | I31: RY19 | J31: RY20 | K31: RY21 | L31: RY22 | M31: RY23 | N31: RY24
C32: =N(C31)+1 -> 1 | D32: Direct Unescalated Capitalised Overheads | E32: Dollars | F32: Real $2018 | G32: End_Year | H32: =SUM('[5]Report|Summary'!$E$37:$E$38,'[5]Calc|Base Year Adjustment'!$F$161)/10^6*(1+'Total by category'!$H$22)^0.5 -> 12.29514036 | I32: N/A | J32: N/A | K32: N/A | L32: N/A | M32: N/A | N32: N/A
C33: =N(C32)+1 -> 2 | D33: Overall Rate of Change | E33: Percent | F33: N/A | G33: N/A | H33: N/A | I33: ='[4]Calc|Opex forecast'!N$52 -> 0.008352746357 | J33: ='[4]Calc|Opex forecast'!O$52 -> 0.007061184239 | K33: ='[4]Calc|Opex forecast'!P$52 -> 0.009036085147 | L33: ='[4]Calc|Opex forecast'!Q$52 -> 0.01345696777 | M33: ='[4]Calc|Opex forecast'!R$52 -> 0.01178093695 | N33: ='[4]Calc|Opex forecast'!S$52 -> 0.01167328117 | P33: Note: Sourced from SCS Opex Model
C34: 3 | D34: Total Capitalised Overheads | E34: Dollars | F34: Real $2018 | G34: End_Year | H34: =H32 -> 12.29514036 | I34: =H34*(1+I33) -> 12.39783855 | J34: =I34*(1+J33) -> 12.48538197 | K34: 12.59820095 | L34: 12.76773453 | M34: 12.91815041 | N34: 13.06894761
B36: Share of Direct Costs
C38: Ref. | D38: Regulatory Asset Class | E38: Unit | F38: Basis | G38: Timing | I38: RY19 | J38: RY20 | K38: RY21 | L38: RY22 | M38: RY23 | N38: RY24 | P38: Allocated OH?
C39: =N(C38)+1 -> 1 | D39: ='SCS total'!$D$10 -> Substations | E39: Dollars | F39: Real $2018 | G39: End_Year | I39: =IF(Escalation!I$51=0,0,Escalation!I32/Escalation!I$51) -> 0.2537545179 | J39: =IF(Escalation!J$51=0,0,Escalation!J32/Escalation!J$51) -> 0.125271243 | K39: =IF(Escalation!K$51=0,0,Escalation!K32/Escalation!K$51) -> 0.1369457583 | L39: =IF(Escalation!L$51=0,0,Escalation!L32/Escalation!L$51) -> 0.07159205669 | M39: =IF(Escalation!M$51=0,0,Escalation!M32/Escalation!M$51) -> 0.07721297037 | N39: =IF(Escalation!N$51=0,0,Escalation!N32/Escalation!N$51) -> 0.003330074883 | P39: Yes
C40: =N(C39)+1 -> 2 | D40: ='SCS total'!$D$11 -> Distribution Lines | E40: Dollars | F40: Real $2018 | G40: End_Year | I40: =IF(Escalation!I$51=0,0,Escalation!I33/Escalation!I$51) -> 0.3227973701 | J40: =IF(Escalation!J$51=0,0,Escalation!J33/Escalation!J$51) -> 0.2551605414 | K40: =IF(Escalation!K$51=0,0,Escalation!K33/Escalation!K$51) -> 0.3570550063 | L40: =IF(Escalation!L$51=0,0,Escalation!L33/Escalation!L$51) -> 0.2600845223 | M40: =IF(Escalation!M$51=0,0,Escalation!M33/Escalation!M$51) -> 0.3270263017 | N40: =IF(Escalation!N$51=0,0,Escalation!N33/Escalation!N$51) -> 0.3686315957 | P40: Yes
C41: 3 | D41: ='SCS total'!$D$12 -> Transmission Lines | E41: Dollars | F41: Real $2018 | G41: End_Year | I41: =IF(Escalation!I$51=0,0,Escalation!I34/Escalation!I$51) -> 0.004537648859 | J41: =IF(Escalation!J$51=0,0,Escalation!J34/Escalation!J$51) -> 0.03001609246 | K41: =IF(Escalation!K$51=0,0,Escalation!K34/Escalation!K$51) -> 0.03564707676 | L41: =IF(Escalation!L$51=0,0,Escalation!L34/Escalation!L$51) -> 0.03104603912 | M41: =IF(Escalation!M$51=0,0,Escalation!M34/Escalation!M$51) -> 0.04711299887 | N41: =IF(Escalation!N$51=0,0,Escalation!N34/Escalation!N$51) -> 0.04970691775 | P41: Yes
C42: 4 | D42: ='SCS total'!$D$13 -> LV Services | E42: Dollars | F42: Real $2018 | G42: End_Year | I42: =IF(Escalation!I$51=0,0,Escalation!I35/Escalation!I$51) -> 0.0116916842 | J42: =IF(Escalation!J$51=0,0,Escalation!J35/Escalation!J$51) -> 0.005310813568 | K42: =IF(Escalation!K$51=0,0,Escalation!K35/Escalation!K$51) -> 0.007711901884 | L42: =IF(Escalation!L$51=0,0,Escalation!L35/Escalation!L$51) -> 0.008896277314 | M42: =IF(Escalation!M$51=0,0,Escalation!M35/Escalation!M$51) -> 0.00912683122 | N42: =IF(Escalation!N$51=0,0,Escalation!N35/Escalation!N$51) -> 0.009837092604 | P42: Yes
C43: 5 | D43: ='SCS total'!$D$14 -> Distribution Substations | E43: Dollars | F43: Real $2018 | G43: End_Year | I43: =IF(Escalation!I$51=0,0,Escalation!I36/Escalation!I$51) -> 0.1212985633 | J43: =IF(Escalation!J$51=0,0,Escalation!J36/Escalation!J$51) -> 0.07046696111 | K43: =IF(Escalation!K$51=0,0,Escalation!K36/Escalation!K$51) -> 0.0942213932 | L43: =IF(Escalation!L$51=0,0,Escalation!L36/Escalation!L$51) -> 0.0851810848 | M43: =IF(Escalation!M$51=0,0,Escalation!M36/Escalation!M$51) -> 0.1329200723 | N43: =IF(Escalation!N$51=0,0,Escalation!N36/Escalation!N$51) -> 0.1437419389 | P43: Yes
C44: 6 | D44: ='SCS total'!$D$15 -> Distribution Switchgear | E44: Dollars | F44: Real $2018 | G44: End_Year | I44: =IF(Escalation!I$51=0,0,Escalation!I37/Escalation!I$51) -> 0.07655190868 | J44: =IF(Escalation!J$51=0,0,Escalation!J37/Escalation!J$51) -> 0.05400731607 | K44: =IF(Escalation!K$51=0,0,Escalation!K37/Escalation!K$51) -> 0.07006542629 | L44: =IF(Escalation!L$51=0,0,Escalation!L37/Escalation!L$51) -> 0.05992374381 | M44: =IF(Escalation!M$51=0,0,Escalation!M37/Escalation!M$51) -> 0.09158644957 | N44: =IF(Escalation!N$51=0,0,Escalation!N37/Escalation!N$51) -> 0.09889584899 | P44: Yes
C45: 7 | D45: ='SCS total'!$D$16 -> Protection | E45: Dollars | F45: Real $2018 | G45: End_Year | I45: =IF(Escalation!I$51=0,0,Escalation!I38/Escalation!I$51) -> 0.04832432285 | J45: =IF(Escalation!J$51=0,0,Escalation!J38/Escalation!J$51) -> 0.03915568633 | K45: =IF(Escalation!K$51=0,0,Escalation!K38/Escalation!K$51) -> 0.05317198443 | L45: =IF(Escalation!L$51=0,0,Escalation!L38/Escalation!L$51) -> 0.01738468681 | M45: =IF(Escalation!M$51=0,0,Escalation!M38/Escalation!M$51) -> 0.02241398844 | N45: =IF(Escalation!N$51=0,0,Escalation!N38/Escalation!N$51) -> 0.01687237941 | P45: Yes
C46: 8 | D46: ='SCS total'!$D$17 -> SCADA | E46: Dollars | F46: Real $2018 | G46: End_Year | I46: =IF(Escalation!I$51=0,0,Escalation!I39/Escalation!I$51) -> 0.02282737256 | J46: =IF(Escalation!J$51=0,0,Escalation!J39/Escalation!J$51) -> 0.01079354182 | K46: =IF(Escalation!K$51=0,0,Escalation!K39/Escalation!K$51) -> 0.0165504285 | L46: =IF(Escalation!L$51=0,0,Escalation!L39/Escalation!L$51) -> 0.008240615321 | M46: =IF(Escalation!M$51=0,0,Escalation!M39/Escalation!M$51) -> 0.006044921813 | N46: =IF(Escalation!N$51=0,0,Escalation!N39/Escalation!N$51) -> 0.003840686365 | P46: Yes
C47: 9 | D47: ='SCS total'!$D$18 -> Communications | E47: Dollars | F47: Real $2018 | G47: End_Year | I47: =IF(Escalation!I$51=0,0,Escalation!I40/Escalation!I$51) -> 0.03522985198 | J47: =IF(Escalation!J$51=0,0,Escalation!J40/Escalation!J$51) -> 0.02892571196 | K47: =IF(Escalation!K$51=0,0,Escalation!K40/Escalation!K$51) -> 0.03882199277 | L47: =IF(Escalation!L$51=0,0,Escalation!L40/Escalation!L$51) -> 0.02735008208 | M47: =IF(Escalation!M$51=0,0,Escalation!M40/Escalation!M$51) -> 0.03255117691 | N47: =IF(Escalation!N$51=0,0,Escalation!N40/Escalation!N$51) -> 0.02666279956 | P47: Yes
C48: 10 | D48: ='SCS total'!$D$19 -> Land and Easements | E48: Dollars | F48: Real $2018 | G48: End_Year | I48: =IF(Escalation!I$51=0,0,Escalation!I41/Escalation!I$51) -> 0 | J48: =IF(Escalation!J$51=0,0,Escalation!J41/Escalation!J$51) -> 0 | K48: =IF(Escalation!K$51=0,0,Escalation!K41/Escalation!K$51) -> 0 | L48: =IF(Escalation!L$51=0,0,Escalation!L41/Escalation!L$51) -> 0 | M48: =IF(Escalation!M$51=0,0,Escalation!M41/Escalation!M$51) -> 0 | N48: =IF(Escalation!N$51=0,0,Escalation!N41/Escalation!N$51) -> 0 | P48: Yes
C49: 11 | D49: ='SCS total'!$D$20 -> Property | E49: Dollars | F49: Real $2018 | G49: End_Year | I49: =IF(Escalation!I$51=0,0,Escalation!I42/Escalation!I$51) -> 0 | J49: =IF(Escalation!J$51=0,0,Escalation!J42/Escalation!J$51) -> 0.02078277488 | K49: =IF(Escalation!K$51=0,0,Escalation!K42/Escalation!K$51) -> 0.01110670494 | L49: =IF(Escalation!L$51=0,0,Escalation!L42/Escalation!L$51) -> 0.01006395413 | M49: =IF(Escalation!M$51=0,0,Escalation!M42/Escalation!M$51) -> 0.01273588166 | N49: =IF(Escalation!N$51=0,0,Escalation!N42/Escalation!N$51) -> 0.01325258801 | P49: Yes
C50: 12 | D50: ='SCS total'!$D$21 -> IT and Communications | E50: Dollars | F50: Real $2018 | G50: End_Year | I50: =IF(Escalation!I$51=0,0,Escalation!I43/Escalation!I$51) -> 0.09225423356 | J50: =IF(Escalation!J$51=0,0,Escalation!J43/Escalation!J$51) -> 0.07668462296 | K50: =IF(Escalation!K$51=0,0,Escalation!K43/Escalation!K$51) -> 0.09690261739 | L50: =IF(Escalation!L$51=0,0,Escalation!L43/Escalation!L$51) -> 0.15970088 | M50: =IF(Escalation!M$51=0,0,Escalation!M43/Escalation!M$51) -> 0.130677541 | N50: =IF(Escalation!N$51=0,0,Escalation!N43/Escalation!N$51) -> 0.1207368378 | P50: Yes
C51: 13 | D51: ='SCS total'!$D$22 -> Motor Vehicles | E51: Dollars | F51: Real $2018 | G51: End_Year | I51: =IF(Escalation!I$51=0,0,Escalation!I44/Escalation!I$51) -> 0 | J51: =IF(Escalation!J$51=0,0,Escalation!J44/Escalation!J$51) -> 0 | K51: =IF(Escalation!K$51=0,0,Escalation!K44/Escalation!K$51) -> 0 | L51: =IF(Escalation!L$51=0,0,Escalation!L44/Escalation!L$51) -> 0 | M51: =IF(Escalation!M$51=0,0,Escalation!M44/Escalation!M$51) -> 0 | N51: =IF(Escalation!N$51=0,0,Escalation!N44/Escalation!N$51) -> 0 | P51: Yes
C52: 14 | D52: ='SCS total'!$D$23 -> Plant and Equipment | E52: Dollars | F52: Real $2018 | G52: End_Year | I52: =IF(Escalation!I$51=0,0,Escalation!I45/Escalation!I$51) -> 0.010732526 | J52: =IF(Escalation!J$51=0,0,Escalation!J45/Escalation!J$51) -> 0.06444271279 | K52: =IF(Escalation!K$51=0,0,Escalation!K45/Escalation!K$51) -> 0.01601603669 | L52: =IF(Escalation!L$51=0,0,Escalation!L45/Escalation!L$51) -> 0.01394881563 | M52: =IF(Escalation!M$51=0,0,Escalation!M45/Escalation!M$51) -> 0.02116761281 | N52: =IF(Escalation!N$51=0,0,Escalation!N45/Escalation!N$51) -> 0.06005235038 | P52: Yes
C53: 15 | D53: ='SCS total'!$D$24 -> Property Leases | E53: Dollars | F53: Real $2018 | G53: End_Year | I53: =IF(Escalation!I$51=0,0,Escalation!I46/Escalation!I$51) -> 0 | J53: =IF(Escalation!J$51=0,0,Escalation!J46/Escalation!J$51) -> 0.05256011126 | K53: =IF(Escalation!K$51=0,0,Escalation!K46/Escalation!K$51) -> 0.0008540618627 | L53: =IF(Escalation!L$51=0,0,Escalation!L46/Escalation!L$51) -> 0.2022721061 | M53: =IF(Escalation!M$51=0,0,Escalation!M46/Escalation!M$51) -> 0.001128771816 | N53: =IF(Escalation!N$51=0,0,Escalation!N46/Escalation!N$51) -> 0.01115932186 | P53: Yes
C54: 16 | D54: ='SCS total'!$D$25 -> Fleet Leases | E54: Dollars | F54: Real $2018 | G54: End_Year | I54: =IF(Escalation!I$51=0,0,Escalation!I47/Escalation!I$51) -> 0 | J54: =IF(Escalation!J$51=0,0,Escalation!J47/Escalation!J$51) -> 0.1588167726 | K54: =IF(Escalation!K$51=0,0,Escalation!K47/Escalation!K$51) -> 0.05174405872 | L54: =IF(Escalation!L$51=0,0,Escalation!L47/Escalation!L$51) -> 0.03953982255 | M54: =IF(Escalation!M$51=0,0,Escalation!M47/Escalation!M$51) -> 0.06744718729 | N54: =IF(Escalation!N$51=0,0,Escalation!N47/Escalation!N$51) -> 0.05871017939 | P54: Yes
C55: 17 | D55: ='SCS total'!$D$26 -> Buildings | E55: Dollars | F55: Real $2018 | G55: End_Year | I55: =IF(Escalation!I$51=0,0,Escalation!I48/Escalation!I$51) -> 0 | J55: =IF(Escalation!J$51=0,0,Escalation!J48/Escalation!J$51) -> 0.005023101187 | K55: =IF(Escalation!K$51=0,0,Escalation!K48/Escalation!K$51) -> 0.001728914658 | L55: =IF(Escalation!L$51=0,0,Escalation!L48/Escalation!L$51) -> 0.001505760275 | M55: =IF(Escalation!M$51=0,0,Escalation!M48/Escalation!M$51) -> 0.002285021991 | N55: =IF(Escalation!N$51=0,0,Escalation!N48/Escalation!N$51) -> 0.002442054914 | P55: Yes
C56: 18 | D56: ='SCS total'!$D$27 -> In-house Software | E56: Dollars | F56: Real $2018 | G56: End_Year | I56: =IF(Escalation!I$51=0,0,Escalation!I49/Escalation!I$51) -> 0 | J56: =IF(Escalation!J$51=0,0,Escalation!J49/Escalation!J$51) -> 0.002581996525 | K56: =IF(Escalation!K$51=0,0,Escalation!K49/Escalation!K$51) -> 0.01145663726 | L56: =IF(Escalation!L$51=0,0,Escalation!L49/Escalation!L$51) -> 0.003269553105 | M56: =IF(Escalation!M$51=0,0,Escalation!M49/Escalation!M$51) -> 0.01856227228 | N56: =IF(Escalation!N$51=0,0,Escalation!N49/Escalation!N$51) -> 0.0121273335 | P56: Yes
D58: Total | E58: Dollars | F58: Real $2018 | G58: End_Year | I58: =SUM(I39:I56) -> 1 | J58: =SUM(J39:J56) -> 1 | K58: 1 | L58: 1 | M58: 1 | N58: 1
B60: End

Sheet Capital Contributions
B1: Connection Capital Expenditure
B3: Direct Capex Forecasts
C5: Direct Costs (Excluding Capitalised Overheads and Cost Escalation)
C7: Ref. | D7: Regulatory Asset Class | E7: Unit | F7: Basis | G7: Timing | I7: RY19 | J7: RY20 | K7: RY21 | L7: RY22 | M7: RY23 | N7: RY24 | P7: Total FY20 to FY24
C8: =N(C7)+1 -> 1 | D8: ='SCS total'!$D$10 -> Substations | E8: Dollars | F8: Real $2018 | G8: End_Year | I8: ='[3]Capital contributions'!J8 -> 0 | J8: ='[3]Capital contributions'!K8 -> 0 | K8: ='[3]Capital contributions'!L8 -> 0 | L8: ='[3]Capital contributions'!M8 -> 0 | M8: ='[3]Capital contributions'!N8 -> 0 | N8: ='[3]Capital contributions'!O8 -> 0 | P8: =SUM(J8:N8) -> 0
C9: =N(C8)+1 -> 2 | D9: ='SCS total'!$D$11 -> Distribution Lines | E9: Dollars | F9: Real $2018 | G9: End_Year | I9: ='[3]Capital contributions'!J9 -> 5.976285564 | J9: ='[3]Capital contributions'!K9 -> 5.827782271 | K9: ='[3]Capital contributions'!L9 -> 5.875933338 | L9: ='[3]Capital contributions'!M9 -> 6.010036312 | M9: ='[3]Capital contributions'!N9 -> 5.83273238 | N9: ='[3]Capital contributions'!O9 -> 5.83588245 | P9: 29.38236675
C10: 3 | D10: ='SCS total'!$D$12 -> Transmission Lines | E10: Dollars | F10: Real $2018 | G10: End_Year | I10: ='[3]Capital contributions'!J10 -> 0 | J10: ='[3]Capital contributions'!K10 -> 0 | K10: ='[3]Capital contributions'!L10 -> 0 | L10: ='[3]Capital contributions'!M10 -> 0 | M10: ='[3]Capital contributions'!N10 -> 0 | N10: ='[3]Capital contributions'!O10 -> 0 | P10: 0
C11: 4 | D11: ='SCS total'!$D$13 -> LV Services | E11: Dollars | F11: Real $2018 | G11: End_Year | I11: ='[3]Capital contributions'!J11 -> 0.1067642541 | J11: ='[3]Capital contributions'!K11 -> 0.0714967828 | K11: ='[3]Capital contributions'!L11 -> 0.08293199321 | L11: ='[3]Capital contributions'!M11 -> 0.1147795885 | M11: ='[3]Capital contributions'!N11 -> 0.07267236518 | N11: ='[3]Capital contributions'!O11 -> 0.07342046306 | P11: 0.4153011928
C12: 5 | D12: ='SCS total'!$D$14 -> Distribution Substations | E12: Dollars | F12: Real $2018 | G12: End_Year | I12: ='[3]Capital contributions'!J12 -> 2.530716515 | J12: ='[3]Capital contributions'!K12 -> 2.530716515 | K12: ='[3]Capital contributions'!L12 -> 2.530716515 | L12: ='[3]Capital contributions'!M12 -> 2.530716515 | M12: ='[3]Capital contributions'!N12 -> 2.530716515 | N12: ='[3]Capital contributions'!O12 -> 2.530716515 | P12: 12.65358257
C13: 6 | D13: ='SCS total'!$D$15 -> Distribution Switchgear | E13: Dollars | F13: Real $2018 | G13: End_Year | I13: ='[3]Capital contributions'!J13 -> 0.551961415 | J13: ='[3]Capital contributions'!K13 -> 0.551961415 | K13: ='[3]Capital contributions'!L13 -> 0.551961415 | L13: ='[3]Capital contributions'!M13 -> 0.551961415 | M13: ='[3]Capital contributions'!N13 -> 0.551961415 | N13: ='[3]Capital contributions'!O13 -> 0.551961415 | P13: 2.759807075
C14: 7 | D14: ='SCS total'!$D$16 -> Protection | E14: Dollars | F14: Real $2018 | G14: End_Year | I14: ='[3]Capital contributions'!J14 -> 0 | J14: ='[3]Capital contributions'!K14 -> 0 | K14: ='[3]Capital contributions'!L14 -> 0 | L14: ='[3]Capital contributions'!M14 -> 0 | M14: ='[3]Capital contributions'!N14 -> 0 | N14: ='[3]Capital contributions'!O14 -> 0 | P14: 0
C15: 8 | D15: ='SCS total'!$D$17 -> SCADA | E15: Dollars | F15: Real $2018 | G15: End_Year | I15: ='[3]Capital contributions'!J15 -> 0 | J15: ='[3]Capital contributions'!K15 -> 0 | K15: ='[3]Capital contributions'!L15 -> 0 | L15: ='[3]Capital contributions'!M15 -> 0 | M15: ='[3]Capital contributions'!N15 -> 0 | N15: ='[3]Capital contributions'!O15 -> 0 | P15: 0
C16: 9 | D16: ='SCS total'!$D$18 -> Communications | E16: Dollars | F16: Real $2018 | G16: End_Year | I16: ='[3]Capital contributions'!J16 -> 0 | J16: ='[3]Capital contributions'!K16 -> 0 | K16: ='[3]Capital contributions'!L16 -> 0 | L16: ='[3]Capital contributions'!M16 -> 0 | M16: ='[3]Capital contributions'!N16 -> 0 | N16: ='[3]Capital contributions'!O16 -> 0 | P16: 0
C17: 10 | D17: ='SCS total'!$D$19 -> Land and Easements | E17: Dollars | F17: Real $2018 | G17: End_Year | I17: ='[3]Capital contributions'!J17 -> 0 | J17: ='[3]Capital contributions'!K17 -> 0 | K17: ='[3]Capital contributions'!L17 -> 0 | L17: ='[3]Capital contributions'!M17 -> 0 | M17: ='[3]Capital contributions'!N17 -> 0 | N17: ='[3]Capital contributions'!O17 -> 0 | P17: 0
C18: 11 | D18: ='SCS total'!$D$20 -> Property | E18: Dollars | F18: Real $2018 | G18: End_Year | I18: ='[3]Capital contributions'!J18 -> 0 | J18: ='[3]Capital contributions'!K18 -> 0 | K18: ='[3]Capital contributions'!L18 -> 0 | L18: ='[3]Capital contributions'!M18 -> 0 | M18: ='[3]Capital contributions'!N18 -> 0 | N18: ='[3]Capital contributions'!O18 -> 0 | P18: 0
C19: 12 | D19: ='SCS total'!$D$21 -> IT and Communications | E19: Dollars | F19: Real $2018 | G19: End_Year | I19: ='[3]Capital contributions'!J19 -> 0 | J19: ='[3]Capital contributions'!K19 -> 0 | K19: ='[3]Capital contributions'!L19 -> 0 | L19: ='[3]Capital contributions'!M19 -> 0 | M19: ='[3]Capital contributions'!N19 -> 0 | N19: ='[3]Capital contributions'!O19 -> 0 | P19: 0
C20: 13 | D20: ='SCS total'!$D$22 -> Motor Vehicles | E20: Dollars | F20: Real $2018 | G20: End_Year | I20: ='[3]Capital contributions'!J20 -> 0 | J20: ='[3]Capital contributions'!K20 -> 0 | K20: ='[3]Capital contributions'!L20 -> 0 | L20: ='[3]Capital contributions'!M20 -> 0 | M20: ='[3]Capital contributions'!N20 -> 0 | N20: ='[3]Capital contributions'!O20 -> 0 | P20: 0
C21: 14 | D21: ='SCS total'!$D$23 -> Plant and Equipment | E21: Dollars | F21: Real $2018 | G21: End_Year | I21: ='[3]Capital contributions'!J21 -> 0 | J21: ='[3]Capital contributions'!K21 -> 0 | K21: ='[3]Capital contributions'!L21 -> 0 | L21: ='[3]Capital contributions'!M21 -> 0 | M21: ='[3]Capital contributions'!N21 -> 0 | N21: ='[3]Capital contributions'!O21 -> 0 | P21: 0
C22: 15 | D22: ='SCS total'!$D$24 -> Property Leases | E22: Dollars | F22: Real $2018 | G22: End_Year | I22: 0 | J22: 0 | K22: 0 | L22: 0 | M22: 0 | N22: 0 | P22: =SUM(J22:N22) -> 0
C23: 16 | D23: ='SCS total'!$D$25 -> Fleet Leases | E23: Dollars | F23: Real $2018 | G23: End_Year | I23: 0 | J23: 0 | K23: 0 | L23: 0 | M23: 0 | N23: 0 | P23: 0
C24: 17 | D24: ='SCS total'!$D$26 -> Buildings | E24: Dollars | F24: Real $2018 | G24: End_Year | I24: 0 | J24: 0 | K24: 0 | L24: 0 | M24: 0 | N24: 0 | P24: 0
C25: 18 | D25: ='SCS total'!$D$27 -> In-house Software | E25: Dollars | F25: Real $2018 | G25: End_Year | I25: 0 | J25: 0 | K25: 0 | L25: 0 | M25: 0 | N25: 0 | P25: 0
D27: Total | E27: =E8 -> Dollars | F27: Real $2018 | G27: End_Year | I27: =SUM(I8:I25) -> 9.165727748 | J27: =SUM(J8:J25) -> 8.981956983 | K27: 9.041543262 | L27: 9.207493831 | M27: 8.988082676 | N27: 8.991980843 | P27: 45.21105759
B29: End

Sheet ACS Metering -->
B8: ACS Metering

Sheet Metering total
A1: =IF(SUM($A2:$A23)>0,1,0) -> 0 | B1: Consolidated Capital Expenditure Forecast - Metering
B3: Capex Forecasts - Metering
C5: Direct Costs including Cost Escalation and Capitalised Overheads
D7: Forecast inflation | E7: Per cent | F7: Nominal | G7: End_Year | I7: ='Total by category'!$I$22 -> 0.02
C9: Ref. | D9: Regulatory Asset Class | E9: Unit | F9: Basis | G9: Timing | H9: RY18 | I9: RY19 | J9: RY20 | K9: RY21 | L9: RY22 | M9: RY23 | N9: RY24 | P9: Total FY20 to FY24
C10: =N(C9)+1 -> 1 | D10: Mechanical Meters | E10: Dollars | F10: Real $2019 | G10: End_Year | H10: =(Metering!H8+'Metering | Escalation'!H8+'Metering | Capitalised OH'!H8)*(1+$I$7) -> 0 | I10: =(Metering!I8+'Metering | Escalation'!I8+'Metering | Capitalised OH'!I8)*(1+$I$7) -> 0 | J10: =(Metering!J8+'Metering | Escalation'!J8+'Metering | Capitalised OH'!J8)*(1+$I$7) -> 0 | K10: =(Metering!K8+'Metering | Escalation'!K8+'Metering | Capitalised OH'!K8)*(1+$I$7) -> 0 | L10: =(Metering!L8+'Metering | Escalation'!L8+'Metering | Capitalised OH'!L8)*(1+$I$7) -> 0 | M10: =(Metering!M8+'Metering | Escalation'!M8+'Metering | Capitalised OH'!M8)*(1+$I$7) -> 0 | N10: =(Metering!N8+'Metering | Escalation'!N8+'Metering | Capitalised OH'!N8)*(1+$I$7) -> 0 | P10: =SUM(J10:N10) -> 0
C11: =N(C10)+1 -> 2 | D11: Electronic Meters | E11: Dollars | F11: Real $2019 | G11: End_Year | H11: =(Metering!H9+'Metering | Escalation'!H9+'Metering | Capitalised OH'!H9)*(1+$I$7) -> 2.295463715 | I11: =(Metering!I9+'Metering | Escalation'!I9+'Metering | Capitalised OH'!I9)*(1+$I$7) -> 4.545381853 | J11: =(Metering!J9+'Metering | Escalation'!J9+'Metering | Capitalised OH'!J9)*(1+$I$7) -> 3.073796048 | K11: =(Metering!K9+'Metering | Escalation'!K9+'Metering | Capitalised OH'!K9)*(1+$I$7) -> 3.2666279 | L11: =(Metering!L9+'Metering | Escalation'!L9+'Metering | Capitalised OH'!L9)*(1+$I$7) -> 3.523719562 | M11: =(Metering!M9+'Metering | Escalation'!M9+'Metering | Capitalised OH'!M9)*(1+$I$7) -> 3.130087177 | N11: =(Metering!N9+'Metering | Escalation'!N9+'Metering | Capitalised OH'!N9)*(1+$I$7) -> 3.359588101 | P11: 16.35381879
C12: 3 | D12: Metering Communications | E12: Dollars | F12: Real $2019 | G12: End_Year | H12: =(Metering!H10+'Metering | Escalation'!H10+'Metering | Capitalised OH'!H10)*(1+$I$7) -> 0 | I12: =(Metering!I10+'Metering | Escalation'!I10+'Metering | Capitalised OH'!I10)*(1+$I$7) -> 0 | J12: =(Metering!J10+'Metering | Escalation'!J10+'Metering | Capitalised OH'!J10)*(1+$I$7) -> 2.885806245 | K12: =(Metering!K10+'Metering | Escalation'!K10+'Metering | Capitalised OH'!K10)*(1+$I$7) -> 0.1765339558 | L12: =(Metering!L10+'Metering | Escalation'!L10+'Metering | Capitalised OH'!L10)*(1+$I$7) -> 0.1911301159 | M12: =(Metering!M10+'Metering | Escalation'!M10+'Metering | Capitalised OH'!M10)*(1+$I$7) -> 4.339419669 | N12: =(Metering!N10+'Metering | Escalation'!N10+'Metering | Capitalised OH'!N10)*(1+$I$7) -> 0.1839479954 | P12: 7.776837981
C13: 4 | D13: Metering Dedicated CTs and VTs | E13: Dollars | F13: Real $2019 | G13: End_Year | H13: =(Metering!H11+'Metering | Escalation'!H11+'Metering | Capitalised OH'!H11)*(1+$I$7) -> 0.1102061328 | I13: =(Metering!I11+'Metering | Escalation'!I11+'Metering | Capitalised OH'!I11)*(1+$I$7) -> 0.1102940324 | J13: =(Metering!J11+'Metering | Escalation'!J11+'Metering | Capitalised OH'!J11)*(1+$I$7) -> 0.1165874901 | K13: =(Metering!K11+'Metering | Escalation'!K11+'Metering | Capitalised OH'!K11)*(1+$I$7) -> 0.1223033602 | L13: =(Metering!L11+'Metering | Escalation'!L11+'Metering | Capitalised OH'!L11)*(1+$I$7) -> 0.1224417153 | M13: =(Metering!M11+'Metering | Escalation'!M11+'Metering | Capitalised OH'!M11)*(1+$I$7) -> 0.1176992509 | N13: =(Metering!N11+'Metering | Escalation'!N11+'Metering | Capitalised OH'!N11)*(1+$I$7) -> 0.1247441297 | P13: 0.6037759462
C14: 5 | D14: Metering Non Network Other | E14: Dollars | F14: Real $2019 | G14: End_Year | H14: =(Metering!H12+'Metering | Escalation'!H12+'Metering | Capitalised OH'!H12)*(1+$I$7) -> 0 | I14: =(Metering!I12+'Metering | Escalation'!I12+'Metering | Capitalised OH'!I12)*(1+$I$7) -> 0 | J14: =(Metering!J12+'Metering | Escalation'!J12+'Metering | Capitalised OH'!J12)*(1+$I$7) -> 0 | K14: =(Metering!K12+'Metering | Escalation'!K12+'Metering | Capitalised OH'!K12)*(1+$I$7) -> 0 | L14: =(Metering!L12+'Metering | Escalation'!L12+'Metering | Capitalised OH'!L12)*(1+$I$7) -> 0 | M14: =(Metering!M12+'Metering | Escalation'!M12+'Metering | Capitalised OH'!M12)*(1+$I$7) -> 0 | N14: =(Metering!N12+'Metering | Escalation'!N12+'Metering | Capitalised OH'!N12)*(1+$I$7) -> 0 | P14: 0
C15: 6 | D15: Metering Non Network IT and Communications | E15: Dollars | F15: Real $2019 | G15: End_Year | H15: =(Metering!H13+'Metering | Escalation'!H13+'Metering | Capitalised OH'!H13)*(1+$I$7) -> 0 | I15: =(Metering!I13+'Metering | Escalation'!I13+'Metering | Capitalised OH'!I13)*(1+$I$7) -> 0 | J15: =(Metering!J13+'Metering | Escalation'!J13+'Metering | Capitalised OH'!J13)*(1+$I$7) -> 0.1159316474 | K15: =(Metering!K13+'Metering | Escalation'!K13+'Metering | Capitalised OH'!K13)*(1+$I$7) -> 0 | L15: =(Metering!L13+'Metering | Escalation'!L13+'Metering | Capitalised OH'!L13)*(1+$I$7) -> 0 | M15: =(Metering!M13+'Metering | Escalation'!M13+'Metering | Capitalised OH'!M13)*(1+$I$7) -> 0 | N15: =(Metering!N13+'Metering | Escalation'!N13+'Metering | Capitalised OH'!N13)*(1+$I$7) -> 0 | P15: 0.1159316474
C16: 7 | D16: Fleet leases | E16: Dollars | F16: Real $2019 | G16: End_Year | H16: =(Metering!H14+'Metering | Escalation'!H14+'Metering | Capitalised OH'!H14)*(1+$I$7) -> 0 | I16: =(Metering!I14+'Metering | Escalation'!I14+'Metering | Capitalised OH'!I14)*(1+$I$7) -> 0 | J16: =(Metering!J14+'Metering | Escalation'!J14+'Metering | Capitalised OH'!J14)*(1+$I$7) -> 0.4124349911 | K16: =(Metering!K14+'Metering | Escalation'!K14+'Metering | Capitalised OH'!K14)*(1+$I$7) -> 0.08537638671 | L16: =(Metering!L14+'Metering | Escalation'!L14+'Metering | Capitalised OH'!L14)*(1+$I$7) -> 0.03534149713 | M16: =(Metering!M14+'Metering | Escalation'!M14+'Metering | Capitalised OH'!M14)*(1+$I$7) -> 0.1676591145 | N16: =(Metering!N14+'Metering | Escalation'!N14+'Metering | Capitalised OH'!N14)*(1+$I$7) -> 0.1093234246 | P16: =SUM(J16:N16) -> 0.810135414
D18: Total | E18: =E10 -> Dollars | F18: Real $2019 | G18: End_Year | H18: =SUM(H10:H16) -> 2.405669848 | I18: =SUM(I10:I16) -> 4.655675886 | J18: 6.604556421 | K18: 3.650841602 | L18: 3.87263289 | M18: 7.754865212 | N18: 3.777603651 | P18: 25.66049978
D20: Check - Value | E20: Dollars | F20: Real $2019 | G20: End_Year | H20: =SUM('Metering:Metering | Capitalised OH'!H16)*(1+$I$7) -> 2.405669848 | I20: =SUM('Metering:Metering | Capitalised OH'!I16)*(1+$I$7) -> 4.655675886 | J20: =SUM('Metering:Metering | Capitalised OH'!J16)*(1+$I$7) -> 6.604556421 | K20: =SUM('Metering:Metering | Capitalised OH'!K16)*(1+$I$7) -> 3.650841602 | L20: =SUM('Metering:Metering | Capitalised OH'!L16)*(1+$I$7) -> 3.87263289 | M20: =SUM('Metering:Metering | Capitalised OH'!M16)*(1+$I$7) -> 7.754865212 | N20: =SUM('Metering:Metering | Capitalised OH'!N16)*(1+$I$7) -> 3.777603651 | P20: =SUM(J20:N20) -> 25.66049978
A21: =IF(SUM($H21:$P21)>0,1,0) -> 0 | D21: Check - Flag | H21: =IF(ROUND(H18-H20,4)=0,0,1) -> 0 | I21: =IF(ROUND(I18-I20,4)=0,0,1) -> 0 | J21: 0 | K21: 0 | L21: 0 | M21: 0 | N21: 0 | P21: 0
B23: End

Sheet Metering
B1: Metering Capital Expenditure
B3: Direct Capex Forecasts
C5: Direct Costs (Excluding Capitalised Overheads and Cost Escalation)
C7: Ref. | D7: Regulatory Asset Class | E7: Unit | F7: Basis | G7: Timing | H7: RY18 | I7: RY19 | J7: RY20 | K7: RY21 | L7: RY22 | M7: RY23 | N7: RY24 | P7: Total FY20 to FY24
C8: =N(C7)+1 -> 1 | D8: ='Metering total'!$D$10 -> Mechanical Meters | E8: Dollars | F8: Real $2018 | G8: End_Year | H8: 0 | I8: 0 | J8: 0 | K8: 0 | L8: 0 | M8: 0 | N8: 0 | P8: =SUM(J8:N8) -> 0
C9: =N(C8)+1 -> 2 | D9: ='Metering total'!$D$11 -> Electronic Meters | E9: Dollars | F9: Real $2018 | G9: End_Year | H9: 2.250454623 | I9: 4.453049122 | J9: 2.856013302 | K9: 2.894902288 | L9: 3.121643285 | M9: 2.887340294 | N9: 2.926736415 | P9: 14.68663558
C10: =N(C9)+1 -> 3 | D10: ='Metering total'!$D$12 -> Metering Communications | E10: Dollars | F10: Real $2018 | G10: End_Year | H10: 0 | I10: 0 | J10: 2.681342839 | K10: 0.1564452911 | L10: 0.1693210917 | M10: 4.00288572 | N10: 0.1602480067 | P10: 7.170242949
C11: 4 | D11: ='Metering total'!$D$13 -> Metering Dedicated CTs and VTs | E11: Dollars | F11: Real $2018 | G11: End_Year | H11: 0.1080452282 | I11: 0.1080535717 | J11: 0.1083271034 | K11: 0.1083858609 | L11: 0.108470425 | M11: 0.1085713498 | N11: 0.1086720086 | P11: 0.5424267478
C12: 5 | D12: ='Metering total'!$D$14 -> Metering Non Network Other | E12: Dollars | F12: Real $2018 | G12: End_Year | H12: 0 | I12: 0 | J12: 0 | K12: 0 | L12: 0 | M12: 0 | N12: 0 | P12: 0
C13: 6 | D13: ='Metering total'!$D$15 -> Metering Non Network IT and Communications | E13: Dollars | F13: Real $2018 | G13: End_Year | H13: 0 | I13: 0 | J13: 0.1077177281 | K13: 0 | L13: 0 | M13: 0 | N13: 0 | P13: 0.1077177281
C14: 7 | D14: ='Metering total'!$D$16 -> Fleet leases | E14: Dollars | F14: Real $2018 | G14: End_Year | H14: 0 | I14: 0 | J14: 0.3832133955 | K14: 0.0756609889 | L14: 0.03130883297 | M14: 0.1546566883 | N14: 0.09523811797 | P14: =SUM(J14:N14) -> 0.7400780236
D16: Total | E16: =E8 -> Dollars | F16: Real $2018 | G16: End_Year | H16: =SUM(H8:H14) -> 2.358499851 | I16: =SUM(I8:I14) -> 4.561102694 | J16: 6.136614368 | K16: 3.235394429 | L16: 3.430743634 | M16: 7.153454052 | N16: 3.290894549 | P16: 23.24710103
B18: End

Sheet Metering | Escalation
B1: Escalation on Direct Capex Forecasts - Metering
B3: Escalation Forecasts
C5: Cost Escalation on Direct Costs
C7: Ref. | D7: Regulatory Asset Class | E7: Unit | F7: Basis | G7: Timing | H7: RY18 | I7: RY19 | J7: RY20 | K7: RY21 | L7: RY22 | M7: RY23 | N7: RY24 | P7: Total FY20 to FY24
C8: =N(C7)+1 -> 1 | D8: ='Metering total'!$D$10 -> Mechanical Meters | E8: Dollars | F8: Real $2018 | G8: End_Year | H8: =H21*H$31-H21 -> 0 | I8: 0 | J8: 0 | K8: 0 | L8: 0 | M8: 0 | N8: 0 | P8: =SUM(J8:N8) -> 0
C9: 2 | D9: ='Metering total'!$D$11 -> Electronic Meters | E9: Dollars | F9: Real $2018 | G9: End_Year | H9: 0 | I9: 0.003207596404 | J9: 0.005858630861 | K9: 0.01347946937 | L9: 0.02978431904 | M9: 0.04529020337 | N9: 0.06363734601 | P9: 0.1580499686
C10: 3 | D10: ='Metering total'!$D$12 -> Metering Communications | E10: Dollars | F10: Real $2018 | G10: End_Year | H10: 0 | I10: 0 | J10: 0.005500323788 | K10: 0.0007284527417 | L10: 0.001615531614 | M10: 0.06278841074 | N10: 0.003484344473 | P10: 0.07411706336
C11: 4 | D11: ='Metering total'!$D$13 -> Metering Dedicated CTs and VTs | E11: Dollars | F11: Real $2018 | G11: End_Year | H11: 0 | I11: 7.783256786e-05 | J11: 0.0002222148303 | K11: 0.0005046746822 | L11: 0.001034941359 | M11: 0.001703027012 | N11: 0.002362904352 | P11: 0.005827762235
C12: 5 | D12: ='Metering total'!$D$14 -> Metering Non Network Other | E12: Dollars | F12: Real $2018 | G12: End_Year | H12: 0 | I12: 0 | J12: 0 | K12: 0 | L12: 0 | M12: 0 | N12: 0 | P12: 0
C13: 6 | D13: ='Metering total'!$D$15 -> Metering Non Network IT and Communications | E13: Dollars | F13: Real $2018 | G13: End_Year | H13: 0 | I13: 0 | J13: 0.0002209647993 | K13: 0 | L13: 0 | M13: 0 | N13: 0 | P13: 0.0002209647993
C14: 7 | D14: ='Metering total'!$D$16 -> Fleet leases | E14: Dollars | F14: Real $2018 | G14: End_Year | H14: 0 | I14: 0 | J14: 0.0007860978181 | K14: 0.0003522985858 | L14: 0.0002987248013 | M14: 0.002425911792 | N14: 0.002070805227 | P14: =SUM(J14:N14) -> 0.005933838224
D16: Total | E16: =E8 -> Dollars | F16: Real $2018 | G16: End_Year | H16: =SUM(H8:H14) -> 0 | I16: =SUM(I8:I14) -> 0.003285428972 | J16: 0.0125882321 | K16: 0.01506489538 | L16: 0.03273351681 | M16: 0.1122075529 | N16: 0.07155540006 | P16: 0.2441495973
B18: Workings - Total Direct Costs Requiring Escalation
C20: Ref. | D20: Regulatory Asset Class | E20: Unit | F20: Basis | G20: Timing | H20: RY18 | I20: RY19 | J20: RY20 | K20: RY21 | L20: RY22 | M20: RY23 | N20: RY24
C21: 1 | D21: ='Metering total'!$D$10 -> Mechanical Meters | E21: Dollars | F21: Real $2018 | G21: End_Year | H21: =Metering!H8 -> 0 | I21: =Metering!I8 -> 0 | J21: =Metering!J8 -> 0 | K21: =Metering!K8 -> 0 | L21: =Metering!L8 -> 0 | M21: =Metering!M8 -> 0 | N21: =Metering!N8 -> 0
C22: 2 | D22: ='Metering total'!$D$11 -> Electronic Meters | E22: Dollars | F22: Real $2018 | G22: End_Year | H22: =Metering!H9 -> 2.250454623 | I22: =Metering!I9 -> 4.453049122 | J22: =Metering!J9 -> 2.856013302 | K22: =Metering!K9 -> 2.894902288 | L22: =Metering!L9 -> 3.121643285 | M22: =Metering!M9 -> 2.887340294 | N22: =Metering!N9 -> 2.926736415
C23: 3 | D23: ='Metering total'!$D$12 -> Metering Communications | E23: Dollars | F23: Real $2018 | G23: End_Year | H23: =Metering!H10 -> 0 | I23: =Metering!I10 -> 0 | J23: =Metering!J10 -> 2.681342839 | K23: =Metering!K10 -> 0.1564452911 | L23: =Metering!L10 -> 0.1693210917 | M23: =Metering!M10 -> 4.00288572 | N23: =Metering!N10 -> 0.1602480067
C24: 4 | D24: ='Metering total'!$D$13 -> Metering Dedicated CTs and VTs | E24: Dollars | F24: Real $2018 | G24: End_Year | H24: =Metering!H11 -> 0.1080452282 | I24: =Metering!I11 -> 0.1080535717 | J24: =Metering!J11 -> 0.1083271034 | K24: =Metering!K11 -> 0.1083858609 | L24: =Metering!L11 -> 0.108470425 | M24: =Metering!M11 -> 0.1085713498 | N24: =Metering!N11 -> 0.1086720086
C25: 5 | D25: ='Metering total'!$D$14 -> Metering Non Network Other | E25: Dollars | F25: Real $2018 | G25: End_Year | H25: =Metering!H12 -> 0 | I25: =Metering!I12 -> 0 | J25: =Metering!J12 -> 0 | K25: =Metering!K12 -> 0 | L25: =Metering!L12 -> 0 | M25: =Metering!M12 -> 0 | N25: =Metering!N12 -> 0
C26: 6 | D26: ='Metering total'!$D$15 -> Metering Non Network IT and Communications | E26: Dollars | F26: Real $2018 | G26: End_Year | H26: =Metering!H13 -> 0 | I26: =Metering!I13 -> 0 | J26: =Metering!J13 -> 0.1077177281 | K26: =Metering!K13 -> 0 | L26: =Metering!L13 -> 0 | M26: =Metering!M13 -> 0 | N26: =Metering!N13 -> 0
C27: 6 | D27: ='Metering total'!$D$16 -> Fleet leases | E27: Dollars | F27: Real $2018 | G27: End_Year | H27: =Metering!H14 -> 0 | I27: =Metering!I14 -> 0 | J27: =Metering!J14 -> 0.3832133955 | K27: =Metering!K14 -> 0.0756609889 | L27: =Metering!L14 -> 0.03130883297 | M27: =Metering!M14 -> 0.1546566883 | N27: =Metering!N14 -> 0.09523811797
D29: Total | E29: Dollars | F29: Real $2018 | G29: End_Year | H29: =SUM(H21:H27) -> 2.358499851 | I29: =SUM(I21:I27) -> 4.561102694 | J29: 6.136614368 | K29: 3.235394429 | L29: 3.430743634 | M29: 7.153454052 | N29: 3.290894549
D31: =Escalation!D56 -> Applied Escalation Profile | E31: =Escalation!E56 -> Factor | F31: =Escalation!F56 -> N/A | G31: =Escalation!G56 -> N/A | H31: =Escalation!H56 -> 1 | I31: =Escalation!I56 -> 1.000720315 | J31: =Escalation!J56 -> 1.002051332 | K31: =Escalation!K56 -> 1.004656278 | L31: =Escalation!L56 -> 1.009541231 | M31: =Escalation!M56 -> 1.015685786 | N31: =Escalation!N56 -> 1.02174345 | P31: Note: Sourced from the 'Escalation' sheet
B33: End

Sheet Metering | Capitalised OH
B1: Capitalised Overheads Forecast - Metering
B3: =B1 -> Capitalised Overheads Forecast - Metering
C5: Escalated Capitalised Overheads
C7: Ref. | D7: Regulatory Asset Class | E7: Unit | F7: Basis | G7: Timing | H7: RY18 | I7: RY19 | J7: RY20 | K7: RY21 | L7: RY22 | M7: RY23 | N7: RY24 | P7: Total FY20 to FY24
C8: =N(C7)+1 -> 1 | D8: ='Metering total'!$D$10 -> Mechanical Meters | E8: Dollars | F8: Real $2018 | G8: End_Year | H8: 0 | I8: 0 | J8: =IF(OR($P28="No",SUMIF($P$28:$P$34,"Yes",J$28:J$34)=0),0,J28/SUMIF($P$28:$P$34,"Yes",J$28:J$34))*J$23 -> 0 | K8: 0 | L8: 0 | M8: 0 | N8: 0 | P8: =SUM(J8:N8) -> 0
C9: =N(C8)+1 -> 2 | D9: ='Metering total'!$D$11 -> Electronic Meters | E9: Dollars | F9: Real $2018 | G9: End_Year | H9: 0 | I9: 0 | J9: =IF(OR($P29="No",SUMIF($P$28:$P$34,"Yes",J$28:J$34)=0),0,J29/SUMIF($P$28:$P$34,"Yes",J$28:J$34))*J$23 -> 0.1516536048 | K9: 0.2941946146 | L9: 0.3031994178 | M9: 0.1360824211 | N9: 0.3033400632 | P9: 1.188470121
C10: 3 | D10: ='Metering total'!$D$12 -> Metering Communications | E10: Dollars | F10: Real $2018 | G10: End_Year | H10: 0 | I10: 0 | J10: =IF(OR($P30="No",SUMIF($P$28:$P$34,"Yes",J$28:J$34)=0),0,J30/SUMIF($P$28:$P$34,"Yes",J$28:J$34))*J$23 -> 0.1423786461 | K10: 0.01589876187 | L10: 0.01644584334 | M10: 0.188658878 | N10: 0.01660882075 | P10: 0.37999095
C11: 4 | D11: ='Metering total'!$D$13 -> Metering Dedicated CTs and VTs | E11: Dollars | F11: Real $2018 | G11: End_Year | H11: 0 | I11: 0 | J11: =IF(OR($P31="No",SUMIF($P$28:$P$34,"Yes",J$28:J$34)=0),0,J31/SUMIF($P$28:$P$34,"Yes",J$28:J$34))*J$23 -> 0.005752142582 | K11: 0.01101471947 | L11: 0.01053553104 | M11: 0.005117045669 | N11: 0.01126325343 | P11: 0.04368269218
C12: 5 | D12: ='Metering total'!$D$14 -> Metering Non Network Other | E12: Dollars | F12: Real $2018 | G12: End_Year | H12: 0 | I12: 0 | J12: =IF(OR($P32="No",SUMIF($P$28:$P$34,"Yes",J$28:J$34)=0),0,J32/SUMIF($P$28:$P$34,"Yes",J$28:J$34))*J$23 -> 0 | K12: 0 | L12: 0 | M12: 0 | N12: 0 | P12: 0
C13: 6 | D13: ='Metering total'!$D$15 -> Metering Non Network IT and Communications | E13: Dollars | F13: Real $2018 | G13: End_Year | H13: 0 | I13: 0 | J13: =IF(OR($P33="No",SUMIF($P$28:$P$34,"Yes",J$28:J$34)=0),0,J33/SUMIF($P$28:$P$34,"Yes",J$28:J$34))*J$23 -> 0.005719784902 | K13: 0 | L13: 0 | M13: 0 | N13: 0 | P13: 0.005719784902
C14: 7 | D14: ='Metering total'!$D$16 -> Fleet leases | E14: Dollars | F14: Real $2018 | G14: End_Year | H14: 0 | I14: 0 | J14: =IF(OR($P34="No",SUMIF($P$28:$P$34,"Yes",J$28:J$34)=0),0,J34/SUMIF($P$28:$P$34,"Yes",J$28:J$34))*J$23 -> 0.02034853717 | K14: =IF(OR($P34="No",SUMIF($P$28:$P$34,"Yes",K$28:K$34)=0),0,K34/SUMIF($P$28:$P$34,"Yes",K$28:K$34))*K$23 -> 0.007689052429 | L14: 0.00304096883 | M14: 0.007289080762 | N14: 0.009870904866 | P14: =SUM(J14:N14) -> 0.04823854405
D16: Total | E16: =E8 -> Dollars | F16: Real $2018 | G16: End_Year | H16: =SUM(H8:H14) -> 0 | I16: =SUM(I8:I14) -> 0 | J16: 0.3258527155 | K16: 0.3287971484 | L16: 0.333221761 | M16: 0.3371474256 | N16: 0.3410830423 | P16: 1.666102093
B18: Capitalised Overheads to be allocated
C20: Ref. | D20: Regulatory Asset Class | E20: Unit | F20: Basis | G20: Timing | H20: RY18 | I20: RY19 | J20: RY20 | K20: RY21 | L20: RY22 | M20: RY23 | N20: RY24
C21: =N(C20)+1 -> 1 | D21: Direct Unescalated Capitalised Overheads | E21: Dollars | F21: Real $2018 | G21: End_Year | H21: =SUM('[5]Report|Summary'!$E$44:$E$45)/10^6*(1+'Total by category'!$H$22)^0.5 -> 0.3208876495 | I21: N/A | J21: N/A | K21: N/A | L21: N/A | M21: N/A | N21: N/A
C22: =N(C21)+1 -> 2 | D22: ='Capitalised OH'!D33 -> Overall Rate of Change | E22: ='Capitalised OH'!E33 -> Percent | F22: ='Capitalised OH'!F33 -> N/A | G22: ='Capitalised OH'!G33 -> N/A | H22: ='Capitalised OH'!H33 -> N/A | I22: ='Capitalised OH'!I33 -> 0.008352746357 | J22: ='Capitalised OH'!J33 -> 0.007061184239 | K22: ='Capitalised OH'!K33 -> 0.009036085147 | L22: ='Capitalised OH'!L33 -> 0.01345696777 | M22: ='Capitalised OH'!M33 -> 0.01178093695 | N22: ='Capitalised OH'!N33 -> 0.01167328117
C23: 3 | D23: Total Capitalised Overheads | E23: Dollars | F23: Real $2018 | G23: End_Year | H23: =H21 -> 0.3208876495 | I23: =H23*(1+I22) -> 0.3235679426 | J23: =I23*(1+J22) -> 0.3258527155 | K23: 0.3287971484 | L23: 0.333221761 | M23: 0.3371474256 | N23: 0.3410830423
B25: Share of Direct Costs
C27: Ref. | D27: Regulatory Asset Class | E27: Unit | F27: Basis | G27: Timing | H27: RY18 | I27: RY19 | J27: RY20 | K27: RY21 | L27: RY22 | M27: RY23 | N27: RY24 | P27: Allocated OH?
C28: 1 | D28: ='Metering total'!$D$10 -> Mechanical Meters | E28: Dollars | F28: Real $2018 | G28: End_Year | H28: =IF('Metering | Escalation'!H$29=0,0,'Metering | Escalation'!H21/'Metering | Escalation'!H$29) -> 0 | I28: =IF('Metering | Escalation'!I$29=0,0,'Metering | Escalation'!I21/'Metering | Escalation'!I$29) -> 0 | J28: =IF('Metering | Escalation'!J$29=0,0,'Metering | Escalation'!J21/'Metering | Escalation'!J$29) -> 0 | K28: =IF('Metering | Escalation'!K$29=0,0,'Metering | Escalation'!K21/'Metering | Escalation'!K$29) -> 0 | L28: =IF('Metering | Escalation'!L$29=0,0,'Metering | Escalation'!L21/'Metering | Escalation'!L$29) -> 0 | M28: =IF('Metering | Escalation'!M$29=0,0,'Metering | Escalation'!M21/'Metering | Escalation'!M$29) -> 0 | N28: =IF('Metering | Escalation'!N$29=0,0,'Metering | Escalation'!N21/'Metering | Escalation'!N$29) -> 0 | P28: Yes
C29: 2 | D29: ='Metering total'!$D$11 -> Electronic Meters | E29: Dollars | F29: Real $2018 | G29: End_Year | H29: =IF('Metering | Escalation'!H$29=0,0,'Metering | Escalation'!H22/'Metering | Escalation'!H$29) -> 0.9541890036 | I29: =IF('Metering | Escalation'!I$29=0,0,'Metering | Escalation'!I22/'Metering | Escalation'!I$29) -> 0.97630977 | J29: =IF('Metering | Escalation'!J$29=0,0,'Metering | Escalation'!J22/'Metering | Escalation'!J$29) -> 0.4654053735 | K29: =IF('Metering | Escalation'!K$29=0,0,'Metering | Escalation'!K22/'Metering | Escalation'!K$29) -> 0.8947602376 | L29: =IF('Metering | Escalation'!L$29=0,0,'Metering | Escalation'!L22/'Metering | Escalation'!L$29) -> 0.9099028133 | M29: =IF('Metering | Escalation'!M$29=0,0,'Metering | Escalation'!M22/'Metering | Escalation'!M$29) -> 0.4036288306 | N29: =IF('Metering | Escalation'!N$29=0,0,'Metering | Escalation'!N22/'Metering | Escalation'!N$29) -> 0.8893437247 | P29: Yes
C30: 3 | D30: ='Metering total'!$D$12 -> Metering Communications | E30: Dollars | F30: Real $2018 | G30: End_Year | H30: =IF('Metering | Escalation'!H$29=0,0,'Metering | Escalation'!H23/'Metering | Escalation'!H$29) -> 0 | I30: =IF('Metering | Escalation'!I$29=0,0,'Metering | Escalation'!I23/'Metering | Escalation'!I$29) -> 0 | J30: =IF('Metering | Escalation'!J$29=0,0,'Metering | Escalation'!J23/'Metering | Escalation'!J$29) -> 0.4369417203 | K30: =IF('Metering | Escalation'!K$29=0,0,'Metering | Escalation'!K23/'Metering | Escalation'!K$29) -> 0.048354318 | L30: =IF('Metering | Escalation'!L$29=0,0,'Metering | Escalation'!L23/'Metering | Escalation'!L$29) -> 0.04935404965 | M30: =IF('Metering | Escalation'!M$29=0,0,'Metering | Escalation'!M23/'Metering | Escalation'!M$29) -> 0.5595738354 | N30: =IF('Metering | Escalation'!N$29=0,0,'Metering | Escalation'!N23/'Metering | Escalation'!N$29) -> 0.04869436087 | P30: Yes
C31: 4 | D31: ='Metering total'!$D$13 -> Metering Dedicated CTs and VTs | E31: Dollars | F31: Real $2018 | G31: End_Year | H31: =IF('Metering | Escalation'!H$29=0,0,'Metering | Escalation'!H24/'Metering | Escalation'!H$29) -> 0.04581099641 | I31: =IF('Metering | Escalation'!I$29=0,0,'Metering | Escalation'!I24/'Metering | Escalation'!I$29) -> 0.02369022996 | J31: =IF('Metering | Escalation'!J$29=0,0,'Metering | Escalation'!J24/'Metering | Escalation'!J$29) -> 0.01765258446 | K31: =IF('Metering | Escalation'!K$29=0,0,'Metering | Escalation'!K24/'Metering | Escalation'!K$29) -> 0.03350004561 | L31: =IF('Metering | Escalation'!L$29=0,0,'Metering | Escalation'!L24/'Metering | Escalation'!L$29) -> 0.03161717591 | M31: =IF('Metering | Escalation'!M$29=0,0,'Metering | Escalation'!M24/'Metering | Escalation'!M$29) -> 0.01517747217 | N31: =IF('Metering | Escalation'!N$29=0,0,'Metering | Escalation'!N24/'Metering | Escalation'!N$29) -> 0.03302202699 | P31: Yes
C32: 5 | D32: ='Metering total'!$D$14 -> Metering Non Network Other | E32: Dollars | F32: Real $2018 | G32: End_Year | H32: =IF('Metering | Escalation'!H$29=0,0,'Metering | Escalation'!H25/'Metering | Escalation'!H$29) -> 0 | I32: =IF('Metering | Escalation'!I$29=0,0,'Metering | Escalation'!I25/'Metering | Escalation'!I$29) -> 0 | J32: =IF('Metering | Escalation'!J$29=0,0,'Metering | Escalation'!J25/'Metering | Escalation'!J$29) -> 0 | K32: =IF('Metering | Escalation'!K$29=0,0,'Metering | Escalation'!K25/'Metering | Escalation'!K$29) -> 0 | L32: =IF('Metering | Escalation'!L$29=0,0,'Metering | Escalation'!L25/'Metering | Escalation'!L$29) -> 0 | M32: =IF('Metering | Escalation'!M$29=0,0,'Metering | Escalation'!M25/'Metering | Escalation'!M$29) -> 0 | N32: =IF('Metering | Escalation'!N$29=0,0,'Metering | Escalation'!N25/'Metering | Escalation'!N$29) -> 0 | P32: Yes
C33: 6 | D33: ='Metering total'!$D$15 -> Metering Non Network IT and Communications | E33: Dollars | F33: Real $2018 | G33: End_Year | H33: =IF('Metering | Escalation'!H$29=0,0,'Metering | Escalation'!H26/'Metering | Escalation'!H$29) -> 0 | I33: =IF('Metering | Escalation'!I$29=0,0,'Metering | Escalation'!I26/'Metering | Escalation'!I$29) -> 0 | J33: =IF('Metering | Escalation'!J$29=0,0,'Metering | Escalation'!J26/'Metering | Escalation'!J$29) -> 0.01755328291 | K33: =IF('Metering | Escalation'!K$29=0,0,'Metering | Escalation'!K26/'Metering | Escalation'!K$29) -> 0 | L33: =IF('Metering | Escalation'!L$29=0,0,'Metering | Escalation'!L26/'Metering | Escalation'!L$29) -> 0 | M33: =IF('Metering | Escalation'!M$29=0,0,'Metering | Escalation'!M26/'Metering | Escalation'!M$29) -> 0 | N33: =IF('Metering | Escalation'!N$29=0,0,'Metering | Escalation'!N26/'Metering | Escalation'!N$29) -> 0 | P33: Yes
C34: 6 | D34: ='Metering total'!$D$16 -> Fleet leases | E34: Dollars | F34: Real $2018 | G34: End_Year | H34: =IF('Metering | Escalation'!H$29=0,0,'Metering | Escalation'!H27/'Metering | Escalation'!H$29) -> 0 | I34: =IF('Metering | Escalation'!I$29=0,0,'Metering | Escalation'!I27/'Metering | Escalation'!I$29) -> 0 | J34: =IF('Metering | Escalation'!J$29=0,0,'Metering | Escalation'!J27/'Metering | Escalation'!J$29) -> 0.0624470388 | K34: =IF('Metering | Escalation'!K$29=0,0,'Metering | Escalation'!K27/'Metering | Escalation'!K$29) -> 0.02338539877 | L34: =IF('Metering | Escalation'!L$29=0,0,'Metering | Escalation'!L27/'Metering | Escalation'!L$29) -> 0.009125961105 | M34: =IF('Metering | Escalation'!M$29=0,0,'Metering | Escalation'!M27/'Metering | Escalation'!M$29) -> 0.02161986184 | N34: =IF('Metering | Escalation'!N$29=0,0,'Metering | Escalation'!N27/'Metering | Escalation'!N$29) -> 0.02893988749 | P34: Yes
D36: Total | E36: Dollars | F36: Real $2018 | G36: End_Year | H36: =SUM(H28:H34) -> 1 | I36: =SUM(I28:I34) -> 1 | J36: 1 | K36: 1 | L36: 1 | M36: 1 | N36: 1
B38: End

Sheet Repex -->
B8: Repex

Sheet BNI 1
B1: =MID(CELL("filename",A1),FIND("]",CELL("filename",A1))+1,255)&" Capital Expenditure" -> BNI 1 Capital Expenditure | G1: COMMERCIAL IN CONFIDENCE
B3: Direct Capex Forecasts
C5: BNI Description
D7: Requirement | E7: Description
D8: Expenditure category | E8: Distribution Lines
D9: Project / program number | E9: PRA34420
D10: Project / program description | E10: Alice Springs Corroded Poles
C12: Direct Costs (Excluding Capitalised Overheads and Cost Escalation)
C14: Ref. | D14: Regulatory Asset Class | E14: Unit | F14: Basis | G14: Timing | I14: RY19 | J14: RY20 | K14: RY21 | L14: RY22 | M14: RY23 | N14: RY24 | P14: Total FY20 to FY24
C15: =N(C14)+1 -> 1 | D15: Substations | E15: Dollars | F15: Real $2018 | G15: End_Year | I15: c-i-c | J15: c-i-c | K15: c-i-c | L15: c-i-c | M15: c-i-c | N15: c-i-c | P15: c-i-c
C16: =N(C15)+1 -> 2 | D16: Distribution Lines | E16: Dollars | F16: Real $2018 | G16: End_Year | I16: c-i-c | J16: c-i-c | K16: c-i-c | L16: c-i-c | M16: c-i-c | N16: c-i-c | P16: c-i-c
C17: 3 | D17: Transmission Lines | E17: Dollars | F17: Real $2018 | G17: End_Year | I17: c-i-c | J17: c-i-c | K17: c-i-c | L17: c-i-c | M17: c-i-c | N17: c-i-c | P17: c-i-c
C18: 4 | D18: LV Services | E18: Dollars | F18: Real $2018 | G18: End_Year | I18: c-i-c | J18: c-i-c | K18: c-i-c | L18: c-i-c | M18: c-i-c | N18: c-i-c | P18: c-i-c
C19: 5 | D19: Distribution Substations | E19: Dollars | F19: Real $2018 | G19: End_Year | I19: c-i-c | J19: c-i-c | K19: c-i-c | L19: c-i-c | M19: c-i-c | N19: c-i-c | P19: c-i-c
C20: 6 | D20: Distribution Switchgear | E20: Dollars | F20: Real $2018 | G20: End_Year | I20: c-i-c | J20: c-i-c | K20: c-i-c | L20: c-i-c | M20: c-i-c | N20: c-i-c | P20: c-i-c
C21: 7 | D21: Protection | E21: Dollars | F21: Real $2018 | G21: End_Year | I21: c-i-c | J21: c-i-c | K21: c-i-c | L21: c-i-c | M21: c-i-c | N21: c-i-c | P21: c-i-c
C22: 8 | D22: SCADA | E22: Dollars | F22: Real $2018 | G22: End_Year | I22: c-i-c | J22: c-i-c | K22: c-i-c | L22: c-i-c | M22: c-i-c | N22: c-i-c | P22: c-i-c
C23: 9 | D23: Communications | E23: Dollars | F23: Real $2018 | G23: End_Year | I23: c-i-c | J23: c-i-c | K23: c-i-c | L23: c-i-c | M23: c-i-c | N23: c-i-c | P23: c-i-c
C24: 10 | D24: Land and Easements | E24: Dollars | F24: Real $2018 | G24: End_Year | I24: c-i-c | J24: c-i-c | K24: c-i-c | L24: c-i-c | M24: c-i-c | N24: c-i-c | P24: c-i-c
C25: 11 | D25: Property | E25: Dollars | F25: Real $2018 | G25: End_Year | I25: c-i-c | J25: c-i-c | K25: c-i-c | L25: c-i-c | M25: c-i-c | N25: c-i-c | P25: c-i-c
C26: 12 | D26: IT and Communications | E26: Dollars | F26: Real $2018 | G26: End_Year | I26: c-i-c | J26: c-i-c | K26: c-i-c | L26: c-i-c | M26: c-i-c | N26: c-i-c | P26: c-i-c
C27: 13 | D27: Motor Vehicles | E27: Dollars | F27: Real $2018 | G27: End_Year | I27: c-i-c | J27: c-i-c | K27: c-i-c | L27: c-i-c | M27: c-i-c | N27: c-i-c | P27: c-i-c
C28: 14 | D28: Plant and Equipment | E28: Dollars | F28: Real $2018 | G28: End_Year | I28: c-i-c | J28: c-i-c | K28: c-i-c | L28: c-i-c | M28: c-i-c | N28: c-i-c | P28: c-i-c
C29: 15 | D29: Property Leases | E29: Dollars | F29: Real $2018 | G29: End_Year | I29: c-i-c | J29: c-i-c | K29: c-i-c | L29: c-i-c | M29: c-i-c | N29: c-i-c | P29: c-i-c
C30: 16 | D30: Fleet Leases | E30: Dollars | F30: Real $2018 | G30: End_Year | I30: c-i-c | J30: c-i-c | K30: c-i-c | L30: c-i-c | M30: c-i-c | N30: c-i-c | P30: c-i-c
C31: 17 | D31: Buildings | E31: Dollars | F31: Real $2018 | G31: End_Year | I31: c-i-c | J31: c-i-c | K31: c-i-c | L31: c-i-c | M31: c-i-c | N31: c-i-c | P31: c-i-c
C32: 18 | D32: In-house Software | E32: Dollars | F32: Real $2018 | G32: End_Year | I32: c-i-c | J32: c-i-c | K32: c-i-c | L32: c-i-c | M32: c-i-c | N32: c-i-c | P32: c-i-c
E34: =E15 -> Dollars | F34: Real $2018 | G34: End_Year | I34: c-i-c | J34: c-i-c | K34: c-i-c | L34: c-i-c | M34: c-i-c | N34: c-i-c | P34: c-i-c
B36: End

Sheet BNI 2
B1: =MID(CELL("filename",A1),FIND("]",CELL("filename",A1))+1,255)&" Capital Expenditure" -> BNI 2 Capital Expenditure | G1: COMMERCIAL IN CONFIDENCE
B3: Direct Capex Forecasts
C5: BNI Description
D7: Requirement | E7: Description
D8: Expenditure category | E8: Substations
D9: Project / program number | E9: PRD30402
D10: Project / program description | E10: Darwin - Replace Berrimah ZSS
C12: Direct Costs (Excluding Capitalised Overheads and Cost Escalation)
C14: Ref. | D14: Regulatory Asset Class | E14: Unit | F14: Basis | G14: Timing | I14: RY19 | J14: RY20 | K14: RY21 | L14: RY22 | M14: RY23 | N14: RY24 | P14: Total FY20 to FY24
C15: =N(C14)+1 -> 1 | D15: Substations | E15: Dollars | F15: Real $2018 | G15: End_Year | I15: c-i-c | J15: c-i-c | K15: c-i-c | L15: c-i-c | M15: c-i-c | N15: c-i-c | P15: c-i-c
C16: =N(C15)+1 -> 2 | D16: Distribution Lines | E16: Dollars | F16: Real $2018 | G16: End_Year | I16: c-i-c | J16: c-i-c | K16: c-i-c | L16: c-i-c | M16: c-i-c | N16: c-i-c | P16: c-i-c
C17: 3 | D17: Transmission Lines | E17: Dollars | F17: Real $2018 | G17: End_Year | I17: c-i-c | J17: c-i-c | K17: c-i-c | L17: c-i-c | M17: c-i-c | N17: c-i-c | P17: c-i-c
C18: 4 | D18: LV Services | E18: Dollars | F18: Real $2018 | G18: End_Year | I18: c-i-c | J18: c-i-c | K18: c-i-c | L18: c-i-c | M18: c-i-c | N18: c-i-c | P18: c-i-c
C19: 5 | D19: Distribution Substations | E19: Dollars | F19: Real $2018 | G19: End_Year | I19: c-i-c | J19: c-i-c | K19: c-i-c | L19: c-i-c | M19: c-i-c | N19: c-i-c | P19: c-i-c
C20: 6 | D20: Distribution Switchgear | E20: Dollars | F20: Real $2018 | G20: End_Year | I20: c-i-c | J20: c-i-c | K20: c-i-c | L20: c-i-c | M20: c-i-c | N20: c-i-c | P20: c-i-c
C21: 7 | D21: Protection | E21: Dollars | F21: Real $2018 | G21: End_Year | I21: c-i-c | J21: c-i-c | K21: c-i-c | L21: c-i-c | M21: c-i-c | N21: c-i-c | P21: c-i-c
C22: 8 | D22: SCADA | E22: Dollars | F22: Real $2018 | G22: End_Year | I22: c-i-c | J22: c-i-c | K22: c-i-c | L22: c-i-c | M22: c-i-c | N22: c-i-c | P22: c-i-c
C23: 9 | D23: Communications | E23: Dollars | F23: Real $2018 | G23: End_Year | I23: c-i-c | J23: c-i-c | K23: c-i-c | L23: c-i-c | M23: c-i-c | N23: c-i-c | P23: c-i-c
C24: 10 | D24: Land and Easements | E24: Dollars | F24: Real $2018 | G24: End_Year | I24: c-i-c | J24: c-i-c | K24: c-i-c | L24: c-i-c | M24: c-i-c | N24: c-i-c | P24: c-i-c
C25: 11 | D25: Property | E25: Dollars | F25: Real $2018 | G25: End_Year | I25: c-i-c | J25: c-i-c | K25: c-i-c | L25: c-i-c | M25: c-i-c | N25: c-i-c | P25: c-i-c
C26: 12 | D26: IT and Communications | E26: Dollars | F26: Real $2018 | G26: End_Year | I26: c-i-c | J26: c-i-c | K26: c-i-c | L26: c-i-c | M26: c-i-c | N26: c-i-c | P26: c-i-c
C27: 13 | D27: Motor Vehicles | E27: Dollars | F27: Real $2018 | G27: End_Year | I27: c-i-c | J27: c-i-c | K27: c-i-c | L27: c-i-c | M27: c-i-c | N27: c-i-c | P27: c-i-c
C28: 14 | D28: Plant and Equipment | E28: Dollars | F28: Real $2018 | G28: End_Year | I28: c-i-c | J28: c-i-c | K28: c-i-c | L28: c-i-c | M28: c-i-c | N28: c-i-c | P28: c-i-c
C29: 15 | D29: Property Leases | E29: Dollars | F29: Real $2018 | G29: End_Year | I29: c-i-c | J29: c-i-c | K29: c-i-c | L29: c-i-c | M29: c-i-c | N29: c-i-c | P29: c-i-c
C30: 16 | D30: Fleet Leases | E30: Dollars | F30: Real $2018 | G30: End_Year | I30: c-i-c | J30: c-i-c | K30: c-i-c | L30: c-i-c | M30: c-i-c | N30: c-i-c | P30: c-i-c
C31: 17 | D31: Buildings | E31: Dollars | F31: Real $2018 | G31: End_Year | I31: c-i-c | J31: c-i-c | K31: c-i-c | L31: c-i-c | M31: c-i-c | N31: c-i-c | P31: c-i-c
C32: 18 | D32: In-house Software | E32: Dollars | F32: Real $2018 | G32: End_Year | I32: c-i-c | J32: c-i-c | K32: c-i-c | L32: c-i-c | M32: c-i-c | N32: c-i-c | P32: c-i-c
E34: =E15 -> Dollars | F34: Real $2018 | G34: End_Year | I34: c-i-c | J34: c-i-c | K34: c-i-c | L34: c-i-c | M34: c-i-c | N34: c-i-c | P34: c-i-c
B36: End

Sheet BNI 3
B1: =MID(CELL("filename",A1),FIND("]",CELL("filename",A1))+1,255)&" Capital Expenditure" -> BNI 3 Capital Expenditure | G1: COMMERCIAL IN CONFIDENCE
B3: Direct Capex Forecasts
C5: BNI Description
D7: Requirement | E7: Description
D8: Expenditure category | E8: Protection and SCADA
D9: Project / program number | E9: PRD32117
D10: Project / program description | E10: Darwin - Upgrade DKTL Secondary Systems
C12: Direct Costs (Excluding Capitalised Overheads and Cost Escalation)
C14: Ref. | D14: Regulatory Asset Class | E14: Unit | F14: Basis | G14: Timing | I14: RY19 | J14: RY20 | K14: RY21 | L14: RY22 | M14: RY23 | N14: RY24 | P14: Total FY20 to FY24
C15: =N(C14)+1 -> 1 | D15: Substations | E15: Dollars | F15: Real $2018 | G15: End_Year | I15: c-i-c | J15: c-i-c | K15: c-i-c | L15: c-i-c | M15: c-i-c | N15: c-i-c | P15: c-i-c
C16: =N(C15)+1 -> 2 | D16: Distribution Lines | E16: Dollars | F16: Real $2018 | G16: End_Year | I16: c-i-c | J16: c-i-c | K16: c-i-c | L16: c-i-c | M16: c-i-c | N16: c-i-c | P16: c-i-c
C17: 3 | D17: Transmission Lines | E17: Dollars | F17: Real $2018 | G17: End_Year | I17: c-i-c | J17: c-i-c | K17: c-i-c | L17: c-i-c | M17: c-i-c | N17: c-i-c | P17: c-i-c
C18: 4 | D18: LV Services | E18: Dollars | F18: Real $2018 | G18: End_Year | I18: c-i-c | J18: c-i-c | K18: c-i-c | L18: c-i-c | M18: c-i-c | N18: c-i-c | P18: c-i-c
C19: 5 | D19: Distribution Substations | E19: Dollars | F19: Real $2018 | G19: End_Year | I19: c-i-c | J19: c-i-c | K19: c-i-c | L19: c-i-c | M19: c-i-c | N19: c-i-c | P19: c-i-c
C20: 6 | D20: Distribution Switchgear | E20: Dollars | F20: Real $2018 | G20: End_Year | I20: c-i-c | J20: c-i-c | K20: c-i-c | L20: c-i-c | M20: c-i-c | N20: c-i-c | P20: c-i-c
C21: 7 | D21: Protection | E21: Dollars | F21: Real $2018 | G21: End_Year | I21: c-i-c | J21: c-i-c | K21: c-i-c | L21: c-i-c | M21: c-i-c | N21: c-i-c | P21: c-i-c
C22: 8 | D22: SCADA | E22: Dollars | F22: Real $2018 | G22: End_Year | I22: c-i-c | J22: c-i-c | K22: c-i-c | L22: c-i-c | M22: c-i-c | N22: c-i-c | P22: c-i-c
C23: 9 | D23: Communications | E23: Dollars | F23: Real $2018 | G23: End_Year | I23: c-i-c | J23: c-i-c | K23: c-i-c | L23: c-i-c | M23: c-i-c | N23: c-i-c | P23: c-i-c
C24: 10 | D24: Land and Easements | E24: Dollars | F24: Real $2018 | G24: End_Year | I24: c-i-c | J24: c-i-c | K24: c-i-c | L24: c-i-c | M24: c-i-c | N24: c-i-c | P24: c-i-c
C25: 11 | D25: Property | E25: Dollars | F25: Real $2018 | G25: End_Year | I25: c-i-c | J25: c-i-c | K25: c-i-c | L25: c-i-c | M25: c-i-c | N25: c-i-c | P25: c-i-c
C26: 12 | D26: IT and Communications | E26: Dollars | F26: Real $2018 | G26: End_Year | I26: c-i-c | J26: c-i-c | K26: c-i-c | L26: c-i-c | M26: c-i-c | N26: c-i-c | P26: c-i-c
C27: 13 | D27: Motor Vehicles | E27: Dollars | F27: Real $2018 | G27: End_Year | I27: c-i-c | J27: c-i-c | K27: c-i-c | L27: c-i-c | M27: c-i-c | N27: c-i-c | P27: c-i-c
C28: 14 | D28: Plant and Equipment | E28: Dollars | F28: Real $2018 | G28: End_Year | I28: c-i-c | J28: c-i-c | K28: c-i-c | L28: c-i-c | M28: c-i-c | N28: c-i-c | P28: c-i-c
C29: 15 | D29: Property Leases | E29: Dollars | F29: Real $2018 | G29: End_Year | I29: c-i-c | J29: c-i-c | K29: c-i-c | L29: c-i-c | M29: c-i-c | N29: c-i-c | P29: c-i-c
C30: 16 | D30: Fleet Leases | E30: Dollars | F30: Real $2018 | G30: End_Year | I30: c-i-c | J30: c-i-c | K30: c-i-c | L30: c-i-c | M30: c-i-c | N30: c-i-c | P30: c-i-c
C31: 17 | D31: Buildings | E31: Dollars | F31: Real $2018 | G31: End_Year | I31: c-i-c | J31: c-i-c | K31: c-i-c | L31: c-i-c | M31: c-i-c | N31: c-i-c | P31: c-i-c
C32: 18 | D32: In-house Software | E32: Dollars | F32: Real $2018 | G32: End_Year | I32: c-i-c | J32: c-i-c | K32: c-i-c | L32: c-i-c | M32: c-i-c | N32: c-i-c | P32: c-i-c
E34: =E15 -> Dollars | F34: Real $2018 | G34: End_Year | I34: c-i-c | J34: c-i-c | K34: c-i-c | L34: c-i-c | M34: c-i-c | N34: c-i-c | P34: c-i-c
B36: End

Sheet BNI 4
B1: =MID(CELL("filename",A1),FIND("]",CELL("filename",A1))+1,255)&" Capital Expenditure" -> BNI 4 Capital Expenditure | G1: COMMERCIAL IN CONFIDENCE
B3: Direct Capex Forecasts
C5: BNI Description
D7: Requirement | E7: Description
D8: Expenditure category | E8: Substations
D9: Project / program number | E9: PRD33003
D10: Project / program description | E10: Darwin - Replace Cosmo Howley Transformers
C12: Direct Costs (Excluding Capitalised Overheads and Cost Escalation)
C14: Ref. | D14: Regulatory Asset Class | E14: Unit | F14: Basis | G14: Timing | I14: RY19 | J14: RY20 | K14: RY21 | L14: RY22 | M14: RY23 | N14: RY24 | P14: Total FY20 to FY24
C15: =N(C14)+1 -> 1 | D15: Substations | E15: Dollars | F15: Real $2018 | G15: End_Year | I15: c-i-c | J15: c-i-c | K15: c-i-c | L15: c-i-c | M15: c-i-c | N15: c-i-c | P15: c-i-c
C16: =N(C15)+1 -> 2 | D16: Distribution Lines | E16: Dollars | F16: Real $2018 | G16: End_Year | I16: c-i-c | J16: c-i-c | K16: c-i-c | L16: c-i-c | M16: c-i-c | N16: c-i-c | P16: c-i-c
C17: 3 | D17: Transmission Lines | E17: Dollars | F17: Real $2018 | G17: End_Year | I17: c-i-c | J17: c-i-c | K17: c-i-c | L17: c-i-c | M17: c-i-c | N17: c-i-c | P17: c-i-c
C18: 4 | D18: LV Services | E18: Dollars | F18: Real $2018 | G18: End_Year | I18: c-i-c | J18: c-i-c | K18: c-i-c | L18: c-i-c | M18: c-i-c | N18: c-i-c | P18: c-i-c
C19: 5 | D19: Distribution Substations | E19: Dollars | F19: Real $2018 | G19: End_Year | I19: c-i-c | J19: c-i-c | K19: c-i-c | L19: c-i-c | M19: c-i-c | N19: c-i-c | P19: c-i-c
C20: 6 | D20: Distribution Switchgear | E20: Dollars | F20: Real $2018 | G20: End_Year | I20: c-i-c | J20: c-i-c | K20: c-i-c | L20: c-i-c | M20: c-i-c | N20: c-i-c | P20: c-i-c
C21: 7 | D21: Protection | E21: Dollars | F21: Real $2018 | G21: End_Year | I21: c-i-c | J21: c-i-c | K21: c-i-c | L21: c-i-c | M21: c-i-c | N21: c-i-c | P21: c-i-c
C22: 8 | D22: SCADA | E22: Dollars | F22: Real $2018 | G22: End_Year | I22: c-i-c | J22: c-i-c | K22: c-i-c | L22: c-i-c | M22: c-i-c | N22: c-i-c | P22: c-i-c
C23: 9 | D23: Communications | E23: Dollars | F23: Real $2018 | G23: End_Year | I23: c-i-c | J23: c-i-c | K23: c-i-c | L23: c-i-c | M23: c-i-c | N23: c-i-c | P23: c-i-c
C24: 10 | D24: Land and Easements | E24: Dollars | F24: Real $2018 | G24: End_Year | I24: c-i-c | J24: c-i-c | K24: c-i-c | L24: c-i-c | M24: c-i-c | N24: c-i-c | P24: c-i-c
C25: 11 | D25: Property | E25: Dollars | F25: Real $2018 | G25: End_Year | I25: c-i-c | J25: c-i-c | K25: c-i-c | L25: c-i-c | M25: c-i-c | N25: c-i-c | P25: c-i-c
C26: 12 | D26: IT and Communications | E26: Dollars | F26: Real $2018 | G26: End_Year | I26: c-i-c | J26: c-i-c | K26: c-i-c | L26: c-i-c | M26: c-i-c | N26: c-i-c | P26: c-i-c
C27: 13 | D27: Motor Vehicles | E27: Dollars | F27: Real $2018 | G27: End_Year | I27: c-i-c | J27: c-i-c | K27: c-i-c | L27: c-i-c | M27: c-i-c | N27: c-i-c | P27: c-i-c
C28: 14 | D28: Plant and Equipment | E28: Dollars | F28: Real $2018 | G28: End_Year | I28: c-i-c | J28: c-i-c | K28: c-i-c | L28: c-i-c | M28: c-i-c | N28: c-i-c | P28: c-i-c
C29: 15 | D29: Property Leases | E29: Dollars | F29: Real $2018 | G29: End_Year | I29: c-i-c | J29: c-i-c | K29: c-i-c | L29: c-i-c | M29: c-i-c | N29: c-i-c | P29: c-i-c
C30: 16 | D30: Fleet Leases | E30: Dollars | F30: Real $2018 | G30: End_Year | I30: c-i-c | J30: c-i-c | K30: c-i-c | L30: c-i-c | M30: c-i-c | N30: c-i-c | P30: c-i-c
C31: 17 | D31: Buildings | E31: Dollars | F31: Real $2018 | G31: End_Year | I31: c-i-c | J31: c-i-c | K31: c-i-c | L31: c-i-c | M31: c-i-c | N31: c-i-c | P31: c-i-c
C32: 18 | D32: In-house Software | E32: Dollars | F32: Real $2018 | G32: End_Year | I32: c-i-c | J32: c-i-c | K32: c-i-c | L32: c-i-c | M32: c-i-c | N32: c-i-c | P32: c-i-c
E34: =E15 -> Dollars | F34: Real $2018 | G34: End_Year | I34: c-i-c | J34: c-i-c | K34: c-i-c | L34: c-i-c | M34: c-i-c | N34: c-i-c | P34: c-i-c
B36: End

Sheet BNI 5
B1: =MID(CELL("filename",A1),FIND("]",CELL("filename",A1))+1,255)&" Capital Expenditure" -> BNI 5 Capital Expenditure | G1: COMMERCIAL IN CONFIDENCE
B3: Direct Capex Forecasts
C5: BNI Description
D7: Requirement | E7: Description
D8: Expenditure category | E8: Distribution Lines
D9: Project / program number | E9: PRD33006
D10: Project / program description | E10: Darwin - Replace Port Feeder
C12: Direct Costs (Excluding Capitalised Overheads and Cost Escalation)
C14: Ref. | D14: Regulatory Asset Class | E14: Unit | F14: Basis | G14: Timing | I14: RY19 | J14: RY20 | K14: RY21 | L14: RY22 | M14: RY23 | N14: RY24 | P14: Total FY20 to FY24
C15: =N(C14)+1 -> 1 | D15: Substations | E15: Dollars | F15: Real $2018 | G15: End_Year | I15: c-i-c | J15: c-i-c | K15: c-i-c | L15: c-i-c | M15: c-i-c | N15: c-i-c | P15: c-i-c
C16: =N(C15)+1 -> 2 | D16: Distribution Lines | E16: Dollars | F16: Real $2018 | G16: End_Year | I16: c-i-c | J16: c-i-c | K16: c-i-c | L16: c-i-c | M16: c-i-c | N16: c-i-c | P16: c-i-c
C17: 3 | D17: Transmission Lines | E17: Dollars | F17: Real $2018 | G17: End_Year | I17: c-i-c | J17: c-i-c | K17: c-i-c | L17: c-i-c | M17: c-i-c | N17: c-i-c | P17: c-i-c
C18: 4 | D18: LV Services | E18: Dollars | F18: Real $2018 | G18: End_Year | I18: c-i-c | J18: c-i-c | K18: c-i-c | L18: c-i-c | M18: c-i-c | N18: c-i-c | P18: c-i-c
C19: 5 | D19: Distribution Substations | E19: Dollars | F19: Real $2018 | G19: End_Year | I19: c-i-c | J19: c-i-c | K19: c-i-c | L19: c-i-c | M19: c-i-c | N19: c-i-c | P19: c-i-c
C20: 6 | D20: Distribution Switchgear | E20: Dollars | F20: Real $2018 | G20: End_Year | I20: c-i-c | J20: c-i-c | K20: c-i-c | L20: c-i-c | M20: c-i-c | N20: c-i-c | P20: c-i-c
C21: 7 | D21: Protection | E21: Dollars | F21: Real $2018 | G21: End_Year | I21: c-i-c | J21: c-i-c | K21: c-i-c | L21: c-i-c | M21: c-i-c | N21: c-i-c | P21: c-i-c
C22: 8 | D22: SCADA | E22: Dollars | F22: Real $2018 | G22: End_Year | I22: c-i-c | J22: c-i-c | K22: c-i-c | L22: c-i-c | M22: c-i-c | N22: c-i-c | P22: c-i-c
C23: 9 | D23: Communications | E23: Dollars | F23: Real $2018 | G23: End_Year | I23: c-i-c | J23: c-i-c | K23: c-i-c | L23: c-i-c | M23: c-i-c | N23: c-i-c | P23: c-i-c
C24: 10 | D24: Land and Easements | E24: Dollars | F24: Real $2018 | G24: End_Year | I24: c-i-c | J24: c-i-c | K24: c-i-c | L24: c-i-c | M24: c-i-c | N24: c-i-c | P24: c-i-c
C25: 11 | D25: Property | E25: Dollars | F25: Real $2018 | G25: End_Year | I25: c-i-c | J25: c-i-c | K25: c-i-c | L25: c-i-c | M25: c-i-c | N25: c-i-c | P25: c-i-c
C26: 12 | D26: IT and Communications | E26: Dollars | F26: Real $2018 | G26: End_Year | I26: c-i-c | J26: c-i-c | K26: c-i-c | L26: c-i-c | M26: c-i-c | N26: c-i-c | P26: c-i-c
C27: 13 | D27: Motor Vehicles | E27: Dollars | F27: Real $2018 | G27: End_Year | I27: c-i-c | J27: c-i-c | K27: c-i-c | L27: c-i-c | M27: c-i-c | N27: c-i-c | P27: c-i-c
C28: 14 | D28: Plant and Equipment | E28: Dollars | F28: Real $2018 | G28: End_Year | I28: c-i-c | J28: c-i-c | K28: c-i-c | L28: c-i-c | M28: c-i-c | N28: c-i-c | P28: c-i-c
C29: 15 | D29: Property Leases | E29: Dollars | F29: Real $2018 | G29: End_Year | I29: c-i-c | J29: c-i-c | K29: c-i-c | L29: c-i-c | M29: c-i-c | N29: c-i-c | P29: c-i-c
C30: 16 | D30: Fleet Leases | E30: Dollars | F30: Real $2018 | G30: End_Year | I30: c-i-c | J30: c-i-c | K30: c-i-c | L30: c-i-c | M30: c-i-c | N30: c-i-c | P30: c-i-c
C31: 17 | D31: Buildings | E31: Dollars | F31: Real $2018 | G31: End_Year | I31: c-i-c | J31: c-i-c | K31: c-i-c | L31: c-i-c | M31: c-i-c | N31: c-i-c | P31: c-i-c
C32: 18 | D32: In-house Software | E32: Dollars | F32: Real $2018 | G32: End_Year | I32: c-i-c | J32: c-i-c | K32: c-i-c | L32: c-i-c | M32: c-i-c | N32: c-i-c | P32: c-i-c
E34: =E15 -> Dollars | F34: Real $2018 | G34: End_Year | I34: c-i-c | J34: c-i-c | K34: c-i-c | L34: c-i-c | M34: c-i-c | N34: c-i-c | P34: c-i-c
B36: End

Sheet BNI 6
B1: =MID(CELL("filename",A1),FIND("]",CELL("filename",A1))+1,255)&" Capital Expenditure" -> BNI 6 Capital Expenditure | G1: COMMERCIAL IN CONFIDENCE
B3: Direct Capex Forecasts
C5: BNI Description
D7: Requirement | E7: Description
D8: Expenditure category
D9: Project / program number
D10: Project / program description | E10: [deleted]
C12: Direct Costs (Excluding Capitalised Overheads and Cost Escalation)
C14: Ref. | D14: Regulatory Asset Class | E14: Unit | F14: Basis | G14: Timing | I14: RY19 | J14: RY20 | K14: RY21 | L14: RY22 | M14: RY23 | N14: RY24 | P14: Total FY20 to FY24
C15: =N(C14)+1 -> 1 | D15: Substations | E15: Dollars | F15: Real $2018 | G15: End_Year | I15: c-i-c | J15: c-i-c | K15: c-i-c | L15: c-i-c | M15: c-i-c | N15: c-i-c | P15: c-i-c
C16: =N(C15)+1 -> 2 | D16: Distribution Lines | E16: Dollars | F16: Real $2018 | G16: End_Year | I16: c-i-c | J16: c-i-c | K16: c-i-c | L16: c-i-c | M16: c-i-c | N16: c-i-c | P16: c-i-c
C17: 3 | D17: Transmission Lines | E17: Dollars | F17: Real $2018 | G17: End_Year | I17: c-i-c | J17: c-i-c | K17: c-i-c | L17: c-i-c | M17: c-i-c | N17: c-i-c | P17: c-i-c
C18: 4 | D18: LV Services | E18: Dollars | F18: Real $2018 | G18: End_Year | I18: c-i-c | J18: c-i-c | K18: c-i-c | L18: c-i-c | M18: c-i-c | N18: c-i-c | P18: c-i-c
C19: 5 | D19: Distribution Substations | E19: Dollars | F19: Real $2018 | G19: End_Year | I19: c-i-c | J19: c-i-c | K19: c-i-c | L19: c-i-c | M19: c-i-c | N19: c-i-c | P19: c-i-c
C20: 6 | D20: Distribution Switchgear | E20: Dollars | F20: Real $2018 | G20: End_Year | I20: c-i-c | J20: c-i-c | K20: c-i-c | L20: c-i-c | M20: c-i-c | N20: c-i-c | P20: c-i-c
C21: 7 | D21: Protection | E21: Dollars | F21: Real $2018 | G21: End_Year | I21: c-i-c | J21: c-i-c | K21: c-i-c | L21: c-i-c | M21: c-i-c | N21: c-i-c | P21: c-i-c
C22: 8 | D22: SCADA | E22: Dollars | F22: Real $2018 | G22: End_Year | I22: c-i-c | J22: c-i-c | K22: c-i-c | L22: c-i-c | M22: c-i-c | N22: c-i-c | P22: c-i-c
C23: 9 | D23: Communications | E23: Dollars | F23: Real $2018 | G23: End_Year | I23: c-i-c | J23: c-i-c | K23: c-i-c | L23: c-i-c | M23: c-i-c | N23: c-i-c | P23: c-i-c
C24: 10 | D24: Land and Easements | E24: Dollars | F24: Real $2018 | G24: End_Year | I24: c-i-c | J24: c-i-c | K24: c-i-c | L24: c-i-c | M24: c-i-c | N24: c-i-c | P24: c-i-c
C25: 11 | D25: Property | E25: Dollars | F25: Real $2018 | G25: End_Year | I25: c-i-c | J25: c-i-c | K25: c-i-c | L25: c-i-c | M25: c-i-c | N25: c-i-c | P25: c-i-c
C26: 12 | D26: IT and Communications | E26: Dollars | F26: Real $2018 | G26: End_Year | I26: c-i-c | J26: c-i-c | K26: c-i-c | L26: c-i-c | M26: c-i-c | N26: c-i-c | P26: c-i-c
C27: 13 | D27: Motor Vehicles | E27: Dollars | F27: Real $2018 | G27: End_Year | I27: c-i-c | J27: c-i-c | K27: c-i-c | L27: c-i-c | M27: c-i-c | N27: c-i-c | P27: c-i-c
C28: 14 | D28: Plant and Equipment | E28: Dollars | F28: Real $2018 | G28: End_Year | I28: c-i-c | J28: c-i-c | K28: c-i-c | L28: c-i-c | M28: c-i-c | N28: c-i-c | P28: c-i-c
C29: 15 | D29: Property Leases | E29: Dollars | F29: Real $2018 | G29: End_Year | I29: c-i-c | J29: c-i-c | K29: c-i-c | L29: c-i-c | M29: c-i-c | N29: c-i-c | P29: c-i-c
C30: 16 | D30: Fleet Leases | E30: Dollars | F30: Real $2018 | G30: End_Year | I30: c-i-c | J30: c-i-c | K30: c-i-c | L30: c-i-c | M30: c-i-c | N30: c-i-c | P30: c-i-c
C31: 17 | D31: Buildings | E31: Dollars | F31: Real $2018 | G31: End_Year | I31: c-i-c | J31: c-i-c | K31: c-i-c | L31: c-i-c | M31: c-i-c | N31: c-i-c | P31: c-i-c
C32: 18 | D32: In-house Software | E32: Dollars | F32: Real $2018 | G32: End_Year | I32: c-i-c | J32: c-i-c | K32: c-i-c | L32: c-i-c | M32: c-i-c | N32: c-i-c | P32: c-i-c
E34: =E15 -> Dollars | F34: Real $2018 | G34: End_Year | I34: c-i-c | J34: c-i-c | K34: c-i-c | L34: c-i-c | M34: c-i-c | N34: c-i-c | P34: c-i-c
B36: End

Sheet BNI 7
B1: =MID(CELL("filename",A1),FIND("]",CELL("filename",A1))+1,255)&" Capital Expenditure" -> BNI 7 Capital Expenditure | G1: COMMERCIAL IN CONFIDENCE
B3: Direct Capex Forecasts
C5: BNI Description
D7: Requirement | E7: Description
D8: Expenditure category | E8: Substations
D9: Project / program number | E9: PRD33125
D10: Project / program description | E10: Darwin Replace 66/11kV Centreyard ZSS
C12: Direct Costs (Excluding Capitalised Overheads and Cost Escalation)
C14: Ref. | D14: Regulatory Asset Class | E14: Unit | F14: Basis | G14: Timing | I14: RY19 | J14: RY20 | K14: RY21 | L14: RY22 | M14: RY23 | N14: RY24 | P14: Total FY20 to FY24
C15: =N(C14)+1 -> 1 | D15: Substations | E15: Dollars | F15: Real $2018 | G15: End_Year | I15: c-i-c | J15: c-i-c | K15: c-i-c | L15: c-i-c | M15: c-i-c | N15: c-i-c | P15: c-i-c
C16: =N(C15)+1 -> 2 | D16: Distribution Lines | E16: Dollars | F16: Real $2018 | G16: End_Year | I16: c-i-c | J16: c-i-c | K16: c-i-c | L16: c-i-c | M16: c-i-c | N16: c-i-c | P16: c-i-c
C17: 3 | D17: Transmission Lines | E17: Dollars | F17: Real $2018 | G17: End_Year | I17: c-i-c | J17: c-i-c | K17: c-i-c | L17: c-i-c | M17: c-i-c | N17: c-i-c | P17: c-i-c
C18: 4 | D18: LV Services | E18: Dollars | F18: Real $2018 | G18: End_Year | I18: c-i-c | J18: c-i-c | K18: c-i-c | L18: c-i-c | M18: c-i-c | N18: c-i-c | P18: c-i-c
C19: 5 | D19: Distribution Substations | E19: Dollars | F19: Real $2018 | G19: End_Year | I19: c-i-c | J19: c-i-c | K19: c-i-c | L19: c-i-c | M19: c-i-c | N19: c-i-c | P19: c-i-c
C20: 6 | D20: Distribution Switchgear | E20: Dollars | F20: Real $2018 | G20: End_Year | I20: c-i-c | J20: c-i-c | K20: c-i-c | L20: c-i-c | M20: c-i-c | N20: c-i-c | P20: c-i-c
C21: 7 | D21: Protection | E21: Dollars | F21: Real $2018 | G21: End_Year | I21: c-i-c | J21: c-i-c | K21: c-i-c | L21: c-i-c | M21: c-i-c | N21: c-i-c | P21: c-i-c
C22: 8 | D22: SCADA | E22: Dollars | F22: Real $2018 | G22: End_Year | I22: c-i-c | J22: c-i-c | K22: c-i-c | L22: c-i-c | M22: c-i-c | N22: c-i-c | P22: c-i-c
C23: 9 | D23: Communications | E23: Dollars | F23: Real $2018 | G23: End_Year | I23: c-i-c | J23: c-i-c | K23: c-i-c | L23: c-i-c | M23: c-i-c | N23: c-i-c | P23: c-i-c
C24: 10 | D24: Land and Easements | E24: Dollars | F24: Real $2018 | G24: End_Year | I24: c-i-c | J24: c-i-c | K24: c-i-c | L24: c-i-c | M24: c-i-c | N24: c-i-c | P24: c-i-c
C25: 11 | D25: Property | E25: Dollars | F25: Real $2018 | G25: End_Year | I25: c-i-c | J25: c-i-c | K25: c-i-c | L25: c-i-c | M25: c-i-c | N25: c-i-c | P25: c-i-c
C26: 12 | D26: IT and Communications | E26: Dollars | F26: Real $2018 | G26: End_Year | I26: c-i-c | J26: c-i-c | K26: c-i-c | L26: c-i-c | M26: c-i-c | N26: c-i-c | P26: c-i-c
C27: 13 | D27: Motor Vehicles | E27: Dollars | F27: Real $2018 | G27: End_Year | I27: c-i-c | J27: c-i-c | K27: c-i-c | L27: c-i-c | M27: c-i-c | N27: c-i-c | P27: c-i-c
C28: 14 | D28: Plant and Equipment | E28: Dollars | F28: Real $2018 | G28: End_Year | I28: c-i-c | J28: c-i-c | K28: c-i-c | L28: c-i-c | M28: c-i-c | N28: c-i-c | P28: c-i-c
C29: 15 | D29: Property Leases | E29: Dollars | F29: Real $2018 | G29: End_Year | I29: c-i-c | J29: c-i-c | K29: c-i-c | L29: c-i-c | M29: c-i-c | N29: c-i-c | P29: c-i-c
C30: 16 | D30: Fleet Leases | E30: Dollars | F30: Real $2018 | G30: End_Year | I30: c-i-c | J30: c-i-c | K30: c-i-c | L30: c-i-c | M30: c-i-c | N30: c-i-c | P30: c-i-c
C31: 17 | D31: Buildings | E31: Dollars | F31: Real $2018 | G31: End_Year | I31: c-i-c | J31: c-i-c | K31: c-i-c | L31: c-i-c | M31: c-i-c | N31: c-i-c | P31: c-i-c
C32: 18 | D32: In-house Software | E32: Dollars | F32: Real $2018 | G32: End_Year | I32: c-i-c | J32: c-i-c | K32: c-i-c | L32: c-i-c | M32: c-i-c | N32: c-i-c | P32: c-i-c
E34: =E15 -> Dollars | F34: Real $2018 | G34: End_Year | I34: c-i-c | J34: c-i-c | K34: c-i-c | L34: c-i-c | M34: c-i-c | N34: c-i-c | P34: c-i-c
B36: End

Sheet BNI 8
B1: =MID(CELL("filename",A1),FIND("]",CELL("filename",A1))+1,255)&" Capital Expenditure" -> BNI 8 Capital Expenditure | G1: COMMERCIAL IN CONFIDENCE
B3: Direct Capex Forecasts
C5: BNI Description
D7: Requirement | E7: Description
D8: Expenditure category
D9: Project / program number
D10: Project / program description | E10: [deleted]
C12: Direct Costs (Excluding Capitalised Overheads and Cost Escalation)
C14: Ref. | D14: Regulatory Asset Class | E14: Unit | F14: Basis | G14: Timing | I14: RY19 | J14: RY20 | K14: RY21 | L14: RY22 | M14: RY23 | N14: RY24 | P14: Total FY20 to FY24
C15: =N(C14)+1 -> 1 | D15: Substations | E15: Dollars | F15: Real $2018 | G15: End_Year | I15: c-i-c | J15: c-i-c | K15: c-i-c | L15: c-i-c | M15: c-i-c | N15: c-i-c | P15: c-i-c
C16: =N(C15)+1 -> 2 | D16: Distribution Lines | E16: Dollars | F16: Real $2018 | G16: End_Year | I16: c-i-c | J16: c-i-c | K16: c-i-c | L16: c-i-c | M16: c-i-c | N16: c-i-c | P16: c-i-c
C17: 3 | D17: Transmission Lines | E17: Dollars | F17: Real $2018 | G17: End_Year | I17: c-i-c | J17: c-i-c | K17: c-i-c | L17: c-i-c | M17: c-i-c | N17: c-i-c | P17: c-i-c
C18: 4 | D18: LV Services | E18: Dollars | F18: Real $2018 | G18: End_Year | I18: c-i-c | J18: c-i-c | K18: c-i-c | L18: c-i-c | M18: c-i-c | N18: c-i-c | P18: c-i-c
C19: 5 | D19: Distribution Substations | E19: Dollars | F19: Real $2018 | G19: End_Year | I19: c-i-c | J19: c-i-c | K19: c-i-c | L19: c-i-c | M19: c-i-c | N19: c-i-c | P19: c-i-c
C20: 6 | D20: Distribution Switchgear | E20: Dollars | F20: Real $2018 | G20: End_Year | I20: c-i-c | J20: c-i-c | K20: c-i-c | L20: c-i-c | M20: c-i-c | N20: c-i-c | P20: c-i-c
C21: 7 | D21: Protection | E21: Dollars | F21: Real $2018 | G21: End_Year | I21: c-i-c | J21: c-i-c | K21: c-i-c | L21: c-i-c | M21: c-i-c | N21: c-i-c | P21: c-i-c
C22: 8 | D22: SCADA | E22: Dollars | F22: Real $2018 | G22: End_Year | I22: c-i-c | J22: c-i-c | K22: c-i-c | L22: c-i-c | M22: c-i-c | N22: c-i-c | P22: c-i-c
C23: 9 | D23: Communications | E23: Dollars | F23: Real $2018 | G23: End_Year | I23: c-i-c | J23: c-i-c | K23: c-i-c | L23: c-i-c | M23: c-i-c | N23: c-i-c | P23: c-i-c
C24: 10 | D24: Land and Easements | E24: Dollars | F24: Real $2018 | G24: End_Year | I24: c-i-c | J24: c-i-c | K24: c-i-c | L24: c-i-c | M24: c-i-c | N24: c-i-c | P24: c-i-c
C25: 11 | D25: Property | E25: Dollars | F25: Real $2018 | G25: End_Year | I25: c-i-c | J25: c-i-c | K25: c-i-c | L25: c-i-c | M25: c-i-c | N25: c-i-c | P25: c-i-c
C26: 12 | D26: IT and Communications | E26: Dollars | F26: Real $2018 | G26: End_Year | I26: c-i-c | J26: c-i-c | K26: c-i-c | L26: c-i-c | M26: c-i-c | N26: c-i-c | P26: c-i-c
C27: 13 | D27: Motor Vehicles | E27: Dollars | F27: Real $2018 | G27: End_Year | I27: c-i-c | J27: c-i-c | K27: c-i-c | L27: c-i-c | M27: c-i-c | N27: c-i-c | P27: c-i-c
C28: 14 | D28: Plant and Equipment | E28: Dollars | F28: Real $2018 | G28: End_Year | I28: c-i-c | J28: c-i-c | K28: c-i-c | L28: c-i-c | M28: c-i-c | N28: c-i-c | P28: c-i-c
C29: 15 | D29: Property Leases | E29: Dollars | F29: Real $2018 | G29: End_Year | I29: c-i-c | J29: c-i-c | K29: c-i-c | L29: c-i-c | M29: c-i-c | N29: c-i-c | P29: c-i-c
C30: 16 | D30: Fleet Leases | E30: Dollars | F30: Real $2018 | G30: End_Year | I30: c-i-c | J30: c-i-c | K30: c-i-c | L30: c-i-c | M30: c-i-c | N30: c-i-c | P30: c-i-c
C31: 17 | D31: Buildings | E31: Dollars | F31: Real $2018 | G31: End_Year | I31: c-i-c | J31: c-i-c | K31: c-i-c | L31: c-i-c | M31: c-i-c | N31: c-i-c | P31: c-i-c
C32: 18 | D32: In-house Software | E32: Dollars | F32: Real $2018 | G32: End_Year | I32: c-i-c | J32: c-i-c | K32: c-i-c | L32: c-i-c | M32: c-i-c | N32: c-i-c | P32: c-i-c
E34: =E15 -> Dollars | F34: Real $2018 | G34: End_Year | I34: c-i-c | J34: c-i-c | K34: c-i-c | L34: c-i-c | M34: c-i-c | N34: c-i-c | P34: c-i-c
B36: End

Sheet BNI 9
B1: =MID(CELL("filename",A1),FIND("]",CELL("filename",A1))+1,255)&" Capital Expenditure" -> BNI 9 Capital Expenditure | G1: COMMERCIAL IN CONFIDENCE
B3: Direct Capex Forecasts
C5: BNI Description
D7: Requirement | E7: Description
D8: Expenditure category
D9: Project / program number
D10: Project / program description | E10: [deleted]
C12: Direct Costs (Excluding Capitalised Overheads and Cost Escalation)
C14: Ref. | D14: Regulatory Asset Class | E14: Unit | F14: Basis | G14: Timing | I14: RY19 | J14: RY20 | K14: RY21 | L14: RY22 | M14: RY23 | N14: RY24 | P14: Total FY20 to FY24
C15: =N(C14)+1 -> 1 | D15: Substations | E15: Dollars | F15: Real $2018 | G15: End_Year | I15: c-i-c | J15: c-i-c | K15: c-i-c | L15: c-i-c | M15: c-i-c | N15: c-i-c | P15: c-i-c
C16: =N(C15)+1 -> 2 | D16: Distribution Lines | E16: Dollars | F16: Real $2018 | G16: End_Year | I16: c-i-c | J16: c-i-c | K16: c-i-c | L16: c-i-c | M16: c-i-c | N16: c-i-c | P16: c-i-c
C17: 3 | D17: Transmission Lines | E17: Dollars | F17: Real $2018 | G17: End_Year | I17: c-i-c | J17: c-i-c | K17: c-i-c | L17: c-i-c | M17: c-i-c | N17: c-i-c | P17: c-i-c
C18: 4 | D18: LV Services | E18: Dollars | F18: Real $2018 | G18: End_Year | I18: c-i-c | J18: c-i-c | K18: c-i-c | L18: c-i-c | M18: c-i-c | N18: c-i-c | P18: c-i-c
C19: 5 | D19: Distribution Substations | E19: Dollars | F19: Real $2018 | G19: End_Year | I19: c-i-c | J19: c-i-c | K19: c-i-c | L19: c-i-c | M19: c-i-c | N19: c-i-c | P19: c-i-c
C20: 6 | D20: Distribution Switchgear | E20: Dollars | F20: Real $2018 | G20: End_Year | I20: c-i-c | J20: c-i-c | K20: c-i-c | L20: c-i-c | M20: c-i-c | N20: c-i-c | P20: c-i-c
C21: 7 | D21: Protection | E21: Dollars | F21: Real $2018 | G21: End_Year | I21: c-i-c | J21: c-i-c | K21: c-i-c | L21: c-i-c | M21: c-i-c | N21: c-i-c | P21: c-i-c
C22: 8 | D22: SCADA | E22: Dollars | F22: Real $2018 | G22: End_Year | I22: c-i-c | J22: c-i-c | K22: c-i-c | L22: c-i-c | M22: c-i-c | N22: c-i-c | P22: c-i-c
C23: 9 | D23: Communications | E23: Dollars | F23: Real $2018 | G23: End_Year | I23: c-i-c | J23: c-i-c | K23: c-i-c | L23: c-i-c | M23: c-i-c | N23: c-i-c | P23: c-i-c
C24: 10 | D24: Land and Easements | E24: Dollars | F24: Real $2018 | G24: End_Year | I24: c-i-c | J24: c-i-c | K24: c-i-c | L24: c-i-c | M24: c-i-c | N24: c-i-c | P24: c-i-c
C25: 11 | D25: Property | E25: Dollars | F25: Real $2018 | G25: End_Year | I25: c-i-c | J25: c-i-c | K25: c-i-c | L25: c-i-c | M25: c-i-c | N25: c-i-c | P25: c-i-c
C26: 12 | D26: IT and Communications | E26: Dollars | F26: Real $2018 | G26: End_Year | I26: c-i-c | J26: c-i-c | K26: c-i-c | L26: c-i-c | M26: c-i-c | N26: c-i-c | P26: c-i-c
C27: 13 | D27: Motor Vehicles | E27: Dollars | F27: Real $2018 | G27: End_Year | I27: c-i-c | J27: c-i-c | K27: c-i-c | L27: c-i-c | M27: c-i-c | N27: c-i-c | P27: c-i-c
C28: 14 | D28: Plant and Equipment | E28: Dollars | F28: Real $2018 | G28: End_Year | I28: c-i-c | J28: c-i-c | K28: c-i-c | L28: c-i-c | M28: c-i-c | N28: c-i-c | P28: c-i-c
C29: 15 | D29: Property Leases | E29: Dollars | F29: Real $2018 | G29: End_Year | I29: c-i-c | J29: c-i-c | K29: c-i-c | L29: c-i-c | M29: c-i-c | N29: c-i-c | P29: c-i-c
C30: 16 | D30: Fleet Leases | E30: Dollars | F30: Real $2018 | G30: End_Year | I30: c-i-c | J30: c-i-c | K30: c-i-c | L30: c-i-c | M30: c-i-c | N30: c-i-c | P30: c-i-c
C31: 17 | D31: Buildings | E31: Dollars | F31: Real $2018 | G31: End_Year | I31: c-i-c | J31: c-i-c | K31: c-i-c | L31: c-i-c | M31: c-i-c | N31: c-i-c | P31: c-i-c
C32: 18 | D32: In-house Software | E32: Dollars | F32: Real $2018 | G32: End_Year | I32: c-i-c | J32: c-i-c | K32: c-i-c | L32: c-i-c | M32: c-i-c | N32: c-i-c | P32: c-i-c
E34: =E15 -> Dollars | F34: Real $2018 | G34: End_Year | I34: c-i-c | J34: c-i-c | K34: c-i-c | L34: c-i-c | M34: c-i-c | N34: c-i-c | P34: c-i-c
B36: End

Sheet BNI 10
B1: =MID(CELL("filename",A1),FIND("]",CELL("filename",A1))+1,255)&" Capital Expenditure" -> BNI 10 Capital Expenditure | G1: COMMERCIAL IN CONFIDENCE
B3: Direct Capex Forecasts
C5: BNI Description
D7: Requirement | E7: Description
D8: Expenditure category | E8: Substations
D9: Project / program number | E9: PRD30401
D10: Project / program description | E10: Darwin - Replace Humpty Doo ZSS
C12: Direct Costs (Excluding Capitalised Overheads and Cost Escalation)
C14: Ref. | D14: Regulatory Asset Class | E14: Unit | F14: Basis | G14: Timing | I14: RY19 | J14: RY20 | K14: RY21 | L14: RY22 | M14: RY23 | N14: RY24 | P14: Total FY20 to FY24
C15: =N(C14)+1 -> 1 | D15: Substations | E15: Dollars | F15: Real $2018 | G15: End_Year | I15: c-i-c | J15: c-i-c | K15: c-i-c | L15: c-i-c | M15: c-i-c | N15: c-i-c | P15: c-i-c
C16: =N(C15)+1 -> 2 | D16: Distribution Lines | E16: Dollars | F16: Real $2018 | G16: End_Year | I16: c-i-c | J16: c-i-c | K16: c-i-c | L16: c-i-c | M16: c-i-c | N16: c-i-c | P16: c-i-c
C17: 3 | D17: Transmission Lines | E17: Dollars | F17: Real $2018 | G17: End_Year | I17: c-i-c | J17: c-i-c | K17: c-i-c | L17: c-i-c | M17: c-i-c | N17: c-i-c | P17: c-i-c
C18: 4 | D18: LV Services | E18: Dollars | F18: Real $2018 | G18: End_Year | I18: c-i-c | J18: c-i-c | K18: c-i-c | L18: c-i-c | M18: c-i-c | N18: c-i-c | P18: c-i-c
C19: 5 | D19: Distribution Substations | E19: Dollars | F19: Real $2018 | G19: End_Year | I19: c-i-c | J19: c-i-c | K19: c-i-c | L19: c-i-c | M19: c-i-c | N19: c-i-c | P19: c-i-c
C20: 6 | D20: Distribution Switchgear | E20: Dollars | F20: Real $2018 | G20: End_Year | I20: c-i-c | J20: c-i-c | K20: c-i-c | L20: c-i-c | M20: c-i-c | N20: c-i-c | P20: c-i-c
C21: 7 | D21: Protection | E21: Dollars | F21: Real $2018 | G21: End_Year | I21: c-i-c | J21: c-i-c | K21: c-i-c | L21: c-i-c | M21: c-i-c | N21: c-i-c | P21: c-i-c
C22: 8 | D22: SCADA | E22: Dollars | F22: Real $2018 | G22: End_Year | I22: c-i-c | J22: c-i-c | K22: c-i-c | L22: c-i-c | M22: c-i-c | N22: c-i-c | P22: c-i-c
C23: 9 | D23: Communications | E23: Dollars | F23: Real $2018 | G23: End_Year | I23: c-i-c | J23: c-i-c | K23: c-i-c | L23: c-i-c | M23: c-i-c | N23: c-i-c | P23: c-i-c
C24: 10 | D24: Land and Easements | E24: Dollars | F24: Real $2018 | G24: End_Year | I24: c-i-c | J24: c-i-c | K24: c-i-c | L24: c-i-c | M24: c-i-c | N24: c-i-c | P24: c-i-c
C25: 11 | D25: Property | E25: Dollars | F25: Real $2018 | G25: End_Year | I25: c-i-c | J25: c-i-c | K25: c-i-c | L25: c-i-c | M25: c-i-c | N25: c-i-c | P25: c-i-c
C26: 12 | D26: IT and Communications | E26: Dollars | F26: Real $2018 | G26: End_Year | I26: c-i-c | J26: c-i-c | K26: c-i-c | L26: c-i-c | M26: c-i-c | N26: c-i-c | P26: c-i-c
C27: 13 | D27: Motor Vehicles | E27: Dollars | F27: Real $2018 | G27: End_Year | I27: c-i-c | J27: c-i-c | K27: c-i-c | L27: c-i-c | M27: c-i-c | N27: c-i-c | P27: c-i-c
C28: 14 | D28: Plant and Equipment | E28: Dollars | F28: Real $2018 | G28: End_Year | I28: c-i-c | J28: c-i-c | K28: c-i-c | L28: c-i-c | M28: c-i-c | N28: c-i-c | P28: c-i-c
C29: 15 | D29: Property Leases | E29: Dollars | F29: Real $2018 | G29: End_Year | I29: c-i-c | J29: c-i-c | K29: c-i-c | L29: c-i-c | M29: c-i-c | N29: c-i-c | P29: c-i-c
C30: 16 | D30: Fleet Leases | E30: Dollars | F30: Real $2018 | G30: End_Year | I30: c-i-c | J30: c-i-c | K30: c-i-c | L30: c-i-c | M30: c-i-c | N30: c-i-c | P30: c-i-c
C31: 17 | D31: Buildings | E31: Dollars | F31: Real $2018 | G31: End_Year | I31: c-i-c | J31: c-i-c | K31: c-i-c | L31: c-i-c | M31: c-i-c | N31: c-i-c | P31: c-i-c
C32: 18 | D32: In-house Software | E32: Dollars | F32: Real $2018 | G32: End_Year | I32: c-i-c | J32: c-i-c | K32: c-i-c | L32: c-i-c | M32: c-i-c | N32: c-i-c | P32: c-i-c
E34: =E15 -> Dollars | F34: Real $2018 | G34: End_Year | I34: c-i-c | J34: c-i-c | K34: c-i-c | L34: c-i-c | M34: c-i-c | N34: c-i-c | P34: c-i-c
B36: End

Sheet BNI 11
B1: =MID(CELL("filename",A1),FIND("]",CELL("filename",A1))+1,255)&" Capital Expenditure" -> BNI 11 Capital Expenditure | G1: COMMERCIAL IN CONFIDENCE
B3: Direct Capex Forecasts
C5: BNI Description
D7: Requirement | E7: Description
D8: Expenditure category
D9: Project / program number
D10: Project / program description | E10: [deleted]
C12: Direct Costs (Excluding Capitalised Overheads and Cost Escalation)
C14: Ref. | D14: Regulatory Asset Class | E14: Unit | F14: Basis | G14: Timing | I14: RY19 | J14: RY20 | K14: RY21 | L14: RY22 | M14: RY23 | N14: RY24 | P14: Total FY20 to FY24
C15: =N(C14)+1 -> 1 | D15: Substations | E15: Dollars | F15: Real $2018 | G15: End_Year | I15: c-i-c | J15: c-i-c | K15: c-i-c | L15: c-i-c | M15: c-i-c | N15: c-i-c | P15: c-i-c
C16: =N(C15)+1 -> 2 | D16: Distribution Lines | E16: Dollars | F16: Real $2018 | G16: End_Year | I16: c-i-c | J16: c-i-c | K16: c-i-c | L16: c-i-c | M16: c-i-c | N16: c-i-c | P16: c-i-c
C17: 3 | D17: Transmission Lines | E17: Dollars | F17: Real $2018 | G17: End_Year | I17: c-i-c | J17: c-i-c | K17: c-i-c | L17: c-i-c | M17: c-i-c | N17: c-i-c | P17: c-i-c
C18: 4 | D18: LV Services | E18: Dollars | F18: Real $2018 | G18: End_Year | I18: c-i-c | J18: c-i-c | K18: c-i-c | L18: c-i-c | M18: c-i-c | N18: c-i-c | P18: c-i-c
C19: 5 | D19: Distribution Substations | E19: Dollars | F19: Real $2018 | G19: End_Year | I19: c-i-c | J19: c-i-c | K19: c-i-c | L19: c-i-c | M19: c-i-c | N19: c-i-c | P19: c-i-c
C20: 6 | D20: Distribution Switchgear | E20: Dollars | F20: Real $2018 | G20: End_Year | I20: c-i-c | J20: c-i-c | K20: c-i-c | L20: c-i-c | M20: c-i-c | N20: c-i-c | P20: c-i-c
C21: 7 | D21: Protection | E21: Dollars | F21: Real $2018 | G21: End_Year | I21: c-i-c | J21: c-i-c | K21: c-i-c | L21: c-i-c | M21: c-i-c | N21: c-i-c | P21: c-i-c
C22: 8 | D22: SCADA | E22: Dollars | F22: Real $2018 | G22: End_Year | I22: c-i-c | J22: c-i-c | K22: c-i-c | L22: c-i-c | M22: c-i-c | N22: c-i-c | P22: c-i-c
C23: 9 | D23: Communications | E23: Dollars | F23: Real $2018 | G23: End_Year | I23: c-i-c | J23: c-i-c | K23: c-i-c | L23: c-i-c | M23: c-i-c | N23: c-i-c | P23: c-i-c
C24: 10 | D24: Land and Easements | E24: Dollars | F24: Real $2018 | G24: End_Year | I24: c-i-c | J24: c-i-c | K24: c-i-c | L24: c-i-c | M24: c-i-c | N24: c-i-c | P24: c-i-c
C25: 11 | D25: Property | E25: Dollars | F25: Real $2018 | G25: End_Year | I25: c-i-c | J25: c-i-c | K25: c-i-c | L25: c-i-c | M25: c-i-c | N25: c-i-c | P25: c-i-c
C26: 12 | D26: IT and Communications | E26: Dollars | F26: Real $2018 | G26: End_Year | I26: c-i-c | J26: c-i-c | K26: c-i-c | L26: c-i-c | M26: c-i-c | N26: c-i-c | P26: c-i-c
C27: 13 | D27: Motor Vehicles | E27: Dollars | F27: Real $2018 | G27: End_Year | I27: c-i-c | J27: c-i-c | K27: c-i-c | L27: c-i-c | M27: c-i-c | N27: c-i-c | P27: c-i-c
C28: 14 | D28: Plant and Equipment | E28: Dollars | F28: Real $2018 | G28: End_Year | I28: c-i-c | J28: c-i-c | K28: c-i-c | L28: c-i-c | M28: c-i-c | N28: c-i-c | P28: c-i-c
C29: 15 | D29: Property Leases | E29: Dollars | F29: Real $2018 | G29: End_Year | I29: c-i-c | J29: c-i-c | K29: c-i-c | L29: c-i-c | M29: c-i-c | N29: c-i-c | P29: c-i-c
C30: 16 | D30: Fleet Leases | E30: Dollars | F30: Real $2018 | G30: End_Year | I30: c-i-c | J30: c-i-c | K30: c-i-c | L30: c-i-c | M30: c-i-c | N30: c-i-c | P30: c-i-c
C31: 17 | D31: Buildings | E31: Dollars | F31: Real $2018 | G31: End_Year | I31: c-i-c | J31: c-i-c | K31: c-i-c | L31: c-i-c | M31: c-i-c | N31: c-i-c | P31: c-i-c
C32: 18 | D32: In-house Software | E32: Dollars | F32: Real $2018 | G32: End_Year | I32: c-i-c | J32: c-i-c | K32: c-i-c | L32: c-i-c | M32: c-i-c | N32: c-i-c | P32: c-i-c
E34: =E15 -> Dollars | F34: Real $2018 | G34: End_Year | I34: c-i-c | J34: c-i-c | K34: c-i-c | L34: c-i-c | M34: c-i-c | N34: c-i-c | P34: c-i-c
B36: End

Sheet BNI 12
B1: =MID(CELL("filename",A1),FIND("]",CELL("filename",A1))+1,255)&" Capital Expenditure" -> BNI 12 Capital Expenditure | G1: COMMERCIAL IN CONFIDENCE
B3: Direct Capex Forecasts
C5: BNI Description
D7: Requirement | E7: Description
D8: Expenditure category | E8: IT and Communications
D9: Project / program number | E9: PRD33134
D10: Project / program description | E10: Darwin - Energy Management System Upgrade
C12: Direct Costs (Excluding Capitalised Overheads and Cost Escalation)
C14: Ref. | D14: Regulatory Asset Class | E14: Unit | F14: Basis | G14: Timing | I14: RY19 | J14: RY20 | K14: RY21 | L14: RY22 | M14: RY23 | N14: RY24 | P14: Total FY20 to FY24
C15: =N(C14)+1 -> 1 | D15: Substations | E15: Dollars | F15: Real $2018 | G15: End_Year | I15: c-i-c | J15: c-i-c | K15: c-i-c | L15: c-i-c | M15: c-i-c | N15: c-i-c | P15: c-i-c
C16: =N(C15)+1 -> 2 | D16: Distribution Lines | E16: Dollars | F16: Real $2018 | G16: End_Year | I16: c-i-c | J16: c-i-c | K16: c-i-c | L16: c-i-c | M16: c-i-c | N16: c-i-c | P16: c-i-c
C17: 3 | D17: Transmission Lines | E17: Dollars | F17: Real $2018 | G17: End_Year | I17: c-i-c | J17: c-i-c | K17: c-i-c | L17: c-i-c | M17: c-i-c | N17: c-i-c | P17: c-i-c
C18: 4 | D18: LV Services | E18: Dollars | F18: Real $2018 | G18: End_Year | I18: c-i-c | J18: c-i-c | K18: c-i-c | L18: c-i-c | M18: c-i-c | N18: c-i-c | P18: c-i-c
C19: 5 | D19: Distribution Substations | E19: Dollars | F19: Real $2018 | G19: End_Year | I19: c-i-c | J19: c-i-c | K19: c-i-c | L19: c-i-c | M19: c-i-c | N19: c-i-c | P19: c-i-c
C20: 6 | D20: Distribution Switchgear | E20: Dollars | F20: Real $2018 | G20: End_Year | I20: c-i-c | J20: c-i-c | K20: c-i-c | L20: c-i-c | M20: c-i-c | N20: c-i-c | P20: c-i-c
C21: 7 | D21: Protection | E21: Dollars | F21: Real $2018 | G21: End_Year | I21: c-i-c | J21: c-i-c | K21: c-i-c | L21: c-i-c | M21: c-i-c | N21: c-i-c | P21: c-i-c
C22: 8 | D22: SCADA | E22: Dollars | F22: Real $2018 | G22: End_Year | I22: c-i-c | J22: c-i-c | K22: c-i-c | L22: c-i-c | M22: c-i-c | N22: c-i-c | P22: c-i-c
C23: 9 | D23: Communications | E23: Dollars | F23: Real $2018 | G23: End_Year | I23: c-i-c | J23: c-i-c | K23: c-i-c | L23: c-i-c | M23: c-i-c | N23: c-i-c | P23: c-i-c
C24: 10 | D24: Land and Easements | E24: Dollars | F24: Real $2018 | G24: End_Year | I24: c-i-c | J24: c-i-c | K24: c-i-c | L24: c-i-c | M24: c-i-c | N24: c-i-c | P24: c-i-c
C25: 11 | D25: Property | E25: Dollars | F25: Real $2018 | G25: End_Year | I25: c-i-c | J25: c-i-c | K25: c-i-c | L25: c-i-c | M25: c-i-c | N25: c-i-c | P25: c-i-c
C26: 12 | D26: IT and Communications | E26: Dollars | F26: Real $2018 | G26: End_Year | I26: c-i-c | J26: c-i-c | K26: c-i-c | L26: c-i-c | M26: c-i-c | N26: c-i-c | P26: c-i-c
C27: 13 | D27: Motor Vehicles | E27: Dollars | F27: Real $2018 | G27: End_Year | I27: c-i-c | J27: c-i-c | K27: c-i-c | L27: c-i-c | M27: c-i-c | N27: c-i-c | P27: c-i-c
C28: 14 | D28: Plant and Equipment | E28: Dollars | F28: Real $2018 | G28: End_Year | I28: c-i-c | J28: c-i-c | K28: c-i-c | L28: c-i-c | M28: c-i-c | N28: c-i-c | P28: c-i-c
C29: 15 | D29: Property Leases | E29: Dollars | F29: Real $2018 | G29: End_Year | I29: c-i-c | J29: c-i-c | K29: c-i-c | L29: c-i-c | M29: c-i-c | N29: c-i-c | P29: c-i-c
C30: 16 | D30: Fleet Leases | E30: Dollars | F30: Real $2018 | G30: End_Year | I30: c-i-c | J30: c-i-c | K30: c-i-c | L30: c-i-c | M30: c-i-c | N30: c-i-c | P30: c-i-c
C31: 17 | D31: Buildings | E31: Dollars | F31: Real $2018 | G31: End_Year | I31: c-i-c | J31: c-i-c | K31: c-i-c | L31: c-i-c | M31: c-i-c | N31: c-i-c | P31: c-i-c
C32: 18 | D32: In-house Software | E32: Dollars | F32: Real $2018 | G32: End_Year | I32: c-i-c | J32: c-i-c | K32: c-i-c | L32: c-i-c | M32: c-i-c | N32: c-i-c | P32: c-i-c
E34: =E15 -> Dollars | F34: Real $2018 | G34: End_Year | I34: c-i-c | J34: c-i-c | K34: c-i-c | L34: c-i-c | M34: c-i-c | N34: c-i-c | P34: c-i-c
B36: End

Sheet BNI 13
B1: =MID(CELL("filename",A1),FIND("]",CELL("filename",A1))+1,255)&" Capital Expenditure" -> BNI 13 Capital Expenditure | G1: COMMERCIAL IN CONFIDENCE
B3: Direct Capex Forecasts
C5: BNI Description
D7: Requirement | E7: Description
D8: Expenditure category
D9: Project / program number
D10: Project / program description | E10: [deleted]
C12: Direct Costs (Excluding Capitalised Overheads and Cost Escalation)
C14: Ref. | D14: Regulatory Asset Class | E14: Unit | F14: Basis | G14: Timing | I14: RY19 | J14: RY20 | K14: RY21 | L14: RY22 | M14: RY23 | N14: RY24 | P14: Total FY20 to FY24
C15: =N(C14)+1 -> 1 | D15: Substations | E15: Dollars | F15: Real $2018 | G15: End_Year | I15: c-i-c | J15: c-i-c | K15: c-i-c | L15: c-i-c | M15: c-i-c | N15: c-i-c | P15: c-i-c
C16: =N(C15)+1 -> 2 | D16: Distribution Lines | E16: Dollars | F16: Real $2018 | G16: End_Year | I16: c-i-c | J16: c-i-c | K16: c-i-c | L16: c-i-c | M16: c-i-c | N16: c-i-c | P16: c-i-c
C17: 3 | D17: Transmission Lines | E17: Dollars | F17: Real $2018 | G17: End_Year | I17: c-i-c | J17: c-i-c | K17: c-i-c | L17: c-i-c | M17: c-i-c | N17: c-i-c | P17: c-i-c
C18: 4 | D18: LV Services | E18: Dollars | F18: Real $2018 | G18: End_Year | I18: c-i-c | J18: c-i-c | K18: c-i-c | L18: c-i-c | M18: c-i-c | N18: c-i-c | P18: c-i-c
C19: 5 | D19: Distribution Substations | E19: Dollars | F19: Real $2018 | G19: End_Year | I19: c-i-c | J19: c-i-c | K19: c-i-c | L19: c-i-c | M19: c-i-c | N19: c-i-c | P19: c-i-c
C20: 6 | D20: Distribution Switchgear | E20: Dollars | F20: Real $2018 | G20: End_Year | I20: c-i-c | J20: c-i-c | K20: c-i-c | L20: c-i-c | M20: c-i-c | N20: c-i-c | P20: c-i-c
C21: 7 | D21: Protection | E21: Dollars | F21: Real $2018 | G21: End_Year | I21: c-i-c | J21: c-i-c | K21: c-i-c | L21: c-i-c | M21: c-i-c | N21: c-i-c | P21: c-i-c
C22: 8 | D22: SCADA | E22: Dollars | F22: Real $2018 | G22: End_Year | I22: c-i-c | J22: c-i-c | K22: c-i-c | L22: c-i-c | M22: c-i-c | N22: c-i-c | P22: c-i-c
C23: 9 | D23: Communications | E23: Dollars | F23: Real $2018 | G23: End_Year | I23: c-i-c | J23: c-i-c | K23: c-i-c | L23: c-i-c | M23: c-i-c | N23: c-i-c | P23: c-i-c
C24: 10 | D24: Land and Easements | E24: Dollars | F24: Real $2018 | G24: End_Year | I24: c-i-c | J24: c-i-c | K24: c-i-c | L24: c-i-c | M24: c-i-c | N24: c-i-c | P24: c-i-c
C25: 11 | D25: Property | E25: Dollars | F25: Real $2018 | G25: End_Year | I25: c-i-c | J25: c-i-c | K25: c-i-c | L25: c-i-c | M25: c-i-c | N25: c-i-c | P25: c-i-c
C26: 12 | D26: IT and Communications | E26: Dollars | F26: Real $2018 | G26: End_Year | I26: c-i-c | J26: c-i-c | K26: c-i-c | L26: c-i-c | M26: c-i-c | N26: c-i-c | P26: c-i-c
C27: 13 | D27: Motor Vehicles | E27: Dollars | F27: Real $2018 | G27: End_Year | I27: c-i-c | J27: c-i-c | K27: c-i-c | L27: c-i-c | M27: c-i-c | N27: c-i-c | P27: c-i-c
C28: 14 | D28: Plant and Equipment | E28: Dollars | F28: Real $2018 | G28: End_Year | I28: c-i-c | J28: c-i-c | K28: c-i-c | L28: c-i-c | M28: c-i-c | N28: c-i-c | P28: c-i-c
C29: 15 | D29: Property Leases | E29: Dollars | F29: Real $2018 | G29: End_Year | I29: c-i-c | J29: c-i-c | K29: c-i-c | L29: c-i-c | M29: c-i-c | N29: c-i-c | P29: c-i-c
C30: 16 | D30: Fleet Leases | E30: Dollars | F30: Real $2018 | G30: End_Year | I30: c-i-c | J30: c-i-c | K30: c-i-c | L30: c-i-c | M30: c-i-c | N30: c-i-c | P30: c-i-c
C31: 17 | D31: Buildings | E31: Dollars | F31: Real $2018 | G31: End_Year | I31: c-i-c | J31: c-i-c | K31: c-i-c | L31: c-i-c | M31: c-i-c | N31: c-i-c | P31: c-i-c
C32: 18 | D32: In-house Software | E32: Dollars | F32: Real $2018 | G32: End_Year | I32: c-i-c | J32: c-i-c | K32: c-i-c | L32: c-i-c | M32: c-i-c | N32: c-i-c | P32: c-i-c
E34: =E15 -> Dollars | F34: Real $2018 | G34: End_Year | I34: c-i-c | J34: c-i-c | K34: c-i-c | L34: c-i-c | M34: c-i-c | N34: c-i-c | P34: c-i-c
B36: End

Sheet BNI 14
B1: =MID(CELL("filename",A1),FIND("]",CELL("filename",A1))+1,255)&" Capital Expenditure" -> BNI 14 Capital Expenditure | G1: COMMERCIAL IN CONFIDENCE
B3: Direct Capex Forecasts
C5: BNI Description
D7: Requirement | E7: Description
D8: Expenditure category | E8: Substations
D9: Project / program number | E9: NMP3
D10: Project / program description | E10: 66kV HLC Circuit Breaker Replacement Program
C12: Direct Costs (Excluding Capitalised Overheads and Cost Escalation)
C14: Ref. | D14: Regulatory Asset Class | E14: Unit | F14: Basis | G14: Timing | I14: RY19 | J14: RY20 | K14: RY21 | L14: RY22 | M14: RY23 | N14: RY24 | P14: Total FY20 to FY24
C15: =N(C14)+1 -> 1 | D15: Substations | E15: Dollars | F15: Real $2018 | G15: End_Year | I15: c-i-c | J15: c-i-c | K15: c-i-c | L15: c-i-c | M15: c-i-c | N15: c-i-c | P15: c-i-c
C16: =N(C15)+1 -> 2 | D16: Distribution Lines | E16: Dollars | F16: Real $2018 | G16: End_Year | I16: c-i-c | J16: c-i-c | K16: c-i-c | L16: c-i-c | M16: c-i-c | N16: c-i-c | P16: c-i-c
C17: 3 | D17: Transmission Lines | E17: Dollars | F17: Real $2018 | G17: End_Year | I17: c-i-c | J17: c-i-c | K17: c-i-c | L17: c-i-c | M17: c-i-c | N17: c-i-c | P17: c-i-c
C18: 4 | D18: LV Services | E18: Dollars | F18: Real $2018 | G18: End_Year | I18: c-i-c | J18: c-i-c | K18: c-i-c | L18: c-i-c | M18: c-i-c | N18: c-i-c | P18: c-i-c
C19: 5 | D19: Distribution Substations | E19: Dollars | F19: Real $2018 | G19: End_Year | I19: c-i-c | J19: c-i-c | K19: c-i-c | L19: c-i-c | M19: c-i-c | N19: c-i-c | P19: c-i-c
C20: 6 | D20: Distribution Switchgear | E20: Dollars | F20: Real $2018 | G20: End_Year | I20: c-i-c | J20: c-i-c | K20: c-i-c | L20: c-i-c | M20: c-i-c | N20: c-i-c | P20: c-i-c
C21: 7 | D21: Protection | E21: Dollars | F21: Real $2018 | G21: End_Year | I21: c-i-c | J21: c-i-c | K21: c-i-c | L21: c-i-c | M21: c-i-c | N21: c-i-c | P21: c-i-c
C22: 8 | D22: SCADA | E22: Dollars | F22: Real $2018 | G22: End_Year | I22: c-i-c | J22: c-i-c | K22: c-i-c | L22: c-i-c | M22: c-i-c | N22: c-i-c | P22: c-i-c
C23: 9 | D23: Communications | E23: Dollars | F23: Real $2018 | G23: End_Year | I23: c-i-c | J23: c-i-c | K23: c-i-c | L23: c-i-c | M23: c-i-c | N23: c-i-c | P23: c-i-c
C24: 10 | D24: Land and Easements | E24: Dollars | F24: Real $2018 | G24: End_Year | I24: c-i-c | J24: c-i-c | K24: c-i-c | L24: c-i-c | M24: c-i-c | N24: c-i-c | P24: c-i-c
C25: 11 | D25: Property | E25: Dollars | F25: Real $2018 | G25: End_Year | I25: c-i-c | J25: c-i-c | K25: c-i-c | L25: c-i-c | M25: c-i-c | N25: c-i-c | P25: c-i-c
C26: 12 | D26: IT and Communications | E26: Dollars | F26: Real $2018 | G26: End_Year | I26: c-i-c | J26: c-i-c | K26: c-i-c | L26: c-i-c | M26: c-i-c | N26: c-i-c | P26: c-i-c
C27: 13 | D27: Motor Vehicles | E27: Dollars | F27: Real $2018 | G27: End_Year | I27: c-i-c | J27: c-i-c | K27: c-i-c | L27: c-i-c | M27: c-i-c | N27: c-i-c | P27: c-i-c
C28: 14 | D28: Plant and Equipment | E28: Dollars | F28: Real $2018 | G28: End_Year | I28: c-i-c | J28: c-i-c | K28: c-i-c | L28: c-i-c | M28: c-i-c | N28: c-i-c | P28: c-i-c
C29: 15 | D29: Property Leases | E29: Dollars | F29: Real $2018 | G29: End_Year | I29: c-i-c | J29: c-i-c | K29: c-i-c | L29: c-i-c | M29: c-i-c | N29: c-i-c | P29: c-i-c
C30: 16 | D30: Fleet Leases | E30: Dollars | F30: Real $2018 | G30: End_Year | I30: c-i-c | J30: c-i-c | K30: c-i-c | L30: c-i-c | M30: c-i-c | N30: c-i-c | P30: c-i-c
C31: 17 | D31: Buildings | E31: Dollars | F31: Real $2018 | G31: End_Year | I31: c-i-c | J31: c-i-c | K31: c-i-c | L31: c-i-c | M31: c-i-c | N31: c-i-c | P31: c-i-c
C32: 18 | D32: In-house Software | E32: Dollars | F32: Real $2018 | G32: End_Year | I32: c-i-c | J32: c-i-c | K32: c-i-c | L32: c-i-c | M32: c-i-c | N32: c-i-c | P32: c-i-c
E34: =E15 -> Dollars | F34: Real $2018 | G34: End_Year | I34: c-i-c | J34: c-i-c | K34: c-i-c | L34: c-i-c | M34: c-i-c | N34: c-i-c | P34: c-i-c
B36: End

Sheet BNI 15
B1: =MID(CELL("filename",A1),FIND("]",CELL("filename",A1))+1,255)&" Capital Expenditure" -> BNI 15 Capital Expenditure | G1: COMMERCIAL IN CONFIDENCE
B3: Direct Capex Forecasts
C5: BNI Description
D7: Requirement | E7: Description
D8: Expenditure category | E8: Property
D9: Project / program number | E9: NMP14
D10: Project / program description | E10: Substation Fire Protection Equipment Replacement Program
C12: Direct Costs (Excluding Capitalised Overheads and Cost Escalation)
C14: Ref. | D14: Regulatory Asset Class | E14: Unit | F14: Basis | G14: Timing | I14: RY19 | J14: RY20 | K14: RY21 | L14: RY22 | M14: RY23 | N14: RY24 | P14: Total FY20 to FY24
C15: =N(C14)+1 -> 1 | D15: Substations | E15: Dollars | F15: Real $2018 | G15: End_Year | I15: c-i-c | J15: c-i-c | K15: c-i-c | L15: c-i-c | M15: c-i-c | N15: c-i-c | P15: c-i-c
C16: =N(C15)+1 -> 2 | D16: Distribution Lines | E16: Dollars | F16: Real $2018 | G16: End_Year | I16: c-i-c | J16: c-i-c | K16: c-i-c | L16: c-i-c | M16: c-i-c | N16: c-i-c | P16: c-i-c
C17: 3 | D17: Transmission Lines | E17: Dollars | F17: Real $2018 | G17: End_Year | I17: c-i-c | J17: c-i-c | K17: c-i-c | L17: c-i-c | M17: c-i-c | N17: c-i-c | P17: c-i-c
C18: 4 | D18: LV Services | E18: Dollars | F18: Real $2018 | G18: End_Year | I18: c-i-c | J18: c-i-c | K18: c-i-c | L18: c-i-c | M18: c-i-c | N18: c-i-c | P18: c-i-c
C19: 5 | D19: Distribution Substations | E19: Dollars | F19: Real $2018 | G19: End_Year | I19: c-i-c | J19: c-i-c | K19: c-i-c | L19: c-i-c | M19: c-i-c | N19: c-i-c | P19: c-i-c
C20: 6 | D20: Distribution Switchgear | E20: Dollars | F20: Real $2018 | G20: End_Year | I20: c-i-c | J20: c-i-c | K20: c-i-c | L20: c-i-c | M20: c-i-c | N20: c-i-c | P20: c-i-c
C21: 7 | D21: Protection | E21: Dollars | F21: Real $2018 | G21: End_Year | I21: c-i-c | J21: c-i-c | K21: c-i-c | L21: c-i-c | M21: c-i-c | N21: c-i-c | P21: c-i-c
C22: 8 | D22: SCADA | E22: Dollars | F22: Real $2018 | G22: End_Year | I22: c-i-c | J22: c-i-c | K22: c-i-c | L22: c-i-c | M22: c-i-c | N22: c-i-c | P22: c-i-c
C23: 9 | D23: Communications | E23: Dollars | F23: Real $2018 | G23: End_Year | I23: c-i-c | J23: c-i-c | K23: c-i-c | L23: c-i-c | M23: c-i-c | N23: c-i-c | P23: c-i-c
C24: 10 | D24: Land and Easements | E24: Dollars | F24: Real $2018 | G24: End_Year | I24: c-i-c | J24: c-i-c | K24: c-i-c | L24: c-i-c | M24: c-i-c | N24: c-i-c | P24: c-i-c
C25: 11 | D25: Property | E25: Dollars | F25: Real $2018 | G25: End_Year | I25: c-i-c | J25: c-i-c | K25: c-i-c | L25: c-i-c | M25: c-i-c | N25: c-i-c | P25: c-i-c
C26: 12 | D26: IT and Communications | E26: Dollars | F26: Real $2018 | G26: End_Year | I26: c-i-c | J26: c-i-c | K26: c-i-c | L26: c-i-c | M26: c-i-c | N26: c-i-c | P26: c-i-c
C27: 13 | D27: Motor Vehicles | E27: Dollars | F27: Real $2018 | G27: End_Year | I27: c-i-c | J27: c-i-c | K27: c-i-c | L27: c-i-c | M27: c-i-c | N27: c-i-c | P27: c-i-c
C28: 14 | D28: Plant and Equipment | E28: Dollars | F28: Real $2018 | G28: End_Year | I28: c-i-c | J28: c-i-c | K28: c-i-c | L28: c-i-c | M28: c-i-c | N28: c-i-c | P28: c-i-c
C29: 15 | D29: Property Leases | E29: Dollars | F29: Real $2018 | G29: End_Year | I29: c-i-c | J29: c-i-c | K29: c-i-c | L29: c-i-c | M29: c-i-c | N29: c-i-c | P29: c-i-c
C30: 16 | D30: Fleet Leases | E30: Dollars | F30: Real $2018 | G30: End_Year | I30: c-i-c | J30: c-i-c | K30: c-i-c | L30: c-i-c | M30: c-i-c | N30: c-i-c | P30: c-i-c
C31: 17 | D31: Buildings | E31: Dollars | F31: Real $2018 | G31: End_Year | I31: c-i-c | J31: c-i-c | K31: c-i-c | L31: c-i-c | M31: c-i-c | N31: c-i-c | P31: c-i-c
C32: 18 | D32: In-house Software | E32: Dollars | F32: Real $2018 | G32: End_Year | I32: c-i-c | J32: c-i-c | K32: c-i-c | L32: c-i-c | M32: c-i-c | N32: c-i-c | P32: c-i-c
E34: =E15 -> Dollars | F34: Real $2018 | G34: End_Year | I34: c-i-c | J34: c-i-c | K34: c-i-c | L34: c-i-c | M34: c-i-c | N34: c-i-c | P34: c-i-c
B36: End

Sheet BNI 16
B1: =MID(CELL("filename",A1),FIND("]",CELL("filename",A1))+1,255)&" Capital Expenditure" -> BNI 16 Capital Expenditure | G1: COMMERCIAL IN CONFIDENCE
B3: Direct Capex Forecasts
C5: BNI Description
D7: Requirement | E7: Description
D8: Expenditure category | E8: SCADA and Communications
D9: Project / program number | E9: NMSC1
D10: Project / program description | E10: SCADA and Communications Obsolete Asset Replacement Program
C12: Direct Costs (Excluding Capitalised Overheads and Cost Escalation)
C14: Ref. | D14: Regulatory Asset Class | E14: Unit | F14: Basis | G14: Timing | I14: RY19 | J14: RY20 | K14: RY21 | L14: RY22 | M14: RY23 | N14: RY24 | P14: Total FY20 to FY24
C15: =N(C14)+1 -> 1 | D15: Substations | E15: Dollars | F15: Real $2018 | G15: End_Year | I15: c-i-c | J15: c-i-c | K15: c-i-c | L15: c-i-c | M15: c-i-c | N15: c-i-c | P15: c-i-c
C16: =N(C15)+1 -> 2 | D16: Distribution Lines | E16: Dollars | F16: Real $2018 | G16: End_Year | I16: c-i-c | J16: c-i-c | K16: c-i-c | L16: c-i-c | M16: c-i-c | N16: c-i-c | P16: c-i-c
C17: 3 | D17: Transmission Lines | E17: Dollars | F17: Real $2018 | G17: End_Year | I17: c-i-c | J17: c-i-c | K17: c-i-c | L17: c-i-c | M17: c-i-c | N17: c-i-c | P17: c-i-c
C18: 4 | D18: LV Services | E18: Dollars | F18: Real $2018 | G18: End_Year | I18: c-i-c | J18: c-i-c | K18: c-i-c | L18: c-i-c | M18: c-i-c | N18: c-i-c | P18: c-i-c
C19: 5 | D19: Distribution Substations | E19: Dollars | F19: Real $2018 | G19: End_Year | I19: c-i-c | J19: c-i-c | K19: c-i-c | L19: c-i-c | M19: c-i-c | N19: c-i-c | P19: c-i-c
C20: 6 | D20: Distribution Switchgear | E20: Dollars | F20: Real $2018 | G20: End_Year | I20: c-i-c | J20: c-i-c | K20: c-i-c | L20: c-i-c | M20: c-i-c | N20: c-i-c | P20: c-i-c
C21: 7 | D21: Protection | E21: Dollars | F21: Real $2018 | G21: End_Year | I21: c-i-c | J21: c-i-c | K21: c-i-c | L21: c-i-c | M21: c-i-c | N21: c-i-c | P21: c-i-c
C22: 8 | D22: SCADA | E22: Dollars | F22: Real $2018 | G22: End_Year | I22: c-i-c | J22: c-i-c | K22: c-i-c | L22: c-i-c | M22: c-i-c | N22: c-i-c | P22: c-i-c
C23: 9 | D23: Communications | E23: Dollars | F23: Real $2018 | G23: End_Year | I23: c-i-c | J23: c-i-c | K23: c-i-c | L23: c-i-c | M23: c-i-c | N23: c-i-c | P23: c-i-c
C24: 10 | D24: Land and Easements | E24: Dollars | F24: Real $2018 | G24: End_Year | I24: c-i-c | J24: c-i-c | K24: c-i-c | L24: c-i-c | M24: c-i-c | N24: c-i-c | P24: c-i-c
C25: 11 | D25: Property | E25: Dollars | F25: Real $2018 | G25: End_Year | I25: c-i-c | J25: c-i-c | K25: c-i-c | L25: c-i-c | M25: c-i-c | N25: c-i-c | P25: c-i-c
C26: 12 | D26: IT and Communications | E26: Dollars | F26: Real $2018 | G26: End_Year | I26: c-i-c | J26: c-i-c | K26: c-i-c | L26: c-i-c | M26: c-i-c | N26: c-i-c | P26: c-i-c
C27: 13 | D27: Motor Vehicles | E27: Dollars | F27: Real $2018 | G27: End_Year | I27: c-i-c | J27: c-i-c | K27: c-i-c | L27: c-i-c | M27: c-i-c | N27: c-i-c | P27: c-i-c
C28: 14 | D28: Plant and Equipment | E28: Dollars | F28: Real $2018 | G28: End_Year | I28: c-i-c | J28: c-i-c | K28: c-i-c | L28: c-i-c | M28: c-i-c | N28: c-i-c | P28: c-i-c
C29: 15 | D29: Property Leases | E29: Dollars | F29: Real $2018 | G29: End_Year | I29: c-i-c | J29: c-i-c | K29: c-i-c | L29: c-i-c | M29: c-i-c | N29: c-i-c | P29: c-i-c
C30: 16 | D30: Fleet Leases | E30: Dollars | F30: Real $2018 | G30: End_Year | I30: c-i-c | J30: c-i-c | K30: c-i-c | L30: c-i-c | M30: c-i-c | N30: c-i-c | P30: c-i-c
C31: 17 | D31: Buildings | E31: Dollars | F31: Real $2018 | G31: End_Year | I31: c-i-c | J31: c-i-c | K31: c-i-c | L31: c-i-c | M31: c-i-c | N31: c-i-c | P31: c-i-c
C32: 18 | D32: In-house Software | E32: Dollars | F32: Real $2018 | G32: End_Year | I32: c-i-c | J32: c-i-c | K32: c-i-c | L32: c-i-c | M32: c-i-c | N32: c-i-c | P32: c-i-c
E34: =E15 -> Dollars | F34: Real $2018 | G34: End_Year | I34: c-i-c | J34: c-i-c | K34: c-i-c | L34: c-i-c | M34: c-i-c | N34: c-i-c | P34: c-i-c
B36: End

Sheet BNI 17
B1: =MID(CELL("filename",A1),FIND("]",CELL("filename",A1))+1,255)&" Capital Expenditure" -> BNI 17 Capital Expenditure | G1: COMMERCIAL IN CONFIDENCE
B3: Direct Capex Forecasts
C5: BNI Description
D7: Requirement | E7: Description
D8: Expenditure category | E8: Communications
D9: Project / program number | E9: NMSC2
D10: Project / program description | E10: SCADA and Communications Battery Replacement Program
C12: Direct Costs (Excluding Capitalised Overheads and Cost Escalation)
C14: Ref. | D14: Regulatory Asset Class | E14: Unit | F14: Basis | G14: Timing | I14: RY19 | J14: RY20 | K14: RY21 | L14: RY22 | M14: RY23 | N14: RY24 | P14: Total FY20 to FY24
C15: =N(C14)+1 -> 1 | D15: Substations | E15: Dollars | F15: Real $2018 | G15: End_Year | I15: c-i-c | J15: c-i-c | K15: c-i-c | L15: c-i-c | M15: c-i-c | N15: c-i-c | P15: c-i-c
C16: =N(C15)+1 -> 2 | D16: Distribution Lines | E16: Dollars | F16: Real $2018 | G16: End_Year | I16: c-i-c | J16: c-i-c | K16: c-i-c | L16: c-i-c | M16: c-i-c | N16: c-i-c | P16: c-i-c
C17: 3 | D17: Transmission Lines | E17: Dollars | F17: Real $2018 | G17: End_Year | I17: c-i-c | J17: c-i-c | K17: c-i-c | L17: c-i-c | M17: c-i-c | N17: c-i-c | P17: c-i-c
C18: 4 | D18: LV Services | E18: Dollars | F18: Real $2018 | G18: End_Year | I18: c-i-c | J18: c-i-c | K18: c-i-c | L18: c-i-c | M18: c-i-c | N18: c-i-c | P18: c-i-c
C19: 5 | D19: Distribution Substations | E19: Dollars | F19: Real $2018 | G19: End_Year | I19: c-i-c | J19: c-i-c | K19: c-i-c | L19: c-i-c | M19: c-i-c | N19: c-i-c | P19: c-i-c
C20: 6 | D20: Distribution Switchgear | E20: Dollars | F20: Real $2018 | G20: End_Year | I20: c-i-c | J20: c-i-c | K20: c-i-c | L20: c-i-c | M20: c-i-c | N20: c-i-c | P20: c-i-c
C21: 7 | D21: Protection | E21: Dollars | F21: Real $2018 | G21: End_Year | I21: c-i-c | J21: c-i-c | K21: c-i-c | L21: c-i-c | M21: c-i-c | N21: c-i-c | P21: c-i-c
C22: 8 | D22: SCADA | E22: Dollars | F22: Real $2018 | G22: End_Year | I22: c-i-c | J22: c-i-c | K22: c-i-c | L22: c-i-c | M22: c-i-c | N22: c-i-c | P22: c-i-c
C23: 9 | D23: Communications | E23: Dollars | F23: Real $2018 | G23: End_Year | I23: c-i-c | J23: c-i-c | K23: c-i-c | L23: c-i-c | M23: c-i-c | N23: c-i-c | P23: c-i-c
C24: 10 | D24: Land and Easements | E24: Dollars | F24: Real $2018 | G24: End_Year | I24: c-i-c | J24: c-i-c | K24: c-i-c | L24: c-i-c | M24: c-i-c | N24: c-i-c | P24: c-i-c
C25: 11 | D25: Property | E25: Dollars | F25: Real $2018 | G25: End_Year | I25: c-i-c | J25: c-i-c | K25: c-i-c | L25: c-i-c | M25: c-i-c | N25: c-i-c | P25: c-i-c
C26: 12 | D26: IT and Communications | E26: Dollars | F26: Real $2018 | G26: End_Year | I26: c-i-c | J26: c-i-c | K26: c-i-c | L26: c-i-c | M26: c-i-c | N26: c-i-c | P26: c-i-c
C27: 13 | D27: Motor Vehicles | E27: Dollars | F27: Real $2018 | G27: End_Year | I27: c-i-c | J27: c-i-c | K27: c-i-c | L27: c-i-c | M27: c-i-c | N27: c-i-c | P27: c-i-c
C28: 14 | D28: Plant and Equipment | E28: Dollars | F28: Real $2018 | G28: End_Year | I28: c-i-c | J28: c-i-c | K28: c-i-c | L28: c-i-c | M28: c-i-c | N28: c-i-c | P28: c-i-c
C29: 15 | D29: Property Leases | E29: Dollars | F29: Real $2018 | G29: End_Year | I29: c-i-c | J29: c-i-c | K29: c-i-c | L29: c-i-c | M29: c-i-c | N29: c-i-c | P29: c-i-c
C30: 16 | D30: Fleet Leases | E30: Dollars | F30: Real $2018 | G30: End_Year | I30: c-i-c | J30: c-i-c | K30: c-i-c | L30: c-i-c | M30: c-i-c | N30: c-i-c | P30: c-i-c
C31: 17 | D31: Buildings | E31: Dollars | F31: Real $2018 | G31: End_Year | I31: c-i-c | J31: c-i-c | K31: c-i-c | L31: c-i-c | M31: c-i-c | N31: c-i-c | P31: c-i-c
C32: 18 | D32: In-house Software | E32: Dollars | F32: Real $2018 | G32: End_Year | I32: c-i-c | J32: c-i-c | K32: c-i-c | L32: c-i-c | M32: c-i-c | N32: c-i-c | P32: c-i-c
E34: =E15 -> Dollars | F34: Real $2018 | G34: End_Year | I34: c-i-c | J34: c-i-c | K34: c-i-c | L34: c-i-c | M34: c-i-c | N34: c-i-c | P34: c-i-c
B36: End

Sheet BNI 18
B1: =MID(CELL("filename",A1),FIND("]",CELL("filename",A1))+1,255)&" Capital Expenditure" -> BNI 18 Capital Expenditure | G1: COMMERCIAL IN CONFIDENCE
B3: Direct Capex Forecasts
C5: BNI Description
D7: Requirement | E7: Description
D8: Expenditure category | E8: Communications
D9: Project / program number | E9: NMSC4
D10: Project / program description | E10: SCADA and Communications Compliance and Safety Program
C12: Direct Costs (Excluding Capitalised Overheads and Cost Escalation)
C14: Ref. | D14: Regulatory Asset Class | E14: Unit | F14: Basis | G14: Timing | I14: RY19 | J14: RY20 | K14: RY21 | L14: RY22 | M14: RY23 | N14: RY24 | P14: Total FY20 to FY24
C15: =N(C14)+1 -> 1 | D15: Substations | E15: Dollars | F15: Real $2018 | G15: End_Year | I15: c-i-c | J15: c-i-c | K15: c-i-c | L15: c-i-c | M15: c-i-c | N15: c-i-c | P15: c-i-c
C16: =N(C15)+1 -> 2 | D16: Distribution Lines | E16: Dollars | F16: Real $2018 | G16: End_Year | I16: c-i-c | J16: c-i-c | K16: c-i-c | L16: c-i-c | M16: c-i-c | N16: c-i-c | P16: c-i-c
C17: 3 | D17: Transmission Lines | E17: Dollars | F17: Real $2018 | G17: End_Year | I17: c-i-c | J17: c-i-c | K17: c-i-c | L17: c-i-c | M17: c-i-c | N17: c-i-c | P17: c-i-c
C18: 4 | D18: LV Services | E18: Dollars | F18: Real $2018 | G18: End_Year | I18: c-i-c | J18: c-i-c | K18: c-i-c | L18: c-i-c | M18: c-i-c | N18: c-i-c | P18: c-i-c
C19: 5 | D19: Distribution Substations | E19: Dollars | F19: Real $2018 | G19: End_Year | I19: c-i-c | J19: c-i-c | K19: c-i-c | L19: c-i-c | M19: c-i-c | N19: c-i-c | P19: c-i-c
C20: 6 | D20: Distribution Switchgear | E20: Dollars | F20: Real $2018 | G20: End_Year | I20: c-i-c | J20: c-i-c | K20: c-i-c | L20: c-i-c | M20: c-i-c | N20: c-i-c | P20: c-i-c
C21: 7 | D21: Protection | E21: Dollars | F21: Real $2018 | G21: End_Year | I21: c-i-c | J21: c-i-c | K21: c-i-c | L21: c-i-c | M21: c-i-c | N21: c-i-c | P21: c-i-c
C22: 8 | D22: SCADA | E22: Dollars | F22: Real $2018 | G22: End_Year | I22: c-i-c | J22: c-i-c | K22: c-i-c | L22: c-i-c | M22: c-i-c | N22: c-i-c | P22: c-i-c
C23: 9 | D23: Communications | E23: Dollars | F23: Real $2018 | G23: End_Year | I23: c-i-c | J23: c-i-c | K23: c-i-c | L23: c-i-c | M23: c-i-c | N23: c-i-c | P23: c-i-c
C24: 10 | D24: Land and Easements | E24: Dollars | F24: Real $2018 | G24: End_Year | I24: c-i-c | J24: c-i-c | K24: c-i-c | L24: c-i-c | M24: c-i-c | N24: c-i-c | P24: c-i-c
C25: 11 | D25: Property | E25: Dollars | F25: Real $2018 | G25: End_Year | I25: c-i-c | J25: c-i-c | K25: c-i-c | L25: c-i-c | M25: c-i-c | N25: c-i-c | P25: c-i-c
C26: 12 | D26: IT and Communications | E26: Dollars | F26: Real $2018 | G26: End_Year | I26: c-i-c | J26: c-i-c | K26: c-i-c | L26: c-i-c | M26: c-i-c | N26: c-i-c | P26: c-i-c
C27: 13 | D27: Motor Vehicles | E27: Dollars | F27: Real $2018 | G27: End_Year | I27: c-i-c | J27: c-i-c | K27: c-i-c | L27: c-i-c | M27: c-i-c | N27: c-i-c | P27: c-i-c
C28: 14 | D28: Plant and Equipment | E28: Dollars | F28: Real $2018 | G28: End_Year | I28: c-i-c | J28: c-i-c | K28: c-i-c | L28: c-i-c | M28: c-i-c | N28: c-i-c | P28: c-i-c
C29: 15 | D29: Property Leases | E29: Dollars | F29: Real $2018 | G29: End_Year | I29: c-i-c | J29: c-i-c | K29: c-i-c | L29: c-i-c | M29: c-i-c | N29: c-i-c | P29: c-i-c
C30: 16 | D30: Fleet Leases | E30: Dollars | F30: Real $2018 | G30: End_Year | I30: c-i-c | J30: c-i-c | K30: c-i-c | L30: c-i-c | M30: c-i-c | N30: c-i-c | P30: c-i-c
C31: 17 | D31: Buildings | E31: Dollars | F31: Real $2018 | G31: End_Year | I31: c-i-c | J31: c-i-c | K31: c-i-c | L31: c-i-c | M31: c-i-c | N31: c-i-c | P31: c-i-c
C32: 18 | D32: In-house Software | E32: Dollars | F32: Real $2018 | G32: End_Year | I32: c-i-c | J32: c-i-c | K32: c-i-c | L32: c-i-c | M32: c-i-c | N32: c-i-c | P32: c-i-c
E34: =E15 -> Dollars | F34: Real $2018 | G34: End_Year | I34: c-i-c | J34: c-i-c | K34: c-i-c | L34: c-i-c | M34: c-i-c | N34: c-i-c | P34: c-i-c
B36: End

Sheet BNI 19
B1: =MID(CELL("filename",A1),FIND("]",CELL("filename",A1))+1,255)&" Capital Expenditure" -> BNI 19 Capital Expenditure | G1: COMMERCIAL IN CONFIDENCE
B3: Direct Capex Forecasts
C5: BNI Description
D7: Requirement | E7: Description
D8: Expenditure category | E8: Protection
D9: Project / program number | E9: NPR
D10: Project / program description | E10: Protection Relay Replacement Program
C12: Direct Costs (Excluding Capitalised Overheads and Cost Escalation)
C14: Ref. | D14: Regulatory Asset Class | E14: Unit | F14: Basis | G14: Timing | I14: RY19 | J14: RY20 | K14: RY21 | L14: RY22 | M14: RY23 | N14: RY24 | P14: Total FY20 to FY24
C15: =N(C14)+1 -> 1 | D15: Substations | E15: Dollars | F15: Real $2018 | G15: End_Year | I15: c-i-c | J15: c-i-c | K15: c-i-c | L15: c-i-c | M15: c-i-c | N15: c-i-c | P15: c-i-c
C16: =N(C15)+1 -> 2 | D16: Distribution Lines | E16: Dollars | F16: Real $2018 | G16: End_Year | I16: c-i-c | J16: c-i-c | K16: c-i-c | L16: c-i-c | M16: c-i-c | N16: c-i-c | P16: c-i-c
C17: 3 | D17: Transmission Lines | E17: Dollars | F17: Real $2018 | G17: End_Year | I17: c-i-c | J17: c-i-c | K17: c-i-c | L17: c-i-c | M17: c-i-c | N17: c-i-c | P17: c-i-c
C18: 4 | D18: LV Services | E18: Dollars | F18: Real $2018 | G18: End_Year | I18: c-i-c | J18: c-i-c | K18: c-i-c | L18: c-i-c | M18: c-i-c | N18: c-i-c | P18: c-i-c
C19: 5 | D19: Distribution Substations | E19: Dollars | F19: Real $2018 | G19: End_Year | I19: c-i-c | J19: c-i-c | K19: c-i-c | L19: c-i-c | M19: c-i-c | N19: c-i-c | P19: c-i-c
C20: 6 | D20: Distribution Switchgear | E20: Dollars | F20: Real $2018 | G20: End_Year | I20: c-i-c | J20: c-i-c | K20: c-i-c | L20: c-i-c | M20: c-i-c | N20: c-i-c | P20: c-i-c
C21: 7 | D21: Protection | E21: Dollars | F21: Real $2018 | G21: End_Year | I21: c-i-c | J21: c-i-c | K21: c-i-c | L21: c-i-c | M21: c-i-c | N21: c-i-c | P21: c-i-c
C22: 8 | D22: SCADA | E22: Dollars | F22: Real $2018 | G22: End_Year | I22: c-i-c | J22: c-i-c | K22: c-i-c | L22: c-i-c | M22: c-i-c | N22: c-i-c | P22: c-i-c
C23: 9 | D23: Communications | E23: Dollars | F23: Real $2018 | G23: End_Year | I23: c-i-c | J23: c-i-c | K23: c-i-c | L23: c-i-c | M23: c-i-c | N23: c-i-c | P23: c-i-c
C24: 10 | D24: Land and Easements | E24: Dollars | F24: Real $2018 | G24: End_Year | I24: c-i-c | J24: c-i-c | K24: c-i-c | L24: c-i-c | M24: c-i-c | N24: c-i-c | P24: c-i-c
C25: 11 | D25: Property | E25: Dollars | F25: Real $2018 | G25: End_Year | I25: c-i-c | J25: c-i-c | K25: c-i-c | L25: c-i-c | M25: c-i-c | N25: c-i-c | P25: c-i-c
C26: 12 | D26: IT and Communications | E26: Dollars | F26: Real $2018 | G26: End_Year | I26: c-i-c | J26: c-i-c | K26: c-i-c | L26: c-i-c | M26: c-i-c | N26: c-i-c | P26: c-i-c
C27: 13 | D27: Motor Vehicles | E27: Dollars | F27: Real $2018 | G27: End_Year | I27: c-i-c | J27: c-i-c | K27: c-i-c | L27: c-i-c | M27: c-i-c | N27: c-i-c | P27: c-i-c
C28: 14 | D28: Plant and Equipment | E28: Dollars | F28: Real $2018 | G28: End_Year | I28: c-i-c | J28: c-i-c | K28: c-i-c | L28: c-i-c | M28: c-i-c | N28: c-i-c | P28: c-i-c
C29: 15 | D29: Property Leases | E29: Dollars | F29: Real $2018 | G29: End_Year | I29: c-i-c | J29: c-i-c | K29: c-i-c | L29: c-i-c | M29: c-i-c | N29: c-i-c | P29: c-i-c
C30: 16 | D30: Fleet Leases | E30: Dollars | F30: Real $2018 | G30: End_Year | I30: c-i-c | J30: c-i-c | K30: c-i-c | L30: c-i-c | M30: c-i-c | N30: c-i-c | P30: c-i-c
C31: 17 | D31: Buildings | E31: Dollars | F31: Real $2018 | G31: End_Year | I31: c-i-c | J31: c-i-c | K31: c-i-c | L31: c-i-c | M31: c-i-c | N31: c-i-c | P31: c-i-c
C32: 18 | D32: In-house Software | E32: Dollars | F32: Real $2018 | G32: End_Year | I32: c-i-c | J32: c-i-c | K32: c-i-c | L32: c-i-c | M32: c-i-c | N32: c-i-c | P32: c-i-c
E34: =E15 -> Dollars | F34: Real $2018 | G34: End_Year | I34: c-i-c | J34: c-i-c | K34: c-i-c | L34: c-i-c | M34: c-i-c | N34: c-i-c | P34: c-i-c
B36: End

Sheet BNI 20
B1: =MID(CELL("filename",A1),FIND("]",CELL("filename",A1))+1,255)&" Capital Expenditure" -> BNI 20 Capital Expenditure | G1: COMMERCIAL IN CONFIDENCE
B3: Direct Capex Forecasts
C5: NMP1 - High Voltage Cable Replacement Darwin Northern Suburbs
D7: Requirement | E7: Description
D8: Expenditure category | E8: Distribution Lines
D9: Project / program number | E9: NMP1
D10: Project / program description | E10: Darwin Northern Suburbs High Voltage Cable Replacement Program
C12: Direct Costs (Excluding Capitalised Overheads and Cost Escalation)
C14: Ref. | D14: Regulatory Asset Class | E14: Unit | F14: Basis | G14: Timing | I14: RY19 | J14: RY20 | K14: RY21 | L14: RY22 | M14: RY23 | N14: RY24 | P14: Total FY20 to FY24
C15: =N(C14)+1 -> 1 | D15: Substations | E15: Dollars | F15: Real $2018 | G15: End_Year | I15: c-i-c | J15: c-i-c | K15: c-i-c | L15: c-i-c | M15: c-i-c | N15: c-i-c | P15: c-i-c
C16: =N(C15)+1 -> 2 | D16: Distribution Lines | E16: Dollars | F16: Real $2018 | G16: End_Year | I16: c-i-c | J16: c-i-c | K16: c-i-c | L16: c-i-c | M16: c-i-c | N16: c-i-c | P16: c-i-c
C17: 3 | D17: Transmission Lines | E17: Dollars | F17: Real $2018 | G17: End_Year | I17: c-i-c | J17: c-i-c | K17: c-i-c | L17: c-i-c | M17: c-i-c | N17: c-i-c | P17: c-i-c
C18: 4 | D18: LV Services | E18: Dollars | F18: Real $2018 | G18: End_Year | I18: c-i-c | J18: c-i-c | K18: c-i-c | L18: c-i-c | M18: c-i-c | N18: c-i-c | P18: c-i-c
C19: 5 | D19: Distribution Substations | E19: Dollars | F19: Real $2018 | G19: End_Year | I19: c-i-c | J19: c-i-c | K19: c-i-c | L19: c-i-c | M19: c-i-c | N19: c-i-c | P19: c-i-c
C20: 6 | D20: Distribution Switchgear | E20: Dollars | F20: Real $2018 | G20: End_Year | I20: c-i-c | J20: c-i-c | K20: c-i-c | L20: c-i-c | M20: c-i-c | N20: c-i-c | P20: c-i-c
C21: 7 | D21: Protection | E21: Dollars | F21: Real $2018 | G21: End_Year | I21: c-i-c | J21: c-i-c | K21: c-i-c | L21: c-i-c | M21: c-i-c | N21: c-i-c | P21: c-i-c
C22: 8 | D22: SCADA | E22: Dollars | F22: Real $2018 | G22: End_Year | I22: c-i-c | J22: c-i-c | K22: c-i-c | L22: c-i-c | M22: c-i-c | N22: c-i-c | P22: c-i-c
C23: 9 | D23: Communications | E23: Dollars | F23: Real $2018 | G23: End_Year | I23: c-i-c | J23: c-i-c | K23: c-i-c | L23: c-i-c | M23: c-i-c | N23: c-i-c | P23: c-i-c
C24: 10 | D24: Land and Easements | E24: Dollars | F24: Real $2018 | G24: End_Year | I24: c-i-c | J24: c-i-c | K24: c-i-c | L24: c-i-c | M24: c-i-c | N24: c-i-c | P24: c-i-c
C25: 11 | D25: Property | E25: Dollars | F25: Real $2018 | G25: End_Year | I25: c-i-c | J25: c-i-c | K25: c-i-c | L25: c-i-c | M25: c-i-c | N25: c-i-c | P25: c-i-c
C26: 12 | D26: IT and Communications | E26: Dollars | F26: Real $2018 | G26: End_Year | I26: c-i-c | J26: c-i-c | K26: c-i-c | L26: c-i-c | M26: c-i-c | N26: c-i-c | P26: c-i-c
C27: 13 | D27: Motor Vehicles | E27: Dollars | F27: Real $2018 | G27: End_Year | I27: c-i-c | J27: c-i-c | K27: c-i-c | L27: c-i-c | M27: c-i-c | N27: c-i-c | P27: c-i-c
C28: 14 | D28: Plant and Equipment | E28: Dollars | F28: Real $2018 | G28: End_Year | I28: c-i-c | J28: c-i-c | K28: c-i-c | L28: c-i-c | M28: c-i-c | N28: c-i-c | P28: c-i-c
C29: 15 | D29: Property Leases | E29: Dollars | F29: Real $2018 | G29: End_Year | I29: c-i-c | J29: c-i-c | K29: c-i-c | L29: c-i-c | M29: c-i-c | N29: c-i-c | P29: c-i-c
C30: 16 | D30: Fleet Leases | E30: Dollars | F30: Real $2018 | G30: End_Year | I30: c-i-c | J30: c-i-c | K30: c-i-c | L30: c-i-c | M30: c-i-c | N30: c-i-c | P30: c-i-c
C31: 17 | D31: Buildings | E31: Dollars | F31: Real $2018 | G31: End_Year | I31: c-i-c | J31: c-i-c | K31: c-i-c | L31: c-i-c | M31: c-i-c | N31: c-i-c | P31: c-i-c
C32: 18 | D32: In-house Software | E32: Dollars | F32: Real $2018 | G32: End_Year | I32: c-i-c | J32: c-i-c | K32: c-i-c | L32: c-i-c | M32: c-i-c | N32: c-i-c | P32: c-i-c
E34: =E15 -> Dollars | F34: Real $2018 | G34: End_Year | I34: c-i-c | J34: c-i-c | K34: c-i-c | L34: c-i-c | M34: c-i-c | N34: c-i-c | P34: c-i-c
B36: End

Sheet BNI 21
B1: =MID(CELL("filename",A1),FIND("]",CELL("filename",A1))+1,255)&" Capital Expenditure" -> BNI 21 Capital Expenditure | G1: COMMERCIAL IN CONFIDENCE
B3: Direct Capex Forecasts
C5: NMP2 - Cullen Bay and Bayview LV cable Replacement
D7: Requirement | E7: Description
D8: Expenditure category | E8: Distribution Lines
D9: Project / program number | E9: NMP2
D10: Project / program description | E10: Darwin Cullen Bay and Bayview Low Voltage Cable Replacement Program
C12: Direct Costs (Excluding Capitalised Overheads and Cost Escalation)
C14: Ref. | D14: Regulatory Asset Class | E14: Unit | F14: Basis | G14: Timing | I14: RY19 | J14: RY20 | K14: RY21 | L14: RY22 | M14: RY23 | N14: RY24 | P14: Total FY20 to FY24
C15: =N(C14)+1 -> 1 | D15: Substations | E15: Dollars | F15: Real $2018 | G15: End_Year | I15: c-i-c | J15: c-i-c | K15: c-i-c | L15: c-i-c | M15: c-i-c | N15: c-i-c | P15: c-i-c
C16: =N(C15)+1 -> 2 | D16: Distribution Lines | E16: Dollars | F16: Real $2018 | G16: End_Year | I16: c-i-c | J16: c-i-c | K16: c-i-c | L16: c-i-c | M16: c-i-c | N16: c-i-c | P16: c-i-c
C17: 3 | D17: Transmission Lines | E17: Dollars | F17: Real $2018 | G17: End_Year | I17: c-i-c | J17: c-i-c | K17: c-i-c | L17: c-i-c | M17: c-i-c | N17: c-i-c | P17: c-i-c
C18: 4 | D18: LV Services | E18: Dollars | F18: Real $2018 | G18: End_Year | I18: c-i-c | J18: c-i-c | K18: c-i-c | L18: c-i-c | M18: c-i-c | N18: c-i-c | P18: c-i-c
C19: 5 | D19: Distribution Substations | E19: Dollars | F19: Real $2018 | G19: End_Year | I19: c-i-c | J19: c-i-c | K19: c-i-c | L19: c-i-c | M19: c-i-c | N19: c-i-c | P19: c-i-c
C20: 6 | D20: Distribution Switchgear | E20: Dollars | F20: Real $2018 | G20: End_Year | I20: c-i-c | J20: c-i-c | K20: c-i-c | L20: c-i-c | M20: c-i-c | N20: c-i-c | P20: c-i-c
C21: 7 | D21: Protection | E21: Dollars | F21: Real $2018 | G21: End_Year | I21: c-i-c | J21: c-i-c | K21: c-i-c | L21: c-i-c | M21: c-i-c | N21: c-i-c | P21: c-i-c
C22: 8 | D22: SCADA | E22: Dollars | F22: Real $2018 | G22: End_Year | I22: c-i-c | J22: c-i-c | K22: c-i-c | L22: c-i-c | M22: c-i-c | N22: c-i-c | P22: c-i-c
C23: 9 | D23: Communications | E23: Dollars | F23: Real $2018 | G23: End_Year | I23: c-i-c | J23: c-i-c | K23: c-i-c | L23: c-i-c | M23: c-i-c | N23: c-i-c | P23: c-i-c
C24: 10 | D24: Land and Easements | E24: Dollars | F24: Real $2018 | G24: End_Year | I24: c-i-c | J24: c-i-c | K24: c-i-c | L24: c-i-c | M24: c-i-c | N24: c-i-c | P24: c-i-c
C25: 11 | D25: Property | E25: Dollars | F25: Real $2018 | G25: End_Year | I25: c-i-c | J25: c-i-c | K25: c-i-c | L25: c-i-c | M25: c-i-c | N25: c-i-c | P25: c-i-c
C26: 12 | D26: IT and Communications | E26: Dollars | F26: Real $2018 | G26: End_Year | I26: c-i-c | J26: c-i-c | K26: c-i-c | L26: c-i-c | M26: c-i-c | N26: c-i-c | P26: c-i-c
C27: 13 | D27: Motor Vehicles | E27: Dollars | F27: Real $2018 | G27: End_Year | I27: c-i-c | J27: c-i-c | K27: c-i-c | L27: c-i-c | M27: c-i-c | N27: c-i-c | P27: c-i-c
C28: 14 | D28: Plant and Equipment | E28: Dollars | F28: Real $2018 | G28: End_Year | I28: c-i-c | J28: c-i-c | K28: c-i-c | L28: c-i-c | M28: c-i-c | N28: c-i-c | P28: c-i-c
C29: 15 | D29: Property Leases | E29: Dollars | F29: Real $2018 | G29: End_Year | I29: c-i-c | J29: c-i-c | K29: c-i-c | L29: c-i-c | M29: c-i-c | N29: c-i-c | P29: c-i-c
C30: 16 | D30: Fleet Leases | E30: Dollars | F30: Real $2018 | G30: End_Year | I30: c-i-c | J30: c-i-c | K30: c-i-c | L30: c-i-c | M30: c-i-c | N30: c-i-c | P30: c-i-c
C31: 17 | D31: Buildings | E31: Dollars | F31: Real $2018 | G31: End_Year | I31: c-i-c | J31: c-i-c | K31: c-i-c | L31: c-i-c | M31: c-i-c | N31: c-i-c | P31: c-i-c
C32: 18 | D32: In-house Software | E32: Dollars | F32: Real $2018 | G32: End_Year | I32: c-i-c | J32: c-i-c | K32: c-i-c | L32: c-i-c | M32: c-i-c | N32: c-i-c | P32: c-i-c
E34: =E15 -> Dollars | F34: Real $2018 | G34: End_Year | I34: c-i-c | J34: c-i-c | K34: c-i-c | L34: c-i-c | M34: c-i-c | N34: c-i-c | P34: c-i-c
B36: End

Sheet BNI 22
B1: =MID(CELL("filename",A1),FIND("]",CELL("filename",A1))+1,255)&" Capital Expenditure" -> BNI 22 Capital Expenditure | G1: COMMERCIAL IN CONFIDENCE
B3: Direct Capex Forecasts
C5: NMP5 - Lake Bennett feeder (Cockatoo conductor)
D7: Requirement | E7: Description
D8: Expenditure category | E8: Distribution Lines
D9: Project / program number | E9: NMP5
D10: Project / program description | E10: Darwin Lake Bennett Conductor Clearance Rectification Program
C12: Direct Costs (Excluding Capitalised Overheads and Cost Escalation)
C14: Ref. | D14: Regulatory Asset Class | E14: Unit | F14: Basis | G14: Timing | I14: RY19 | J14: RY20 | K14: RY21 | L14: RY22 | M14: RY23 | N14: RY24 | P14: Total FY20 to FY24
C15: =N(C14)+1 -> 1 | D15: Substations | E15: Dollars | F15: Real $2018 | G15: End_Year | I15: c-i-c | J15: c-i-c | K15: c-i-c | L15: c-i-c | M15: c-i-c | N15: c-i-c | P15: c-i-c
C16: =N(C15)+1 -> 2 | D16: Distribution Lines | E16: Dollars | F16: Real $2018 | G16: End_Year | I16: c-i-c | J16: c-i-c | K16: c-i-c | L16: c-i-c | M16: c-i-c | N16: c-i-c | P16: c-i-c
C17: 3 | D17: Transmission Lines | E17: Dollars | F17: Real $2018 | G17: End_Year | I17: c-i-c | J17: c-i-c | K17: c-i-c | L17: c-i-c | M17: c-i-c | N17: c-i-c | P17: c-i-c
C18: 4 | D18: LV Services | E18: Dollars | F18: Real $2018 | G18: End_Year | I18: c-i-c | J18: c-i-c | K18: c-i-c | L18: c-i-c | M18: c-i-c | N18: c-i-c | P18: c-i-c
C19: 5 | D19: Distribution Substations | E19: Dollars | F19: Real $2018 | G19: End_Year | I19: c-i-c | J19: c-i-c | K19: c-i-c | L19: c-i-c | M19: c-i-c | N19: c-i-c | P19: c-i-c
C20: 6 | D20: Distribution Switchgear | E20: Dollars | F20: Real $2018 | G20: End_Year | I20: c-i-c | J20: c-i-c | K20: c-i-c | L20: c-i-c | M20: c-i-c | N20: c-i-c | P20: c-i-c
C21: 7 | D21: Protection | E21: Dollars | F21: Real $2018 | G21: End_Year | I21: c-i-c | J21: c-i-c | K21: c-i-c | L21: c-i-c | M21: c-i-c | N21: c-i-c | P21: c-i-c
C22: 8 | D22: SCADA | E22: Dollars | F22: Real $2018 | G22: End_Year | I22: c-i-c | J22: c-i-c | K22: c-i-c | L22: c-i-c | M22: c-i-c | N22: c-i-c | P22: c-i-c
C23: 9 | D23: Communications | E23: Dollars | F23: Real $2018 | G23: End_Year | I23: c-i-c | J23: c-i-c | K23: c-i-c | L23: c-i-c | M23: c-i-c | N23: c-i-c | P23: c-i-c
C24: 10 | D24: Land and Easements | E24: Dollars | F24: Real $2018 | G24: End_Year | I24: c-i-c | J24: c-i-c | K24: c-i-c | L24: c-i-c | M24: c-i-c | N24: c-i-c | P24: c-i-c
C25: 11 | D25: Property | E25: Dollars | F25: Real $2018 | G25: End_Year | I25: c-i-c | J25: c-i-c | K25: c-i-c | L25: c-i-c | M25: c-i-c | N25: c-i-c | P25: c-i-c
C26: 12 | D26: IT and Communications | E26: Dollars | F26: Real $2018 | G26: End_Year | I26: c-i-c | J26: c-i-c | K26: c-i-c | L26: c-i-c | M26: c-i-c | N26: c-i-c | P26: c-i-c
C27: 13 | D27: Motor Vehicles | E27: Dollars | F27: Real $2018 | G27: End_Year | I27: c-i-c | J27: c-i-c | K27: c-i-c | L27: c-i-c | M27: c-i-c | N27: c-i-c | P27: c-i-c
C28: 14 | D28: Plant and Equipment | E28: Dollars | F28: Real $2018 | G28: End_Year | I28: c-i-c | J28: c-i-c | K28: c-i-c | L28: c-i-c | M28: c-i-c | N28: c-i-c | P28: c-i-c
C29: 15 | D29: Property Leases | E29: Dollars | F29: Real $2018 | G29: End_Year | I29: c-i-c | J29: c-i-c | K29: c-i-c | L29: c-i-c | M29: c-i-c | N29: c-i-c | P29: c-i-c
C30: 16 | D30: Fleet Leases | E30: Dollars | F30: Real $2018 | G30: End_Year | I30: c-i-c | J30: c-i-c | K30: c-i-c | L30: c-i-c | M30: c-i-c | N30: c-i-c | P30: c-i-c
C31: 17 | D31: Buildings | E31: Dollars | F31: Real $2018 | G31: End_Year | I31: c-i-c | J31: c-i-c | K31: c-i-c | L31: c-i-c | M31: c-i-c | N31: c-i-c | P31: c-i-c
C32: 18 | D32: In-house Software | E32: Dollars | F32: Real $2018 | G32: End_Year | I32: c-i-c | J32: c-i-c | K32: c-i-c | L32: c-i-c | M32: c-i-c | N32: c-i-c | P32: c-i-c
E34: =E15 -> Dollars | F34: Real $2018 | G34: End_Year | I34: c-i-c | J34: c-i-c | K34: c-i-c | L34: c-i-c | M34: c-i-c | N34: c-i-c | P34: c-i-c
B36: End

Sheet BNI 23
B1: =MID(CELL("filename",A1),FIND("]",CELL("filename",A1))+1,255)&" Capital Expenditure" -> BNI 23 Capital Expenditure | G1: COMMERCIAL IN CONFIDENCE
B3: Direct Capex Forecasts
C5: NMP7 - Distribution Switchgear Replacement (Hazemeyer)
D7: Requirement | E7: Description
D8: Expenditure category
D9: Project / program number
D10: Project / program description | E10: [deleted]
C12: Direct Costs (Excluding Capitalised Overheads and Cost Escalation)
C14: Ref. | D14: Regulatory Asset Class | E14: Unit | F14: Basis | G14: Timing | I14: RY19 | J14: RY20 | K14: RY21 | L14: RY22 | M14: RY23 | N14: RY24 | P14: Total FY20 to FY24
C15: =N(C14)+1 -> 1 | D15: Substations | E15: Dollars | F15: Real $2018 | G15: End_Year | I15: c-i-c | J15: c-i-c | K15: c-i-c | L15: c-i-c | M15: c-i-c | N15: c-i-c | P15: c-i-c
C16: =N(C15)+1 -> 2 | D16: Distribution Lines | E16: Dollars | F16: Real $2018 | G16: End_Year | I16: c-i-c | J16: c-i-c | K16: c-i-c | L16: c-i-c | M16: c-i-c | N16: c-i-c | P16: c-i-c
C17: 3 | D17: Transmission Lines | E17: Dollars | F17: Real $2018 | G17: End_Year | I17: c-i-c | J17: c-i-c | K17: c-i-c | L17: c-i-c | M17: c-i-c | N17: c-i-c | P17: c-i-c
C18: 4 | D18: LV Services | E18: Dollars | F18: Real $2018 | G18: End_Year | I18: c-i-c | J18: c-i-c | K18: c-i-c | L18: c-i-c | M18: c-i-c | N18: c-i-c | P18: c-i-c
C19: 5 | D19: Distribution Substations | E19: Dollars | F19: Real $2018 | G19: End_Year | I19: c-i-c | J19: c-i-c | K19: c-i-c | L19: c-i-c | M19: c-i-c | N19: c-i-c | P19: c-i-c
C20: 6 | D20: Distribution Switchgear | E20: Dollars | F20: Real $2018 | G20: End_Year | I20: c-i-c | J20: c-i-c | K20: c-i-c | L20: c-i-c | M20: c-i-c | N20: c-i-c | P20: c-i-c
C21: 7 | D21: Protection | E21: Dollars | F21: Real $2018 | G21: End_Year | I21: c-i-c | J21: c-i-c | K21: c-i-c | L21: c-i-c | M21: c-i-c | N21: c-i-c | P21: c-i-c
C22: 8 | D22: SCADA | E22: Dollars | F22: Real $2018 | G22: End_Year | I22: c-i-c | J22: c-i-c | K22: c-i-c | L22: c-i-c | M22: c-i-c | N22: c-i-c | P22: c-i-c
C23: 9 | D23: Communications | E23: Dollars | F23: Real $2018 | G23: End_Year | I23: c-i-c | J23: c-i-c | K23: c-i-c | L23: c-i-c | M23: c-i-c | N23: c-i-c | P23: c-i-c
C24: 10 | D24: Land and Easements | E24: Dollars | F24: Real $2018 | G24: End_Year | I24: c-i-c | J24: c-i-c | K24: c-i-c | L24: c-i-c | M24: c-i-c | N24: c-i-c | P24: c-i-c
C25: 11 | D25: Property | E25: Dollars | F25: Real $2018 | G25: End_Year | I25: c-i-c | J25: c-i-c | K25: c-i-c | L25: c-i-c | M25: c-i-c | N25: c-i-c | P25: c-i-c
C26: 12 | D26: IT and Communications | E26: Dollars | F26: Real $2018 | G26: End_Year | I26: c-i-c | J26: c-i-c | K26: c-i-c | L26: c-i-c | M26: c-i-c | N26: c-i-c | P26: c-i-c
C27: 13 | D27: Motor Vehicles | E27: Dollars | F27: Real $2018 | G27: End_Year | I27: c-i-c | J27: c-i-c | K27: c-i-c | L27: c-i-c | M27: c-i-c | N27: c-i-c | P27: c-i-c
C28: 14 | D28: Plant and Equipment | E28: Dollars | F28: Real $2018 | G28: End_Year | I28: c-i-c | J28: c-i-c | K28: c-i-c | L28: c-i-c | M28: c-i-c | N28: c-i-c | P28: c-i-c
C29: 15 | D29: Property Leases | E29: Dollars | F29: Real $2018 | G29: End_Year | I29: c-i-c | J29: c-i-c | K29: c-i-c | L29: c-i-c | M29: c-i-c | N29: c-i-c | P29: c-i-c
C30: 16 | D30: Fleet Leases | E30: Dollars | F30: Real $2018 | G30: End_Year | I30: c-i-c | J30: c-i-c | K30: c-i-c | L30: c-i-c | M30: c-i-c | N30: c-i-c | P30: c-i-c
C31: 17 | D31: Buildings | E31: Dollars | F31: Real $2018 | G31: End_Year | I31: c-i-c | J31: c-i-c | K31: c-i-c | L31: c-i-c | M31: c-i-c | N31: c-i-c | P31: c-i-c
C32: 18 | D32: In-house Software | E32: Dollars | F32: Real $2018 | G32: End_Year | I32: c-i-c | J32: c-i-c | K32: c-i-c | L32: c-i-c | M32: c-i-c | N32: c-i-c | P32: c-i-c
E34: =E15 -> Dollars | F34: Real $2018 | G34: End_Year | I34: c-i-c | J34: c-i-c | K34: c-i-c | L34: c-i-c | M34: c-i-c | N34: c-i-c | P34: c-i-c
B36: End

Sheet BNI 24
B1: =MID(CELL("filename",A1),FIND("]",CELL("filename",A1))+1,255)&" Capital Expenditure" -> BNI 24 Capital Expenditure | G1: COMMERCIAL IN CONFIDENCE
B3: Direct Capex Forecasts
C5: NMP17 - Single Phase Substation Replacement/Refurbishment
D7: Requirement | E7: Description
D8: Expenditure category | E8: Distribution Substations
D9: Project / program number | E9: NMP17
D10: Project / program description | E10: Single Phase Substation Refurbishment Program
C12: Direct Costs (Excluding Capitalised Overheads and Cost Escalation)
C14: Ref. | D14: Regulatory Asset Class | E14: Unit | F14: Basis | G14: Timing | I14: RY19 | J14: RY20 | K14: RY21 | L14: RY22 | M14: RY23 | N14: RY24 | P14: Total FY20 to FY24
C15: =N(C14)+1 -> 1 | D15: Substations | E15: Dollars | F15: Real $2018 | G15: End_Year | I15: c-i-c | J15: c-i-c | K15: c-i-c | L15: c-i-c | M15: c-i-c | N15: c-i-c | P15: c-i-c
C16: =N(C15)+1 -> 2 | D16: Distribution Lines | E16: Dollars | F16: Real $2018 | G16: End_Year | I16: c-i-c | J16: c-i-c | K16: c-i-c | L16: c-i-c | M16: c-i-c | N16: c-i-c | P16: c-i-c
C17: 3 | D17: Transmission Lines | E17: Dollars | F17: Real $2018 | G17: End_Year | I17: c-i-c | J17: c-i-c | K17: c-i-c | L17: c-i-c | M17: c-i-c | N17: c-i-c | P17: c-i-c
C18: 4 | D18: LV Services | E18: Dollars | F18: Real $2018 | G18: End_Year | I18: c-i-c | J18: c-i-c | K18: c-i-c | L18: c-i-c | M18: c-i-c | N18: c-i-c | P18: c-i-c
C19: 5 | D19: Distribution Substations | E19: Dollars | F19: Real $2018 | G19: End_Year | I19: c-i-c | J19: c-i-c | K19: c-i-c | L19: c-i-c | M19: c-i-c | N19: c-i-c | P19: c-i-c
C20: 6 | D20: Distribution Switchgear | E20: Dollars | F20: Real $2018 | G20: End_Year | I20: c-i-c | J20: c-i-c | K20: c-i-c | L20: c-i-c | M20: c-i-c | N20: c-i-c | P20: c-i-c
C21: 7 | D21: Protection | E21: Dollars | F21: Real $2018 | G21: End_Year | I21: c-i-c | J21: c-i-c | K21: c-i-c | L21: c-i-c | M21: c-i-c | N21: c-i-c | P21: c-i-c
C22: 8 | D22: SCADA | E22: Dollars | F22: Real $2018 | G22: End_Year | I22: c-i-c | J22: c-i-c | K22: c-i-c | L22: c-i-c | M22: c-i-c | N22: c-i-c | P22: c-i-c
C23: 9 | D23: Communications | E23: Dollars | F23: Real $2018 | G23: End_Year | I23: c-i-c | J23: c-i-c | K23: c-i-c | L23: c-i-c | M23: c-i-c | N23: c-i-c | P23: c-i-c
C24: 10 | D24: Land and Easements | E24: Dollars | F24: Real $2018 | G24: End_Year | I24: c-i-c | J24: c-i-c | K24: c-i-c | L24: c-i-c | M24: c-i-c | N24: c-i-c | P24: c-i-c
C25: 11 | D25: Property | E25: Dollars | F25: Real $2018 | G25: End_Year | I25: c-i-c | J25: c-i-c | K25: c-i-c | L25: c-i-c | M25: c-i-c | N25: c-i-c | P25: c-i-c
C26: 12 | D26: IT and Communications | E26: Dollars | F26: Real $2018 | G26: End_Year | I26: c-i-c | J26: c-i-c | K26: c-i-c | L26: c-i-c | M26: c-i-c | N26: c-i-c | P26: c-i-c
C27: 13 | D27: Motor Vehicles | E27: Dollars | F27: Real $2018 | G27: End_Year | I27: c-i-c | J27: c-i-c | K27: c-i-c | L27: c-i-c | M27: c-i-c | N27: c-i-c | P27: c-i-c
C28: 14 | D28: Plant and Equipment | E28: Dollars | F28: Real $2018 | G28: End_Year | I28: c-i-c | J28: c-i-c | K28: c-i-c | L28: c-i-c | M28: c-i-c | N28: c-i-c | P28: c-i-c
C29: 15 | D29: Property Leases | E29: Dollars | F29: Real $2018 | G29: End_Year | I29: c-i-c | J29: c-i-c | K29: c-i-c | L29: c-i-c | M29: c-i-c | N29: c-i-c | P29: c-i-c
C30: 16 | D30: Fleet Leases | E30: Dollars | F30: Real $2018 | G30: End_Year | I30: c-i-c | J30: c-i-c | K30: c-i-c | L30: c-i-c | M30: c-i-c | N30: c-i-c | P30: c-i-c
C31: 17 | D31: Buildings | E31: Dollars | F31: Real $2018 | G31: End_Year | I31: c-i-c | J31: c-i-c | K31: c-i-c | L31: c-i-c | M31: c-i-c | N31: c-i-c | P31: c-i-c
C32: 18 | D32: In-house Software | E32: Dollars | F32: Real $2018 | G32: End_Year | I32: c-i-c | J32: c-i-c | K32: c-i-c | L32: c-i-c | M32: c-i-c | N32: c-i-c | P32: c-i-c
E34: =E15 -> Dollars | F34: Real $2018 | G34: End_Year | I34: c-i-c | J34: c-i-c | K34: c-i-c | L34: c-i-c | M34: c-i-c | N34: c-i-c | P34: c-i-c
B36: End

Sheet BNI 25
B1: =MID(CELL("filename",A1),FIND("]",CELL("filename",A1))+1,255)&" Capital Expenditure" -> BNI 25 Capital Expenditure | G1: COMMERCIAL IN CONFIDENCE
B3: Direct Capex Forecasts
C5: NMP17 - Single Phase Substation Replacement/Refurbishment
D7: Requirement | E7: Description
D8: Expenditure category | E8: Distribution assets
D9: Project / program number | E9: NMCFR / PRD33437
D10: Project / program description | E10: All Regions Condition and Failure Based Replacement Pooled Forecast
C12: Direct Costs (Excluding Capitalised Overheads and Cost Escalation)
C14: Ref. | D14: Regulatory Asset Class | E14: Unit | F14: Basis | G14: Timing | I14: RY19 | J14: RY20 | K14: RY21 | L14: RY22 | M14: RY23 | N14: RY24 | P14: Total FY20 to FY24
C15: =N(C14)+1 -> 1 | D15: Substations | E15: Dollars | F15: Real $2018 | G15: End_Year | I15: c-i-c | J15: c-i-c | K15: c-i-c | L15: c-i-c | M15: c-i-c | N15: c-i-c | P15: c-i-c
C16: =N(C15)+1 -> 2 | D16: Distribution Lines | E16: Dollars | F16: Real $2018 | G16: End_Year | I16: c-i-c | J16: c-i-c | K16: c-i-c | L16: c-i-c | M16: c-i-c | N16: c-i-c | P16: c-i-c
C17: 3 | D17: Transmission Lines | E17: Dollars | F17: Real $2018 | G17: End_Year | I17: c-i-c | J17: c-i-c | K17: c-i-c | L17: c-i-c | M17: c-i-c | N17: c-i-c | P17: c-i-c
C18: 4 | D18: LV Services | E18: Dollars | F18: Real $2018 | G18: End_Year | I18: c-i-c | J18: c-i-c | K18: c-i-c | L18: c-i-c | M18: c-i-c | N18: c-i-c | P18: c-i-c
C19: 5 | D19: Distribution Substations | E19: Dollars | F19: Real $2018 | G19: End_Year | I19: c-i-c | J19: c-i-c | K19: c-i-c | L19: c-i-c | M19: c-i-c | N19: c-i-c | P19: c-i-c
C20: 6 | D20: Distribution Switchgear | E20: Dollars | F20: Real $2018 | G20: End_Year | I20: c-i-c | J20: c-i-c | K20: c-i-c | L20: c-i-c | M20: c-i-c | N20: c-i-c | P20: c-i-c
C21: 7 | D21: Protection | E21: Dollars | F21: Real $2018 | G21: End_Year | I21: c-i-c | J21: c-i-c | K21: c-i-c | L21: c-i-c | M21: c-i-c | N21: c-i-c | P21: c-i-c
C22: 8 | D22: SCADA | E22: Dollars | F22: Real $2018 | G22: End_Year | I22: c-i-c | J22: c-i-c | K22: c-i-c | L22: c-i-c | M22: c-i-c | N22: c-i-c | P22: c-i-c
C23: 9 | D23: Communications | E23: Dollars | F23: Real $2018 | G23: End_Year | I23: c-i-c | J23: c-i-c | K23: c-i-c | L23: c-i-c | M23: c-i-c | N23: c-i-c | P23: c-i-c
C24: 10 | D24: Land and Easements | E24: Dollars | F24: Real $2018 | G24: End_Year | I24: c-i-c | J24: c-i-c | K24: c-i-c | L24: c-i-c | M24: c-i-c | N24: c-i-c | P24: c-i-c
C25: 11 | D25: Property | E25: Dollars | F25: Real $2018 | G25: End_Year | I25: c-i-c | J25: c-i-c | K25: c-i-c | L25: c-i-c | M25: c-i-c | N25: c-i-c | P25: c-i-c
C26: 12 | D26: IT and Communications | E26: Dollars | F26: Real $2018 | G26: End_Year | I26: c-i-c | J26: c-i-c | K26: c-i-c | L26: c-i-c | M26: c-i-c | N26: c-i-c | P26: c-i-c
C27: 13 | D27: Motor Vehicles | E27: Dollars | F27: Real $2018 | G27: End_Year | I27: c-i-c | J27: c-i-c | K27: c-i-c | L27: c-i-c | M27: c-i-c | N27: c-i-c | P27: c-i-c
C28: 14 | D28: Plant and Equipment | E28: Dollars | F28: Real $2018 | G28: End_Year | I28: c-i-c | J28: c-i-c | K28: c-i-c | L28: c-i-c | M28: c-i-c | N28: c-i-c | P28: c-i-c
C29: 15 | D29: Property Leases | E29: Dollars | F29: Real $2018 | G29: End_Year | I29: c-i-c | J29: c-i-c | K29: c-i-c | L29: c-i-c | M29: c-i-c | N29: c-i-c | P29: c-i-c
C30: 16 | D30: Fleet Leases | E30: Dollars | F30: Real $2018 | G30: End_Year | I30: c-i-c | J30: c-i-c | K30: c-i-c | L30: c-i-c | M30: c-i-c | N30: c-i-c | P30: c-i-c
C31: 17 | D31: Buildings | E31: Dollars | F31: Real $2018 | G31: End_Year | I31: c-i-c | J31: c-i-c | K31: c-i-c | L31: c-i-c | M31: c-i-c | N31: c-i-c | P31: c-i-c
C32: 18 | D32: In-house Software | E32: Dollars | F32: Real $2018 | G32: End_Year | I32: c-i-c | J32: c-i-c | K32: c-i-c | L32: c-i-c | M32: c-i-c | N32: c-i-c | P32: c-i-c
E34: =E15 -> Dollars | F34: Real $2018 | G34: End_Year | I34: c-i-c | J34: c-i-c | K34: c-i-c | L34: c-i-c | M34: c-i-c | N34: c-i-c | P34: c-i-c
B36: End

Sheet BNI 26
B1: =MID(CELL("filename",A1),FIND("]",CELL("filename",A1))+1,255)&" Capital Expenditure" -> BNI 26 Capital Expenditure | G1: COMMERCIAL IN CONFIDENCE
B3: Direct Capex Forecasts
C5: BNI Description
D7: Requirement | E7: Description
D8: Expenditure category | E8: Distribution Lines
D9: Project / program number | E9: NMP18
D10: Project / program description | E10: Darwin Coastal Pole Top Corrosion Replacement Program
C12: Direct Costs (Excluding Capitalised Overheads and Cost Escalation)
C14: Ref. | D14: Regulatory Asset Class | E14: Unit | F14: Basis | G14: Timing | I14: RY19 | J14: RY20 | K14: RY21 | L14: RY22 | M14: RY23 | N14: RY24 | P14: Total FY20 to FY24
C15: =N(C14)+1 -> 1 | D15: Substations | E15: Dollars | F15: Real $2018 | G15: End_Year | I15: c-i-c | J15: c-i-c | K15: c-i-c | L15: c-i-c | M15: c-i-c | N15: c-i-c | P15: c-i-c
C16: =N(C15)+1 -> 2 | D16: Distribution Lines | E16: Dollars | F16: Real $2018 | G16: End_Year | I16: c-i-c | J16: c-i-c | K16: c-i-c | L16: c-i-c | M16: c-i-c | N16: c-i-c | P16: c-i-c
C17: 3 | D17: Transmission Lines | E17: Dollars | F17: Real $2018 | G17: End_Year | I17: c-i-c | J17: c-i-c | K17: c-i-c | L17: c-i-c | M17: c-i-c | N17: c-i-c | P17: c-i-c
C18: 4 | D18: LV Services | E18: Dollars | F18: Real $2018 | G18: End_Year | I18: c-i-c | J18: c-i-c | K18: c-i-c | L18: c-i-c | M18: c-i-c | N18: c-i-c | P18: c-i-c
C19: 5 | D19: Distribution Substations | E19: Dollars | F19: Real $2018 | G19: End_Year | I19: c-i-c | J19: c-i-c | K19: c-i-c | L19: c-i-c | M19: c-i-c | N19: c-i-c | P19: c-i-c
C20: 6 | D20: Distribution Switchgear | E20: Dollars | F20: Real $2018 | G20: End_Year | I20: c-i-c | J20: c-i-c | K20: c-i-c | L20: c-i-c | M20: c-i-c | N20: c-i-c | P20: c-i-c
C21: 7 | D21: Protection | E21: Dollars | F21: Real $2018 | G21: End_Year | I21: c-i-c | J21: c-i-c | K21: c-i-c | L21: c-i-c | M21: c-i-c | N21: c-i-c | P21: c-i-c
C22: 8 | D22: SCADA | E22: Dollars | F22: Real $2018 | G22: End_Year | I22: c-i-c | J22: c-i-c | K22: c-i-c | L22: c-i-c | M22: c-i-c | N22: c-i-c | P22: c-i-c
C23: 9 | D23: Communications | E23: Dollars | F23: Real $2018 | G23: End_Year | I23: c-i-c | J23: c-i-c | K23: c-i-c | L23: c-i-c | M23: c-i-c | N23: c-i-c | P23: c-i-c
C24: 10 | D24: Land and Easements | E24: Dollars | F24: Real $2018 | G24: End_Year | I24: c-i-c | J24: c-i-c | K24: c-i-c | L24: c-i-c | M24: c-i-c | N24: c-i-c | P24: c-i-c
C25: 11 | D25: Property | E25: Dollars | F25: Real $2018 | G25: End_Year | I25: c-i-c | J25: c-i-c | K25: c-i-c | L25: c-i-c | M25: c-i-c | N25: c-i-c | P25: c-i-c
C26: 12 | D26: IT and Communications | E26: Dollars | F26: Real $2018 | G26: End_Year | I26: c-i-c | J26: c-i-c | K26: c-i-c | L26: c-i-c | M26: c-i-c | N26: c-i-c | P26: c-i-c
C27: 13 | D27: Motor Vehicles | E27: Dollars | F27: Real $2018 | G27: End_Year | I27: c-i-c | J27: c-i-c | K27: c-i-c | L27: c-i-c | M27: c-i-c | N27: c-i-c | P27: c-i-c
C28: 14 | D28: Plant and Equipment | E28: Dollars | F28: Real $2018 | G28: End_Year | I28: c-i-c | J28: c-i-c | K28: c-i-c | L28: c-i-c | M28: c-i-c | N28: c-i-c | P28: c-i-c
C29: 15 | D29: Property Leases | E29: Dollars | F29: Real $2018 | G29: End_Year | I29: c-i-c | J29: c-i-c | K29: c-i-c | L29: c-i-c | M29: c-i-c | N29: c-i-c | P29: c-i-c
C30: 16 | D30: Fleet Leases | E30: Dollars | F30: Real $2018 | G30: End_Year | I30: c-i-c | J30: c-i-c | K30: c-i-c | L30: c-i-c | M30: c-i-c | N30: c-i-c | P30: c-i-c
C31: 17 | D31: Buildings | E31: Dollars | F31: Real $2018 | G31: End_Year | I31: c-i-c | J31: c-i-c | K31: c-i-c | L31: c-i-c | M31: c-i-c | N31: c-i-c | P31: c-i-c
C32: 18 | D32: In-house Software | E32: Dollars | F32: Real $2018 | G32: End_Year | I32: c-i-c | J32: c-i-c | K32: c-i-c | L32: c-i-c | M32: c-i-c | N32: c-i-c | P32: c-i-c
E34: =E15 -> Dollars | F34: Real $2018 | G34: End_Year | I34: c-i-c | J34: c-i-c | K34: c-i-c | L34: c-i-c | M34: c-i-c | N34: c-i-c | P34: c-i-c
B36: End

Sheet BNI 27
B1: =MID(CELL("filename",A1),FIND("]",CELL("filename",A1))+1,255)&" Capital Expenditure" -> BNI 27 Capital Expenditure | G1: COMMERCIAL IN CONFIDENCE
B3: Direct Capex Forecasts
C5: BNI Description
D7: Requirement | E7: Description
D8: Expenditure category | E8: Substations
D9: Project / program number | E9: NMP16
D10: Project / program description | E10: Substation DC System Replacement Program
C12: Direct Costs (Excluding Capitalised Overheads and Cost Escalation)
C14: Ref. | D14: Regulatory Asset Class | E14: Unit | F14: Basis | G14: Timing | I14: RY19 | J14: RY20 | K14: RY21 | L14: RY22 | M14: RY23 | N14: RY24 | P14: Total FY20 to FY24
C15: =N(C14)+1 -> 1 | D15: Substations | E15: Dollars | F15: Real $2018 | G15: End_Year | I15: c-i-c | J15: c-i-c | K15: c-i-c | L15: c-i-c | M15: c-i-c | N15: c-i-c | P15: c-i-c
C16: =N(C15)+1 -> 2 | D16: Distribution Lines | E16: Dollars | F16: Real $2018 | G16: End_Year | I16: c-i-c | J16: c-i-c | K16: c-i-c | L16: c-i-c | M16: c-i-c | N16: c-i-c | P16: c-i-c
C17: 3 | D17: Transmission Lines | E17: Dollars | F17: Real $2018 | G17: End_Year | I17: c-i-c | J17: c-i-c | K17: c-i-c | L17: c-i-c | M17: c-i-c | N17: c-i-c | P17: c-i-c
C18: 4 | D18: LV Services | E18: Dollars | F18: Real $2018 | G18: End_Year | I18: c-i-c | J18: c-i-c | K18: c-i-c | L18: c-i-c | M18: c-i-c | N18: c-i-c | P18: c-i-c
C19: 5 | D19: Distribution Substations | E19: Dollars | F19: Real $2018 | G19: End_Year | I19: c-i-c | J19: c-i-c | K19: c-i-c | L19: c-i-c | M19: c-i-c | N19: c-i-c | P19: c-i-c
C20: 6 | D20: Distribution Switchgear | E20: Dollars | F20: Real $2018 | G20: End_Year | I20: c-i-c | J20: c-i-c | K20: c-i-c | L20: c-i-c | M20: c-i-c | N20: c-i-c | P20: c-i-c
C21: 7 | D21: Protection | E21: Dollars | F21: Real $2018 | G21: End_Year | I21: c-i-c | J21: c-i-c | K21: c-i-c | L21: c-i-c | M21: c-i-c | N21: c-i-c | P21: c-i-c
C22: 8 | D22: SCADA | E22: Dollars | F22: Real $2018 | G22: End_Year | I22: c-i-c | J22: c-i-c | K22: c-i-c | L22: c-i-c | M22: c-i-c | N22: c-i-c | P22: c-i-c
C23: 9 | D23: Communications | E23: Dollars | F23: Real $2018 | G23: End_Year | I23: c-i-c | J23: c-i-c | K23: c-i-c | L23: c-i-c | M23: c-i-c | N23: c-i-c | P23: c-i-c
C24: 10 | D24: Land and Easements | E24: Dollars | F24: Real $2018 | G24: End_Year | I24: c-i-c | J24: c-i-c | K24: c-i-c | L24: c-i-c | M24: c-i-c | N24: c-i-c | P24: c-i-c
C25: 11 | D25: Property | E25: Dollars | F25: Real $2018 | G25: End_Year | I25: c-i-c | J25: c-i-c | K25: c-i-c | L25: c-i-c | M25: c-i-c | N25: c-i-c | P25: c-i-c
C26: 12 | D26: IT and Communications | E26: Dollars | F26: Real $2018 | G26: End_Year | I26: c-i-c | J26: c-i-c | K26: c-i-c | L26: c-i-c | M26: c-i-c | N26: c-i-c | P26: c-i-c
C27: 13 | D27: Motor Vehicles | E27: Dollars | F27: Real $2018 | G27: End_Year | I27: c-i-c | J27: c-i-c | K27: c-i-c | L27: c-i-c | M27: c-i-c | N27: c-i-c | P27: c-i-c
C28: 14 | D28: Plant and Equipment | E28: Dollars | F28: Real $2018 | G28: End_Year | I28: c-i-c | J28: c-i-c | K28: c-i-c | L28: c-i-c | M28: c-i-c | N28: c-i-c | P28: c-i-c
C29: 15 | D29: Property Leases | E29: Dollars | F29: Real $2018 | G29: End_Year | I29: c-i-c | J29: c-i-c | K29: c-i-c | L29: c-i-c | M29: c-i-c | N29: c-i-c | P29: c-i-c
C30: 16 | D30: Fleet Leases | E30: Dollars | F30: Real $2018 | G30: End_Year | I30: c-i-c | J30: c-i-c | K30: c-i-c | L30: c-i-c | M30: c-i-c | N30: c-i-c | P30: c-i-c
C31: 17 | D31: Buildings | E31: Dollars | F31: Real $2018 | G31: End_Year | I31: c-i-c | J31: c-i-c | K31: c-i-c | L31: c-i-c | M31: c-i-c | N31: c-i-c | P31: c-i-c
C32: 18 | D32: In-house Software | E32: Dollars | F32: Real $2018 | G32: End_Year | I32: c-i-c | J32: c-i-c | K32: c-i-c | L32: c-i-c | M32: c-i-c | N32: c-i-c | P32: c-i-c
E34: =E15 -> Dollars | F34: Real $2018 | G34: End_Year | I34: c-i-c | J34: c-i-c | K34: c-i-c | L34: c-i-c | M34: c-i-c | N34: c-i-c | P34: c-i-c
B36: End

Sheet BNI 28
B1: =MID(CELL("filename",A1),FIND("]",CELL("filename",A1))+1,255)&" Capital Expenditure" -> BNI 28 Capital Expenditure | G1: COMMERCIAL IN CONFIDENCE
B3: Direct Capex Forecasts
C5: BNI Description
D7: Requirement | E7: Description
D8: Expenditure category | E8: Distribution Lines
D9: Project / program number | E9: NMF
D10: Project / program description | E10: All Regions Poorly Performing Feeder Improvement Program (REPEX Component)
C12: Direct Costs (Excluding Capitalised Overheads and Cost Escalation)
C14: Ref. | D14: Regulatory Asset Class | E14: Unit | F14: Basis | G14: Timing | I14: RY19 | J14: RY20 | K14: RY21 | L14: RY22 | M14: RY23 | N14: RY24 | P14: Total FY20 to FY24
C15: =N(C14)+1 -> 1 | D15: Substations | E15: Dollars | F15: Real $2018 | G15: End_Year | I15: c-i-c | J15: c-i-c | K15: c-i-c | L15: c-i-c | M15: c-i-c | N15: c-i-c | P15: c-i-c
C16: =N(C15)+1 -> 2 | D16: Distribution Lines | E16: Dollars | F16: Real $2018 | G16: End_Year | I16: c-i-c | J16: c-i-c | K16: c-i-c | L16: c-i-c | M16: c-i-c | N16: c-i-c | P16: c-i-c
C17: 3 | D17: Transmission Lines | E17: Dollars | F17: Real $2018 | G17: End_Year | I17: c-i-c | J17: c-i-c | K17: c-i-c | L17: c-i-c | M17: c-i-c | N17: c-i-c | P17: c-i-c
C18: 4 | D18: LV Services | E18: Dollars | F18: Real $2018 | G18: End_Year | I18: c-i-c | J18: c-i-c | K18: c-i-c | L18: c-i-c | M18: c-i-c | N18: c-i-c | P18: c-i-c
C19: 5 | D19: Distribution Substations | E19: Dollars | F19: Real $2018 | G19: End_Year | I19: c-i-c | J19: c-i-c | K19: c-i-c | L19: c-i-c | M19: c-i-c | N19: c-i-c | P19: c-i-c
C20: 6 | D20: Distribution Switchgear | E20: Dollars | F20: Real $2018 | G20: End_Year | I20: c-i-c | J20: c-i-c | K20: c-i-c | L20: c-i-c | M20: c-i-c | N20: c-i-c | P20: c-i-c
C21: 7 | D21: Protection | E21: Dollars | F21: Real $2018 | G21: End_Year | I21: c-i-c | J21: c-i-c | K21: c-i-c | L21: c-i-c | M21: c-i-c | N21: c-i-c | P21: c-i-c
C22: 8 | D22: SCADA | E22: Dollars | F22: Real $2018 | G22: End_Year | I22: c-i-c | J22: c-i-c | K22: c-i-c | L22: c-i-c | M22: c-i-c | N22: c-i-c | P22: c-i-c
C23: 9 | D23: Communications | E23: Dollars | F23: Real $2018 | G23: End_Year | I23: c-i-c | J23: c-i-c | K23: c-i-c | L23: c-i-c | M23: c-i-c | N23: c-i-c | P23: c-i-c
C24: 10 | D24: Land and Easements | E24: Dollars | F24: Real $2018 | G24: End_Year | I24: c-i-c | J24: c-i-c | K24: c-i-c | L24: c-i-c | M24: c-i-c | N24: c-i-c | P24: c-i-c
C25: 11 | D25: Property | E25: Dollars | F25: Real $2018 | G25: End_Year | I25: c-i-c | J25: c-i-c | K25: c-i-c | L25: c-i-c | M25: c-i-c | N25: c-i-c | P25: c-i-c
C26: 12 | D26: IT and Communications | E26: Dollars | F26: Real $2018 | G26: End_Year | I26: c-i-c | J26: c-i-c | K26: c-i-c | L26: c-i-c | M26: c-i-c | N26: c-i-c | P26: c-i-c
C27: 13 | D27: Motor Vehicles | E27: Dollars | F27: Real $2018 | G27: End_Year | I27: c-i-c | J27: c-i-c | K27: c-i-c | L27: c-i-c | M27: c-i-c | N27: c-i-c | P27: c-i-c
C28: 14 | D28: Plant and Equipment | E28: Dollars | F28: Real $2018 | G28: End_Year | I28: c-i-c | J28: c-i-c | K28: c-i-c | L28: c-i-c | M28: c-i-c | N28: c-i-c | P28: c-i-c
C29: 15 | D29: Property Leases | E29: Dollars | F29: Real $2018 | G29: End_Year | I29: c-i-c | J29: c-i-c | K29: c-i-c | L29: c-i-c | M29: c-i-c | N29: c-i-c | P29: c-i-c
C30: 16 | D30: Fleet Leases | E30: Dollars | F30: Real $2018 | G30: End_Year | I30: c-i-c | J30: c-i-c | K30: c-i-c | L30: c-i-c | M30: c-i-c | N30: c-i-c | P30: c-i-c
C31: 17 | D31: Buildings | E31: Dollars | F31: Real $2018 | G31: End_Year | I31: c-i-c | J31: c-i-c | K31: c-i-c | L31: c-i-c | M31: c-i-c | N31: c-i-c | P31: c-i-c
C32: 18 | D32: In-house Software | E32: Dollars | F32: Real $2018 | G32: End_Year | I32: c-i-c | J32: c-i-c | K32: c-i-c | L32: c-i-c | M32: c-i-c | N32: c-i-c | P32: c-i-c
E34: =E15 -> Dollars | F34: Real $2018 | G34: End_Year | I34: c-i-c | J34: c-i-c | K34: c-i-c | L34: c-i-c | M34: c-i-c | N34: c-i-c | P34: c-i-c
B36: End

Sheet BNI 29
B1: =MID(CELL("filename",A1),FIND("]",CELL("filename",A1))+1,255)&" Capital Expenditure" -> BNI 29 Capital Expenditure | G1: COMMERCIAL IN CONFIDENCE
B3: Direct Capex Forecasts
C5: BNI Description
D7: Requirement | E7: Description
D8: Expenditure category
D9: Project / program number
D10: Project / program description | E10: [deleted]
C12: Direct Costs (Excluding Capitalised Overheads and Cost Escalation)
C14: Ref. | D14: Regulatory Asset Class | E14: Unit | F14: Basis | G14: Timing | I14: RY19 | J14: RY20 | K14: RY21 | L14: RY22 | M14: RY23 | N14: RY24 | P14: Total FY20 to FY24
C15: =N(C14)+1 -> 1 | D15: Substations | E15: Dollars | F15: Real $2018 | G15: End_Year | I15: c-i-c | J15: c-i-c | K15: c-i-c | L15: c-i-c | M15: c-i-c | N15: c-i-c | P15: c-i-c
C16: =N(C15)+1 -> 2 | D16: Distribution Lines | E16: Dollars | F16: Real $2018 | G16: End_Year | I16: c-i-c | J16: c-i-c | K16: c-i-c | L16: c-i-c | M16: c-i-c | N16: c-i-c | P16: c-i-c
C17: 3 | D17: Transmission Lines | E17: Dollars | F17: Real $2018 | G17: End_Year | I17: c-i-c | J17: c-i-c | K17: c-i-c | L17: c-i-c | M17: c-i-c | N17: c-i-c | P17: c-i-c
C18: 4 | D18: LV Services | E18: Dollars | F18: Real $2018 | G18: End_Year | I18: c-i-c | J18: c-i-c | K18: c-i-c | L18: c-i-c | M18: c-i-c | N18: c-i-c | P18: c-i-c
C19: 5 | D19: Distribution Substations | E19: Dollars | F19: Real $2018 | G19: End_Year | I19: c-i-c | J19: c-i-c | K19: c-i-c | L19: c-i-c | M19: c-i-c | N19: c-i-c | P19: c-i-c
C20: 6 | D20: Distribution Switchgear | E20: Dollars | F20: Real $2018 | G20: End_Year | I20: c-i-c | J20: c-i-c | K20: c-i-c | L20: c-i-c | M20: c-i-c | N20: c-i-c | P20: c-i-c
C21: 7 | D21: Protection | E21: Dollars | F21: Real $2018 | G21: End_Year | I21: c-i-c | J21: c-i-c | K21: c-i-c | L21: c-i-c | M21: c-i-c | N21: c-i-c | P21: c-i-c
C22: 8 | D22: SCADA | E22: Dollars | F22: Real $2018 | G22: End_Year | I22: c-i-c | J22: c-i-c | K22: c-i-c | L22: c-i-c | M22: c-i-c | N22: c-i-c | P22: c-i-c
C23: 9 | D23: Communications | E23: Dollars | F23: Real $2018 | G23: End_Year | I23: c-i-c | J23: c-i-c | K23: c-i-c | L23: c-i-c | M23: c-i-c | N23: c-i-c | P23: c-i-c
C24: 10 | D24: Land and Easements | E24: Dollars | F24: Real $2018 | G24: End_Year | I24: c-i-c | J24: c-i-c | K24: c-i-c | L24: c-i-c | M24: c-i-c | N24: c-i-c | P24: c-i-c
C25: 11 | D25: Property | E25: Dollars | F25: Real $2018 | G25: End_Year | I25: c-i-c | J25: c-i-c | K25: c-i-c | L25: c-i-c | M25: c-i-c | N25: c-i-c | P25: c-i-c
C26: 12 | D26: IT and Communications | E26: Dollars | F26: Real $2018 | G26: End_Year | I26: c-i-c | J26: c-i-c | K26: c-i-c | L26: c-i-c | M26: c-i-c | N26: c-i-c | P26: c-i-c
C27: 13 | D27: Motor Vehicles | E27: Dollars | F27: Real $2018 | G27: End_Year | I27: c-i-c | J27: c-i-c | K27: c-i-c | L27: c-i-c | M27: c-i-c | N27: c-i-c | P27: c-i-c
C28: 14 | D28: Plant and Equipment | E28: Dollars | F28: Real $2018 | G28: End_Year | I28: c-i-c | J28: c-i-c | K28: c-i-c | L28: c-i-c | M28: c-i-c | N28: c-i-c | P28: c-i-c
C29: 15 | D29: Property Leases | E29: Dollars | F29: Real $2018 | G29: End_Year | I29: c-i-c | J29: c-i-c | K29: c-i-c | L29: c-i-c | M29: c-i-c | N29: c-i-c | P29: c-i-c
C30: 16 | D30: Fleet Leases | E30: Dollars | F30: Real $2018 | G30: End_Year | I30: c-i-c | J30: c-i-c | K30: c-i-c | L30: c-i-c | M30: c-i-c | N30: c-i-c | P30: c-i-c
C31: 17 | D31: Buildings | E31: Dollars | F31: Real $2018 | G31: End_Year | I31: c-i-c | J31: c-i-c | K31: c-i-c | L31: c-i-c | M31: c-i-c | N31: c-i-c | P31: c-i-c
C32: 18 | D32: In-house Software | E32: Dollars | F32: Real $2018 | G32: End_Year | I32: c-i-c | J32: c-i-c | K32: c-i-c | L32: c-i-c | M32: c-i-c | N32: c-i-c | P32: c-i-c
E34: =E15 -> Dollars | F34: Real $2018 | G34: End_Year | I34: c-i-c | J34: c-i-c | K34: c-i-c | L34: c-i-c | M34: c-i-c | N34: c-i-c | P34: c-i-c
B36: End

Sheet BNI 30
B1: =MID(CELL("filename",A1),FIND("]",CELL("filename",A1))+1,255)&" Capital Expenditure" -> BNI 30 Capital Expenditure | G1: COMMERCIAL IN CONFIDENCE
B3: Direct Capex Forecasts
C5: BNI Description
D7: Requirement | E7: Description
D8: Expenditure category | E8: All
D9: Project / program number | E9: Budget/SCI
D10: Project / program description | E10: FY18 budget and FY19 budget for Repex
C12: Direct Costs (Excluding Capitalised Overheads and Cost Escalation)
C14: Ref. | D14: Regulatory Asset Class | E14: Unit | F14: Basis | G14: Timing | I14: RY19 | J14: RY20 | K14: RY21 | L14: RY22 | M14: RY23 | N14: RY24 | P14: Total FY20 to FY24
C15: =N(C14)+1 -> 1 | D15: Substations | E15: Dollars | F15: Real $2018 | G15: End_Year | I15: c-i-c | J15: c-i-c | K15: c-i-c | L15: c-i-c | M15: c-i-c | N15: c-i-c | P15: c-i-c
C16: =N(C15)+1 -> 2 | D16: Distribution Lines | E16: Dollars | F16: Real $2018 | G16: End_Year | I16: c-i-c | J16: c-i-c | K16: c-i-c | L16: c-i-c | M16: c-i-c | N16: c-i-c | P16: c-i-c
C17: 3 | D17: Transmission Lines | E17: Dollars | F17: Real $2018 | G17: End_Year | I17: c-i-c | J17: c-i-c | K17: c-i-c | L17: c-i-c | M17: c-i-c | N17: c-i-c | P17: c-i-c
C18: 4 | D18: LV Services | E18: Dollars | F18: Real $2018 | G18: End_Year | I18: c-i-c | J18: c-i-c | K18: c-i-c | L18: c-i-c | M18: c-i-c | N18: c-i-c | P18: c-i-c
C19: 5 | D19: Distribution Substations | E19: Dollars | F19: Real $2018 | G19: End_Year | I19: c-i-c | J19: c-i-c | K19: c-i-c | L19: c-i-c | M19: c-i-c | N19: c-i-c | P19: c-i-c
C20: 6 | D20: Distribution Switchgear | E20: Dollars | F20: Real $2018 | G20: End_Year | I20: c-i-c | J20: c-i-c | K20: c-i-c | L20: c-i-c | M20: c-i-c | N20: c-i-c | P20: c-i-c
C21: 7 | D21: Protection | E21: Dollars | F21: Real $2018 | G21: End_Year | I21: c-i-c | J21: c-i-c | K21: c-i-c | L21: c-i-c | M21: c-i-c | N21: c-i-c | P21: c-i-c
C22: 8 | D22: SCADA | E22: Dollars | F22: Real $2018 | G22: End_Year | I22: c-i-c | J22: c-i-c | K22: c-i-c | L22: c-i-c | M22: c-i-c | N22: c-i-c | P22: c-i-c
C23: 9 | D23: Communications | E23: Dollars | F23: Real $2018 | G23: End_Year | I23: c-i-c | J23: c-i-c | K23: c-i-c | L23: c-i-c | M23: c-i-c | N23: c-i-c | P23: c-i-c
C24: 10 | D24: Land and Easements | E24: Dollars | F24: Real $2018 | G24: End_Year | I24: c-i-c | J24: c-i-c | K24: c-i-c | L24: c-i-c | M24: c-i-c | N24: c-i-c | P24: c-i-c
C25: 11 | D25: Property | E25: Dollars | F25: Real $2018 | G25: End_Year | I25: c-i-c | J25: c-i-c | K25: c-i-c | L25: c-i-c | M25: c-i-c | N25: c-i-c | P25: c-i-c
C26: 12 | D26: IT and Communications | E26: Dollars | F26: Real $2018 | G26: End_Year | I26: c-i-c | J26: c-i-c | K26: c-i-c | L26: c-i-c | M26: c-i-c | N26: c-i-c | P26: c-i-c
C27: 13 | D27: Motor Vehicles | E27: Dollars | F27: Real $2018 | G27: End_Year | I27: c-i-c | J27: c-i-c | K27: c-i-c | L27: c-i-c | M27: c-i-c | N27: c-i-c | P27: c-i-c
C28: 14 | D28: Plant and Equipment | E28: Dollars | F28: Real $2018 | G28: End_Year | I28: c-i-c | J28: c-i-c | K28: c-i-c | L28: c-i-c | M28: c-i-c | N28: c-i-c | P28: c-i-c
C29: 15 | D29: Property Leases | E29: Dollars | F29: Real $2018 | G29: End_Year | I29: c-i-c | J29: c-i-c | K29: c-i-c | L29: c-i-c | M29: c-i-c | N29: c-i-c | P29: c-i-c
C30: 16 | D30: Fleet Leases | E30: Dollars | F30: Real $2018 | G30: End_Year | I30: c-i-c | J30: c-i-c | K30: c-i-c | L30: c-i-c | M30: c-i-c | N30: c-i-c | P30: c-i-c
C31: 17 | D31: Buildings | E31: Dollars | F31: Real $2018 | G31: End_Year | I31: c-i-c | J31: c-i-c | K31: c-i-c | L31: c-i-c | M31: c-i-c | N31: c-i-c | P31: c-i-c
C32: 18 | D32: In-house Software | E32: Dollars | F32: Real $2018 | G32: End_Year | I32: c-i-c | J32: c-i-c | K32: c-i-c | L32: c-i-c | M32: c-i-c | N32: c-i-c | P32: c-i-c
E34: =E15 -> Dollars | F34: Real $2018 | G34: End_Year | I34: c-i-c | J34: c-i-c | K34: c-i-c | L34: c-i-c | M34: c-i-c | N34: c-i-c | P34: c-i-c
B36: End

Sheet BNI 31
B1: =MID(CELL("filename",A1),FIND("]",CELL("filename",A1))+1,255)&" Capital Expenditure" -> BNI 31 Capital Expenditure | G1: COMMERCIAL IN CONFIDENCE
B3: Direct Capex Forecasts
C5: BNI Description
D7: Requirement | E7: Description
D8: Expenditure category | E8: Transmission Lines
D9: Project / program number | E9: NMP20
D10: Project / program description | E10: Transmission Line Pole Top Corrosion Replacement Program
C12: Direct Costs (Excluding Capitalised Overheads and Cost Escalation)
C14: Ref. | D14: Regulatory Asset Class | E14: Unit | F14: Basis | G14: Timing | I14: RY19 | J14: RY20 | K14: RY21 | L14: RY22 | M14: RY23 | N14: RY24 | P14: Total FY20 to FY24
C15: =N(C14)+1 -> 1 | D15: Substations | E15: Dollars | F15: Real $2018 | G15: End_Year | I15: c-i-c | J15: c-i-c | K15: c-i-c | L15: c-i-c | M15: c-i-c | N15: c-i-c | P15: c-i-c
C16: =N(C15)+1 -> 2 | D16: Distribution Lines | E16: Dollars | F16: Real $2018 | G16: End_Year | I16: c-i-c | J16: c-i-c | K16: c-i-c | L16: c-i-c | M16: c-i-c | N16: c-i-c | P16: c-i-c
C17: 3 | D17: Transmission Lines | E17: Dollars | F17: Real $2018 | G17: End_Year | I17: c-i-c | J17: c-i-c | K17: c-i-c | L17: c-i-c | M17: c-i-c | N17: c-i-c | P17: c-i-c
C18: 4 | D18: LV Services | E18: Dollars | F18: Real $2018 | G18: End_Year | I18: c-i-c | J18: c-i-c | K18: c-i-c | L18: c-i-c | M18: c-i-c | N18: c-i-c | P18: c-i-c
C19: 5 | D19: Distribution Substations | E19: Dollars | F19: Real $2018 | G19: End_Year | I19: c-i-c | J19: c-i-c | K19: c-i-c | L19: c-i-c | M19: c-i-c | N19: c-i-c | P19: c-i-c
C20: 6 | D20: Distribution Switchgear | E20: Dollars | F20: Real $2018 | G20: End_Year | I20: c-i-c | J20: c-i-c | K20: c-i-c | L20: c-i-c | M20: c-i-c | N20: c-i-c | P20: c-i-c
C21: 7 | D21: Protection | E21: Dollars | F21: Real $2018 | G21: End_Year | I21: c-i-c | J21: c-i-c | K21: c-i-c | L21: c-i-c | M21: c-i-c | N21: c-i-c | P21: c-i-c
C22: 8 | D22: SCADA | E22: Dollars | F22: Real $2018 | G22: End_Year | I22: c-i-c | J22: c-i-c | K22: c-i-c | L22: c-i-c | M22: c-i-c | N22: c-i-c | P22: c-i-c
C23: 9 | D23: Communications | E23: Dollars | F23: Real $2018 | G23: End_Year | I23: c-i-c | J23: c-i-c | K23: c-i-c | L23: c-i-c | M23: c-i-c | N23: c-i-c | P23: c-i-c
C24: 10 | D24: Land and Easements | E24: Dollars | F24: Real $2018 | G24: End_Year | I24: c-i-c | J24: c-i-c | K24: c-i-c | L24: c-i-c | M24: c-i-c | N24: c-i-c | P24: c-i-c
C25: 11 | D25: Property | E25: Dollars | F25: Real $2018 | G25: End_Year | I25: c-i-c | J25: c-i-c | K25: c-i-c | L25: c-i-c | M25: c-i-c | N25: c-i-c | P25: c-i-c
C26: 12 | D26: IT and Communications | E26: Dollars | F26: Real $2018 | G26: End_Year | I26: c-i-c | J26: c-i-c | K26: c-i-c | L26: c-i-c | M26: c-i-c | N26: c-i-c | P26: c-i-c
C27: 13 | D27: Motor Vehicles | E27: Dollars | F27: Real $2018 | G27: End_Year | I27: c-i-c | J27: c-i-c | K27: c-i-c | L27: c-i-c | M27: c-i-c | N27: c-i-c | P27: c-i-c
C28: 14 | D28: Plant and Equipment | E28: Dollars | F28: Real $2018 | G28: End_Year | I28: c-i-c | J28: c-i-c | K28: c-i-c | L28: c-i-c | M28: c-i-c | N28: c-i-c | P28: c-i-c
C29: 15 | D29: Property Leases | E29: Dollars | F29: Real $2018 | G29: End_Year | I29: c-i-c | J29: c-i-c | K29: c-i-c | L29: c-i-c | M29: c-i-c | N29: c-i-c | P29: c-i-c
C30: 16 | D30: Fleet Leases | E30: Dollars | F30: Real $2018 | G30: End_Year | I30: c-i-c | J30: c-i-c | K30: c-i-c | L30: c-i-c | M30: c-i-c | N30: c-i-c | P30: c-i-c
C31: 17 | D31: Buildings | E31: Dollars | F31: Real $2018 | G31: End_Year | I31: c-i-c | J31: c-i-c | K31: c-i-c | L31: c-i-c | M31: c-i-c | N31: c-i-c | P31: c-i-c
C32: 18 | D32: In-house Software | E32: Dollars | F32: Real $2018 | G32: End_Year | I32: c-i-c | J32: c-i-c | K32: c-i-c | L32: c-i-c | M32: c-i-c | N32: c-i-c | P32: c-i-c
E34: =E15 -> Dollars | F34: Real $2018 | G34: End_Year | I34: c-i-c | J34: c-i-c | K34: c-i-c | L34: c-i-c | M34: c-i-c | N34: c-i-c | P34: c-i-c
B36: End

Sheet BNI 32
B1: =MID(CELL("filename",A1),FIND("]",CELL("filename",A1))+1,255)&" Capital Expenditure" -> BNI 32 Capital Expenditure | G1: COMMERCIAL IN CONFIDENCE
B3: Direct Capex Forecasts
C5: BNI Description
D7: Requirement | E7: Description
D8: Expenditure category | E8: Transmission Lines
D9: Project / program number | E9: NMP11
D10: Project / program description | E10: Transmission Tower Earthing System Refurbishment Program
C12: Direct Costs (Excluding Capitalised Overheads and Cost Escalation)
C14: Ref. | D14: Regulatory Asset Class | E14: Unit | F14: Basis | G14: Timing | I14: RY19 | J14: RY20 | K14: RY21 | L14: RY22 | M14: RY23 | N14: RY24 | P14: Total FY20 to FY24
C15: =N(C14)+1 -> 1 | D15: Substations | E15: Dollars | F15: Real $2018 | G15: End_Year | I15: c-i-c | J15: c-i-c | K15: c-i-c | L15: c-i-c | M15: c-i-c | N15: c-i-c | P15: c-i-c
C16: =N(C15)+1 -> 2 | D16: Distribution Lines | E16: Dollars | F16: Real $2018 | G16: End_Year | I16: c-i-c | J16: c-i-c | K16: c-i-c | L16: c-i-c | M16: c-i-c | N16: c-i-c | P16: c-i-c
C17: 3 | D17: Transmission Lines | E17: Dollars | F17: Real $2018 | G17: End_Year | I17: c-i-c | J17: c-i-c | K17: c-i-c | L17: c-i-c | M17: c-i-c | N17: c-i-c | P17: c-i-c
C18: 4 | D18: LV Services | E18: Dollars | F18: Real $2018 | G18: End_Year | I18: c-i-c | J18: c-i-c | K18: c-i-c | L18: c-i-c | M18: c-i-c | N18: c-i-c | P18: c-i-c
C19: 5 | D19: Distribution Substations | E19: Dollars | F19: Real $2018 | G19: End_Year | I19: c-i-c | J19: c-i-c | K19: c-i-c | L19: c-i-c | M19: c-i-c | N19: c-i-c | P19: c-i-c
C20: 6 | D20: Distribution Switchgear | E20: Dollars | F20: Real $2018 | G20: End_Year | I20: c-i-c | J20: c-i-c | K20: c-i-c | L20: c-i-c | M20: c-i-c | N20: c-i-c | P20: c-i-c
C21: 7 | D21: Protection | E21: Dollars | F21: Real $2018 | G21: End_Year | I21: c-i-c | J21: c-i-c | K21: c-i-c | L21: c-i-c | M21: c-i-c | N21: c-i-c | P21: c-i-c
C22: 8 | D22: SCADA | E22: Dollars | F22: Real $2018 | G22: End_Year | I22: c-i-c | J22: c-i-c | K22: c-i-c | L22: c-i-c | M22: c-i-c | N22: c-i-c | P22: c-i-c
C23: 9 | D23: Communications | E23: Dollars | F23: Real $2018 | G23: End_Year | I23: c-i-c | J23: c-i-c | K23: c-i-c | L23: c-i-c | M23: c-i-c | N23: c-i-c | P23: c-i-c
C24: 10 | D24: Land and Easements | E24: Dollars | F24: Real $2018 | G24: End_Year | I24: c-i-c | J24: c-i-c | K24: c-i-c | L24: c-i-c | M24: c-i-c | N24: c-i-c | P24: c-i-c
C25: 11 | D25: Property | E25: Dollars | F25: Real $2018 | G25: End_Year | I25: c-i-c | J25: c-i-c | K25: c-i-c | L25: c-i-c | M25: c-i-c | N25: c-i-c | P25: c-i-c
C26: 12 | D26: IT and Communications | E26: Dollars | F26: Real $2018 | G26: End_Year | I26: c-i-c | J26: c-i-c | K26: c-i-c | L26: c-i-c | M26: c-i-c | N26: c-i-c | P26: c-i-c
C27: 13 | D27: Motor Vehicles | E27: Dollars | F27: Real $2018 | G27: End_Year | I27: c-i-c | J27: c-i-c | K27: c-i-c | L27: c-i-c | M27: c-i-c | N27: c-i-c | P27: c-i-c
C28: 14 | D28: Plant and Equipment | E28: Dollars | F28: Real $2018 | G28: End_Year | I28: c-i-c | J28: c-i-c | K28: c-i-c | L28: c-i-c | M28: c-i-c | N28: c-i-c | P28: c-i-c
C29: 15 | D29: Property Leases | E29: Dollars | F29: Real $2018 | G29: End_Year | I29: c-i-c | J29: c-i-c | K29: c-i-c | L29: c-i-c | M29: c-i-c | N29: c-i-c | P29: c-i-c
